Workbook

Sheet Summary
B2: Inputs: | L2: Assumptions: | N2: Current year plus three required data set.
C3: Rate Impact for Year (2025-2029) | D3: 2025 | I3: Include CA Climate Credit in Rates | J3: N | L3: Current Effective Rates | N3: 2025-06-01
C4: Baseline Region - (Residential bill) | D4: 9 warm | I4: Typical residential average usage kWh/month | J4: 500 | L4: Sales Forecast | N4: =D3 -> 2025
L5: Residential bill calculated using | N5: Schedule D, Basic, Single Family | S5: Annual Usage
L6: Non-CARE bill impact calculated with average summer usage of | P6: =IF($D$4="All",SUMPRODUCT('Res Bill Impact'!P$22:P$30,'Res Bill Impact'!$T$22:$T$30),VLOOKUP(D$4,'Res Bill Impact'!$O$22:$S$30,2,FALSE)) -> 736.1896342 | Q6: kWh per month | R6: Non-CARE | S6: =(P6*4)+(P7*8) -> 6577.192703
B7: Pending Proceedings | D7: Include in Impact (Y) | E7: Applicable Year(s) | L7: Non-CARE bill impact calculated with average winter usage of | P7: =IF($D$4="All",SUMPRODUCT('Res Bill Impact'!Q$22:Q$30,'Res Bill Impact'!$T$22:$T$30),VLOOKUP(D$4,'Res Bill Impact'!$O$22:$S$30,3,FALSE)) -> 454.0542708 | Q7: kWh per month
B8: 2025 GRC | D8: Y | E8: 2025-2028 | L8: CARE bill impact calculated with average summer usage of | P8: =IF($D$4="All",SUMPRODUCT('Res Bill Impact'!R$22:R$30,'Res Bill Impact'!$U$22:$U$30),VLOOKUP(D$4,'Res Bill Impact'!$O$22:$S$30,4,FALSE)) -> 685.496621 | Q8: kWh per month | R8: CARE | S8: =(P8*4)+(P10*8) -> 6135.943566
B9: 2026 ERRA Forecast | D9: Y | E9: 2026
B10: 2022 ERRA Review | D10: Y | E10: 2026 | L10: CARE bill impact calculated with average winter usage of | P10: =IF($D$4="All",SUMPRODUCT('Res Bill Impact'!S$22:S$30,'Res Bill Impact'!$U$22:$U$30),VLOOKUP(D$4,'Res Bill Impact'!$O$22:$S$30,5,FALSE)) -> 424.2446352 | Q10: kWh per month
B11: 2023 ERRA Review | D11: Y | E11: 2026 | L11: Essential Use (Basic) bill impact calculated with average summer usage of | P11: =IF($D$4="All",SUMPRODUCT('Res Bill Impact'!I$22:I$30,'Res Bill Impact'!$T$22:$T$30),VLOOKUP(D$4,'Res Bill Impact'!$H$22:$L$30,2,FALSE)) -> 514.0473 | Q11: kWh per month | R11: Essential Use (Basic) | S11: =(P11*4)+(P12*8) -> 4976.2212
B12: 2024 ERRA Review | D12: Y | E12: 2027 | L12: Essential Use (Basic) bill impact calculated with average winter usage of | P12: =IF($D$4="All",SUMPRODUCT('Res Bill Impact'!J$22:J$30,'Res Bill Impact'!$T$22:$T$30),VLOOKUP(D$4,'Res Bill Impact'!$H$22:$L$30,3,FALSE)) -> 365.004 | Q12: kWh per month
B13: Thomas Fire WEMA FRC | D13: Y | E13: 2025-2029 | L13: Essential Use (All-Electric) bill impact calculated with average summer usage of | P13: =IF($D$4="All",SUMPRODUCT('Res Bill Impact'!K$22:K$30,'Res Bill Impact'!$T$22:$T$30),VLOOKUP(D$4,'Res Bill Impact'!$H$22:$L$30,4,FALSE)) -> 380.2125 | Q13: kWh per month | R13: Essential Use (All-Electric) | S13: =(P13*4)+(P15*8) -> 4903.2204
B14: Woolsey CEMA | D14: Y | E14: 2027
B15: Woolsey WEMA FRC | D15: Y | E15: 2027-2029 | L15: Essential Use (All-Electric) bill impact calculated with average winter usage of | P15: =IF($D$4="All",SUMPRODUCT('Res Bill Impact'!L$22:L$30,'Res Bill Impact'!$T$22:$T$30),VLOOKUP(D$4,'Res Bill Impact'!$H$22:$L$30,5,FALSE)) -> 422.7963 | Q15: kWh per month
B16: Section 851 - Sale of Hydroelectric San Bernardino | D16: Y | E16: 2026 | L16: Average monthly usage is for all customers (Non-CARE and CARE) based on seasonal usage in | R16: 2024
B17: Section 851 - Sale of Hydroelectric Fontana Union Water | D17: Y | E17: 2026 | L17: Summer season | N17: 4 | O17: months
B18: Section 851 - Sale of Hydroelectric TULE | D18: Y | E18: 2026 | L18: Winter Season | N18: 8 | O18: months
B19: 2026 Cost of Capital | D19: Y | E19: 2026-2029 | L19: Residential Bi-Annual Climate Credit | N19: -56
B20: NextGen | D20: Y | E20: 2026-2029
B21: Diablo Canyon Extended Operations NBC | D21: Y | E21: 2026-2029
B22: IQP 2027 Bridge Funding | D22: Y | E22: 2027-2029
B29: Outputs:
D30: (A) | E30: (B) | F30: (C) | G30: (D) | H30: (D)/(A) | I30: (D)/(B) | J30: (D)/(C) | N30: (A) | O30: (B) | P30: (C) | Q30: (D) | R30: (D)/(A) | S30: (D)/(B) | T30: (D)/(C)
B31: Bundled Average Rates - ¢/kWh | L31: Total System (Bundled and Unbundled) Average Rates - ¢/kWh
B32: Customer Group | D32: 2025-01-01 | E32: =N3 -> 2025-06-01 | F32: =$D$3&" Authorized" -> 2025 Authorized | G32: =$D$3&" w/Pending" -> 2025 w/Pending | H32: ="% Change over "&MONTH(D32)&"/"&DAY(D32)&"/"&YEAR(D32) -> % Change over 1/1/2025 | I32: ="% Change over "&MONTH(E32)&"/"&DAY(E32)&"/"&YEAR(E32) -> % Change over 6/1/2025 | J32: % Change over Authorized | L32: Customer Group | N32: =$D$32 -> 2025-01-01 | O32: =$E$32 -> 2025-06-01 | P32: =$D$3&" Authorized" -> 2025 Authorized | Q32: =$D$3&" w/Pending" -> 2025 w/Pending | R32: =$H$32 -> % Change over 1/1/2025 | S32: =$I$32 -> % Change over 6/1/2025 | T32: % Change over Authorized
B33: Residential | D33: =IF(J3="Y",'SAR and RAR'!W28,'SAR and RAR'!X28) -> 31.62973815 | E33: ='SAR and RAR'!G28 -> 31.17865091 | F33: ='SAR and RAR'!H28 -> 32.52065455 | G33: ='SAR and RAR'!I28 -> 36.07371597 | H33: =$G33/D33-1 -> 0.1404999878 | I33: =$G33/E33-1 -> 0.1570005412 | J33: =$G33/F33-1 -> 0.1092555322 | L33: Total Residential (RAR) | N33: =IF(J3="Y",'SAR and RAR'!Z28,'SAR and RAR'!AA28) -> 28.36130718 | O33: ='SAR and RAR'!O28 -> 27.86095985 | P33: ='SAR and RAR'!P28 -> 28.91184451 | Q33: ='SAR and RAR'!Q28 -> 32.41922163 | R33: =$Q33/N33-1 -> 0.1430792461 | S33: 0.1636074924 | T33: 0.1213128106
C34: Small Commercial | D34: =IF(J3="Y",'SAR and AR (GS1)'!W28,'SAR and AR (GS1)'!X28) -> 29.17406766 | E34: ='SAR and AR (GS1)'!G28 -> 28.4109163 | F34: ='SAR and AR (GS1)'!H28 -> 29.74634234 | G34: ='SAR and AR (GS1)'!I28 -> 32.74266556 | H34: 0.1223208893 | I34: =$G34/E34-1 -> 0.1524677773 | J34: =$G34/F34-1 -> 0.1007291313 | M34: Total Small Commercial (AR) | N34: =IF(J3="Y",'SAR and AR (GS1)'!Z28,'SAR and AR (GS1)'!AA28) -> 25.77950096 | O34: ='SAR and AR (GS1)'!O28 -> 25.01610122 | P34: ='SAR and AR (GS1)'!P28 -> 25.8504159 | Q34: ='SAR and AR (GS1)'!Q28 -> 28.70118915 | R34: =$Q34/N34-1 -> 0.1133337759 | S34: =$Q34/O34-1 -> 0.1473086435 | T34: =$Q34/P34-1 -> 0.1102795892
B35: System | D35: =IF(J3="Y",'SAR and RAR'!W29,'SAR and RAR'!X29) -> 27.30660685 | E35: ='SAR and RAR'!G29 -> 26.64700642 | F35: ='SAR and RAR'!H29 -> 27.88429187 | G35: ='SAR and RAR'!I29 -> 30.7810907 | H35: 0.1272396777 | I35: =$G35/E35-1 -> 0.1551425408 | J35: =$G35/F35-1 -> 0.1038864047 | L35: Total System (SAR) | N35: =IF(J3="Y",'SAR and RAR'!Z29,'SAR and RAR'!AA29) -> 22.91911704 | O35: ='SAR and RAR'!O29 -> 22.25245758 | P35: ='SAR and RAR'!P29 -> 23.16508055 | Q35: ='SAR and RAR'!Q29 -> 25.84485241 | R35: 0.1276548027 | S35: 0.1614381161 | T35: 0.1156815256
B38: Bundled Residential Monthly Average Bills
D39: =$D$32 -> 2025-01-01 | E39: =$E$32 -> 2025-06-01 | F39: =$D$3&" Authorized" -> 2025 Authorized | G39: =$D$3&" w/Pending" -> 2025 w/Pending | H39: =$H$32 -> % Change over 1/1/2025 | I39: =$I$32 -> % Change over 6/1/2025 | J39: % Change over Authorized
B40: Non-CARE | D40: =((D46*4)+(D52*8))/12 -> 186.8593137 | E40: =((E46*4)+(E52*8))/12 -> 181.4275528 | F40: 187.6586211 | G40: 209.1872436 | H40: =$G40/D40-1 -> 0.1194905914 | I40: 0.1530070292 | J40: =$G40/F40-1 -> 0.1147222672
B41: CARE | D41: 104.2673392 | E41: =((E47*4)+(E53*8))/12 -> 101.3811251 | F41: 104.9944339 | G41: 117.4785789 | H41: 0.1267054457 | I41: 0.1587815656 | J41: 0.1189029219
B42: Total | D42: 157.9521226 | E42: =((E48*4)+(E54*8))/12 -> 153.4113031 | F42: 158.7261556 | G42: 177.089211 | H42: 0.1211575255 | I42: 0.1543426553 | J42: =$G42/F42-1 -> 0.1156901664
B44: Bundled Residential Monthly Average Bills - Summer
D45: =$D$32 -> 2025-01-01 | E45: =$E$32 -> 2025-06-01 | F45: =$D$3&" Authorized" -> 2025 Authorized | G45: =$D$3&" w/Pending" -> 2025 w/Pending | H45: =$H$32 -> % Change over 1/1/2025 | I45: =$I$32 -> % Change over 6/1/2025 | J45: % Change over Authorized
B46: Non-CARE | D46: =VLOOKUP($D$4,'Res Bill Impact'!$B$37:$J$46,2,FALSE)+O19 -> 257.9491103 | E46: =VLOOKUP($D$4,'Res Bill Impact'!$B$37:$J$46,4,FALSE) -> 250.540398 | F46: =VLOOKUP($D$4,'Res Bill Impact'!$B$37:$J$46,6,FALSE) -> 259.0401675 | G46: =VLOOKUP($D$4,'Res Bill Impact'!$B$37:$J$46,8,FALSE) -> 288.4072549 | H46: =$G46/D46-1 -> 0.1180781149 | I46: 0.1511407231 | J46: =$G46/F46-1 -> 0.1133688557
B47: CARE | D47: =VLOOKUP($D$4,'Res Bill Impact'!$B$52:$J$61,2,FALSE) -> 145.4334121 | E47: =VLOOKUP($D$4,'Res Bill Impact'!$B$52:$J$61,4,FALSE) -> 141.4899597 | F47: =VLOOKUP($D$4,'Res Bill Impact'!$B$52:$J$61,6,FALSE) -> 146.4198828 | G47: =VLOOKUP($D$4,'Res Bill Impact'!$B$52:$J$61,8,FALSE) -> 163.4529896 | H47: 0.1239025973 | I47: 0.1552267729 | J47: 0.1163305587
B48: Total | D48: =D46*0.65+D47*0.35 -> 218.5686159 | E48: =E46*0.65+E47*0.35 -> 212.3727446 | F48: =F46*0.65+F47*0.35 -> 219.6230679 | G48: =G46*0.65+G47*0.35 -> 244.6732621 | H48: 0.1194345586 | I48: 0.1520935161 | J48: =$G48/F48-1 -> 0.114059941
B50: Bundled Residential Monthly Average Bills - Winter
D51: =$D$32 -> 2025-01-01 | E51: =$E$32 -> 2025-06-01 | F51: =$D$3&" Authorized" -> 2025 Authorized | G51: =$D$3&" w/Pending" -> 2025 w/Pending | H51: =$H$32 -> % Change over 1/1/2025 | I51: =$I$32 -> % Change over 6/1/2025 | J51: % Change over Authorized
B52: Non-CARE | D52: =VLOOKUP($D$4,'Res Bill Impact'!$B$37:$J$46,3,FALSE) -> 151.3144154 | E52: =VLOOKUP($D$4,'Res Bill Impact'!$B$37:$J$46,5,FALSE) -> 146.8711301 | F52: =VLOOKUP($D$4,'Res Bill Impact'!$B$37:$J$46,7,FALSE) -> 151.9678479 | G52: =VLOOKUP($D$4,'Res Bill Impact'!$B$37:$J$46,9,FALSE) -> 169.577238 | H52: =$G52/D52-1 -> 0.1206945318 | I52: 0.15459885 | J52: =$G52/F52-1 -> 0.115875761
B53: CARE | D53: =VLOOKUP($D$4,'Res Bill Impact'!$B$52:$J$61,3,FALSE) -> 83.68430279 | E53: =VLOOKUP($D$4,'Res Bill Impact'!$B$52:$J$61,5,FALSE) -> 81.32670786 | F53: =VLOOKUP($D$4,'Res Bill Impact'!$B$52:$J$61,7,FALSE) -> 84.28170951 | G53: =VLOOKUP($D$4,'Res Bill Impact'!$B$52:$J$61,9,FALSE) -> 94.49137359 | H53: 0.1291409551 | I53: 0.1618738306 | J53: 0.1211373635
B54: Total | D54: =D52*0.65+D53*0.35 -> 127.643876 | E54: =E52*0.65+E53*0.35 -> 123.9305823 | F54: =F52*0.65+F53*0.35 -> 128.2776995 | G54: =G52*0.65+G53*0.35 -> 143.2971854 | H54: 0.1226326707 | I54: 0.1562697659 | J54: 0.1170857133
B57: Bundled Residential Monthly Average Bills
D58: =$D$32 -> 2025-01-01 | E58: =$E$32 -> 2025-06-01 | F58: =$D$3&" Authorized" -> 2025 Authorized | G58: =$D$3&" w/Pending" -> 2025 w/Pending | H58: =$H$32 -> % Change over 1/1/2025 | I58: =$I$32 -> % Change over 6/1/2025 | J58: % Change over Authorized
B59: Essential Use (Basic) - Non-CARE | D59: =((D66*4)+(D73*8))/12 -> 129.7299798 | E59: 125.8858489 | F59: 130.293703 | G59: 145.5230377 | H59: =$G59/D59-1 -> 0.1217379205 | I59: 0.1559920278 | J59: =$G59/F59-1 -> 0.1168846569
B60: Essential Use (Basic) - CARE | D60: 77.88462184 | E60: 75.68264396 | F60: 78.45237334 | G60: 88.02191333 | H60: 0.1301578058 | I60: 0.1630396181 | J60: =$G60/F60-1 -> 0.1219789739
B61: Essential Use (All-Electric) - Non-CARE | D61: 127.7037209 | E61: 123.9159831 | F61: 128.2591743 | G61: 143.2650959 | H61: 0.121855298 | I61: 0.1561470299 | J61: 0.1169968669
B62: Essential Use (All-Electric) - CARE | D62: 76.61452959 | E62: 74.44485457 | F62: 77.17395221 | G62: 86.60310776 | H62: 0.1303744632 | I62: 0.1633189193 | J62: 0.1221805451
B64: Bundled Residential Monthly Average Bills - Summer
D65: =$D$32 -> 2025-01-01 | E65: =$E$32 -> 2025-06-01 | F65: =$D$3&" Authorized" -> 2025 Authorized | G65: =$D$3&" w/Pending" -> 2025 w/Pending | H65: =$H$32 -> % Change over 1/1/2025 | I65: =$I$32 -> % Change over 6/1/2025 | J65: % Change over Authorized
B66: Essential Use (Basic) - Non-CARE | D66: =VLOOKUP($D$4,'Res Bill Impact'!$L$37:$T$46,2,FALSE) -> 162.8255414 | E66: =VLOOKUP($D$4,'Res Bill Impact'!$L$37:$T$46,4,FALSE) -> 158.0603229 | F66: =VLOOKUP($D$4,'Res Bill Impact'!$L$37:$T$46,6,FALSE) -> 163.5243376 | G66: =VLOOKUP($D$4,'Res Bill Impact'!$L$37:$T$46,8,FALSE) -> 182.402755 | H66: =$G66/D66-1 -> 0.1202342919 | I66: 0.1540072277 | J66: =$G66/F66-1 -> 0.1154471421
B67: Essential Use (Basic) - CARE | D67: =VLOOKUP($D$4,'Res Bill Impact'!$V$37:$AD$46,2,FALSE) -> 98.62946196 | E67: =VLOOKUP($D$4,'Res Bill Impact'!$V$37:$AD$46,4,FALSE) -> 95.8998708 | F67: =VLOOKUP($D$4,'Res Bill Impact'!$V$37:$AD$46,6,FALSE) -> 99.33325171 | G67: =VLOOKUP($D$4,'Res Bill Impact'!$V$37:$AD$46,8,FALSE) -> 111.1957377 | H67: 0.1274089456 | I67: 0.1594983058 | J67: =$G67/F67-1 -> 0.1194210982
B68: Essential Use (All-Electric) - Non-CARE | D68: =VLOOKUP($D$4,'Res Bill Impact'!$L$52:$T$61,2,FALSE) -> 118.2478462 | E68: =VLOOKUP($D$4,'Res Bill Impact'!$L$52:$T$61,4,FALSE) -> 114.7232763 | F68: =VLOOKUP($D$4,'Res Bill Impact'!$L$52:$T$61,6,FALSE) -> 118.7647073 | G68: =VLOOKUP($D$4,'Res Bill Impact'!$L$52:$T$61,8,FALSE) -> 132.7280338 | H68: 0.1224562484 | I68: 0.1569407541 | J68: 0.1175713461
B69: Essential Use (All-Electric) - CARE | D69: =VLOOKUP($D$4,'Res Bill Impact'!$V$52:$AD$61,2,FALSE) -> 70.68743242 | E69: =VLOOKUP($D$4,'Res Bill Impact'!$V$52:$AD$61,4,FALSE) -> 68.66850404 | F69: =VLOOKUP($D$4,'Res Bill Impact'!$V$46:$AD$61,6,FALSE) -> 71.20798696 | G69: =VLOOKUP($D$4,'Res Bill Impact'!$V$52:$AD$61,8,FALSE) -> 79.98201508 | H69: 0.1314884746 | I69: 0.1647554609 | J69: 0.1232169099
B71: Bundled Residential Monthly Average Bills - Winter
D72: =$D$32 -> 2025-01-01 | E72: =$E$32 -> 2025-06-01 | F72: =$D$3&" Authorized" -> 2025 Authorized | G72: =$D$3&" w/Pending" -> 2025 w/Pending | H72: =$H$32 -> % Change over 1/1/2025 | I72: =$I$32 -> % Change over 6/1/2025 | J72: % Change over Authorized
B73: Essential Use (Basic) - Non-CARE | D73: =VLOOKUP($D$4,'Res Bill Impact'!$L$37:$T$46,3,FALSE) -> 113.182199 | E73: =VLOOKUP($D$4,'Res Bill Impact'!$L$37:$T$46,5,FALSE) -> 109.7986119 | F73: =VLOOKUP($D$4,'Res Bill Impact'!$L$37:$T$46,7,FALSE) -> 113.6783857 | G73: =VLOOKUP($D$4,'Res Bill Impact'!$L$37:$T$46,9,FALSE) -> 127.0831791 | H73: =$G73/D73-1 -> 0.1228194914 | I73: 0.1574206349 | J73: =$G73/F73-1 -> 0.1179185767
B74: Essential Use (Basic) - CARE | D74: =VLOOKUP($D$4,'Res Bill Impact'!$V$37:$AD$46,3,FALSE) -> 67.51220179 | E74: =VLOOKUP($D$4,'Res Bill Impact'!$V$37:$AD$46,5,FALSE) -> 65.57403055 | F74: =VLOOKUP($D$4,'Res Bill Impact'!$V$37:$AD$46,7,FALSE) -> 68.01193415 | G74: =VLOOKUP($D$4,'Res Bill Impact'!$V$37:$AD$46,9,FALSE) -> 76.43500114 | H74: 0.1321657288 | I74: 0.1656291447 | J74: 0.1238468968
B75: Essential Use (All-Electric) - Non-CARE | D75: =VLOOKUP($D$4,'Res Bill Impact'!$L$52:$T$61,3,FALSE) -> 132.4316583 | E75: =VLOOKUP($D$4,'Res Bill Impact'!$L$52:$T$61,5,FALSE) -> 128.5123366 | F75: =VLOOKUP($D$4,'Res Bill Impact'!$L$52:$T$61,7,FALSE) -> 133.0064078 | G75: =VLOOKUP($D$4,'Res Bill Impact'!$L$52:$T$61,9,FALSE) -> 148.5336269 | H75: 0.1215870046 | I75: 0.1557927501 | J75: 0.1167403836
B76: Essential Use (All-Electric) - CARE | D76: =VLOOKUP($D$4,'Res Bill Impact'!$V$52:$AD$61,3,FALSE) -> 79.57807818 | E76: =VLOOKUP($D$4,'Res Bill Impact'!$V$52:$AD$61,5,FALSE) -> 77.33302983 | F76: =VLOOKUP($D$4,'Res Bill Impact'!$V$46:$AD$61,7,FALSE) -> 80.15693484 | G76: =VLOOKUP($D$4,'Res Bill Impact'!$V$52:$AD$61,9,FALSE) -> 89.9136541 | H76: 0.1298796874 | I76: 0.1626811247 | J76: 0.121720214
B79: Bundled Residential Monthly Average Bills
D80: =$D$32 -> 2025-01-01 | E80: =$E$32 -> 2025-06-01 | F80: =$D$3&" Authorized" -> 2025 Authorized | G80: =$D$3&" w/Pending" -> 2025 w/Pending | H80: =$H$32 -> % Change over 1/1/2025 | I80: =$I$32 -> % Change over 6/1/2025 | J80: % Change over Authorized
B81: =J4&"kWh Monthly Usage - Non-CARE" -> 500kWh Monthly Usage - Non-CARE | D81: =((D86*4)+(D91*8))/12 -> 166.708113 | E81: 161.83642 | F81: 167.424389 | G81: 186.7310742 | H81: =$G81/D81-1 -> 0.1201078993 | I81: =$G81/E81-1 -> 0.1538260315 | J81: =$G81/F81-1 -> 0.1153158469
B82: =J4&"kWh Monthly Usage - CARE" -> 500kWh Monthly Usage - CARE | D82: 101.4753954 | E82: 98.66110016 | F82: 102.1851213 | G82: 114.3607734 | H82: =$G82/D82-1 -> 0.1269803178 | I82: =$G82/E82-1 -> 0.1591272874 | J82: 0.1191528859
B84: Bundled Residential Monthly Average Bills - Summer
D85: =$D$32 -> 2025-01-01 | E85: =$E$32 -> 2025-06-01 | F85: =$D$3&" Authorized" -> 2025 Authorized | G85: =$D$3&" w/Pending" -> 2025 w/Pending | H85: =$H$32 -> % Change over 1/1/2025 | I85: =$I$32 -> % Change over 6/1/2025 | J85: % Change over Authorized
B86: =J4&"kWh Monthly Usage - Non-CARE" -> 500kWh Monthly Usage - Non-CARE | D86: =VLOOKUP($D$4,'Res Bill Impact'!$L$67:$T$76,2,FALSE) -> 158.1466667 | E86: =VLOOKUP($D$4,'Res Bill Impact'!$L$67:$T$76,4,FALSE) -> 153.5116667 | F86: =VLOOKUP($D$4,'Res Bill Impact'!$L$67:$T$76,6,FALSE) -> 158.826367 | G86: =VLOOKUP($D$4,'Res Bill Impact'!$L$67:$T$76,8,FALSE) -> 177.1888965 | H86: =$G86/D86-1 -> 0.1204086702 | I86: =$G86/E86-1 -> 0.1542373316 | J86: =$G86/F86-1 -> 0.115613861
B87: =J4&"kWh Monthly Usage - CARE" -> 500kWh Monthly Usage - CARE | D87: =VLOOKUP($D$4,'Res Bill Impact'!$V$67:$AD$76,2,FALSE) -> 95.69666667 | E87: =VLOOKUP($D$4,'Res Bill Impact'!$V$67:$AD$76,4,FALSE) -> 93.04166667 | F87: =VLOOKUP($D$4,'Res Bill Impact'!$V$67:$AD$76,6,FALSE) -> 96.38122405 | G87: =VLOOKUP($D$4,'Res Bill Impact'!$V$67:$AD$76,8,FALSE) -> 107.9195455 | H87: =$G87/D87-1 -> 0.1277252311 | I87: =$G87/E87-1 -> 0.1599055498 | J87: 0.1197154487
B89: Bundled Residential Monthly Average Bills - Winter
D90: =$D$32 -> 2025-01-01 | E90: =$E$32 -> 2025-06-01 | F90: =$D$3&" Authorized" -> 2025 Authorized | G90: =$D$3&" w/Pending" -> 2025 w/Pending | H90: =$H$32 -> % Change over 1/1/2025 | I90: =$I$32 -> % Change over 6/1/2025 | J90: % Change over Authorized
B91: =J4&"kWh Monthly Usage - Non-CARE" -> 500kWh Monthly Usage - Non-CARE | D91: =VLOOKUP($D$4,'Res Bill Impact'!$L$67:$T$76,3,FALSE) -> 170.9888361 | E91: =VLOOKUP($D$4,'Res Bill Impact'!$L$67:$T$76,5,FALSE) -> 165.9987967 | F91: =VLOOKUP($D$4,'Res Bill Impact'!$L$67:$T$76,7,FALSE) -> 171.7234 | G91: =VLOOKUP($D$4,'Res Bill Impact'!$L$67:$T$76,9,FALSE) -> 191.5021631 | H91: =$G91/D91-1 -> 0.1199688086 | I91: =$G91/E91-1 -> 0.1536358513 | J91: =$G91/F91-1 -> 0.1151780308
B92: =J4&"kWh Monthly Usage - CARE" -> 500kWh Monthly Usage - CARE | D92: =VLOOKUP($D$4,'Res Bill Impact'!$V$67:$AD$76,3,FALSE) -> 104.3647598 | E92: =VLOOKUP($D$4,'Res Bill Impact'!$V$67:$AD$76,5,FALSE) -> 101.4708169 | F92: =VLOOKUP($D$4,'Res Bill Impact'!$V$67:$AD$76,7,FALSE) -> 105.0870699 | G92: =VLOOKUP($D$4,'Res Bill Impact'!$V$67:$AD$76,9,FALSE) -> 117.5813873 | H92: =$G92/D92-1 -> 0.1266387958 | I92: =$G92/E92-1 -> 0.1587704812 | J92: 0.118894907
B95: Bundled Residential Monthly Average Bills
D96: =$D$32 -> 2025-01-01 | E96: =$E$32 -> 2025-06-01 | F96: =$D$3&" Authorized" -> 2025 Authorized | G96: =$D$3&" w/Pending" -> 2025 w/Pending | H96: =$H$32 -> % Change over 1/1/2025 | I96: =$I$32 -> % Change over 6/1/2025 | J96: % Change over Authorized
B97: All-Electric - Non-CARE | D97: =((D103*4)+(D109*8))/12 -> 139.7381152 | E97: =((E103*4)+(E109*8))/12 -> 135.6163289 | F97: 140.3435961 | G97: 156.6765177 | H97: =$G97/D97-1 -> 0.1212153353 | I97: 0.1552924268 | J97: =$G97/F97-1 -> 0.1163781039
B98: All-Electric - CARE | D98: =((D104*4)+(D110*8))/12 -> 81.86581957 | E98: 79.55666218 | F98: 82.45356024 | G98: 92.46247378 | H98: 0.129439298 | I98: 0.1622216323 | J98: 0.1213884945
B99: All-Electric - Total | D99: =((D105*4)+(D111*8))/12 -> 119.4828118 | E99: 115.9954456 | F99: 120.0820836 | G99: 134.2016023 | H99: 0.1231875144 | I99: 0.15695579 | J99: =$G99/F99-1 -> 0.1175822268
B101: Bundled Residential Monthly Average Bills - Summer
D102: =$D$32 -> 2025-01-01 | E102: =$E$32 -> 2025-06-01 | F102: =$D$3&" Authorized" -> 2025 Authorized | G102: =$D$3&" w/Pending" -> 2025 w/Pending | H102: =$H$32 -> % Change over 1/1/2025 | I102: =$I$32 -> % Change over 6/1/2025 | J102: % Change over Authorized
B103: All-Electric - Non-CARE | D103: =VLOOKUP($D$4,'Res Bill Impact'!$B$67:$J$76,2,FALSE) -> 182.7427053 | E103: =VLOOKUP($D$4,'Res Bill Impact'!$B$67:$J$76,4,FALSE) -> 177.4258166 | F103: =VLOOKUP($D$4,'Res Bill Impact'!$B$67:$J$76,6,FALSE) -> 183.5255238 | G103: =VLOOKUP($D$4,'Res Bill Impact'!$B$67:$J$76,8,FALSE) -> 204.6002876 | H103: =$G103/D103-1 -> 0.1196085079 | I103: =$G103/E103-1 -> 0.1531596218 | J103: =$G103/F103-1 -> 0.1148328762
B104: All-Electric - CARE | D104: =VLOOKUP($D$4,'Res Bill Impact'!$B$82:$J$91,2,FALSE) -> 106.1209049 | E104: =VLOOKUP($D$4,'Res Bill Impact'!$B$82:$J$91,4,FALSE) -> 103.1830088 | F104: =VLOOKUP($D$4,'Res Bill Impact'!$B$82:$J$91,6,FALSE) -> 106.8554663 | G104: =VLOOKUP($D$4,'Res Bill Impact'!$B$82:$J$91,8,FALSE) -> 119.5439728 | H104: =$G104/D104-1 -> 0.1264884417 | I104: =$G104/E104-1 -> 0.1585625785 | J104: =$G104/F104-1 -> 0.1187445703
B105: All-Electric - Total | D105: =D103*0.65+D104*0.35 -> 155.9250751 | E105: =E103*0.65+E104*0.35 -> 151.4408339 | F105: =F103*0.65+F104*0.35 -> 156.6910037 | G105: =G103*0.65+G104*0.35 -> 174.8305774 | H105: =$G105/D105-1 -> 0.1212473507 | I105: =$G105/E105-1 -> 0.1544480633 | J105: =$G105/F105-1 -> 0.1157665294
B107: Bundled Residential Monthly Average Bills - Winter
D108: =$D$32 -> 2025-01-01 | E108: =$E$32 -> 2025-06-01 | F108: =$D$3&" Authorized" -> 2025 Authorized | G108: =$D$3&" w/Pending" -> 2025 w/Pending | H108: =$H$32 -> % Change over 1/1/2025 | I108: =$I$32 -> % Change over 6/1/2025 | J108: % Change over Authorized
B109: All-Electric - Non-CARE | D109: =VLOOKUP($D$4,'Res Bill Impact'!$B$67:$J$76,3,FALSE) -> 118.2358202 | E109: =VLOOKUP($D$4,'Res Bill Impact'!$B$67:$J$76,5,FALSE) -> 114.711585 | F109: =VLOOKUP($D$4,'Res Bill Impact'!$B$67:$J$76,7,FALSE) -> 118.7526323 | G109: =VLOOKUP($D$4,'Res Bill Impact'!$B$67:$J$76,9,FALSE) -> 132.7146328 | H109: =$G109/D109-1 -> 0.1224570739 | I109: 0.1569418446 | J109: =$G109/F109-1 -> 0.1175721352
B110: All-Electric - CARE | D110: =VLOOKUP($D$4,'Res Bill Impact'!$B$82:$J$91,3,FALSE) -> 69.73827691 | E110: =VLOOKUP($D$4,'Res Bill Impact'!$B$82:$J$91,5,FALSE) -> 67.74348886 | F110: =VLOOKUP($D$4,'Res Bill Impact'!$B$82:$J$91,7,FALSE) -> 70.25260719 | G110: =VLOOKUP($D$4,'Res Bill Impact'!$B$82:$J$91,9,FALSE) -> 78.92172428 | H110: 0.1316844605 | I110: 0.165008263 | J110: 0.1233992223
B111: All-Electric - Total | D111: =D109*0.65+D110*0.35 -> 101.2616801 | E111: =E109*0.65+E110*0.35 -> 98.27275138 | F111: =F109*0.65+F110*0.35 -> 101.7776235 | G111: =G109*0.65+G110*0.35 -> 113.8871148 | H111: 0.1246812688 | I111: 0.1588880256 | J111: 0.1189798987
B113: Small Commercial Monthly Average Bills
D114: =$D$32 -> 2025-01-01 | E114: =$E$32 -> 2025-06-01 | F114: =$D$3&" Authorized" -> 2025 Authorized | G114: =$D$3&" w/Pending" -> 2025 w/Pending | H114: =$H$32 -> % Change over 1/1/2025 | I114: =$I$32 -> % Change over 6/1/2025 | J114: % Change over Authorized
B115: NAICS 531 | D115: =((D121*4)+(D127*8))/12 -> 200.0192632 | E115: =((E121*4)+(E127*8))/12 -> 194.8698628 | F115: 204.0565075 | G115: 224.2425663 | H115: =$G115/D115-1 -> 0.1211048512 | I115: 0.1507298411 | J115: =$G115/F115-1 -> 0.09892386698
B116: NAICS 621 | D116: =((D122*4)+(D128*8))/12 -> 276.15071 | E116: 268.8677976 | F116: 281.8177952 | G116: 310.2731694 | H116: 0.1235646269 | I116: 0.1539989994 | J116: 0.1009708214
B117: NAICS 722 | D117: =((D123*4)+(D129*8))/12 -> 798.5610323 | E117: 777.0703134 | F117: 815.8662405 | G117: 901.1135634 | H117: 0.1284216571 | I117: 0.159629377 | J117: =$G117/F117-1 -> 0.1044868862
B119: Small Commercial Monthly Average Bills - Summer
D120: =D114 -> 2025-01-01 | E120: =$E$32 -> 2025-06-01 | F120: =$D$3&" Authorized" -> 2025 Authorized | G120: =$D$3&" w/Pending" -> 2025 w/Pending | H120: =$H$32 -> % Change over 1/1/2025 | I120: =$I$32 -> % Change over 6/1/2025 | J120: % Change over Authorized
B121: NAICS 531 | D121: ='Bill Impact (GS1)'!C37 -> 221.6737636 | E121: ='Bill Impact (GS1)'!E37 -> 216.2914337 | F121: ='Bill Impact (GS1)'!G37 -> 226.5675267 | G121: ='Bill Impact (GS1)'!I37 -> 249.1474594 | H121: =$G121/D121-1 -> 0.1239375171 | I121: =$G121/E121-1 -> 0.151906274 | J121: =$G121/F121-1 -> 0.0996609402
B122: NAICS 621 | D122: ='Bill Impact (GS1)'!C38 -> 369.469769 | E122: ='Bill Impact (GS1)'!E38 -> 360.411944 | F122: ='Bill Impact (GS1)'!G38 -> 378.0176515 | G122: ='Bill Impact (GS1)'!I38 -> 416.7031414 | H122: =$G122/D122-1 -> 0.1278409665 | I122: =$G122/E122-1 -> 0.1561857157 | J122: =$G122/F122-1 -> 0.1023377868
B123: NAICS 722 | D123: ='Bill Impact (GS1)'!C39 -> 1048.787661 | E123: ='Bill Impact (GS1)'!E39 -> 1022.656419 | F123: ='Bill Impact (GS1)'!G39 -> 1073.942251 | G123: ='Bill Impact (GS1)'!I39 -> 1186.633975 | H123: =$G123/D123-1 -> 0.1314339581 | I123: =$G123/E123-1 -> 0.1603447187 | J123: =$G123/F123-1 -> 0.1049327593
B125: Small Commercial Monthly Average Bills - Winter
D126: =D114 -> 2025-01-01 | E126: =$E$32 -> 2025-06-01 | F126: =$D$3&" Authorized" -> 2025 Authorized | G126: =$D$3&" w/Pending" -> 2025 w/Pending | H126: =$H$32 -> % Change over 1/1/2025 | I126: =$I$32 -> % Change over 6/1/2025 | J126: % Change over Authorized
B127: NAICS 531 | D127: ='Bill Impact (GS1)'!D37 -> 189.192013 | E127: ='Bill Impact (GS1)'!F37 -> 184.1590774 | F127: ='Bill Impact (GS1)'!H37 -> 192.8009979 | G127: ='Bill Impact (GS1)'!J37 -> 211.7901197 | H127: =$G127/D127-1 -> 0.1194453527 | I127: 0.1500389918 | J127: =$G127/F127-1 -> 0.09849078608
B128: NAICS 621 | D128: ='Bill Impact (GS1)'!D38 -> 229.4911805 | E128: ='Bill Impact (GS1)'!F38 -> 223.0957245 | F128: ='Bill Impact (GS1)'!H38 -> 233.717867 | G128: ='Bill Impact (GS1)'!J38 -> 257.0581835 | H128: 0.1201222762 | I128: 0.1522326755 | J128: 0.09986534953
B129: NAICS 722 | D129: ='Bill Impact (GS1)'!D39 -> 673.4477179 | E129: ='Bill Impact (GS1)'!F39 -> 654.2772607 | F129: ='Bill Impact (GS1)'!H39 -> 686.8282352 | G129: ='Bill Impact (GS1)'!J39 -> 758.3533578 | H129: 0.1260760674 | I129: 0.159070326 | J129: 0.1041382968

Sheet Selected Data
A1: Summary of Selected Data
N2: 2025 Revenue
N3: Requirement
N4: $000
A5: 1 | B5: Current total system-level revenue requirement that is used for defining the reporting threshold: | N5: ='Authorized Rev Req'!M100 -> 17047779.16
B7: A | C7: One-percent reporting threshold | N7: =N5*0.01 -> 170477.7916
A9: 2 | B9: List of currently open proceedings that exceed the threshold for use of the affordability metrics (proceedings shaded gray filed prior to D.22-08-023):
N10: Annual Revenue
B11: A | C11: ='Incremental Rev Req'!B93 -> A.23-05-010 | D11: ='Incremental Rev Req'!$A$92 -> 2025 GRC | N11: =SUM('Incremental Rev Req'!L92:L94) -> 2006727.886
B12: B | C12: A.24-10-002 | D12: Woolsey WEMA FRC/CEMA | N12: =SUM('Incremental Rev Req'!D116:D117) -> 419967
B13: C | C13: A.25-03-012 | D13: 2026 Cost of Capital | N13: =SUM('Incremental Rev Req'!D119:D121) -> 381579
B14: D | C14: A.25-03-009 | D14: NextGen | N14: 145266 | O14: Average annual revenue requirement from 2025-2032
A18: 3 | B18: List of currently open proceedings for which affordability metrics have been filed: | N18: Annual Revenue
B19: A | C19: =C11 -> A.23-05-010 | D19: 2025 GRC | N19: =N11 -> 2006727.886
B20: B | C20: =C12 -> A.24-10-002 | D20: =D12 -> Woolsey WEMA FRC/CEMA | N20: =N12 -> 419967
B21: C | C21: =C13 -> A.25-03-012 | D21: =D13 -> 2026 Cost of Capital | N21: =N13 -> 381579
B22: D | C22: =C14 -> A.25-03-009 | D22: NextGen | N22: =N14 -> 145266
A26: 4 | B26: List of currently open proceedings that do not exceed the threshold for use of the affordability metrics (proceedings shaded gray filed prior to D.22-08-023):
N27: Annual Revenue
B28: A | C28: ='Incremental Rev Req'!B107 -> A.23-04-003 | D28: ='Incremental Rev Req'!A107 -> 2022 ERRA Review | N28: ='Incremental Rev Req'!D107+'Incremental Rev Req'!D108 -> 50874
B29: B | C29: ='Incremental Rev Req'!B110 -> A.24-04-001 | D29: 2023 ERRA Review | N29: =SUM('Incremental Rev Req'!D109:D110) -> -63195
B30: C | C30: A.24-08-012 | D30: Section 851 - Sale of Hydroelectric San Bernardino | N30: 60300
B31: D | C31: A.24-09-008 | D31: Section 851 - Sale of Hydroelectric Fontana Union Water | N31: 9500
B32: E | C32: A.25-03-001 | D32: Section 851 - Sale of Hydroelectric TULE | N32: ='Incremental Rev Req'!D118 -> 31100
B33: F | C33: A.25-04-004 | D33: 2024 ERRA Review | N33: =SUM('Incremental Rev Req'!D111:D112) -> 3992
B34: G | C34: A.25-04-021 | D34: Thomas Fire WEMA FRC | N34: ='Incremental Rev Req'!D115 -> 113900
B35: F | C35: A.25-06-022 | D35: IQP 2027 Bridge Funding | N35: =SUM('Incremental Rev Req'!D124:D125) -> 72176.28
A39: 5 | B39: Total system-level revenue requirement if all pending revenue were granted in full: requests were granted in full
B40: A | C40: YE 2025 | N40: ='Incremental Rev Req'!$T$82 -> 19815316.87
B41: B | C41: YE 2026 | N41: ='Incremental Rev Req'!$U$82 -> 19289024.44
B42: C | C42: YE 2027 | N42: ='Incremental Rev Req'!$V$82 -> 20013936.85
B43: D | C43: YE 2028 | N43: ='Incremental Rev Req'!$W$82 -> 20831988.98
B44: E | C44: YE 2029 | N44: ='Incremental Rev Req'!$X$82 -> 20939719.98
A46: 6 | B46: Bundled residential average rate (RAR) if all pending revenue were granted in full (from Cost and Rate Tracker (CRT) as submitted by utility):
N47: cents/kWh
B48: A | C48: YE 2025 | N48: 36.07371597 | R48: =Summary!G33 -> 36.07371597 | S48: =Summary!G33 -> 36.07371597
B49: B | C49: YE 2026 | N49: 34.33545606
B50: C | C50: YE 2027 | N50: 34.67522736
B51: D | C51: YE 2028 | N51: 35.01831691
B52: E | C52: YE 2029 | N52: 35.18595972
A54: 7 | B54: Bundled residential average monthly bill corresponding to RAR above for typical customer in climate zone 9 using 500 kWh (from CRT as submitted by utility):
M55: Non-CARE | N55: CARE
B56: A | C56: YE 2025 | M56: 186.7310742 | N56: 114.3607734 | Q56: =Summary!G81 -> 186.7310742 | R56: =Summary!G82 -> 114.3607734 | S56: =Summary!G81 -> 186.7310742 | T56: =Summary!G82 -> 114.3607734
B57: B | C57: YE 2026 | M57: 178.6911222 | N57: 109.290423
B58: C | C58: YE 2027 | M58: 180.5830108 | N58: 110.4835319
B59: D | C59: YE 2028 | M59: 182.4733149 | N59: 111.6756415
B60: E | C60: YE 2029 | M60: 183.3909421 | N60: 112.2543379
A62: 8 | B62: Bundled small commercial average rate (TOU-GS-1) if all pending revenue were granted in full (from Cost and Rate Tracker (CRT) as submitted by utility):
N63: cents/kWh
B64: A | C64: YE 2025 | N64: 32.74266556 | R64: =Summary!G34 -> 32.74266556 | S64: =Summary!G34 -> 32.74266556
B65: B | C65: YE 2026 | N65: 31.44213658
B66: C | C66: YE 2027 | N66: 31.4021173
B67: D | C67: YE 2028 | N67: 31.69024664
B68: E | C68: YE 2029 | N68: 31.8228663
A70: 9 | B70: Bundled small commercial average monthly bill corresponding to TOU-GS-1 rate above for typical customer by NAICS (from CRT as submitted by utility):
L71: NAICS 531 | M71: NAICS 621 | N71: NAICS 722
B72: A | C72: YE 2025 | L72: 224.2425663 | M72: 310.2731694 | N72: 901.1135634 | P72: =Summary!G115 -> 224.2425663 | Q72: =Summary!G116 -> 310.2731694 | R72: =Summary!G117 -> 901.1135634 | S72: =Summary!G115 -> 224.2425663 | T72: =Summary!G116 -> 310.2731694 | U72: =Summary!G117 -> 901.1135634
B73: B | C73: YE 2026 | L73: 216.8207624 | M73: 299.8109881 | N73: 869.7706985 | P73: =M73/M72-1 -> -0.03371925889 | Q73: -0.03478236946 | S73: -1.00015037 | T73: -1.000112102
B74: C | C74: YE 2027 | L74: 216.9376839 | M74: 299.975807 | N74: 870.2644672 | P74: 0.0005497427849 | Q74: 0.0005676998231 | S74: -1.016303525 | T74: -1.016321482
B75: D | C75: YE 2028 | L75: 219.0422967 | M75: 302.9425845 | N75: 879.1524136 | P75: 0.009890055889 | Q75: 0.0102129257 | S75: 16.99033323 | T75: 16.99001036
B76: E | C76: YE 2029 | L76: 219.9389023 | M76: 304.206489 | N76: 882.9388502 | P76: 0.004172092411 | Q76: 0.00430691718 | S76: -0.5781527974 | T76: -0.5782876221

Sheet Authorized Rev Req
B2: Annual Period 2025
B3: Reporting Date: Quarter Ended September 30
C4: January 1, 2023 | D4: March 1, 2023 | E4: June 1, 2023 | F4: October 1, 2023 | G4: January 1, 2024 | H4: March 1, 2024 | I4: June 1, 2024 | J4: October 1, 2024 | K4: January 1, 2025 | L4: March 1, 2025 | M4: June 1, 2025
C5: 4929-E-A | D5: 4977-E | E5: 5041-E | F5: 5109-E | G5: 5178-E | H5: 5235-E | I5: 5307-E | J5: 5379-E / E-A | K5: 5449-E | L5: 5484-E | M5: 5555-E
B6: Filing Description | N6: Revenue Recovery Mechanism | O6: Authority for Revenue Requirement | P6: Balancing Account
A7: Safety Affordability Reliability Proceedings | B7: Safety Affordability Reliability Proceedings
A8: 2018 GRC (Attrition Years) | B8: General Rate Case (GRC-G) | C8: 735101 | D8: 729370 | E8: 729370 | F8: 729370 | G8: 754977 | H8: 766648.8347 | I8: 766648.8347 | J8: 766648.8347 | K8: 760627.5753 | L8: 760627.5753 | M8: 760627.5753 | N8: Generation | O8: D.23-11-096; Advice 5120-E; Advice 5406-E | P8: N
A9: 2018 GRC (Attrition Years) | B9: General Rate Case (GRC-N) | C9: 62456 | D9: 61815 | E9: 61815 | F9: 61815 | G9: 61347 | H9: 62607.60614 | I9: 62607.60614 | J9: 62607.60614 | K9: 61952.34378 | L9: 61952.34378 | M9: 61952.34378 | N9: New System Gen | O9: D.23-11-096; Advice 5120-E; Advice 5406-E | P9: N
A10: 2018 GRC (Attrition Years) | B10: General Rate Case (GRC-D) | C10: 6995075 | D10: 6911672 | E10: 6841923 | F10: 6841923 | G10: 7565233 | H10: 7752988.246 | I10: 7752988.246 | J10: 7752988.246 | K10: 7655298.489 | L10: 7655298.489 | M10: 7655298.489 | N10: Distribution | O10: D.23-11-096; Advice 5120-E; Advice 5406-E | P10: N
A11: 2018 GRC Memo Account/One-Time/FF&U | B11: 2021 GRCRRMA (27-month amortization) | C11: -3564.790897 | D11: -3564.790897 | E11: -3564.790897 | F11: -3564.790897 | G11: 0 | H11: 0 | I11: 0 | J11: 0 | N11: Generation | O11: D.21-08-036 | P11: Y
A12: 2018 GRC Memo Account/One-Time/FF&U | B12: 2021 GRCRRMA (27-month amortization) | C12: 2213.394759 | D12: 2213.394759 | E12: 2213.394759 | F12: 2213.394759 | G12: 0 | H12: 0 | I12: 0 | J12: 0 | N12: New System Gen | O12: D.21-08-036 | P12: Y
A13: Non-utility Affiliate Credits | B13: 2021 GRCRRMA (27-month amortization) | C13: 322298.9749 | D13: 322298.9749 | E13: 322298.9749 | F13: 322298.9749 | G13: 0 | H13: 0 | I13: 0 | J13: 0 | N13: Distribution | O13: D.21-08-036 | P13: Y
A14: Pole Loading & Deteriorated Poles Balancing Account | B14: Non-utility Affiliate Credits | C14: -4288.865465 | D14: -4288.865465 | E14: -4288.865465 | F14: -4288.865465 | G14: -4485.891476 | H14: -4485.891476 | I14: -4485.891476 | J14: -4485.891476 | K14: -4572.580314 | L14: -4572.580314 | M14: -4572.580314 | N14: Distribution | O14: D.15-10-037 | P14: N
A15: Tax Accounting Memorandum Account (TAMA) | B15: Pole Loading & Deteriorated Pole Programs Balancing Account | C15: 52270.76244 | D15: 52270.76244 | E15: 52270.76244 | F15: 52270.76244 | G15: -51916.65043 | H15: -51916.65043 | I15: -51916.65043 | J15: -51916.65043 | K15: -14072.56849 | L15: -14072.56849 | M15: -14072.56849 | N15: Distribution | O15: D.21-08-036 | P15: Y
A16: Pension/PBOP/Medical Balancing Accounts | B16: 2020 TAMA Balance | C16: 142.5835769 | D16: 142.5835769 | E16: 142.5835769 | F16: 142.5835769 | G16: 0 | H16: 0 | I16: 0 | N16: Distribution | O16: D.15-10-037; Advice 4453-E | P16: Y
B17: 2022/2023 TAMA Balance | C17: 18398 | D17: 18398 | E17: 18398 | F17: 18398 | G17: 19974.10359 | H17: 19974.10359 | I17: 19974.10359 | J17: 19974.10359 | K17: 14976.03009 | L17: 14976.03009 | M17: 14976.03009 | N17: Generation | O17: Advice 5260-E | P17: Y
B18: 2022/2023 TAMA Balance | C18: 119343.2066 | D18: 119343.2066 | E18: 119343.2066 | F18: 129422.3922 | G18: 129422.3922 | H18: 129422.3922 | I18: 129422.3922 | J18: 97197.38039 | K18: 97197.38039 | L18: 97197.38039 | M18: 97197.38039 | N18: Distribution | O18: Advice 5260-E | P18: Y
A19: Pension/PBOP/Medical Balancing Accounts | B19: Pension/PBOP/Medical Balancing Accounts | C19: -9738 | D19: -9738 | E19: -9738 | F19: -9738 | G19: -12071.66001 | H19: -12071.66001 | I19: -12071.66001 | J19: -12071.66001 | K19: -10009.34302 | L19: -10009.34302 | M19: -10009.34302 | N19: Generation | O19: D.21-08-036 | P19: Y
A20: 2019 ERRA Forecast | B20: Pension/PBOP/Medical Balancing Accounts | C20: -63095.20256 | D20: -63095.20256 | E20: -63095.20256 | F20: -63095.20256 | G20: -78219.42906 | H20: -78219.42906 | I20: -78219.42906 | J20: -78219.42906 | K20: -64990.5188 | L20: -64990.5188 | M20: -64990.5188 | N20: Distribution | O20: D.21-08-036 | P20: Y
A21: 2019 ERRA Forecast | B21: ERRA Forecast | C21: 4995616 | D21: 4995616 | E21: 4995616 | F21: 4995616 | G21: 4703703 | H21: 4703703 | I21: 4703703 | J21: 4703703 | K21: 4088354.669 | L21: 4088354.669 | M21: 4088354.669 | N21: Generation | O21: D.24-12-039 | P21: N
A22: 2020 ERRA Forecast | B22: ERRA Forecast | C22: 288812 | D22: 288812 | E22: 288812 | F22: 288812 | G22: 402997 | H22: 402997 | I22: 402997 | J22: 402997 | K22: 457466.7391 | L22: 457466.7391 | M22: 457466.7391 | N22: New System Gen | O22: D.24-12-039 | P22: N
A23: 2019 ERRA Forecast | B23: ERRA Forecast (BA) | C23: 4417.190949 | D23: 4417.190949 | E23: 4417.190949 | F23: 4417.190949 | G23: 222439.7825 | H23: 222439.7825 | I23: 222439.7825 | J23: 222439.7825 | K23: 78023.95761 | L23: 78023.95761 | M23: 78023.95761 | N23: New System Gen | O23: D.24-12-039 | P23: Y
A24: 2019 ERRA Forecast | B24: ERRA Forecast | C24: -773198 | D24: -773198 | E24: -773198 | F24: -773198 | G24: -955105 | H24: -955105 | I24: -955105 | J24: -955105 | K24: -641623.9439 | L24: -641623.9439 | M24: -641623.9439 | N24: GHG Revenue | O24: D.24-12-039 | P24: N
A25: 2019 ERRA Forecast | B25: ERRA Forecast | C25: 4740 | D25: 4740 | E25: 4740 | F25: 4740 | G25: 4958 | H25: 4958 | I25: 4958 | J25: 4958 | K25: 5157.179022 | L25: 5157.179022 | M25: 5157.179022 | N25: Nuclear | O25: D.24-12-039 | P25: N
A26: 2019 ERRA Forecast | B26: ERRA Forecast | C26: -11473 | D26: -11473 | E26: -11473 | F26: -11473 | G26: -3582 | H26: -3582 | I26: -3582 | J26: -3582 | K26: -19169.38659 | L26: -19169.38659 | M26: -19169.38659 | N26: Distribution | O26: D.24-12-039 | P26: N
B27: ERRA Forecast | C27: 11161.49722 | D27: 11161.49722 | E27: 11161.49722 | F27: 11161.49722 | G27: 6584.546087 | H27: 6584.546087 | I27: 6584.546087 | J27: 6584.546087 | K27: 2344.499701 | L27: 2344.499701 | M27: 2344.499701 | N27: Public Purpose | O27: D.24-12-039 | P27: N
B28: Modified CAM (MCAM) Rate Component: | G28: 2362.884396 | H28: 2362.884396 | I28: 2362.884396 | J28: 2362.884396 | K28: 4709.193664 | L28: 4709.193664 | M28: 4709.193664 | N28: MCAM | O28: D.24-12-039 | P28: N
A29: 2018 ERRA Balancing Account Trigger | B29: TMNBA/BMNBC BA | C29: -48062.22234 | D29: -48062.22234 | E29: -48062.22234 | F29: -48062.22234 | G29: 8772.952 | H29: 8772.952 | I29: 8772.952 | J29: 8772.952 | K29: 18400.88905 | L29: 18400.88905 | M29: 18400.88905 | N29: Public Purpose | O29: D.24-12-039 | P29: Y
B30: ERRA/PABA/ESMA Balancing Account | C30: 1079567.057 | D30: 1079567.057 | E30: 1079567.057 | F30: 1079567.057 | G30: 676260.1571 | H30: 676260.1571 | I30: 676260.1571 | J30: 676260.1571 | K30: 459053.5617 | L30: 459053.5617 | M30: 459053.5617 | N30: Generation | O30: D.24-12-039 | P30: Y
B31: 2023 ERRA Trigger | C31: 0 | D31: 0 | E31: 459077.8602 | F31: 459077.8602 | G31: 459077.8602 | H31: 459077.8602 | I31: 0 | J31: =I31 -> 0 | K31: 0 | L31: 0 | M31: 0 | N31: Generation | O31: D.23-04-012; Advice 5036-E | P31: Y
B32: 2024 ERRA Trigger | J32: -750729.8226 | K32: -750729.8226 | L32: -750729.8226 | M32: -750729.8226 | N32: Generation | O32: D.24-08-015 | P32: Y
B33: DAC-GT/CSGT Clean Energy Programs (BA) | C33: 2938.502779 | D33: 2938.502779 | E33: 2938.502779 | F33: 2938.502779 | G33: 2572.453913 | H33: 2572.453913 | I33: 2572.453913 | J33: 2572.453913 | K33: 2996.690392 | L33: 2996.690392 | M33: 2996.690392 | N33: Public Purpose | O33: D.24-12-039 | P33: N
B34: 2020 ERRA Review | C34: -3742 | D34: -3742 | E34: -3742 | F34: -3742 | G34: 0 | H34: 0 | I34: 0 | J34: 0 | K34: 0 | L34: 0 | M34: 0 | N34: Generation | O34: D.22-10-004; Advice 4902-E | P34: N
B35: 2020 ERRA Review | C35: 22865.94671 | D35: 22865.94671 | E35: 22865.94671 | F35: 22865.94671 | G35: 0 | H35: 0 | I35: 0 | J35: 0 | K35: 0 | L35: 0 | M35: 0 | N35: Distribution | O35: D.22-10-004; Advice 4902-E | P35: N
B36: 2020 ERRA Review | C36: 12456.60375 | D36: 12456.60375 | E36: 12456.60375 | F36: 12456.60375 | G36: 0 | H36: 0 | I36: 0 | J36: 0 | K36: 0 | L36: 0 | M36: 0 | N36: Public Purpose | O36: D.22-10-004; Advice 4902-E | P36: N
A37: BRRBA | B37: BRRBA Balancing Account | C37: 7542.575977 | D37: 7542.575977 | E37: 7542.575977 | F37: 7542.575977 | G37: 4756.555825 | H37: 4756.555825 | I37: 4756.555825 | J37: 4756.555825 | K37: -484.3566812 | L37: -484.3566812 | M37: -484.3566812 | N37: Generation | O37: D.15-10-037 | P37: Y
A38: NDAM Balancing Account | B38: BRRBA (Inc. FRC FF) | C38: -307497.1264 | D38: -307497.1264 | E38: -306980.6966 | F38: -306980.6966 | G38: 695357.185 | H38: 695357.185 | I38: 695357.185 | J38: 695357.185 | K38: 676672.1218 | L38: 676672.1218 | M38: 676672.1218 | N38: Distribution | O38: =O37 -> D.15-10-037 | P38: Y
A39: CARE Balancing Account | B39: NDAM Balancing Account | C39: 2770.566274 | D39: 2770.566274 | E39: 2770.566274 | F39: 2770.566274 | G39: 1927 | H39: 1927 | I39: 1927 | J39: 1927 | K39: -6072.630664 | L39: -6072.630664 | M39: -6072.630664 | N39: Nuclear | O39: D.15-10-037 | P39: Y
A40: PPPAM Balancing Account | B40: CARE Balancing Account | C40: -83502.67593 | D40: -83502.67593 | E40: -83502.67593 | F40: -83502.67593 | G40: 55214.93072 | H40: 55214.93072 | I40: 55214.93072 | J40: 55214.93072 | K40: 107382.1747 | L40: 107382.1747 | M40: 107382.1747 | N40: Public Purpose | O40: D.15-10-037 | P40: Y
B41: PPPAM Balancing Account | C41: 49633.64016 | D41: 49633.64016 | E41: 49633.64016 | F41: 49633.64016 | G41: 57989.27786 | H41: 57989.27786 | I41: 57989.27786 | J41: 57989.27786 | K41: 191863.3206 | L41: 191863.3206 | M41: 191863.3206 | N41: Public Purpose | O41: D.15-10-037 | P41: Y
B42: Emergency Reliability OIR | C42: 1979.89967 | D42: 1979.89967 | E42: 1979.89967 | F42: 1979.89967 | G42: 0 | H42: 0 | I42: 0 | N42: Distribution | O42: D.21-12-015 | P42: N
B43: Emergency Reliability OIR | C43: 10010.72867 | D43: 10010.72867 | E43: 10010.72867 | F43: 10010.72867 | G43: 0 | H43: 0 | I43: 0 | N43: Public Purpose | O43: D.21-12-015 | P43: N
B44: Emergency Reliability UOS | F44: 17991 | G44: 17006 | H44: 17591 | I44: 17591 | J44: 17591 | K44: 29550.51254 | L44: 29550.51254 | M44: 29550.51254 | N44: Generation | O44: Advice 5421-E; Advice 5120-E; Advice 5142-E; Advice 5407-E | P44: N
B45: Emergency Reliability UOS | C45: 86303 | D45: 84963 | E45: 84963 | F45: 66972 | G45: 62428 | H45: 64611 | I45: 64611 | J45: 64611 | K45: 79159.14371 | L45: 79159.14371 | M45: 79159.14371 | N45: Distribution | O45: Advice 5421-E; Advice 5120-E; Advice 5142-E; Advice 5407-E | P45: N
B46: Intentionally Left Blank | P46: N
B47: 2021 GRC Track 2 O&M (36-Month Amortization) | C47: 135161.6901 | D47: 135161.6901 | E47: 135161.6901 | F47: 135161.6901 | G47: 135161.6901 | H47: 135161.6901 | I47: 135161.6901 | J47: 135161.6901 | K47: 135161.6901 | L47: 0 | M47: 0 | N47: Distribution | O47: D.21-01-012; Advice 4658-E/E-A | P47: N
B48: 2021 GRC Track 3 O&M (36-Month Amortization) | C48: 135415.5795 | D48: 135415.5795 | E48: 135415.5795 | F48: 135415.5795 | G48: 135415.5795 | H48: 135415.5795 | I48: 135415.5795 | J48: 135415.5795 | K48: 135415.5795 | L48: 135415.5795 | M48: 135415.5795 | N48: Distribution | O48: D.22-06-032 | P48: N
B49: VMBA Undercollection Threshold | C49: 26556.1553 | D49: 26556.1553 | E49: 26556.1553 | F49: 29215.51344 | G49: 29215.51344 | H49: 29215.51344 | I49: 29215.51344 | J49: 34738.53028 | K49: 34738.53028 | L49: 34738.53028 | M49: 34738.53028 | N49: Distribution | O49: Advice 5245-E; Advice 5534-E | P49: Y
B50: WRMBA Undercollection | J50: 129014.0578 | K50: 129014.0578 | L50: 129014.0578 | M50: 129014.0578 | N50: Distribution | O50: Advice 5267-E | P50: Y
B51: 2020 Vegetation Management Z-Factor | F51: 37644.69531 | G51: 37644.69531 | H51: 37644.69531 | I51: 37644.69531 | J51: 0 | N51: Distribution | O51: Resolution E-5287 | P51: N
B52: 2021 Wildfire Mitigation/Vegetation Management | I52: 378956.9667 | J52: 378956.9667 | K52: 378956.9667 | L52: 378956.9667 | M52: 0 | N52: Distribution | O52: D.24-03-008 | P52: N
B53: 2022 WM/VM (55% Interm Rate Recovery) | J53: 149902.8146 | K53: 149902.8146 | L53: 149902.8146 | M53: 149902.8146 | N53: Distribution | O53: D.24-07-012 | P53: N
B54: Intentionally Left Blank
B55: Mobilehome Master Meter Balancing Account | C55: 14300.59952 | D55: 14300.59952 | E55: 14300.59952 | F55: 14300.59952 | G55: 18034.35236 | H55: 18034.35236 | I55: 18034.35236 | J55: 18034.35236 | K55: 23332.92938 | L55: 23332.92938 | M55: 23332.92938 | N55: Distribution | O55: D.15-10-037 | P55: Y
B56: WEMA 2 | C56: 0 | D56: 0 | E56: 214140.3257 | F56: 214140.3257 | G56: 214140.3257 | H56: 214140.3257 | I56: 0 | J56: 0 | K56: 0 | L56: 0 | M56: 0 | N56: Distribution | O56: D.23-05-033 | P56: N
B57: 2017 CEMA Fires | C57: 1460.866949 | D57: 1460.866949 | E57: 1460.866949 | F57: 1460.866949 | G57: 0 | H57: 0 | I57: 0 | J57: 0 | K57: 0 | L57: 0 | M57: 0 | N57: Distribution | O57: D.22-06-002 | P57: N
B58: CEMA - 2020 Storms | J58: 288149.1807 | K58: 288149.1807 | L58: 288149.1807 | M58: 288149.1807 | N58: Distribution | O58: D.24-05-037 | P58: N
B59: 2021 CEMA/WEMA | G59: 137221.3298 | H59: 137221.3298 | I59: 137221.3298 | J59: 137221.3298 | K59: 0 | L59: 0 | M59: 0 | N59: Distribution | O59: D.23-11-089 | P59: Y
B60: 2017 Thomas Fire - CEMA | C60: 0 | D60: 0 | E60: 0 | F60: 0 | G60: 0 | H60: 0 | I60: 0 | J60: 0 | K60: 0 | L60: 0 | M60: 34656.77936 | N60: Distribution | O60: D.25-01-042 | P60: N
B61: Wildfire Self-Insurance Credit | I61: -24268.43314 | J61: -24268.43314 | K61: -24268.43314 | L61: -24268.43314 | M61: 0 | N61: Distribution | O61: D.23-05-013 | P61: N
B62: CSRP Track 1 | C62: 201345.1951 | D62: 201345.1951 | E62: 201345.1951 | F62: 201345.1951 | G62: 0 | H62: 0 | I62: 0 | J62: 0 | K62: 0 | L62: 0 | M62: 0 | N62: Distribution | O62: D.22-09-015; Advice 4876-E | P62: N
B63: CSRP Track 2 | E63: 38155.501 | F63: 38155.501 | G63: 38155.501 | H63: 38155.501 | I63: 0 | J63: 0 | K63: 0 | L63: 0 | M63: 0 | N63: Distribution | O63: D.23-03-019 | P63: N
B64: Diablo Canyon Extended Operations NBC | J64: 0 | K64: 282858.6909 | L64: 282858.6909 | M64: 282858.6909 | N64: DCPP | O64: D.24-12-033 | P64: N
A65: SJV DAC Pilots | B65: GSRP Recovery Bonds FRC #1 (AB 1054) | C65: 19256.772 | D65: 19256.772 | E65: 19256.772 | F65: 19256.772 | G65: 19256.772 | H65: 19256.772 | I65: 19256.772 | J65: 19256.772 | K65: 19256.772 | L65: 19256.772 | M65: 19256.772 | N65: Securitization | O65: D.20-11-007; Advice 4416-E | P65: N
A66: SJV DAC Pilots | B66: 2021 GRC Tracks 1 and 2 Recovery Bonds FRC #2 (AB 1054) | C66: 31732.126 | D66: 31732.126 | E66: 31732.126 | F66: 31732.126 | G66: 31732.126 | H66: 31732.126 | I66: 31732.126 | J66: 31732.126 | K66: 31732.126 | L66: 31732.126 | M66: 31732.126 | N66: Securitization | O66: D.21-10-025; Advice 4717-E-A | P66: N
A67: SJV DAC Pilots | B67: 2021 GRC Tracks 1 and 3 Recovery Bonds FRC #3 (AB 1054) | E67: 55255.382 | F67: 55255.382 | G67: 55255.382 | H67: 55255.382 | I67: 55255.382 | J67: 55255.382 | K67: 55255.382 | L67: 55255.382 | M67: 55255.382 | N67: Securitization | O67: D.23-02-023; Advice 5018-E | P67: N
B68: Grid Safety & Resiliency Program | N68: Distribution | O68: D.20-04-013; Advice 4197-E | P68: N
A69: Public Policy Proceedings | B69: Subtotal Safety Affordability Reliability | C69: =SUM(C8:C68) -> 14145181.23 | D69: 14054066.23 | E69: 14751462.73 | F69: 14801845.97 | G69: 15661213.72 | H69: 15864669.4 | I69: 15507984.25 | J69: 15259973.79 | K69: 14918967.61 | L69: =SUM(L8:L68) -> 14783805.92 | M69: 14463774.16
A70: Demand Response | B70: Public Policy Proceedings
A71: Energy Efficiency | B71: Demand Response | C71: 4649.427316 | D71: 4649.427316 | E71: 4649.427316 | F71: 4649.427316 | G71: 10.11184714 | H71: 11.12303186 | I71: 11.12303186 | J71: 11.12303186 | K71: 11.04213708 | L71: 11.04213708 | M71: 11.04213708 | N71: Generation | O71: D.23-12-005; Advice 5421-E | P71: N
B72: Demand Response (Inc. ELPBA 2023-2025) | C72: 23987.96955 | D72: 23987.96955 | E72: 23987.96955 | F72: 23987.96955 | G72: 40702.88087 | H72: 49287.83909 | I72: 49287.83909 | J72: 49287.83909 | K72: 52035.59468 | L72: 52035.59468 | M72: 52035.59468 | N72: Distribution | O72: D.23-12-005; Advice 5421-E | P72: N
B73: Energy Efficiency (Inc. IDSM) | C73: 415373.5539 | D73: 415373.5539 | E73: 415373.5539 | F73: 415373.5539 | G73: 288996.5913 | H73: 288996.5913 | I73: 288996.5913 | J73: 288996.5913 | K73: 482807.0296 | L73: 482807.0296 | M73: 482807.0296 | N73: Public Purpose | O73: D.23-08-005; Advice 5123-E; D.24-09-031 | P73: N
B74: Energy Efficiency Market Access Program | C74: 47007.4494 | D74: 47007.4494 | E74: 47007.4494 | F74: 47007.4494 | G74: 0 | H74: 0 | I74: 0 | J74: 0 | N74: Public Purpose | O74: D.20-08-042; D.21-11-028 | P74: N
B75: Smart Heat Pump Water Heater (SHPWH) Program | C75: 14055.46753 | D75: 14055.46753 | E75: 14055.46753 | F75: 14055.46753 | G75: 0 | H75: 0 | I75: 0 | J75: 0 | N75: Public Purpose | O75: D.22-04-044; Advice 4858-E | P75: N
B76: New Home Energy Storage Pilot (NHESP) | E76: 5055.923571 | F76: 5055.923571 | G76: 5055.923571 | H76: 5055.923571 | I76: 0 | J76: 0 | N76: Public Purpose | O76: D.22-04-044; Advice 4852-E | P76: N
B77: California Hub for EE Financing (CHEEF) | C77: 549.4028246 | D77: 549.4028246 | E77: 549.4028246 | F77: 549.4028246 | G77: 0 | H77: 0 | I77: 0 | J77: 0 | N77: Public Purpose | O77: D.23-08-005; Advice 5123-E | P77: N
B78: Energy Efficiency Market Transformation | C78: 6441 | D78: 6441 | E78: 6441 | F78: 6441 | G78: 6441 | H78: 6441 | I78: 6441 | J78: 6441 | K78: 6441 | L78: 6441 | M78: 6441 | N78: Public Purpose | O78: D.19-12-021 | P78: N
B79: 2020 RUBA Uncollectibles (36-Month Amortization) | C79: 25700.14834 | D79: 25700.14834 | E79: 25700.14834 | F79: 25700.14834 | G79: 25700.14834 | H79: 25700.14834 | I79: 25700.14834 | J79: 25700.14834 | K79: 25700.14834 | L79: 0 | M79: 0 | N79: Public Purpose | O79: Advice 4658-E/E-A | P79: N
A80: Charge Ready Phase 1 Pilot | B80: Schools Energy Efficiency Stimulus Program | C80: 75509.17701 | D80: 75509.17701 | E80: 75509.17701 | F80: 75509.17701 | G80: 0 | H80: 0 | I80: 0 | J80: 0 | N80: Public Purpose | O80: D.21-01-004; Advice 4633-E-A | P80: N
A81: CA Solar Initiatives/MASH/SASH | B81: Charge Ready Programs (Pilot, Bridge and Schools and Parks) | C81: 30457 | D81: 30254 | E81: 30254 | F81: 30254 | G81: 41775 | H81: 42322 | I81: 42322 | J81: 42322 | K81: 76686.14532 | L81: 76686.14532 | M81: 76686.14532 | N81: Distribution | O81: Advice 5120-E; Advice 5141-E; Advice 5407-E | P81: N
B82: Transportation Electrification | C82: 15772 | D82: 15678 | E82: 15678 | F82: 15678 | G82: 15804 | H82: 16033 | I82: 16033 | J82: 16033 | K82: 27307.65104 | L82: 27307.65104 | M82: 27307.65104 | N82: Distribution | O82: Advice 5120-E; Advice 5141-E; Advice 5407-E | P82: N
B83: Low Income Programs (ESAP) | C83: 61811.10058 | D83: 61811.10058 | E83: 61811.10058 | F83: 61811.10058 | G83: 92017.80899 | H83: 92017.80899 | I83: 92017.80899 | J83: 92017.80899 | K83: 92462.20343 | L83: 92462.20343 | M83: 92462.20343 | N83: Public Purpose | O83: D.21-06-015 | P83: N
A84: Statewide ME&O | B84: Low Income Programs (CARE/FERA Admin) | C84: 10644.40881 | D84: 10644.40881 | E84: 10644.40881 | F84: 10644.40881 | G84: 10571.12016 | H84: 10571.12016 | I84: 10571.12016 | J84: 10571.12016 | K84: 10971.64941 | L84: 10971.64941 | M84: 10971.64941 | N84: Public Purpose | O84: D.21-06-015; Advice 4638-E | P84: N
A85: EPIC - RD&D and Renewables | B85: Statewide ME&O | C85: 0 | D85: 0 | E85: 0 | F85: 0 | G85: 0 | H85: 0 | I85: 0 | J85: 0 | K85: 0 | L85: 0 | M85: 0 | N85: Public Purpose | P85: N
A86: Self-Generation Incentive Program (SGIP) | B86: EPIC - RD&D and Renewables | C86: 76885.42974 | D86: 76885.42974 | E86: 76885.42974 | F86: 76885.42974 | G86: 76885.42974 | H86: 76885.42974 | I86: 76885.42974 | J86: 76885.42974 | K86: 76885.42974 | L86: 76885.42974 | M86: 76885.42974 | N86: Public Purpose | O86: D.20-08-042; D.21-11-028 | P86: N
A87: Aliso Canyon Energy Storage | B87: Self-Generation Incentive Program (SGIP) | C87: 56626.34399 | D87: 56626.34399 | E87: 56626.34399 | F87: 56626.34399 | G87: 56626.34399 | H87: 56626.34399 | I87: 56626.34399 | J87: 56626.34399 | K87: 0 | L87: 0 | M87: 0 | N87: Public Purpose | O87: D.20-01-021; Advice 4169-E | P87: N
A88: Non-CPUC Jurisdictional Proceedings | B88: Subtotal Public Policy | C88: =SUM(C71:C87) -> 865469.879 | D88: 865172.879 | E88: 870228.8025 | F88: 870228.8025 | G88: 660586.3588 | H88: 669948.3282 | I88: 664892.4046 | J88: 664892.4046 | K88: 851307.8937 | L88: =SUM(L71:L87) -> 825607.7453 | M88: 825607.7453
A89: DWR Bond/Power | B89: Non-CPUC Jurisdictional Proceedings
A90: Wildfire Fund Charge | B90: DWR Bond/Power | N90: DWR | P90: N
A91: Wildfire Fund Charge | B91: DWR Bond Refund | C91: -145519.4203 | D91: -145519.4203 | E91: 0 | F91: 0 | G91: 0 | H91: 0 | I91: 0 | N91: DWR | O91: D.21-12-001; Advice 4690-E | P91: N
A92: FERC Base Transmission | B92: Wildfire Fund Charge (AB1054) | C92: 402302 | D92: 402302 | E92: 402302 | F92: 402302 | G92: 408912 | H92: 408912 | I92: 408912 | J92: 408912 | K92: 416803 | L92: 416803 | M92: 416803 | N92: DWR | O92: D.22-12-007 | P92: N
A93: TRBAA | B93: FERC Base Transmission | C93: 1414935.849 | D93: 1414935.849 | E93: 1414935.849 | F93: 1414935.849 | G93: 1124500.46 | H93: 1124500.46 | I93: 1124500.46 | J93: 1124500.46 | K93: 1344347 | L93: 1344347 | M93: 1344347 | N93: FERC | O93: ER25-550; Advice 5449-E | P93: N
A94: RSBAA | B94: TRBAA (BA) | C94: -156456 | D94: -156456 | E94: -156456 | F94: -156456 | G94: -283956 | H94: -283956 | I94: -283956 | J94: -283956 | K94: -214482 | L94: -214482 | M94: -214482 | N94: TOTCA | O94: ER25-267; Advice 5449-E | P94: Y
A95: TACBAA | B95: RSBAA (BA) | C95: -2676 | D95: -2676 | E95: -2676 | F95: -2676 | G95: 4738 | H95: 4738 | I95: 4738 | J95: 4738 | K95: 8496 | L95: 8496 | M95: 8496 | N95: TOTCA | O95: ER25-305; Advice 5449-E | P95: Y
A96: Total Approved, Implemented Since Jan 1 or To Be Implemented | B96: TACBAA (BA) | C96: 156958 | D96: 156958 | E96: 98958 | F96: 98958 | G96: 98974 | H96: 98974 | I96: 270811 | J96: 270811 | K96: 270811 | L96: 270811 | M96: 203233.255 | N96: TOTCA | O96: ER25-1770-000 | P96: Y
B97: Subtotal Non-CPUC Jurisdictional | C97: =SUM(C91:C96) -> 1669544.429 | D97: 1669544.429 | E97: 1757063.849 | F97: 1757063.849 | G97: 1353168.46 | H97: =SUM(H91:H96) -> 1353168.46 | I97: 1525005.46 | J97: 1525005.46 | K97: 1825975 | L97: =SUM(L91:L96) -> 1825975 | M97: 1758397.255
B98: PUCRF | C98: =E98 -> 107475 | D98: =E98 -> 107475 | E98: 107475 | F98: 107475 | G98: 80194.53144 | H98: =G98 -> 80194.53144 | I98: =H98 -> 80194.53144 | J98: =I98 -> 80194.53144 | K98: 63307.71418 | L98: 63307.71418 | M98: 63307.71418 | N98: PUCRF | P98: N
B99: Total Authorized Revenue | C99: =C69+C88+C97+C98 -> 16787670.54 | D99: 16696258.54 | E99: 17486230.38 | F99: 17536613.62 | G99: 17755163.07 | H99: 17967980.72 | I99: 17778076.65 | J99: 17530066.19 | K99: 17659558.21 | L99: =L69+L88+L97+L98 -> 17498696.38 | M99: 17111086.88
B100: w/o PUCRF | C100: =C99-C98 -> 16680195.54 | D100: 16588783.54 | E100: 17378755.38 | F100: 17429138.62 | G100: 17674968.54 | H100: 17887786.19 | I100: =I99-I98 -> 17697882.12 | J100: 17449871.66 | K100: 17596250.5 | L100: =L99-L98 -> 17435388.66 | M100: 17047779.16
C101: 0 | D101: 0 | E101: 0 | F101: 0 | G101: 0 | H101: 0 | I101: 0 | J101: 0 | K101: 0 | L101: 0 | M101: 0

Sheet Incremental Rev Req
A2: Annual Period 2025
A3: Reporting Date: Quarter Ended September 30
A5: Current Revenue Requirement ($000): | B5: ='Authorized Rev Req'!M99 -> 17111086.88 | C5: Inc. PUCRF
A6: Current Revenue Requirement Effective: | B6: June 1, 2025
A7: Approved Application(s), Implemented Since Jan 1 or To Be Implemented
A8: Filing Description | B8: Proceeding | C8: Authority for Revenue Requirement | D8: Authorized Revenue Requirement ($000) | E8: Revenue Recovery Mechanism | F8: 2025 | G8: =F8+1 -> 2026 | H8: =G8+1 -> 2027 | I8: 2028 | J8: 2029 | K8: Existing or New Item (if existing, use delta from prior for rate impact) | S8: Total Authorized
A9: Safety Affordability Reliability Proceedings | T9: =F8 -> 2025 | U9: =G8 -> 2026 | V9: 2027 | W9: 2028 | X9: 2029
A10: General Rate Case (GRC-G) | C10: D.23-11-096; Advice 5120-E; Advice 5406-E; | D10: ='Authorized Rev Req'!$M8 -> 760627.5753 | E10: Generation | F10: ='Authorized Rev Req'!$M8 -> 760627.5753 | G10: =F10 -> 760627.5753 | H10: =G10 -> 760627.5753 | I10: =H10 -> 760627.5753 | J10: =I10 -> 760627.5753 | K10: Existing | S10: Generation | T10: =SUMIF($E$10:$E$84,$S10,F$10:F$84) -> 5321396.851 | U10: =SUMIF($E$10:$E$84,$S10,G$10:G$84) -> 4878249.799 | V10: =SUMIF($E$10:$E$84,$S10,H$10:H$84) -> 4878249.799 | W10: =SUMIF($E$10:$E$84,$S10,I$10:I$84) -> 4878249.799 | X10: =SUMIF($E$10:$E$84,$S10,J$10:J$84) -> 4878249.799
A11: General Rate Case (GRC-N) | C11: D.23-11-096; Advice 5120-E; Advice 5406-E; | D11: ='Authorized Rev Req'!$M9 -> 61952.34378 | E11: New System Gen | F11: ='Authorized Rev Req'!$M9 -> 61952.34378 | G11: ='Authorized Rev Req'!K9 -> 61952.34378 | H11: =G11 -> 61952.34378 | I11: 61952.34378 | J11: 61952.34378 | K11: Existing | S11: New System Gen | T11: 597443.0405 | U11: 519419.0828 | V11: 519419.0828 | W11: 519419.0828 | X11: 519419.0828
A12: General Rate Case (GRC-D) | C12: D.23-11-096; Advice 5120-E; Advice 5406-E; | D12: ='Authorized Rev Req'!$M10 -> 7655298.489 | E12: Distribution | F12: ='Authorized Rev Req'!$M10 -> 7655298.489 | G12: ='Authorized Rev Req'!K10 -> 7655298.489 | H12: 7655298.489 | I12: 7655298.489 | J12: 7655298.489 | K12: Existing | S12: Distribution | T12: 9210316.465 | U12: 8009333.057 | V12: 7947249.462 | W12: 7947249.462 | X12: 7947249.462
A13: Non-utility Affiliate Credits | C13: =VLOOKUP(A13,'Authorized Rev Req'!B$7:$O$97,14,FALSE) -> D.15-10-037 | D13: ='Authorized Rev Req'!$M14 -> -4572.580314 | E13: Distribution | F13: ='Authorized Rev Req'!$M14 -> -4572.580314 | G13: ='Authorized Rev Req'!K14 -> -4572.580314 | H13: -4572.580314 | I13: -4572.580314 | J13: -4572.580314 | K13: Existing | S13: GHG Revenue | T13: -641623.9439 | U13: -641623.9439 | V13: -641623.9439 | W13: -641623.9439 | X13: -641623.9439
A14: Pole Loading & Deteriorated Pole Programs Balancing Account | C14: =VLOOKUP(A14,'Authorized Rev Req'!B$7:$O$97,14,FALSE) -> D.21-08-036 | D14: ='Authorized Rev Req'!$M15 -> -14072.56849 | E14: Distribution | F14: ='Authorized Rev Req'!$M15 -> -14072.56849 | G14: 0 | H14: 0 | I14: 0 | J14: 0 | K14: Existing | S14: MCAM | T14: 4709.193664 | U14: 1558 | V14: 1558 | W14: 1558 | X14: 1558
A15: 2022/2023/2024 TAMA Balance | C15: Advice 5260-E; Advice 5515-E | D15: ='Authorized Rev Req'!$M17 -> 14976.03009 | E15: Generation | F15: -5706.81 | G15: 0 | H15: 0 | I15: =H15 -> 0 | J15: 0 | K15: Existing | S15: Nuclear | T15: -915.4516419 | U15: 5157.179022 | V15: 5157.179022 | W15: 5157.179022 | X15: 5157.179022
A16: 2022/2023/2024 TAMA Balance | C16: Advice 5260-E; Advice 5515-E | D16: ='Authorized Rev Req'!$M18 -> 97197.38039 | E16: Distribution | F16: -37038.15 | G16: 0 | H16: 0 | I16: 0 | J16: 0 | K16: Existing | S16: Public Purpose | T16: 992554.8866 | U16: 836982.9488 | V16: 665882.9488 | W16: 665882.9488 | X16: 665882.9488
A17: Pension/PBOP/Medical Balancing Accounts | C17: =VLOOKUP(A17,'Authorized Rev Req'!B$7:$O$97,14,FALSE) -> D.21-08-036 | D17: ='Authorized Rev Req'!$M19 -> -10009.34302 | E17: Generation | F17: ='Authorized Rev Req'!$M19 -> -10009.34302 | G17: 0 | H17: 0 | I17: 0 | J17: 0 | K17: Existing | S17: DCPP | T17: 282858.6909 | U17: 282858.6909 | V17: 282858.6909 | W17: 282858.6909 | X17: 282858.6909
A18: Pension/PBOP/Medical Balancing Accounts | C18: =VLOOKUP(A18,'Authorized Rev Req'!B$7:$O$97,14,FALSE) -> D.21-08-036 | D18: ='Authorized Rev Req'!$M20 -> -64990.5188 | E18: Distribution | F18: ='Authorized Rev Req'!$M20 -> -64990.5188 | G18: 0 | H18: 0 | I18: 0 | J18: 0 | K18: Existing | S18: DWR | T18: 416803 | U18: 416803 | V18: 416803 | W18: 416803 | X18: 416803
A19: 2025 ERRA Forecast F&PP | C19: D.24-12-039 | D19: ='Authorized Rev Req'!$M21 -> 4088354.669 | E19: Generation | F19: ='Authorized Rev Req'!$M21 -> 4088354.669 | G19: =F19 -> 4088354.669 | H19: 4088354.669 | I19: 4088354.669 | J19: 4088354.669 | K19: Existing | S19: FERC | T19: 1344347 | U19: 1344347 | V19: 1344347 | W19: 1344347 | X19: 1344347
A20: 2025 ERRA Forecast F&PP | C20: D.24-12-039 | D20: ='Authorized Rev Req'!$M22 -> 457466.7391 | E20: New System Gen | F20: ='Authorized Rev Req'!$M22 -> 457466.7391 | G20: 457466.7391 | H20: 457466.7391 | I20: 457466.7391 | J20: 457466.7391 | K20: Existing | S20: TOTCA | T20: -2752.745 | U20: -2752.745 | V20: -2752.745 | W20: -2752.745 | X20: -2752.745
A21: 2025 ERRA Forecast (BA) | C21: D.24-12-039 | D21: ='Authorized Rev Req'!$M23 -> 78023.95761 | E21: New System Gen | F21: ='Authorized Rev Req'!$M23 -> 78023.95761 | G21: 0 | H21: 0 | I21: 0 | J21: 0 | K21: Existing | S21: Securitization | T21: 106244.28 | U21: 106244.28 | V21: 106244.28 | W21: 106244.28 | X21: 106244.28
A22: 2025 ERRA Forecast | C22: D.24-12-039 | D22: ='Authorized Rev Req'!$M24 -> -641623.9439 | E22: GHG Revenue | F22: ='Authorized Rev Req'!$M24 -> -641623.9439 | G22: =F22 -> -641623.9439 | H22: -641623.9439 | I22: =H22 -> -641623.9439 | J22: -641623.9439 | K22: Existing | S22: PUCRF | T22: 63307.71418 | U22: 63307.71418 | V22: 63307.71418 | W22: 63307.71418 | X22: 63307.71418
A23: 2025 ERRA Forecast | C23: D.24-12-039 | D23: ='Authorized Rev Req'!$M25 -> 5157.179022 | E23: Nuclear | F23: ='Authorized Rev Req'!$M25 -> 5157.179022 | G23: 5157.179022 | H23: 5157.179022 | I23: 5157.179022 | J23: 5157.179022 | K23: Existing | T23: =SUM(T10:T22) -> 17694688.98 | U23: =SUM(U10:U22) -> 15819884.06 | V23: =SUM(V10:V22) -> 15586700.47 | W23: =SUM(W10:W22) -> 15586700.47 | X23: =SUM(X10:X22) -> 15586700.47
A24: 2025 ERRA Forecast | C24: D.24-12-039 | D24: ='Authorized Rev Req'!$M26 -> -19169.38659 | E24: Distribution | F24: ='Authorized Rev Req'!$M26 -> -19169.38659 | G24: -19169.38659 | H24: -19169.38659 | I24: -19169.38659 | J24: -19169.38659 | K24: Existing | S24: Check | T24: =T23=F84 -> TRUE | U24: =U23=G84 -> TRUE | V24: =V23=H84 -> TRUE | W24: =W23=I84 -> TRUE | X24: =X23=J84 -> TRUE
A25: 2025 ERRA Forecast | C25: D.24-12-039 | D25: ='Authorized Rev Req'!$M27 -> 2344.499701 | E25: Public Purpose | F25: ='Authorized Rev Req'!$M27 -> 2344.499701 | G25: 2344.499701 | H25: 2344.499701 | I25: 2344.499701 | J25: 2344.499701 | K25: Existing | T25: =T23-F84 -> 0
A26: 2025 ERRA Forecast | C26: D.24-12-039 | D26: ='Authorized Rev Req'!$M28 -> 4709.193664 | E26: MCAM | F26: ='Authorized Rev Req'!$M28 -> 4709.193664 | G26: 1558 | H26: =G26 -> 1558 | I26: 1558 | J26: 1558 | K26: Existing
A27: 2025 ERRA Forecast (BA) | C27: D.24-12-039 | D27: ='Authorized Rev Req'!$M29 -> 18400.88905 | E27: Public Purpose | F27: ='Authorized Rev Req'!$M29 -> 18400.88905 | G27: 0 | H27: 0 | I27: 0 | J27: 0 | K27: Existing
A28: 2025 ERRA/PABA (BA) | C28: D.24-12-039 | D28: ='Authorized Rev Req'!$M30 -> 459053.5617 | E28: Generation | F28: ='Authorized Rev Req'!$M30 -> 459053.5617 | G28: -294 | H28: -294 | I28: =H28 -> -294 | J28: =I28 -> -294 | K28: Existing
A29: DAC-GT/CSGT Clean Energy Programs (BA) | C29: D.24-12-039 | D29: ='Authorized Rev Req'!$M33 -> 2996.690392 | E29: Public Purpose | F29: ='Authorized Rev Req'!$M33 -> 2996.690392 | G29: =F29 -> 2996.690392 | H29: =G29 -> 2996.690392 | I29: =H29 -> 2996.690392 | J29: =I29 -> 2996.690392 | K29: Existing
A30: 2024 ERRA Trigger | C30: D.24-08-015 | D30: ='Authorized Rev Req'!$M32 -> -750729.8226 | E30: Generation | F30: 0 | G30: 0 | H30: 0 | I30: 0 | J30: 0 | K30: Existing
A31: 2021 ERRA Review | C31: D.25-06-006; Advice 5604-E* | D31: 0 | E31: Distribution | F31: 0 | G31: 28949 | H31: 0 | I31: 0 | J31: 0 | K31: New
A32: WMCE | C32: D.25-06-017 | D32: 0 | E32: Distribution | F32: 415891 | G32: 0 | H32: 0 | I32: 0 | J32: 0 | K32: New
A33: BRRBA Balancing Account | C33: =VLOOKUP(A33,'Authorized Rev Req'!B$7:$O$97,14,FALSE) -> D.15-10-037 | D33: ='Authorized Rev Req'!$M37 -> -484.3566812 | E33: Generation | F33: ='Authorized Rev Req'!$M37 -> -484.3566812 | G33: 0 | H33: 0 | I33: 0 | J33: 0 | K33: Existing
A34: BRRBA Balancing Account | C34: =VLOOKUP(A34,'Authorized Rev Req'!B$7:$O$97,14,FALSE) -> D.15-10-037 | D34: ='Authorized Rev Req'!$M38 -> 676672.1218 | E34: Distribution | F34: ='Authorized Rev Req'!$M38 -> 676672.1218 | G34: =80000+993 -> 80993 | H34: =G34 -> 80993 | I34: =H34 -> 80993 | J34: =I34 -> 80993 | K34: Existing
A35: NDAM Balancing Account | C35: =VLOOKUP(A35,'Authorized Rev Req'!B$7:$O$97,14,FALSE) -> D.15-10-037 | D35: ='Authorized Rev Req'!$M39 -> -6072.630664 | E35: Nuclear | F35: ='Authorized Rev Req'!$M39 -> -6072.630664 | G35: 0 | H35: 0 | I35: 0 | J35: 0 | K35: Existing
A36: CARE Balancing Account | C36: =VLOOKUP(A36,'Authorized Rev Req'!B$7:$O$97,14,FALSE) -> D.15-10-037 | D36: ='Authorized Rev Req'!$M40 -> 107382.1747 | E36: Public Purpose | F36: ='Authorized Rev Req'!$M40 -> 107382.1747 | G36: 0 | H36: 0 | I36: 0 | J36: 0 | K36: Existing
A37: PPPAM Balancing Account | C37: =VLOOKUP(A37,'Authorized Rev Req'!B$7:$O$97,14,FALSE) -> D.15-10-037 | D37: ='Authorized Rev Req'!$M41 -> 191863.3206 | E37: Public Purpose | F37: ='Authorized Rev Req'!$M41 -> 191863.3206 | G37: 170000 | H37: 0 | I37: 0 | J37: 0 | K37: Existing
A38: Emergency Reliability UOS | C38: =VLOOKUP(A38,'Authorized Rev Req'!B$7:$O$97,14,FALSE) -> Advice 5421-E; Advice 5120-E; Advice 5142-E; Advice 5407-E | D38: ='Authorized Rev Req'!$M44 -> 29550.51254 | E38: Generation | F38: ='Authorized Rev Req'!$M44 -> 29550.51254 | G38: ='Authorized Rev Req'!$K44 -> 29550.51254 | H38: =G38 -> 29550.51254 | I38: 29550.51254 | J38: 29550.51254 | K38: Existing
A39: Emergency Reliability UOS | C39: =VLOOKUP(A39,'Authorized Rev Req'!B$7:$O$97,14,FALSE) -> Advice 5421-E; Advice 5120-E; Advice 5142-E; Advice 5407-E | D39: ='Authorized Rev Req'!$M45 -> 79159.14371 | E39: Distribution | F39: ='Authorized Rev Req'!$M45 -> 79159.14371 | G39: ='Authorized Rev Req'!$K45 -> 79159.14371 | H39: 79159.14371 | I39: 79159.14371 | J39: 79159.14371 | K39: Existing
A40: CEMA Insurance Reimbursement | C40: Advice 5495-E | D40: 0 | E40: Distribution | F40: -16756 | G40: 0 | H40: 0 | I40: 0 | J40: 0 | K40: New
A41: 2021 GRC Track 2 O&M (36-Month Amortization) | C41: =VLOOKUP(A41,'Authorized Rev Req'!B$7:$O$97,14,FALSE) -> D.21-01-012; Advice 4658-E/E-A | D41: ='Authorized Rev Req'!$M47 -> 0 | E41: Distribution | F41: ='Authorized Rev Req'!$M47 -> 0 | G41: 0 | H41: 0 | I41: 0 | J41: 0 | K41: Existing
A42: 2021 GRC Track 3 O&M (36-Month Amortization) | C42: =VLOOKUP(A42,'Authorized Rev Req'!B$7:$O$97,14,FALSE) -> D.22-06-032 | D42: ='Authorized Rev Req'!$M48 -> 135415.5795 | E42: Distribution | F42: 0 | G42: 0 | H42: 0 | I42: 0 | J42: 0 | K42: Existing
A43: VMBA Undercollection Threshold | C43: Advice 5245-E; Advice 5534-E | D43: ='Authorized Rev Req'!$M49 -> 34738.53028 | E43: Distribution | F43: 39001 | G43: 0 | H43: 0 | I43: 0 | J43: 0 | K43: Existing
A44: 2022 WM/VM (55% Interm Rate Recovery) | C44: =VLOOKUP(A44,'Authorized Rev Req'!B$7:$O$97,14,FALSE) -> D.24-07-012 | D44: ='Authorized Rev Req'!$M53 -> 149902.8146 | E44: Distribution | F44: ='Authorized Rev Req'!$M53 -> 149902.8146 | G44: 0 | H44: 0 | I44: 0 | J44: 0 | K44: Existing
A45: 2022 WM/VM (Non-IRR Portion) | C45: D.25-06-051; Advice 5601-E* | D45: 0 | E45: Distribution | F45: 136972 | G45: 0 | H45: 0 | I45: 0 | J45: 0 | K45: New
A46: 2020 Vegetation Management Z-Factor | C46: =VLOOKUP(A46,'Authorized Rev Req'!B$7:$O$97,14,FALSE) -> Resolution E-5287 | D46: 0 | E46: Distribution | F46: 0 | G46: 0 | H46: 0 | I46: 0 | J46: 0 | K46: Existing
A47: 2021 Wildfire Mitigation/Vegetation Management | C47: =VLOOKUP(A47,'Authorized Rev Req'!B$7:$O$97,14,FALSE) -> D.24-03-008 | D47: ='Authorized Rev Req'!$M52 -> 0 | E47: Distribution | F47: 0 | G47: 0 | H47: 0 | I47: 0 | J47: 0 | K47: Existing
A48: Mobilehome Master Meter Balancing Account | C48: =VLOOKUP(A48,'Authorized Rev Req'!B$7:$O$97,14,FALSE) -> D.15-10-037 | D48: ='Authorized Rev Req'!$M55 -> 23332.92938 | E48: Distribution | F48: ='Authorized Rev Req'!$M55 -> 23332.92938 | G48: 0 | H48: =G48 -> 0 | I48: 0 | J48: 0 | K48: Existing
A49: WRMBA Undercollection | C49: =VLOOKUP(A49,'Authorized Rev Req'!B$7:$O$97,14,FALSE) -> Advice 5267-E | D49: ='Authorized Rev Req'!$M50 -> 129014.0578 | E49: Distribution | F49: 0 | G49: 0 | H49: 0 | I49: 0 | J49: 0 | K49: Existing
A50: CEMA - 2020 Storms | C50: =VLOOKUP(A50,'Authorized Rev Req'!B$7:$O$97,14,FALSE) -> D.24-05-037 | D50: ='Authorized Rev Req'!$M58 -> 288149.1807 | E50: Distribution | F50: 0 | G50: 0 | H50: 0 | I50: 0 | J50: 0 | K50: Existing
A51: 2017 Thomas Fire - CEMA | C51: =VLOOKUP(A51,'Authorized Rev Req'!B$7:$O$97,14,FALSE) -> D.25-01-042 | D51: ='Authorized Rev Req'!M60 -> 34656.77936 | E51: Distribution | F51: ='Authorized Rev Req'!$M60 -> 34656.77936 | G51: ='Authorized Rev Req'!$K59 -> 0 | H51: 0 | I51: 0 | J51: 0 | K51: Existing
A52: Wildfire Self-Insurance Credit | C52: =VLOOKUP(A52,'Authorized Rev Req'!B$7:$O$97,14,FALSE) -> D.23-05-013 | D52: ='Authorized Rev Req'!$M61 -> 0 | E52: Distribution | F52: 0 | G52: 0 | H52: 0 | I52: 0 | J52: 0 | K52: Existing
A53: CSRP Track 1 | C53: =VLOOKUP(A53,'Authorized Rev Req'!B$7:$O$97,14,FALSE) -> D.22-09-015; Advice 4876-E | D53: ='Authorized Rev Req'!$M62 -> 0 | E53: Distribution | F53: ='Authorized Rev Req'!$M62 -> 0 | G53: ='Authorized Rev Req'!$K62 -> 0 | K53: Existing
A54: ='Authorized Rev Req'!$B$63 -> CSRP Track 2 | C54: =VLOOKUP(A54,'Authorized Rev Req'!B$7:$O$97,14,FALSE) -> D.23-03-019 | D54: 0 | E54: Distribution | F54: 0 | G54: 0 | H54: 0 | I54: 0 | J54: 0 | K54: Existing
A55: Diablo Canyon Extended Operations NBC | C55: =VLOOKUP(A55,'Authorized Rev Req'!B$7:$O$97,14,FALSE) -> D.24-12-033 | D55: ='Authorized Rev Req'!L64 -> 282858.6909 | E55: DCPP | F55: =D55 -> 282858.6909 | G55: =F55 -> 282858.6909 | H55: =G55 -> 282858.6909 | I55: =H55 -> 282858.6909 | J55: =I55 -> 282858.6909 | K55: Existing
A56: GSRP Recovery Bonds FRC #1 (AB 1054) | C56: =VLOOKUP(A56,'Authorized Rev Req'!B$7:$O$97,14,FALSE) -> D.20-11-007; Advice 4416-E | D56: ='Authorized Rev Req'!$M65 -> 19256.772 | E56: Securitization | F56: ='Authorized Rev Req'!$M65 -> 19256.772 | G56: ='Authorized Rev Req'!$K65 -> 19256.772 | H56: =G56 -> 19256.772 | I56: 19256.772 | J56: 19256.772 | K56: Existing
A57: 2021 GRC Tracks 1 and 2 Recovery Bonds FRC #2 (AB 1054) | C57: =VLOOKUP(A57,'Authorized Rev Req'!B$7:$O$97,14,FALSE) -> D.21-10-025; Advice 4717-E-A | D57: ='Authorized Rev Req'!$M66 -> 31732.126 | E57: Securitization | F57: ='Authorized Rev Req'!$M66 -> 31732.126 | G57: ='Authorized Rev Req'!$K66 -> 31732.126 | H57: 31732.126 | I57: 31732.126 | J57: 31732.126 | K57: Existing
A58: ='Authorized Rev Req'!$B$67 -> 2021 GRC Tracks 1 and 3 Recovery Bonds FRC #3 (AB 1054) | C58: =VLOOKUP(A58,'Authorized Rev Req'!B$7:$O$97,14,FALSE) -> D.23-02-023; Advice 5018-E | D58: ='Authorized Rev Req'!$M67 -> 55255.382 | E58: Securitization | F58: ='Authorized Rev Req'!$M67 -> 55255.382 | G58: ='Authorized Rev Req'!$K67 -> 55255.382 | H58: 55255.382 | I58: 55255.382 | J58: 55255.382 | K58: Existing
A59: Section 851 - Sale of Irwindale Business Center | C59: D.25-06-016; 5631-E* | D59: 0 | E59: Distribution | F59: 0 | G59: 3246 | H59: 0 | I59: 0 | J59: 0 | K59: New
A60: Section 851 - Sale of GO 5 Property | C60: D.25-07-011 | D60: 0 | E60: Distribution | F60: 0 | G60: 29400 | H60: 0 | I60: 0 | J60: 0 | K60: New
A62: Public Policy Proceedings
A63: Demand Response | C63: =VLOOKUP(A63,'Authorized Rev Req'!B$7:$O$97,14,FALSE) -> D.23-12-005; Advice 5421-E | D63: ='Authorized Rev Req'!$M71 -> 11.04213708 | E63: Generation | F63: ='Authorized Rev Req'!$M71 -> 11.04213708 | G63: ='Authorized Rev Req'!$K71 -> 11.04213708 | H63: =G63 -> 11.04213708 | I63: =H63 -> 11.04213708 | J63: =I63 -> 11.04213708 | K63: Existing
A64: Demand Response | C64: =VLOOKUP(A64,'Authorized Rev Req'!B$7:$O$97,14,FALSE) -> D.23-12-005; Advice 5421-E | D64: ='Authorized Rev Req'!$M72 -> 52035.59468 | E64: Distribution | F64: ='Authorized Rev Req'!$M72 -> 52035.59468 | G64: ='Authorized Rev Req'!$K72 -> 52035.59468 | H64: 51547 | I64: =H64 -> 51547 | J64: =I64 -> 51547 | K64: Existing
A65: Energy Efficiency (Inc. IDSM) | C65: =VLOOKUP(A65,'Authorized Rev Req'!B$7:$O$97,14,FALSE) -> D.23-08-005; Advice 5123-E; D.24-09-031 | D65: ='Authorized Rev Req'!$M73 -> 482807.0296 | E65: Public Purpose | F65: ='Authorized Rev Req'!$M73 -> 482807.0296 | G65: 482900 | H65: 481800 | I65: =H65 -> 481800 | J65: =I65 -> 481800 | K65: Existing
A66: Energy Efficiency Market Transformation | C66: =VLOOKUP(A66,'Authorized Rev Req'!B$7:$O$97,14,FALSE) -> D.19-12-021 | D66: ='Authorized Rev Req'!$M78 -> 6441 | E66: Public Purpose | F66: ='Authorized Rev Req'!$M78 -> 6441 | G66: 16103 | H66: 16103 | I66: 16103 | J66: 16103 | K66: Existing
A67: 2020 RUBA Uncollectibles (36-Month Amortization) | C67: =VLOOKUP(A67,'Authorized Rev Req'!B$7:$O$97,14,FALSE) -> Advice 4658-E/E-A | D67: ='Authorized Rev Req'!$M79 -> 0 | E67: Public Purpose | F67: ='Authorized Rev Req'!$M79 -> 0 | G67: 0 | H67: 0 | I67: 0 | J67: 0 | K67: Existing | S67: Total w/Authorized and Pending
A68: Charge Ready Programs (Pilot, Bridge and Schools and Parks) | C68: =VLOOKUP(A68,'Authorized Rev Req'!B$7:$O$97,14,FALSE) -> Advice 5120-E; Advice 5141-E; Advice 5407-E | D68: ='Authorized Rev Req'!$M81 -> 76686.14532 | E68: Distribution | F68: ='Authorized Rev Req'!$M81 -> 76686.14532 | G68: ='Authorized Rev Req'!$K81 -> 76686.14532 | H68: =G68 -> 76686.14532 | I68: 76686.14532 | J68: 76686.14532 | K68: Existing | T68: =T9 -> 2025 | U68: =U9 -> 2026 | V68: =V9 -> 2027 | W68: =W9 -> 2028 | X68: =X9 -> 2029
A69: Transportation Electrification | C69: =VLOOKUP(A69,'Authorized Rev Req'!B$7:$O$97,14,FALSE) -> Advice 5120-E; Advice 5141-E; Advice 5407-E | D69: ='Authorized Rev Req'!$M82 -> 27307.65104 | E69: Distribution | F69: ='Authorized Rev Req'!$M82 -> 27307.65104 | G69: ='Authorized Rev Req'!$K82 -> 27307.65104 | H69: 27307.65104 | I69: 27307.65104 | J69: 27307.65104 | K69: Existing | S69: Generation | T69: =T10+SUMIFS(L$92:L$142,$Q$92:$Q$142,"Y",$E$92:$E$142,$S69) -> 5526900.275 | U69: =U10+SUMIFS(M$92:M$142,$Q$92:$Q$142,"Y",$E$92:$E$142,$S69) -> 5591192.142 | V69: =V10+SUMIFS(N$92:N$142,$Q$92:$Q$142,"Y",$E$92:$E$142,$S69) -> 5394077.142 | W69: =W10+SUMIFS(O$92:O$142,$Q$92:$Q$142,"Y",$E$92:$E$142,$S69) -> 5428194.142 | X69: =X10+SUMIFS(P$92:P$142,$Q$92:$Q$142,"Y",$E$92:$E$142,$S69) -> 5428194.142
A70: TE Funding Cycle 1 | C70: D.22-11-040; Advice 4954-E | D70: 0 | E70: Distribution | F70: 0 | G70: 0 | H70: 0 | I70: =H70 -> 0 | J70: =H70 -> 0 | K70: On hold | S70: New System Gen | T70: 603154.6967 | U70: 523827.6281 | V70: 547102.7165 | W70: 549170.7165 | X70: 549170.7165
A71: Low Income Programs (ESAP) | C71: D.22-11-040; Advice 4954-E | D71: ='Authorized Rev Req'!$M83 -> 92462.20343 | E71: Public Purpose | F71: ='Authorized Rev Req'!$M83 -> 92462.20343 | G71: 74799.329 | H71: 74799.329 | I71: 74799.329 | J71: 74799.329 | K71: Existing | S71: Distribution | T71: 11005829.27 | U71: 10649749.13 | V71: 11384431.18 | W71: 12166497.3 | X71: 12274228.3
A72: Low Income Programs (CARE/FERA Admin) | C72: D.22-11-040; Advice 4954-E | D72: ='Authorized Rev Req'!$M84 -> 10971.64941 | E72: Public Purpose | F72: ='Authorized Rev Req'!$M84 -> 10971.64941 | G72: =9276+1678 -> 10954 | H72: =9276+1678 -> 10954 | I72: 10954 | J72: 10954 | K72: Existing | S72: GHG Revenue | T72: -641623.9439 | U72: -528071.3443 | V72: -528071.3443 | W72: -528071.3443 | X72: -528071.3443
A73: EPIC - RD&D and Renewables | C73: D.22-11-040; Advice 4954-E | D73: ='Authorized Rev Req'!$M86 -> 76885.42974 | E73: Public Purpose | F73: ='Authorized Rev Req'!$M86 -> 76885.42974 | G73: ='Authorized Rev Req'!$K86 -> 76885.42974 | H73: =G73 -> 76885.42974 | I73: 76885.42974 | J73: 76885.42974 | K73: Existing | S73: MCAM | T73: 4709.193664 | U73: 2924.014651 | V73: 1322.460405 | W73: 1322.460405 | X73: 1322.460405
A74: Self-Generation Incentive Program (SGIP) | C74: D.22-11-040; Advice 4954-E | D74: ='Authorized Rev Req'!$M87 -> 0 | E74: Public Purpose | F74: ='Authorized Rev Req'!$M87 -> 0 | G74: ='Authorized Rev Req'!$K87 -> 0 | H74: 0 | I74: 0 | J74: 0 | K74: Existing | S74: Nuclear | T74: -915.4516419 | U74: 7.425020148 | V74: 7.425020148 | W74: 7.425020148 | X74: 7.425020148
S75: Public Purpose | T75: 992554.8866 | U75: 882546.2015 | V75: 681218.0221 | W75: 681019.0221 | X75: 681019.0221
A76: Non-CPUC Jurisdictional Proceedings | S76: DCPP | T76: 282858.6909 | U76: 125000 | V76: 125000 | W76: 125000 | X76: 125000
A77: Wildfire Fund Charge (AB1054) | C77: =VLOOKUP(A77,'Authorized Rev Req'!B$7:$O$97,14,FALSE) -> D.22-12-007 | D77: ='Authorized Rev Req'!$M92 -> 416803 | E77: DWR | F77: ='Authorized Rev Req'!$M92 -> 416803 | G77: ='Authorized Rev Req'!$M92 -> 416803 | H77: =G77 -> 416803 | I77: 416803 | J77: 416803 | K77: Existing | S77: DWR | T77: 416803 | U77: 416803 | V77: 416803 | W77: 416803 | X77: 416803
A78: FERC Base Transmission | C78: =VLOOKUP(A78,'Authorized Rev Req'!B$7:$O$97,14,FALSE) -> ER25-550; Advice 5449-E | D78: ='Authorized Rev Req'!$M93 -> 1344347 | E78: FERC | F78: ='Authorized Rev Req'!$M93 -> 1344347 | G78: ='Authorized Rev Req'!$M93 -> 1344347 | H78: 1344347 | I78: 1344347 | J78: 1344347 | K78: Existing | S78: FERC | T78: 1344347 | U78: 1344347 | V78: 1344347 | W78: 1344347 | X78: 1344347
A79: TRBAA (BA) | C79: =VLOOKUP(A79,'Authorized Rev Req'!B$7:$O$97,14,FALSE) -> ER25-267; Advice 5449-E | D79: ='Authorized Rev Req'!$M94 -> -214482 | E79: TOTCA | F79: ='Authorized Rev Req'!$M94 -> -214482 | G79: ='Authorized Rev Req'!$M94 -> -214482 | H79: -214482 | I79: -214482 | J79: -214482 | K79: Existing | S79: TOTCA | T79: -2752.745 | U79: -2752.745 | V79: -2752.745 | W79: -2752.745 | X79: -2752.745
A80: RSBAA (BA) | C80: =VLOOKUP(A80,'Authorized Rev Req'!B$7:$O$97,14,FALSE) -> ER25-305; Advice 5449-E | D80: ='Authorized Rev Req'!$M95 -> 8496 | E80: TOTCA | F80: ='Authorized Rev Req'!$M95 -> 8496 | G80: ='Authorized Rev Req'!$M95 -> 8496 | H80: 8496 | I80: 8496 | J80: 8496 | K80: Existing | S80: Securitization | T80: 220144.28 | U80: 220144.28 | V80: 587144.28 | W80: 587144.28 | X80: 587144.28
A81: TACBAA (BA) | C81: =VLOOKUP(A81,'Authorized Rev Req'!B$7:$O$97,14,FALSE) -> ER25-1770-000 | D81: ='Authorized Rev Req'!$M96 -> 203233.255 | E81: TOTCA | F81: ='Authorized Rev Req'!$M96 -> 203233.255 | G81: ='Authorized Rev Req'!$M96 -> 203233.255 | H81: 203233.255 | I81: 203233.255 | J81: 203233.255 | K81: Existing | S81: PUCRF | T81: 63307.71418 | U81: 63307.71418 | V81: 63307.71418 | W81: 63307.71418 | X81: 63307.71418
A82: Total Approved, Implemented Since Jan 1 or To Be Implemented | D82: =SUM(D10:D81) -> 17047779.16 | F82: =SUM(F10:F81) -> 17631381.27 | G82: =SUM(G10:G81) -> 15756576.35 | H82: =SUM(H10:H81) -> 15523392.75 | I82: =SUM(I10:I81) -> 15523392.75 | J82: =SUM(J10:J81) -> 15523392.75 | S82: Total | T82: =SUM(T69:T81) -> 19815316.87 | U82: 19289024.44 | V82: 20013936.85 | W82: 20831988.98 | X82: 20939719.98
A83: PUCRF | D83: ='Authorized Rev Req'!L98 -> 63307.71418 | E83: PUCRF | F83: =D83 -> 63307.71418 | G83: ='Authorized Rev Req'!K98 -> 63307.71418 | H83: =G83 -> 63307.71418 | I83: =H83 -> 63307.71418 | J83: =I83 -> 63307.71418 | S83: Increase over current | T83: =T82-T23 -> 2120627.886 | U83: =U82-U23 -> 3469140.381 | V83: =V82-V23 -> 4427236.381 | W83: =W82-W23 -> 5245288.508 | X83: =X82-X23 -> 5353019.508
D84: =SUM(D82:D83) -> 17111086.88 | E84: w/PUCRF | F84: =SUM(F82:F83) -> 17694688.98 | G84: =SUM(G82:G83) -> 15819884.06 | H84: =SUM(H82:H83) -> 15586700.47 | I84: =SUM(I82:I83) -> 15586700.47 | J84: =SUM(J82:J83) -> 15586700.47
D85: =-'Authorized Rev Req'!M99+D84 -> 0 | S85: Check | T85: =T83-L130 -> 0 | U85: =U83-M130 -> -4.190951586e-09 | V85: =V83-N130 -> 0 | W85: =W83-O130 -> 0 | X85: =X83-P130 -> 0
A87: *Implementation Advice Letter is pending CPUC approval
A89: Pending Application(s), Not Yet Approved
A90: Filing Description | B90: Proceeding | C90: Basis for Revenue Requirement | D90: Proposed Revenue Requirement ($000) | E90: Proposed Revenue Recovery Mechanism | F90: =F8 -> 2025 | G90: =F90+1 -> 2026 | H90: =G90+1 -> 2027 | I90: 2028 | J90: 2029 | K90: Existing or New Item (if existing, use delta from prior for rate impact) | L90: =F90 -> 2025 | M90: =G90 -> 2026 | N90: 2027 | O90: 2028 | P90: 2029
A91: Safety Affordability Reliability Proceedings | Q91: Include in Impact
A92: 2025 GRC | B92: A.23-05-010 | C92: Filed Application | D92: =F92 -> 966131 | E92: Generation | F92: 966131 | G92: 1001811 | H92: 1036622 | I92: 1070739 | J92: =I92 -> 1070739 | K92: Existing | L92: =F92-F10 -> 205503.4247 | M92: 241183.4247 | N92: 275994.4247 | O92: 310111.4247 | P92: 310111.4247 | Q92: =VLOOKUP('Incremental Rev Req'!A92,Summary!$B$8:$D$24,3,FALSE) -> Y
A93: 2025 GRC | B93: A.23-05-010 | C93: Filed Application | D93: =F93 -> 67664 | E93: New System Gen | F93: 67664 | G93: 68932 | H93: 71348 | I93: 73416 | J93: =I93 -> 73416 | K93: Existing | L93: 5711.656224 | M93: 6979.656224 | N93: 9395.656224 | O93: 11463.65622 | P93: 11463.65622 | Q93: =Q92 -> Y
A94: 2025 GRC (Inc. One Time Recoveries) | B94: A.23-05-010 | C94: Filed Application | D94: =F94 -> 9450811.294 | E94: Distribution | F94: 9450811.294 | G94: 9957503.701 | H94: 10657832.35 | I94: 11343355.47 | J94: 11343355.47 | K94: Existing | L94: 1795512.805 | M94: 2302205.212 | N94: 3002533.857 | O94: 3688056.984 | P94: 3688056.984 | Q94: =Q93 -> Y
A95: 2026 ERRA Forecast F&PP | B95: A.25-05-008 | C95: Filed Application | D95: =G95 -> 4305705.588 | E95: Generation | F95: 0 | G95: 4305705.588 | H95: =G95 -> 4305705.588 | I95: =H95 -> 4305705.588 | J95: =H95 -> 4305705.588 | K95: Existing | L95: 0 | M95: =G95-G19 -> 217350.9189 | N95: 217350.9189 | O95: 217350.9189 | P95: 217350.9189 | Q95: =Q98 -> Y
A96: 2026 ERRA Forecast F&PP | B96: A.25-05-008 | C96: Filed Application | D96: =G96 -> 473357.7165 | E96: New System Gen | F96: 0 | G96: 473357.7165 | H96: =G96 -> 473357.7165 | I96: =H96 -> 473357.7165 | J96: =H96 -> 473357.7165 | K96: Existing | L96: 0 | M96: 15890.97745 | N96: 15890.97745 | O96: 15890.97745 | P96: 15890.97745 | Q96: =Q95 -> Y
A97: 2026 ERRA Forecast (BA) | B97: A.25-05-008 | C97: Filed Application | D97: -20859.08845 | E97: New System Gen | F97: 0 | G97: -20859.08845 | H97: 0 | I97: 0 | J97: 0 | K97: Existing | L97: 0 | M97: -20859.08845 | N97: 0 | O97: 0 | P97: 0 | Q97: Y
A98: 2026 ERRA Forecast | B98: A.25-05-008 | C98: Filed Application | D98: -528071.3443 | E98: GHG Revenue | F98: 0 | G98: -528071.3443 | H98: =G98 -> -528071.3443 | I98: -528071.3443 | J98: -528071.3443 | K98: Existing | L98: 0 | M98: 113552.5996 | N98: 113552.5996 | O98: 113552.5996 | P98: 113552.5996 | Q98: =VLOOKUP('Incremental Rev Req'!A98,Summary!$B$8:$D$24,3,FALSE) -> Y
A99: 2026 ERRA Forecast | B99: A.25-05-008 | C99: Filed Application | D99: 7.425020148 | E99: Nuclear | F99: 0 | G99: 7.425020148 | H99: =G99 -> 7.425020148 | I99: 7.425020148 | J99: 7.425020148 | K99: Existing | L99: 0 | M99: -5149.754002 | N99: -5149.754002 | O99: -5149.754002 | P99: -5149.754002 | Q99: Y
A100: 2026 ERRA Forecast | B100: A.25-05-008 | C100: Filed Application | D100: -18970.52844 | E100: Distribution | F100: 0 | G100: -18970.52844 | H100: =G100 -> -18970.52844 | I100: -18970.52844 | J100: -18970.52844 | K100: Existing | L100: 0 | M100: 198.85815 | N100: 198.85815 | O100: 198.85815 | P100: 198.85815 | Q100: Y
A101: 2026 ERRA Forecast | B101: A.25-05-008 | C101: Filed Application | D101: 27912.17725 | E101: Public Purpose | F101: 0 | G101: 27912.17725 | H101: =G101 -> 27912.17725 | I101: 27912.17725 | J101: 27912.17725 | K101: Existing | L101: 0 | M101: 25567.67755 | N101: 25567.67755 | O101: 25567.67755 | P101: 25567.67755 | Q101: Y
A102: 2026 ERRA Forecast | B102: A.25-05-008 | C102: Filed Application | D102: 1322.460405 | E102: MCAM | F102: 0 | G102: 1322.460405 | H102: =G102 -> 1322.460405 | I102: 1322.460405 | J102: 1322.460405 | K102: Existing | L102: 0 | M102: =G102-G26 -> -235.5395952 | N102: =H102-H26 -> -235.5395952 | O102: -235.5395952 | P102: -235.5395952 | Q102: Y
A103: 2026 ERRA Forecast | B103: A.25-05-008 | C103: Filed Application | D103: 1601.554246 | E103: MCAM | F103: 0 | G103: 1601.554246 | H103: 0 | I103: 0 | J103: 0 | K103: Existing | L103: 0 | M103: =G103 -> 1601.554246 | N103: =H103 -> 0 | O103: 0 | P103: 0 | Q103: Y
A104: 2026 ERRA Forecast (BA) | B104: A.25-05-008 | C104: Filed Application | D104: 5952.130378 | E104: Public Purpose | F104: 0 | G104: 5952.130378 | H104: 0 | I104: 0 | J104: 0 | K104: Existing | L104: 0 | M104: =G104-G27 -> 5952.130378 | N104: 0 | O104: 0 | P104: 0 | Q104: Y
A105: 2026 ERRA/PABA (BA) | B105: A.25-05-008 | C105: Filed Application | D105: 131026 | E105: Generation | F105: 0 | G105: 131026 | H105: 0 | I105: 0 | J105: 0 | K105: Existing | L105: 0 | M105: 131320 | N105: 294 | O105: 294 | P105: 294 | Q105: Y
A106: DAC-GT/CSGT Clean Energy Programs | B106: A.25-05-008 | C106: Filed Application | D106: 6142.135157 | E106: Public Purpose | F106: 0 | G106: 6142.135157 | H106: =G106 -> 6142.135157 | I106: 6142.135157 | J106: 6142.135157 | K106: Existing | L106: 0 | M106: 3145.444765 | N106: 3145.444765 | O106: 3145.444765 | P106: 3145.444765 | Q106: Y
A107: 2022 ERRA Review | B107: A.23-04-003 | C107: Filed Application | D107: =G107 -> 50640 | E107: Distribution | F107: 0 | G107: 50640 | H107: 0 | I107: 0 | J107: 0 | K107: New | L107: =F107 -> 0 | M107: =G107 -> 50640 | N107: =H107 -> 0 | O107: =I107 -> 0 | P107: =J107 -> 0 | Q107: =VLOOKUP('Incremental Rev Req'!A107,Summary!$B$8:$D$24,3,FALSE) -> Y
A108: 2022 ERRA Review | B108: A.23-04-003 | C108: Filed Application | D108: =G108 -> 234 | E108: Public Purpose | F108: 0 | G108: 234 | H108: 0 | I108: 0 | J108: 0 | K108: New | L108: 0 | M108: 234 | N108: 0 | O108: 0 | P108: 0 | Q108: =VLOOKUP('Incremental Rev Req'!A108,Summary!$B$8:$D$24,3,FALSE) -> Y
A109: 2023 ERRA Review | B109: A.24-04-001 | C109: Filed Application | D109: -73859 | E109: Distribution | F109: 0 | G109: -73859 | H109: 0 | I109: 0 | J109: 0 | K109: New | L109: 0 | M109: -73859 | N109: 0 | O109: 0 | P109: 0 | Q109: =VLOOKUP('Incremental Rev Req'!A109,Summary!$B$8:$D$24,3,FALSE) -> Y
A110: 2023 ERRA Review | B110: A.24-04-001 | C110: Filed Application | D110: 10664 | E110: Public Purpose | F110: 0 | G110: 10664 | H110: 0 | I110: 0 | J110: 0 | K110: New | L110: 0 | M110: 10664 | N110: 0 | O110: 0 | P110: 0 | Q110: =Q109 -> Y
A111: 2024 ERRA Review | B111: A.25-04-004 | C111: Filed Application | D111: =H111 -> 3793 | E111: Distribution | F111: 0 | G111: 0 | H111: 3793 | K111: New | L111: 0 | M111: 0 | N111: =H111 -> 3793 | O111: 0 | P111: 0 | Q111: =VLOOKUP('Incremental Rev Req'!A111,Summary!$B$8:$D$24,3,FALSE) -> Y
A112: 2024 ERRA Review | B112: A.25-04-004 | C112: Filed Application | D112: =H112 -> 199 | E112: Public Purpose | F112: 0 | G112: 0 | H112: 199 | K112: New | L112: 0 | M112: 0 | N112: =H112 -> 199 | O112: 0 | P112: 0 | Q112: =Q111 -> Y
A113: Section 851 - Sale of Hydroelectric San Bernardino | B113: A.24-08-012 | C113: Filed Application | D113: =G113 -> 60300 | E113: Generation | F113: 0 | G113: 60300 | H113: 0 | I113: 0 | J113: 0 | K113: New | L113: 0 | M113: 60300 | N113: 0 | O113: 0 | P113: 0 | Q113: =VLOOKUP('Incremental Rev Req'!A113,Summary!$B$8:$D$24,3,FALSE) -> Y
A114: Section 851 - Sale of Hydroelectric Fontana Union Water | B114: A.24-09-008 | C114: Filed Application | D114: =G114 -> 9500 | E114: Generation | F114: 0 | G114: 9500 | H114: 0 | I114: 0 | J114: 0 | K114: New | L114: 0 | M114: 9500 | N114: 0 | O114: 0 | P114: 0 | Q114: =VLOOKUP('Incremental Rev Req'!A114,Summary!$B$8:$D$24,3,FALSE) -> Y
A115: Thomas Fire WEMA FRC | B115: A.25-04-021 | C115: Filed Application | D115: =G115 -> 113900 | E115: Securitization | F115: 113900 | G115: =F115 -> 113900 | H115: =G115 -> 113900 | I115: =H115 -> 113900 | J115: =I115 -> 113900 | K115: New | L115: =F115 -> 113900 | M115: 113900 | N115: =H115 -> 113900 | O115: =H115 -> 113900 | P115: =I115 -> 113900 | Q115: =VLOOKUP('Incremental Rev Req'!A115,Summary!$B$8:$D$24,3,FALSE) -> Y
A116: Woolsey CEMA | B116: A.24-10-002 | C116: Filed Application | D116: =H116 -> 52967 | E116: Distribution | F116: 0 | G116: 0 | H116: 52967 | I116: 0 | J116: 0 | K116: New | L116: =F116 -> 0 | M116: =G116 -> 0 | N116: =H116 -> 52967 | O116: =I116 -> 0 | P116: =J116 -> 0 | Q116: =VLOOKUP('Incremental Rev Req'!A116,Summary!$B$8:$D$24,3,FALSE) -> Y
A117: Woolsey WEMA FRC | B117: A.24-10-002 | C117: Filed Application | D117: =I117 -> 367000 | E117: Securitization | F117: 0 | G117: 0 | H117: 367000 | I117: 367000 | J117: =I117 -> 367000 | K117: New | L117: 0 | M117: =G117 -> 0 | N117: =H117 -> 367000 | O117: =I117 -> 367000 | P117: =J117 -> 367000 | Q117: =VLOOKUP('Incremental Rev Req'!A117,Summary!$B$8:$D$24,3,FALSE) -> Y
A118: Section 851 - Sale of Hydroelectric TULE | B118: A.25-03-001 | C118: Filed Application | D118: =G118 -> 31100 | E118: Generation | F118: 0 | G118: 31100 | H118: 0 | I118: 0 | J118: 0 | K118: New | L118: 0 | M118: =G118 -> 31100 | N118: =H118 -> 0 | O118: =I118 -> 0 | P118: =J118 -> 0 | Q118: =VLOOKUP('Incremental Rev Req'!A118,Summary!$B$8:$D$24,3,FALSE) -> Y
A119: 2026 Cost of Capital | B119: A.25-03-012 | C119: Filed Application | D119: =G119 -> 22188 | E119: Generation | F119: 0 | G119: 22188 | H119: =G119 -> 22188 | I119: =H119 -> 22188 | J119: =I119 -> 22188 | K119: New | L119: =F119 -> 0 | M119: 22188 | N119: 22188 | O119: 22188 | P119: 22188 | Q119: =VLOOKUP('Incremental Rev Req'!A119,Summary!$B$8:$D$24,3,FALSE) -> Y
A120: 2026 Cost of Capital | B120: A.25-03-012 | C120: Filed Application | D120: 2397 | E120: New System Gen | F120: 0 | G120: 2397 | H120: =G120 -> 2397 | I120: =H120 -> 2397 | J120: =I120 -> 2397 | K120: New | L120: 0 | M120: 2397 | N120: 2397 | O120: 2397 | P120: 2397 | Q120: =VLOOKUP('Incremental Rev Req'!A120,Summary!$B$8:$D$24,3,FALSE) -> Y
A121: 2026 Cost of Capital | B121: A.25-03-012 | C121: Filed Application | D121: 356994 | E121: Distribution | F121: 0 | G121: 356994 | H121: =G121 -> 356994 | I121: =H121 -> 356994 | J121: 356994 | K121: New | L121: 0 | M121: 356994 | N121: 356994 | O121: 356994 | P121: 356994 | Q121: =VLOOKUP('Incremental Rev Req'!A121,Summary!$B$8:$D$24,3,FALSE) -> Y
A122: NextGen | B122: A.25-03-009 | C122: Filed Application | D122: 4237 | E122: Distribution | F122: 0 | G122: 4237 | H122: 20695 | I122: 173998 | J122: 281729 | K122: New | L122: 0 | M122: 4237 | N122: 20695 | O122: 173998 | P122: 281729 | Q122: =VLOOKUP('Incremental Rev Req'!A122,Summary!$B$8:$D$24,3,FALSE) -> Y
A123: Diablo Canyon Extended Operations NBC | B123: A.25-03-015 | C123: Filed Application | D123: =G123 -> 125000 | E123: DCPP | F123: 0 | G123: 125000 | H123: =G123 -> 125000 | I123: =H123 -> 125000 | J123: =I123 -> 125000 | K123: Existing | L123: 0 | M123: =G123-G55 -> -157858.6909 | N123: =H123-H55 -> -157858.6909 | O123: =I123-I55 -> -157858.6909 | P123: =J123-J55 -> -157858.6909 | Q123: =VLOOKUP('Incremental Rev Req'!A123,Summary!$B$8:$D$24,3,FALSE) -> Y
A124: IQP 2027 Bridge Funding | B124: A.25-06-022 | C124: Filed Application | D124: =H124 -> 60834.49 | E124: Public Purpose | F124: 0 | G124: 0 | H124: 60834.49 | I124: =H124 -> 60834.49 | J124: =I124 -> 60834.49 | K124: Existing | L124: 0 | M124: 0 | N124: =H124-G71 -> -13964.839 | O124: =I124-H71 -> -13964.839 | P124: -13964.839 | Q124: =VLOOKUP('Incremental Rev Req'!A124,Summary!$B$8:$D$24,3,FALSE) -> Y
A125: IQP 2027 Bridge Funding | B125: A.25-06-022 | C125: Filed Application | D125: =H125 -> 11341.79 | E125: Public Purpose | F125: 0 | G125: 0 | H125: =9606.7+1735.09 -> 11341.79 | I125: =H125 -> 11341.79 | J125: =I125 -> 11341.79 | K125: Existing | L125: 0 | M125: 0 | N125: =H125-G72 -> 387.79 | O125: =I125-H72 -> 387.79 | P125: 387.79 | Q125: =VLOOKUP('Incremental Rev Req'!A125,Summary!$B$8:$D$25,3,FALSE) -> Y
A126: Public Policy Proceedings
A128: Non-CPUC Jurisdictional Proceedings
A130: Total Pending, Filed but not Approved | D130: =SUM(D92:D129) -> 16079162.8 | F130: =SUM(F92:F129) -> 10598506.29 | G130: =SUM(G92:G129) -> 16126667.93 | H130: =SUM(H92:H129) -> 17170517.26 | I130: =SUM(I92:I129) -> 17988569.38 | J130: =SUM(J92:J129) -> 18096300.38 | L130: =SUM(L92:L129) -> 2120627.886 | M130: =SUM(M92:M129) -> 3469140.381 | N130: =SUM(N92:N129) -> 4427236.381 | O130: =SUM(O92:O129) -> 5245288.508 | P130: =SUM(P92:P129) -> 5353019.508
L131: =L130+F84 -> 19815316.87 | M131: =M130+G84 -> 19289024.44 | N131: =N130+H84 -> 20013936.85 | O131: =O130+I84 -> 20831988.98 | P131: =P130+J84 -> 20939719.98
A134: Applications Projected to be Filed, Next 12 Months*
A135: Filing Description | B135: Estimated Filing Date | C135: Filing Basis | D135: Proposed Revenue Requirement ($000) | E135: Proposed Revenue Recovery Mechanism | F135: =F90 -> 2025 | G135: =F135+1 -> 2026 | H135: =G135+1 -> 2027 | I135: =H135+1 -> 2028 | J135: =I135+1 -> 2029 | K135: Existing or New Item (if existing, use delta from prior for rate impact)
A136: Safety Affordability Reliability Proceedings
A138: Public Policy Proceedings | L138: =L132+L133 -> 0 | M138: =M132+M133 -> 0 | N138: =N132+N133 -> 0 | O138: =O132+O133 -> 0 | P138: =P132+P133 -> 0
A141: Non-CPUC Jurisdictional Proceedings | F141: =SUM(F136:F140) -> 0 | G141: =SUM(G136:G140) -> 0 | H141: =SUM(H136:H140) -> 0 | I141: =SUM(I136:I140) -> 0 | J141: =SUM(J136:J140) -> 0 | L141: =SUM(L136:L140) -> 0 | M141: 0 | N141: =SUM(N136:N140) -> 0 | O141: 0 | P141: 0
A143: * All amounts in this Projected section are estimates and subject to change. SCE provides this data in an effort to be as helpful and transparent as possible to further the Commission's efforts to understand the impact all pending rate increases.

Sheet SAR and AR (GS1) (hidden)
B1: CONFIDENTIAL This Excel Sheet Is Marked Confidential In Accordance With Applicable Law and Regulation. Basis for Confidentiality In Accompanying Confidentiality Declaration. Public Disclosure Restricted.
C2: Total Revenue ($000)
C3: Authorized | D3: w/ Pending
B4: Generation | C4: =INDEX('Incremental Rev Req'!$S$9:$X$22,MATCH(B4,'Incremental Rev Req'!$S$9:$S$22,0),MATCH(Summary!$D$3,'Incremental Rev Req'!$S$9:$X$9,0)) -> 5321396.851 | D4: =INDEX('Incremental Rev Req'!$S$68:$X$81,MATCH(B4,'Incremental Rev Req'!$S$68:$S$81,0),MATCH(Summary!$D$3,'Incremental Rev Req'!$S$68:$X$68,0)) -> 5526900.275 | G4: Allocation
B5: Distribution | C5: =INDEX('Incremental Rev Req'!$S$9:$X$22,MATCH(B5,'Incremental Rev Req'!$S$9:$S$22,0),MATCH(Summary!$D$3,'Incremental Rev Req'!$S$9:$X$9,0)) -> 9210316.465 | D5: =INDEX('Incremental Rev Req'!$S$68:$X$81,MATCH(B5,'Incremental Rev Req'!$S$68:$S$81,0),MATCH(Summary!$D$3,'Incremental Rev Req'!$S$68:$X$68,0)) -> 11005829.27 | G5: Generation | H5: Distribution | I5: NDC | J5: PPPC | K5: DCPP | L5: NSGC | M5: Transmission | N5: TOTCA | O5: GHG Rev | P5: DWRBC | Q5: PUCRF | R5: SECURITIZATION
B6: Nuclear | C6: =INDEX('Incremental Rev Req'!$S$9:$X$22,MATCH(B6,'Incremental Rev Req'!$S$9:$S$22,0),MATCH(Summary!$D$3,'Incremental Rev Req'!$S$9:$X$9,0)) -> -915.4516419 | D6: =INDEX('Incremental Rev Req'!$S$68:$X$81,MATCH(B6,'Incremental Rev Req'!$S$68:$S$81,0),MATCH(Summary!$D$3,'Incremental Rev Req'!$S$68:$X$68,0)) -> -915.4516419 | F6: GS-1 | G6: =VLOOKUP(Summary!$D$3,'SAR and AR (GS1)'!$F$37:$R$42,'SAR and AR (GS1)'!G$35,FALSE) -> 0.08563404308 | H6: =VLOOKUP(Summary!$D$3,'SAR and AR (GS1)'!$F$37:$R$42,'SAR and AR (GS1)'!H$35,FALSE) -> 0.06795318426 | I6: =VLOOKUP(Summary!$D$3,'SAR and AR (GS1)'!$F$37:$R$42,'SAR and AR (GS1)'!I$35,FALSE) -> 0.06977236109 | J6: =VLOOKUP(Summary!$D$3,'SAR and AR (GS1)'!$F$37:$R$42,'SAR and AR (GS1)'!J$35,FALSE) -> 0.07080918219 | K6: =VLOOKUP(Summary!$D$3,'SAR and AR (GS1)'!$F$37:$R$42,'SAR and AR (GS1)'!K$35,FALSE) -> 0.07045250454 | L6: =VLOOKUP(Summary!$D$3,'SAR and AR (GS1)'!$F$37:$R$42,'SAR and AR (GS1)'!L$35,FALSE) -> 0.07024021054 | M6: =VLOOKUP(Summary!$D$3,'SAR and AR (GS1)'!$F$37:$R$42,'SAR and AR (GS1)'!M$35,FALSE) -> 0.06906624045 | N6: =VLOOKUP(Summary!$D$3,'SAR and AR (GS1)'!$F$37:$R$42,'SAR and AR (GS1)'!N$35,FALSE) -> 0.07029066199 | O6: =VLOOKUP(Summary!$D$3,'SAR and AR (GS1)'!$F$37:$R$42,'SAR and AR (GS1)'!O$35,FALSE) -> 0.08033362562 | P6: =VLOOKUP(Summary!$D$3,'SAR and AR (GS1)'!$F$37:$R$42,'SAR and AR (GS1)'!P$35,FALSE) -> 0.07801292567 | Q6: =VLOOKUP(Summary!$D$3,'SAR and AR (GS1)'!$F$37:$R$42,'SAR and AR (GS1)'!Q$35,FALSE) -> 0.06977236027 | R6: =VLOOKUP(Summary!$D$3,'SAR and AR (GS1)'!$F$37:$R$42,'SAR and AR (GS1)'!R$35,FALSE) -> 0.08148651689
B7: Public Purpose | C7: =INDEX('Incremental Rev Req'!$S$9:$X$22,MATCH(B7,'Incremental Rev Req'!$S$9:$S$22,0),MATCH(Summary!$D$3,'Incremental Rev Req'!$S$9:$X$9,0)) -> 992554.8866 | D7: =INDEX('Incremental Rev Req'!$S$68:$X$81,MATCH(B7,'Incremental Rev Req'!$S$68:$S$81,0),MATCH(Summary!$D$3,'Incremental Rev Req'!$S$68:$X$68,0)) -> 992554.8866
B8: DCPP | C8: =INDEX('Incremental Rev Req'!$S$9:$X$22,MATCH(B8,'Incremental Rev Req'!$S$9:$S$22,0),MATCH(Summary!$D$3,'Incremental Rev Req'!$S$9:$X$9,0)) -> 282858.6909 | D8: =INDEX('Incremental Rev Req'!$S$68:$X$81,MATCH(B8,'Incremental Rev Req'!$S$68:$S$81,0),MATCH(Summary!$D$3,'Incremental Rev Req'!$S$68:$X$68,0)) -> 282858.6909 | G8: Revenue ($000) - System | X8: Authorized | Y8: w/Pending
B9: New System Gen | C9: =INDEX('Incremental Rev Req'!$S$9:$X$22,MATCH(B9,'Incremental Rev Req'!$S$9:$S$22,0),MATCH(Summary!$D$3,'Incremental Rev Req'!$S$9:$X$9,0)) -> 597443.0405 | D9: =INDEX('Incremental Rev Req'!$S$68:$X$81,MATCH(B9,'Incremental Rev Req'!$S$68:$S$81,0),MATCH(Summary!$D$3,'Incremental Rev Req'!$S$68:$X$68,0)) -> 603154.6967 | F9: Authorized | G9: Generation | H9: Distribution | I9: NDC | J9: PPPC | K9: DCPP | L9: NSGC | M9: Transmission | N9: TOTCA | O9: GHG Rev | P9: DWRBC | Q9: PUCRF | R9: SECURITIZATION | S9: Total | T9: CARE Adj. | W9: % of CARE Sales | X9: =VLOOKUP(Summary!$D$3,$F$58:$Q$63,$Q$35,FALSE) -> 0 | Y9: =X9 -> 0
B10: FERC | C10: =INDEX('Incremental Rev Req'!$S$9:$X$22,MATCH(B10,'Incremental Rev Req'!$S$9:$S$22,0),MATCH(Summary!$D$3,'Incremental Rev Req'!$S$9:$X$9,0)) -> 1344347 | D10: =INDEX('Incremental Rev Req'!$S$68:$X$81,MATCH(B10,'Incremental Rev Req'!$S$68:$S$81,0),MATCH(Summary!$D$3,'Incremental Rev Req'!$S$68:$X$68,0)) -> 1344347 | F10: GS-1 | G10: =G6*G11 -> 455692.7272 | H10: =H6*H11 -> 625870.3318 | I10: =I6*I11 -> -63.87322251 | J10: =J6*J11 -> 70281.9998 | K10: =K6*K11 -> 19928.1032 | L10: 41964.52495 | M10: 92848.99315 | N10: -193.4922683 | O10: -51543.9777 | P10: 32516.02146 | Q10: 4417.128642 | R10: =R6*R11 -> 8657.476316 | S10: =SUM(G10:R10) -> 1300375.963 | T10: =X14 -> 75387.71384 | W10: CARE Effective Discount | X10: ='SAR and RAR'!X10 -> 0.325 | Y10: =X10 -> 0.325
B11: TOTCA | C11: =INDEX('Incremental Rev Req'!$S$9:$X$22,MATCH(B11,'Incremental Rev Req'!$S$9:$S$22,0),MATCH(Summary!$D$3,'Incremental Rev Req'!$S$9:$X$9,0)) -> -2752.745 | D11: =INDEX('Incremental Rev Req'!$S$68:$X$81,MATCH(B11,'Incremental Rev Req'!$S$68:$S$81,0),MATCH(Summary!$D$3,'Incremental Rev Req'!$S$68:$X$68,0)) -> -2752.745 | F11: Total System | G11: =C4 -> 5321396.851 | H11: =C5 -> 9210316.465 | I11: =C6 -> -915.4516419 | J11: =C7 -> 992554.8866 | K11: =C8 -> 282858.6909 | L11: =C9 -> 597443.0405 | M11: =C10 -> 1344347 | N11: =C11 -> -2752.745 | O11: =C12 -> -641623.9439 | P11: =C14 -> 416803 | Q11: =C15 -> 63307.71418 | R11: =C16 -> 106244.28 | S11: =SUM(G11:R11) -> 17689979.79 | T11: 0 | W11: CARE Discounst | X11: ='SAR and RAR'!X11 -> 960469.5381 | Y11: ='SAR and RAR'!Y11 -> 1063813.258
B12: GHG Revenue | C12: =INDEX('Incremental Rev Req'!$S$9:$X$22,MATCH(B12,'Incremental Rev Req'!$S$9:$S$22,0),MATCH(Summary!$D$3,'Incremental Rev Req'!$S$9:$X$9,0)) -> -641623.9439 | D12: =INDEX('Incremental Rev Req'!$S$68:$X$81,MATCH(B12,'Incremental Rev Req'!$S$68:$S$81,0),MATCH(Summary!$D$3,'Incremental Rev Req'!$S$68:$X$68,0)) -> -641623.9439 | F12: w/Pending | W12: GS-1 Sales | X12: =VLOOKUP(Summary!$D$3,'SAR and AR (GS1)'!$F$58:$O$63,10,FALSE) -> 5521410.798 | Y12: =X12 -> 5521410.798
B13: MCAM | C13: =INDEX('Incremental Rev Req'!$S$9:$X$22,MATCH(B13,'Incremental Rev Req'!$S$9:$S$22,0),MATCH(Summary!$D$3,'Incremental Rev Req'!$S$9:$X$9,0)) -> 4709.193664 | D13: =INDEX('Incremental Rev Req'!$S$68:$X$81,MATCH(B13,'Incremental Rev Req'!$S$68:$S$81,0),MATCH(Summary!$D$3,'Incremental Rev Req'!$S$68:$X$68,0)) -> 4709.193664 | F13: GS-1 | G13: =G6*G14 -> 473290.8163 | H13: =H6*H14 -> 747881.1443 | I13: =I6*I14 -> -63.87322251 | J13: =J6*J14 -> 70281.9998 | K13: =K6*K14 -> 19928.1032 | L13: 42365.71288 | M13: 92848.99315 | N13: -193.4922683 | O13: -51543.9777 | P13: 32516.02146 | Q13: 4417.128642 | R13: =R6*R14 -> 17938.79059 | S13: =SUM(G13:R13) -> 1449667.367 | T13: =Y14 -> 83499.21191 | W13: Total Sales (excl. CARE&SL) | X13: =VLOOKUP(Summary!$D$3,'SAR and AR (GS1)'!$F$64:$O$69,2,FALSE) -> 70344975.44 | Y13: =X13 -> 70344975.44
B14: DWR | C14: =INDEX('Incremental Rev Req'!$S$9:$X$22,MATCH(B14,'Incremental Rev Req'!$S$9:$S$22,0),MATCH(Summary!$D$3,'Incremental Rev Req'!$S$9:$X$9,0)) -> 416803 | D14: =INDEX('Incremental Rev Req'!$S$68:$X$81,MATCH(B14,'Incremental Rev Req'!$S$68:$S$81,0),MATCH(Summary!$D$3,'Incremental Rev Req'!$S$68:$X$68,0)) -> 416803 | F14: Total System | G14: =D4 -> 5526900.275 | H14: =D5 -> 11005829.27 | I14: =D6 -> -915.4516419 | J14: =D7 -> 992554.8866 | K14: =D8 -> 282858.6909 | L14: =D9 -> 603154.6967 | M14: =D10 -> 1344347 | N14: =D11 -> -2752.745 | O14: =D12 -> -641623.9439 | P14: =D14 -> 416803 | Q14: =D15 -> 63307.71418 | R14: =D16 -> 220144.28 | S14: =SUM(G14:R14) -> 19810607.67 | T14: 0 | W14: GS-1 CARE Surcharge | X14: =X11*X12/X13 -> 75387.71384 | Y14: =Y11*Y12/Y13 -> 83499.21191
B15: PUCRF | C15: =INDEX('Incremental Rev Req'!$S$9:$X$22,MATCH(B15,'Incremental Rev Req'!$S$9:$S$22,0),MATCH(Summary!$D$3,'Incremental Rev Req'!$S$9:$X$9,0)) -> 63307.71418 | D15: =INDEX('Incremental Rev Req'!$S$68:$X$81,MATCH(B15,'Incremental Rev Req'!$S$68:$S$81,0),MATCH(Summary!$D$3,'Incremental Rev Req'!$S$68:$X$68,0)) -> 63307.71418 | W15: RES CARE Discount Specific Split | X15: ='SAR and RAR'!X15 -> 0.7685341009 | Y15: ='SAR and RAR'!Y15 -> 0.7685341009
B16: SECURITIZATION | C16: =INDEX('Incremental Rev Req'!$S$9:$X$22,MATCH(B16,'Incremental Rev Req'!$S$9:$S$22,0),MATCH(Summary!$D$3,'Incremental Rev Req'!$S$9:$X$9,0)) -> 106244.28 | D16: =INDEX('Incremental Rev Req'!$S$68:$X$81,MATCH(B16,'Incremental Rev Req'!$S$68:$S$81,0),MATCH(Summary!$D$3,'Incremental Rev Req'!$S$68:$X$68,0)) -> 220144.28 | S16: Authorized | T16: w/Pending | W16: CARE Surcharge Allocator | X16: ='SAR and RAR'!X16 -> 0.6109825268 | Y16: ='SAR and RAR'!Y16 -> 0.6109825268
B17: Total | C17: =SUM(C4:C16) -> 17694688.98 | D17: =SUM(D4:D16) -> 19815316.87 | G17: Revenue Split - Bundled | S17: Bundled Revenue | W17: System CARE Discount | X17: =SUM(-X11*X15)+SUM(X11*X16) -> -151323.4876 | Y17: =SUM(-Y11*Y15)+SUM(Y11*Y16) -> -167605.4534
G18: Generation | H18: Distribution | I18: NDC | J18: PPPC | K18: DCPP | L18: NSGC | M18: Transmission | N18: TOTCA | O18: GHG Rev | P18: DWRBC | Q18: PUCRF | R18: SECURITIZATION | S18: Total | T18: Total
F19: GS-1 | G19: =VLOOKUP(Summary!$D$3,'SAR and AR (GS1)'!$F$44:$R$49,'SAR and AR (GS1)'!G$35,FALSE) -> 1.036507134 | H19: =VLOOKUP(Summary!$D$3,'SAR and AR (GS1)'!$F$44:$R$49,'SAR and AR (GS1)'!H$35,FALSE) -> 0.7003502276 | I19: =VLOOKUP(Summary!$D$3,'SAR and AR (GS1)'!$F$44:$R$49,'SAR and AR (GS1)'!I$35,FALSE) -> 0.7021955024 | J19: =VLOOKUP(Summary!$D$3,'SAR and AR (GS1)'!$F$44:$R$49,'SAR and AR (GS1)'!J$35,FALSE) -> 0.7021955159 | K19: =VLOOKUP(Summary!$D$3,'SAR and AR (GS1)'!$F$44:$R$49,'SAR and AR (GS1)'!K$35,FALSE) -> 0.7021955158 | L19: =VLOOKUP(Summary!$D$3,'SAR and AR (GS1)'!$F$44:$R$49,'SAR and AR (GS1)'!L$35,FALSE) -> 0.7021955158 | M19: =VLOOKUP(Summary!$D$3,'SAR and AR (GS1)'!$F$44:$R$49,'SAR and AR (GS1)'!M$35,FALSE) -> 0.7021955158 | N19: =VLOOKUP(Summary!$D$3,'SAR and AR (GS1)'!$F$44:$R$49,'SAR and AR (GS1)'!N$35,FALSE) -> 0.7021955236 | O19: =VLOOKUP(Summary!$D$3,'SAR and AR (GS1)'!$F$44:$R$49,'SAR and AR (GS1)'!O$35,FALSE) -> 0.69314594 | P19: =VLOOKUP(Summary!$D$3,'SAR and AR (GS1)'!$F$44:$R$49,'SAR and AR (GS1)'!P$35,FALSE) -> 0.7021955159 | Q19: =VLOOKUP(Summary!$D$3,'SAR and AR (GS1)'!$F$44:$R$49,'SAR and AR (GS1)'!Q$35,FALSE) -> 0.7021955151 | R19: =VLOOKUP(Summary!$D$3,'SAR and AR (GS1)'!$F$44:$R$49,'SAR and AR (GS1)'!R$35,FALSE) -> 0.7021955155 | S19: =SUMPRODUCT(G10:R10,G19:R19)+T10*H19 -> 1117570.886 | T19: =SUMPRODUCT(G13:R13,G19:R19)+T13*H19 -> 1233741.63
F20: Total System | G20: =VLOOKUP(Summary!$D$3,'SAR and AR (GS1)'!$F$50:$R$55,'SAR and AR (GS1)'!G$35,FALSE) -> 1.048411398 | H20: =VLOOKUP(Summary!$D$3,'SAR and AR (GS1)'!$F$50:$R$55,'SAR and AR (GS1)'!H$35,FALSE) -> 0.6497133295 | I20: =VLOOKUP(Summary!$D$3,'SAR and AR (GS1)'!$F$50:$R$55,'SAR and AR (GS1)'!I$35,FALSE) -> 0.6283028798 | J20: =VLOOKUP(Summary!$D$3,'SAR and AR (GS1)'!$F$50:$R$55,'SAR and AR (GS1)'!J$35,FALSE) -> 0.6429155899 | K20: =VLOOKUP(Summary!$D$3,'SAR and AR (GS1)'!$F$50:$R$55,'SAR and AR (GS1)'!K$35,FALSE) -> 0.6409526177 | L20: =VLOOKUP(Summary!$D$3,'SAR and AR (GS1)'!$F$50:$R$55,'SAR and AR (GS1)'!L$35,FALSE) -> 0.6386900347 | M20: =VLOOKUP(Summary!$D$3,'SAR and AR (GS1)'!$F$50:$R$55,'SAR and AR (GS1)'!M$35,FALSE) -> 0.6641776383 | N20: =VLOOKUP(Summary!$D$3,'SAR and AR (GS1)'!$F$50:$R$55,'SAR and AR (GS1)'!N$35,FALSE) -> 0.6532230564 | O20: =VLOOKUP(Summary!$D$3,'SAR and AR (GS1)'!$F$50:$R$55,'SAR and AR (GS1)'!O$35,FALSE) -> 0.6916053708 | P20: =VLOOKUP(Summary!$D$3,'SAR and AR (GS1)'!$F$50:$R$55,'SAR and AR (GS1)'!P$35,FALSE) -> 0.6118326262 | Q20: =VLOOKUP(Summary!$D$3,'SAR and AR (GS1)'!$F$50:$R$55,'SAR and AR (GS1)'!Q$35,FALSE) -> 0.6283028839 | R20: =VLOOKUP(Summary!$D$3,'SAR and AR (GS1)'!$F$50:$R$55,'SAR and AR (GS1)'!R$35,FALSE) -> 0.6226235037 | S20: =SUMPRODUCT(G11:R11,G20:R20)+X17 -> 13420465.54 | T20: =SUMPRODUCT(G14:R14,G20:R20)+Y17 -> 14860769.1
R22: GS-1 GHG | S22: =O10*O19 -> -35727.49887 | T22: =O13*O19 -> -35727.49887
R23: GS-1 GHG System | S23: =O11*O20 -> -443750.5656 | T23: =O14*O20 -> -443750.5656
F26: Bundled | N26: System (Bundled and Unbundled)
F27: =Summary!N4&" Sales" -> 2025 Sales | G27: =MONTH(Summary!$N$3)&"/"&DAY(Summary!$N$3)&"/"&YEAR(Summary!$N$3)&" Avg Rates" -> 6/1/2025 Avg Rates | H27: Proposed Avg Rates (Authorized) | I27: Proposed Avg Rates (w/Pending) | J27: % Change (Authorized) | K27: % Change (w/Pending) | N27: =Summary!N4&" Sales" -> 2025 Sales | O27: =G27 -> 6/1/2025 Avg Rates | P27: Proposed Avg Rates (Authorized) | Q27: Proposed Avg Rates (w/Pending) | R27: % Change (Authorized) | S27: % Change (w/Pending) | W27: 1/1/25 Bundled w/Credit | X27: 1/1/25 Bundled w/out Credit | Z27: 1/1/25 System w/Credit | AA27: 1/1/25 System w/out Credit
E28: GS-1 | F28: =VLOOKUP(Summary!$D$3,'SAR and AR (GS1)'!$J$58:$K$63,2,FALSE) -> 3877109.903 | G28: =IF(Summary!$J$3="Y",W31,X31) -> 28.4109163 | H28: =IF(Summary!$J$3="Y",S19/$F$28*100,SUM(S19-S22)/$F$28*100) -> 29.74634234 | I28: =IF(Summary!$J$3="Y",T19/$F$28*100,SUM(T19-T22)/$F$28*100) -> 32.74266556 | J28: =H28/G28-1 -> 0.04700397637 | K28: =I28/G28-1 -> 0.1524677773 | M28: GS-1 | N28: =VLOOKUP(Summary!$D$3,'SAR and AR (GS1)'!$N$58:$O$63,2,FALSE) -> 5521410.798 | O28: =IF(Summary!$J$3="Y",Z31,AA31) -> 25.01610122 | P28: =IF(Summary!$J$3="Y",SUM(S10:T10)/N28*100,SUM(S10:T10,-O10)/N28*100) -> 25.8504159 | Q28: =IF(Summary!$J$3="Y",SUM(S13:T13)/N28*100,SUM(S13:T13,-O13)/N28*100) -> 28.70118915 | R28: =P28/O28-1 -> 0.03335110779 | S28: =Q28/O28-1 -> 0.1473086435 | V28: GS-1 Bundled | W28: 28.24977561 | X28: 29.17406766 | Y28: GS-1 System | Z28: 24.84314154 | AA28: 25.77950096
E29: Total Bundled | F29: =VLOOKUP(Summary!$D$3,'SAR and AR (GS1)'!$J$64:$K$69,2,FALSE) -> 49720524.25 | G29: ='SAR and RAR'!G29 -> 26.64700642 | H29: =IF(Summary!$J$3="Y",S20/$F$29*100,SUM(S20-S23)/$F$29*100) -> 27.88429187 | I29: =IF(Summary!$J$3="Y",T20/$F$29*100,SUM(T20-T23)/$F$29*100) -> 30.7810907 | J29: =H29/G29-1 -> 0.04643243719 | K29: =I29/G29-1 -> 0.1551425408 | M29: Total System | N29: =VLOOKUP(Summary!$D$3,'SAR and AR (GS1)'!$N$64:$O$69,2,FALSE) -> 79134642.73 | O29: ='SAR and RAR'!O29 -> 22.25245758 | P29: =IF(Summary!$J$3="Y",SUM(S11:T11)/N29*100,SUM(S11:T11,-O11)/N29*100) -> 23.16508055 | Q29: =IF(Summary!$J$3="Y",SUM(S14:T14)/N29*100,SUM(S14:T14,-O14)/N29*100) -> 25.84485241 | R29: =P29/O29-1 -> 0.04101223281 | S29: =Q29/O29-1 -> 0.1614381161
E30: =M29 -> Total System | F30: =N29 -> 79134642.73 | W30: 6/1/25 Bundled w/Credit | X30: 6/1/25 Bundled w/out Credit | Z30: 6/1/25 System w/Credit | AA30: 6/1/25 System w/out Credit
V31: GS-1 Bundled | W31: 27.48662425 | X31: 28.4109163 | Y31: GS-1 System | Z31: 24.07974179 | AA31: 25.01610122
G35: 2 | H35: =G35+1 -> 3 | I35: =H35+1 -> 4 | J35: 5 | K35: 6 | L35: 7 | M35: 8 | N35: 9 | O35: 10 | P35: 11 | Q35: 12 | R35: 13
F36: GS-1 Allocator | G36: Generation | H36: Distribution | I36: NDC | J36: PPPC | K36: DCPP | L36: NSGC | M36: Transmission | N36: TOTCA | O36: GHG Rev | P36: DWRBC | Q36: PUCRF | R36: SECURITIZATION
F37: 2025 | G37: 0.08563404308 | H37: 0.06795318426 | I37: 0.06977236109 | J37: 0.07080918219 | K37: 0.07045250454 | L37: 0.07024021054 | M37: 0.06906624045 | N37: 0.07029066199 | O37: 0.08033362562 | P37: 0.07801292567 | Q37: 0.06977236027 | R37: 0.08148651689
F38: 2026 | G38: 0.08591213448 | H38: 0.06861779793 | I38: 0.07041479906 | J38: 0.0714794503 | K38: 0.07108863538 | L38: 0.07093396218 | M38: 0.07031123312 | N38: 0.07044668909 | O38: 0.07744277145 | P38: 0.07953558169 | Q38: 0.07041479869 | R38: 0.08351408908
F39: 2027 | G39: 0.08581914909 | H39: 0.07074782338 | I39: 0.0725464065 | J39: 0.07367403472 | K39: 0.07326877508 | L39: 0.07310387216 | M39: 0.07251647192 | N39: 0.07258286306 | O39: 0.07986197661 | P39: 0.0819053892 | Q39: 0.07254640613 | R39: 0.08603027554
F40: 2028 | G40: 0.08623513102 | H40: 0.0701324339 | I40: 0.08199601714 | J40: 0.07310860617 | K40: 0.07267113526 | L40: 0.07083965405 | M40: 0.07190838009 | N40: 0.07205129771 | O40: 0.07864983894 | P40: 0.08142844407 | Q40: 0.0720259321 | R40: 0.08552356895
F41: 2029 | G41: =G40 -> 0.08623513102 | H41: =H40 -> 0.0701324339 | I41: 0.08199601714 | J41: 0.07310860617 | K41: 0.07267113526 | L41: 0.07083965405 | M41: 0.07190838009 | N41: 0.07205129771 | O41: 0.07864983894 | P41: 0.08142844407 | Q41: 0.0720259321 | R41: 0.08552356895
F43: Revenue Split - Bundled
E44: GS-1 | F44: 2025 | G44: 1.036507134 | H44: 0.7003502276 | I44: 0.7021955024 | J44: 0.7021955159 | K44: 0.7021955158 | L44: 0.7021955158 | M44: 0.7021955158 | N44: 0.7021955236 | O44: 0.69314594 | P44: 0.7021955159 | Q44: 0.7021955151 | R44: 0.7021955155 | U44: =G44 -> 1.036507134
E45: GS-1 | F45: 2026 | G45: 1.037694013 | H45: 0.7035656625 | I45: 0.7068647046 | J45: 0.7068647095 | K45: 0.7068647093 | L45: 0.7068647094 | M45: 0.7068647094 | N45: 0.706864709 | O45: 0.6805510836 | P45: 0.7068647095 | Q45: 0.7068647093 | R45: 0.7068647093 | T45: =K59/K58-1 -> 0.03274445143 | U45: =G45 -> 1.037694013
E46: GS-1 | F46: 2027 | G46: 1.037089629 | H46: 0.706804969 | I46: 0.7100828159 | J46: 0.7100828207 | K46: 0.7100828206 | L46: 0.7100828207 | M46: 0.7100828207 | N46: 0.7100828203 | O46: 0.6839289022 | P46: 0.7100828207 | Q46: 0.7100828205 | R46: 0.7100828205 | T46: =K60/K59-1 -> 0.04617692768 | U46: 1.037089629
E47: GS-1 | F47: 2028 | G47: 1.036929754 | H47: 0.7076674831 | I47: 0.7109396308 | J47: 0.7109396356 | K47: 0.7109396355 | L47: 0.7109396356 | M47: 0.7109396356 | N47: 0.7109396352 | O47: 0.6848287045 | P47: 0.7109396356 | Q47: 0.7109396354 | R47: 0.7109396355 | T47: =K61/K60-1 -> 0.02226113612 | U47: 1.036929754
E48: GS-1 | F48: 2029 | G48: =G47 -> 1.036929754 | H48: =H47 -> 0.7076674831 | I48: =I47 -> 0.7109396308 | J48: =J47 -> 0.7109396356 | K48: =K47 -> 0.7109396355 | L48: =L47 -> 0.7109396356 | M48: =M47 -> 0.7109396356 | N48: =N47 -> 0.7109396352 | O48: =O47 -> 0.6848287045 | P48: =P47 -> 0.7109396356 | Q48: =Q47 -> 0.7109396354 | R48: =R47 -> 0.7109396355 | T48: =K62/K61-1 -> 0 | U48: 1.036929754
E49: GS-1 | T49: =K63/K62-1 -> -1 | U49: 0
E50: Total System | F50: 2025 | G50: 1.048411398 | H50: 0.6497133295 | I50: 0.6283028798 | J50: 0.6429155899 | K50: 0.6409526177 | L50: 0.6386900347 | M50: 0.6641776383 | N50: 0.6532230564 | O50: 0.6916053708 | P50: 0.6118326262 | Q50: 0.6283028839 | R50: 0.6226235037 | U50: 1.048411398
E51: Total System | F51: 2026 | G51: 1.048911533 | H51: 0.6592929074 | I51: 0.6388478166 | J51: 0.6529089711 | K51: 0.6517847762 | L51: 0.6492572883 | M51: 0.6742723722 | N51: 0.6405194042 | O51: 0.6841793971 | P51: 0.6232553568 | Q51: 0.6388478175 | R51: 0.6341621376 | T51: =K65/K64-1 -> 0.03362369559 | U51: 1.048911533
E52: Total System | F52: 2027 | G52: 1.048064364 | H52: 0.6603819419 | I52: 0.5896210369 | J52: 0.6539836176 | K52: 0.6530372504 | L52: 0.6586178472 | M52: 0.675436885 | N52: 0.6415577188 | O52: 0.6874004682 | P52: 0.6238492509 | Q52: 0.6398436554 | R52: 0.63471617 | T52: =K66/K65-1 -> 0.04617692768 | U52: 1.048064364
E53: Total System | F53: 2028 | G53: 1.048098118 | H53: 0.660057117 | I53: 0.5904506491 | J53: 0.6538815691 | K53: 0.6530164509 | L53: 0.6584095896 | M53: 0.6753821455 | N53: 0.6414373936 | O53: 0.6882773304 | P53: 0.6235275451 | Q53: 0.6397040368 | R53: 0.6343836857 | T53: 0.02226113612 | U53: 1.048098118
E54: Total System | F54: 2029 | G54: =G53 -> 1.048098118 | H54: =H53 -> 0.660057117 | I54: =I53 -> 0.5904506491 | J54: =J53 -> 0.6538815691 | K54: =K53 -> 0.6530164509 | L54: =L53 -> 0.6584095896 | M54: =M53 -> 0.6753821455 | N54: =N53 -> 0.6414373936 | O54: =O53 -> 0.6882773304 | P54: =P53 -> 0.6235275451 | Q54: =Q53 -> 0.6397040368 | R54: =R53 -> 0.6343836857 | T54: 0 | U54: 1.048098118
E55: Total System | T55: -1 | U55: 0
F57: System Sales | J57: Bundled Sales | L57: % of Bdl | N57: System Sales
E58: GS-1 | F58: =$F$37 -> 2025 | I58: GS-1 | J58: =$F$37 -> 2025 | K58: 3877109.903 | L58: =K58/O58 -> 0.7021955159 | M58: GS-1 | N58: =$F$37 -> 2025 | O58: 5521410.798
E59: GS-1 | F59: =$F$38 -> 2026 | I59: GS-1 | J59: =$F$38 -> 2026 | K59: 4004063.74 | L59: 0.7068647094 | M59: GS-1 | N59: =$F$38 -> 2026 | O59: 5664540.451
E60: GS-1 | F60: =$F$39 -> 2027 | I60: GS-1 | J60: =$F$39 -> 2027 | K60: 4188959.102 | L60: 0.7100828207 | M60: GS-1 | N60: =$F$39 -> 2027 | O60: 5899254.256
E61: GS-1 | F61: =$F$40 -> 2028 | I61: GS-1 | J61: =$F$40 -> 2028 | K61: 4282210.091 | L61: 0.7109396356 | M61: GS-1 | N61: =$F$40 -> 2028 | O61: 6023310.386
E62: GS-1 | F62: =$F$41 -> 2029 | I62: GS-1 | J62: =$F$41 -> 2029 | K62: =K61 -> 4282210.091 | L62: 0.7109396356 | M62: GS-1 | N62: =$F$41 -> 2029 | O62: =O61 -> 6023310.386
E63: GS-1 | I63: GS-1 | M63: GS-1
E64: Non-Exempt Sales | F64: =$F$37 -> 2025 | G64: ='SAR and RAR'!G64 -> 70344975.44 | I64: Total System | J64: =$F$37 -> 2025 | K64: ='SAR and RAR'!K64 -> 49720524.25 | L64: 0.628302884 | M64: Total System | N64: =$F$37 -> 2025 | O64: ='SAR and RAR'!O64 -> 79134642.73
E65: Non-Exempt Sales | F65: =$F$38 -> 2026 | G65: ='SAR and RAR'!G65 -> 70795908.28 | I65: Total System | J65: =$F$38 -> 2026 | K65: ='SAR and RAR'!K65 -> 51392312.02 | L65: 0.6388478176 | M65: Total System | N65: =$F$38 -> 2026 | O65: ='SAR and RAR'!O65 -> 80445312.02
E66: Non-Exempt Sales | F66: =$F$39 -> 2027 | G66: ='SAR and RAR'!G66 -> 73970645.71 | I66: Total System | J66: =$F$39 -> 2027 | K66: ='SAR and RAR'!K66 -> 53765451.1 | L66: 0.6424349163 | M66: Total System | N66: =$F$39 -> 2027 | O66: ='SAR and RAR'!O66 -> 83690113.56
E67: Non-Exempt Sales | F67: =$F$40 -> 2028 | G67: ='SAR and RAR'!G67 -> 75325448.63 | I67: Total System | J67: =$F$40 -> 2028 | K67: ='SAR and RAR'!K67 -> 54962331.12 | L67: 0.6433912525 | M67: Total System | N67: =$F$40 -> 2028 | O67: ='SAR and RAR'!O67 -> 85425984.44
E68: Non-Exempt Sales | F68: =$F$41 -> 2029 | G68: ='SAR and RAR'!G68 -> 75325448.63 | I68: Total System | J68: =$F$41 -> 2029 | K68: ='SAR and RAR'!K68 -> 54962331.12 | L68: 0.6433912525 | M68: Total System | N68: =$F$41 -> 2029 | O68: ='SAR and RAR'!O68 -> 85425984.44
E69: Non-Exempt Sales | I69: Total System | M69: Total System
J71: =Summary!D3 -> 2025 | K71: =VLOOKUP(Summary!D3,'SAR and AR (GS1)'!J58:K63,2,FALSE) -> 3877109.903 | N71: =Summary!D3 -> 2025 | O71: =VLOOKUP(Summary!D3,'SAR and AR (GS1)'!N58:O63,2,FALSE) -> 5521410.798
J72: % of GS-1 Sales (Bdl) | N72: % of GS-1 Sales (Sys)
J73: =$F$37 -> 2025 | K73: =K58/K64 -> 0.07797805759 | N73: =$F$37 -> 2025 | O73: =O58/O64 -> 0.06977236021
J74: =$F$38 -> 2026 | K74: 0.07791172614 | N74: =$F$38 -> 2026 | O74: 0.07041479869
J75: =$F$39 -> 2027 | K75: 0.07791172614 | N75: =$F$39 -> 2027 | O75: 0.07048926098
J76: =$F$40 -> 2028 | K76: 0.07791172614 | N76: =$F$40 -> 2028 | O76: 0.07050911295
J77: =$F$41 -> 2029 | K77: 0.07791172614 | N77: =$F$41 -> 2029 | O77: 0.07050911295

Sheet Bill Impact (GS1) (hidden)
B1: CONFIDENTIAL This Excel Sheet Is Marked Confidential In Accordance With Applicable Law and Regulation. Basis for Confidentiality In Accompanying Confidentiality Declaration. Public Disclosure Restricted.
E3: Schedule TOU-GS-1-E
E4: =Summary!N4 -> 2025 | F4: =Summary!N3 -> 2025-06-01 | G4: Proposed | H4: Proposed | I4: Proposed | J4: Proposed
E5: Sales Forecast | F5: Rates | G5: Authorized Rates | H5: Authorized Revenue | I5: w/Pending Rates | J5: w/Pending Revenue
D7: On Peak | E7: =HLOOKUP(E$4,$F$42:$K$52,$A44,FALSE) -> 242.7589229 | F7: 0.604 | G7: =F7/$F$12*$G$12 -> 0.6347179538 | H7: =E7*G7 -> 154.0834468 | I7: =F7/$F$12*$I$12 -> 0.7022153313 | J7: =E7*I7 -> 170.4690375 | N7: Bundled GS-1 Rev Req
D8: Mid Peak | E8: 86.27099511 | F8: 0.30915 | G8: =F8/$F$12*$G$12 -> 0.3248726083 | H8: 28.02708321 | I8: =F8/$F$12*$I$12 -> 0.359420314 | J8: 31.00754815 | N8: Proposed (Authorized) | O8: ='SAR and AR (GS1)'!S19/1000-'SAR and AR (GS1)'!S22/1000 -> 1153.298385
D9: Off Peak | E9: 1077.846035 | F9: 0.23296 | G9: 0.2448077724 | H9: 263.8650869 | I9: 0.270841198 | J9: 291.9251115 | N9: Proposed (w/Pending) | O9: ='SAR and AR (GS1)'!T19/1000-'SAR and AR (GS1)'!T22/1000 -> 1269.469129
D10: Mid Peak | E10: 566.1260181 | F10: 0.36453 | G10: 0.3830690989 | H10: 216.8653836 | I10: 0.4238055542 | J10: 239.9273508
D11: Off Peak | E11: 955.884942 | F11: 0.24667 | G11: =F11/$F$12*$G$12 -> 0.2592150293 | H11: 247.7797432 | I11: 0.2867805559 | J11: 274.1292151
D12: SuperOff Peak | E12: 948.2229897 | F12: 0.18245 | G12: =(O8-G14*E14*365/12/10^6)/SUM(E12,F11/F12*E11,F10/F12*E10,F9/F12*E9,F8/F12*E8,F7/F12*E7) -> 0.1917289581 | H12: 181.8018058 | I12: =(O9-I14*E14*365/12/10^6)/SUM(E12,F11/F12*E11,F10/F12*E10,F9/F12*E9,F8/F12*E8,F7/F12*E7) -> 0.2121178596 | J12: 201.135031
D14: Customers | E14: =HLOOKUP(E$4,$F$42:$K$53,$A51,FALSE) -> 4276490 | F14: 0.468 | G14: =F14 -> 0.468 | H14: =G14*E14*365/12/10^6 -> 60.87583515 | I14: =G14 -> 0.468 | J14: =I14*E14*365/12/10^6 -> 60.87583515
N19: 2024 Recorded Data
B20: SCHEDULE TOU-GS-1-E ($/kWh) | E20: Proposed | F20: Proposed | N20: NAICS | O20: Summer | R20: Winter
B21: Rates | C21: Jan 2025 | D21: =Summary!N3 -> 2025-06-01 | E21: Authorized | F21: w/Pending | O21: On Peak kWh | P21: Mid Peak kWh | Q21: Off Peak kWh | R21: Mid Peak kWh | S21: Off Peak kWh | T21: Super Off Peak kWh | U21: Total kWh
B22: On Peak | C22: 0.61368 | D22: =F7 -> 0.604 | E22: =G7 -> 0.6347179538 | F22: =I7 -> 0.7022153313 | N22: NAICS 531 | O22: 424.4000556 | P22: 171.0418541 | Q22: 2142.043749 | R22: 1242.293732 | S22: 2623.098488 | T22: 1422.305185 | U22: =SUM(O22:T22) -> 8025.183064
B23: Mid Peak | C23: 0.31883 | D23: =F8 -> 0.30915 | E23: 0.3248726083 | F23: =I8 -> 0.359420314 | N23: NAICS 621 | O23: 797.5715959 | P23: 197.8653305 | Q23: 3613.515045 | R23: 1413.274642 | S23: 2031.583162 | T23: 3587.690722 | U23: =SUM(O23:T23) -> 11641.5005
B24: Off Peak | C24: 0.24032 | D24: 0.23296 | E24: 0.2448077724 | F24: 0.270841198 | N24: NAICS 722 | O24: 2427.208974 | P24: 1047.857092 | Q24: 9631.294795 | R24: 5240.828945 | S24: 6947.090523 | T24: 8200.931162 | U24: 33495.21149
B25: Mid Peak | C25: 0.37421 | D25: 0.36453 | E25: 0.3830690989 | F25: 0.4238055542
B26: Off Peak | C26: 0.25403 | D26: 0.24667 | E26: 0.2592150293 | F26: 0.2867805559
B27: Super Off Peak | C27: 0.18873 | D27: 0.18245 | E27: 0.1917289581 | F27: 0.2121178596
K31: *
C32: Daily to Monthly Conversion Factor | D32: 30.417
C34: TOU-GS-1-E
C35: =C21 -> Jan 2025 | E35: =D21 -> 2025-06-01 | G35: =E21 -> Authorized | I35: =F21 -> w/Pending
C36: Summer | D36: Winter | E36: Summer | F36: Winter | G36: Summer | H36: Winter | I36: Summer | J36: Winter
B37: NAICS 531 | C37: =SUM(SUM($O$22*$C$22,$P$22*$C$23,$Q$22*$C$24)+SUM($F$14*365/12*4))/4 -> 221.6737636 | D37: =SUM(SUM($R$22*$C$25,$S$22*$C$26,$T$22*$C$27)+SUM($F$14*365/12*8))/8 -> 189.192013 | E37: =SUM(SUM($O$22*$D$22,$P$22*$D$23,$Q$22*$D$24)+SUM($F$14*365/12*4))/4 -> 216.2914337 | F37: =SUM(SUM($R$22*$D$25,$S$22*$D$26,$T$22*$D$27)+SUM($F$14*365/12*8))/8 -> 184.1590774 | G37: =SUM(SUM($O$22*$E$22,$P$22*$E$23,$Q$22*$E$24)+SUM($G$14*365/12*4))/4 -> 226.5675267 | H37: =SUM(SUM($R$22*$E$25,$S$22*$E$26,$T$22*$E$27)+SUM($G$14*365/12*8))/8 -> 192.8009979 | I37: =SUM(SUM($O$22*$F$22,$P$22*$F$23,$Q$22*$F$24)+SUM($I$14*365/12*4))/4 -> 249.1474594 | J37: =SUM(SUM($R$22*$F$25,$S$22*$F$26,$T$22*$F$27)+SUM($G$14*365/12*8))/8 -> 211.7901197
B38: NAICS 621 | C38: =SUM(SUM($O$23*$C$22,$P$23*$C$23,$Q$23*$C$24)+SUM($F$14*365/12*4))/4 -> 369.469769 | D38: =SUM(SUM($R$23*$C$25,$S$23*$C$26,$T$23*$C$27)+SUM($F$14*365/12*8))/8 -> 229.4911805 | E38: =SUM(SUM($O$23*$D$22,$P$23*$D$23,$Q$23*$D$24)+SUM($F$14*365/12*4))/4 -> 360.411944 | F38: =SUM(SUM($R$23*$D$25,$S$23*$D$26,$T$23*$D$27)+SUM($F$14*365/12*8))/8 -> 223.0957245 | G38: =SUM(SUM($O$23*$E$22,$P$23*$E$23,$Q$23*$E$24)+SUM($F$14*365/12*4))/4 -> 378.0176515 | H38: =SUM(SUM($R$23*$E$25,$S$23*$E$26,$T$23*$E$27)+SUM($F$14*365/12*8))/8 -> 233.717867 | I38: =SUM(SUM($O$23*$F$22,$P$23*$F$23,$Q$23*$F$24)+SUM($I$14*365/12*4))/4 -> 416.7031414 | J38: =SUM(SUM($R$23*$F$25,$S$23*$F$26,$T$23*$F$27)+SUM($G$14*365/12*8))/8 -> 257.0581835
B39: NAICS 722 | C39: =SUM(SUM($O$24*$C$22,$P$24*$C$23,$Q$24*$C$24)+SUM($F$14*365/12*4))/4 -> 1048.787661 | D39: =SUM(SUM($R$24*$C$25,$S$24*$C$26,$T$24*$C$27)+SUM($F$14*365/12*8))/8 -> 673.4477179 | E39: =SUM(SUM($O$24*$D$22,$P$24*$D$23,$Q$24*$D$24)+SUM($F$14*365/12*4))/4 -> 1022.656419 | F39: =SUM(SUM($R$24*$D$25,$S$24*$D$26,$T$24*$D$27)+SUM($F$14*365/12*8))/8 -> 654.2772607 | G39: =SUM(SUM($O$24*$E$22,$P$24*$E$23,$Q$24*$E$24)+SUM($F$14*365/12*4))/4 -> 1073.942251 | H39: =SUM(SUM($R$24*$E$25,$S$24*$E$26,$T$24*$E$27)+SUM($F$14*365/12*8))/8 -> 686.8282352 | I39: =SUM(SUM($O$24*$F$22,$P$24*$F$23,$Q$24*$F$24)+SUM($I$14*365/12*4))/4 -> 1186.633975 | J39: =SUM(SUM($R$24*$F$25,$S$24*$F$26,$T$24*$F$27)+SUM($G$14*365/12*8))/8 -> 758.3533578
F42: 2025 | G42: =F42+1 -> 2026 | H42: =G42+1 -> 2027 | I42: 2028 | J42: 2029
F43: Non-CARE | G43: Non-CARE | H43: Non-CARE | I43: Non-CARE | J43: Non-CARE
A44: 3 | D44: On Peak | F44: 242.7589229 | G44: 253.0607198 | H44: =G44/G$54*H$54 -> 264.7462864 | I44: =H44/H$54*I$54 -> 270.6398395 | J44: 270.6398395
A45: =A44+1 -> 4 | D45: Mid Peak | F45: 86.27099511 | G45: 89.84985516 | H45: =G45/G$54*H$54 -> 93.99884542 | I45: 96.09136651 | J45: 96.09136651
A46: =A45+1 -> 5 | D46: Off Peak | F46: 1077.846035 | G46: 1123.408087 | H46: 1175.283621 | I46: 1201.44677 | J46: 1201.44677
A47: 6 | D47: Mid Peak | F47: 566.1260181 | G47: 577.3765515 | H47: 604.0380268 | I47: 617.4845995 | J47: 617.4845995
A48: 7 | D48: Off Peak | F48: 955.884942 | G48: 975.3019076 | H48: 1020.338353 | I48: 1043.052244 | J48: 1043.052244
A49: 8 | D49: SuperOff Peak | F49: 948.2229897 | G49: 967.0162181 | H49: 1011.670056 | I49: 1034.190981 | J49: 1034.190981
A50: 9
A51: 10 | D51: Customers | F51: 4276490 | G51: 4154722 | H51: 4177916.847 | I51: 4201220.423 | J51: =I51 -> 4201220.423
A52: 11
D54: Total Sales | F54: =SUM(F44:F49) -> 3877.109903 | G54: ='SAR and AR (GS1)'!K59/1000 -> 4004.06374 | H54: ='SAR and AR (GS1)'!K60/1000 -> 4188.959102 | I54: ='SAR and AR (GS1)'!K61/1000 -> 4282.210091 | J54: ='SAR and AR (GS1)'!K62/1000 -> 4282.210091
E55: Customers | F55: =F51/SUM(F$51:F$52) -> 1 | G55: =G51 -> 4154722 | H55: =H51 -> 4177916.847 | I55: 4201220.423 | J55: 4201220.423

Sheet SAR and RAR (hidden)
B1: CONFIDENTIAL This Excel Sheet Is Marked Confidential In Accordance With Applicable Law and Regulation. Basis for Confidentiality In Accompanying Confidentiality Declaration. Public Disclosure Restricted.
C2: Total Revenue ($000)
C3: Authorized | D3: w/ Pending
B4: Generation | C4: =INDEX('Incremental Rev Req'!$S$9:$X$22,MATCH(B4,'Incremental Rev Req'!$S$9:$S$22,0),MATCH(Summary!$D$3,'Incremental Rev Req'!$S$9:$X$9,0)) -> 5321396.851 | D4: =INDEX('Incremental Rev Req'!$S$68:$X$81,MATCH(B4,'Incremental Rev Req'!$S$68:$S$81,0),MATCH(Summary!$D$3,'Incremental Rev Req'!$S$68:$X$68,0)) -> 5526900.275 | G4: Allocation
B5: Distribution | C5: =INDEX('Incremental Rev Req'!$S$9:$X$22,MATCH(B5,'Incremental Rev Req'!$S$9:$S$22,0),MATCH(Summary!$D$3,'Incremental Rev Req'!$S$9:$X$9,0)) -> 9210316.465 | D5: =INDEX('Incremental Rev Req'!$S$68:$X$81,MATCH(B5,'Incremental Rev Req'!$S$68:$S$81,0),MATCH(Summary!$D$3,'Incremental Rev Req'!$S$68:$X$68,0)) -> 11005829.27 | G5: Generation | H5: Distribution | I5: NDC | J5: PPPC | K5: DCPP | L5: NSGC | M5: Transmission | N5: TOTCA | O5: GHG Rev | P5: DWRBC | Q5: PUCRF | R5: SECURITIZATION
B6: Nuclear | C6: =INDEX('Incremental Rev Req'!$S$9:$X$22,MATCH(B6,'Incremental Rev Req'!$S$9:$S$22,0),MATCH(Summary!$D$3,'Incremental Rev Req'!$S$9:$X$9,0)) -> -915.4516419 | D6: =INDEX('Incremental Rev Req'!$S$68:$X$81,MATCH(B6,'Incremental Rev Req'!$S$68:$S$81,0),MATCH(Summary!$D$3,'Incremental Rev Req'!$S$68:$X$68,0)) -> -915.4516419 | F6: Residential | G6: =VLOOKUP(Summary!$D$3,'SAR and RAR'!$F$37:$R$42,'SAR and RAR'!G$35,FALSE) -> 0.4334328031 | H6: =VLOOKUP(Summary!$D$3,'SAR and RAR'!$F$37:$R$42,'SAR and RAR'!H$35,FALSE) -> 0.4901729914 | I6: =VLOOKUP(Summary!$D$3,'SAR and RAR'!$F$37:$R$42,'SAR and RAR'!I$35,FALSE) -> 0.3376537252 | J6: =VLOOKUP(Summary!$D$3,'SAR and RAR'!$F$37:$R$42,'SAR and RAR'!J$35,FALSE) -> 0.4376932486 | K6: =VLOOKUP(Summary!$D$3,'SAR and RAR'!$F$37:$R$42,'SAR and RAR'!K$35,FALSE) -> 0.4505009853 | L6: =VLOOKUP(Summary!$D$3,'SAR and RAR'!$F$37:$R$42,'SAR and RAR'!L$35,FALSE) -> 0.438315087 | M6: =VLOOKUP(Summary!$D$3,'SAR and RAR'!$F$37:$R$42,'SAR and RAR'!M$35,FALSE) -> 0.4638101825 | N6: =VLOOKUP(Summary!$D$3,'SAR and RAR'!$F$37:$R$42,'SAR and RAR'!N$35,FALSE) -> 0.5669366334 | O6: =VLOOKUP(Summary!$D$3,'SAR and RAR'!$F$37:$R$42,'SAR and RAR'!O$35,FALSE) -> 0.8264249736 | P6: =VLOOKUP(Summary!$D$3,'SAR and RAR'!$F$37:$R$42,'SAR and RAR'!P$35,FALSE) -> 0.2594263611 | Q6: =VLOOKUP(Summary!$D$3,'SAR and RAR'!$F$37:$R$42,'SAR and RAR'!Q$35,FALSE) -> 0.3376537254 | R6: =VLOOKUP(Summary!$D$3,'SAR and RAR'!$F$37:$R$42,'SAR and RAR'!R$35,FALSE) -> 0.3674900861
B7: Public Purpose | C7: =INDEX('Incremental Rev Req'!$S$9:$X$22,MATCH(B7,'Incremental Rev Req'!$S$9:$S$22,0),MATCH(Summary!$D$3,'Incremental Rev Req'!$S$9:$X$9,0)) -> 992554.8866 | D7: =INDEX('Incremental Rev Req'!$S$68:$X$81,MATCH(B7,'Incremental Rev Req'!$S$68:$S$81,0),MATCH(Summary!$D$3,'Incremental Rev Req'!$S$68:$X$68,0)) -> 992554.8866
B8: DCPP | C8: =INDEX('Incremental Rev Req'!$S$9:$X$22,MATCH(B8,'Incremental Rev Req'!$S$9:$S$22,0),MATCH(Summary!$D$3,'Incremental Rev Req'!$S$9:$X$9,0)) -> 282858.6909 | D8: =INDEX('Incremental Rev Req'!$S$68:$X$81,MATCH(B8,'Incremental Rev Req'!$S$68:$S$81,0),MATCH(Summary!$D$3,'Incremental Rev Req'!$S$68:$X$68,0)) -> 282858.6909 | G8: Revenue ($000) - System | X8: Authorized | Y8: w/Pending
B9: New System Gen | C9: =INDEX('Incremental Rev Req'!$S$9:$X$22,MATCH(B9,'Incremental Rev Req'!$S$9:$S$22,0),MATCH(Summary!$D$3,'Incremental Rev Req'!$S$9:$X$9,0)) -> 597443.0405 | D9: =INDEX('Incremental Rev Req'!$S$68:$X$81,MATCH(B9,'Incremental Rev Req'!$S$68:$S$81,0),MATCH(Summary!$D$3,'Incremental Rev Req'!$S$68:$X$68,0)) -> 603154.6967 | F9: Authorized | G9: Generation | H9: Distribution | I9: NDC | J9: PPPC | K9: DCPP | L9: NSGC | M9: Transmission | N9: TOTCA | O9: GHG Rev | P9: DWRBC | Q9: PUCRF | R9: SECURITIZATION | S9: Total | T9: CARE Adj. | W9: % of CARE Sales | X9: =VLOOKUP(Summary!$D$3,$F$58:$Q$63,$Q$35,FALSE) -> 0.3128375693 | Y9: =X9 -> 0.3128375693
B10: FERC | C10: =INDEX('Incremental Rev Req'!$S$9:$X$22,MATCH(B10,'Incremental Rev Req'!$S$9:$S$22,0),MATCH(Summary!$D$3,'Incremental Rev Req'!$S$9:$X$9,0)) -> 1344347 | D10: =INDEX('Incremental Rev Req'!$S$68:$X$81,MATCH(B10,'Incremental Rev Req'!$S$68:$S$81,0),MATCH(Summary!$D$3,'Incremental Rev Req'!$S$68:$X$68,0)) -> 1344347 | F10: Residential | G10: =G6*G11 -> 2306467.954 | H10: =H6*H11 -> 4514648.373 | I10: =I6*I11 -> -309.1056571 | J10: =J6*J11 -> 434434.5727 | K10: =K6*K11 -> 127428.119 | L10: 261868.2983 | M10: 623521.8274 | N10: -1560.631983 | O10: -530254.0509 | P10: 108129.6856 | Q10: 21376.08554 | R10: =R6*R11 -> 39043.7196 | S10: =SUM(G10:R10) -> 7904794.846 | T10: =-X11+X14 -> -709773.1297 | W10: CARE Line Item Discount % | X10: 0.325 | Y10: =X10 -> 0.325
B11: TOTCA | C11: =INDEX('Incremental Rev Req'!$S$9:$X$22,MATCH(B11,'Incremental Rev Req'!$S$9:$S$22,0),MATCH(Summary!$D$3,'Incremental Rev Req'!$S$9:$X$9,0)) -> -2752.745 | D11: =INDEX('Incremental Rev Req'!$S$68:$X$81,MATCH(B11,'Incremental Rev Req'!$S$68:$S$81,0),MATCH(Summary!$D$3,'Incremental Rev Req'!$S$68:$X$68,0)) -> -2752.745 | F11: Total System | G11: =C4 -> 5321396.851 | H11: =C5 -> 9210316.465 | I11: =C6 -> -915.4516419 | J11: =C7 -> 992554.8866 | K11: =C8 -> 282858.6909 | L11: =C9 -> 597443.0405 | M11: =C10 -> 1344347 | N11: =C11 -> -2752.745 | O11: =C12 -> -641623.9439 | P11: =C14 -> 416803 | Q11: =C15 -> 63307.71418 | R11: =C16 -> 106244.28 | S11: =SUM(G11:R11) -> 17689979.79 | T11: 0 | W11: CARE Discounst | X11: =SUM(G10*G19/K71*O71,H10:N10,Q10)*X9*X10 -> 960469.5381 | Y11: =SUM(G13*G19/K71*O71,H13:N13,Q13)*Y9*Y10 -> 1063813.258
B12: GHG Revenue | C12: =INDEX('Incremental Rev Req'!$S$9:$X$22,MATCH(B12,'Incremental Rev Req'!$S$9:$S$22,0),MATCH(Summary!$D$3,'Incremental Rev Req'!$S$9:$X$9,0)) -> -641623.9439 | D12: =INDEX('Incremental Rev Req'!$S$68:$X$81,MATCH(B12,'Incremental Rev Req'!$S$68:$S$81,0),MATCH(Summary!$D$3,'Incremental Rev Req'!$S$68:$X$68,0)) -> -641623.9439 | F12: w/Pending | W12: non-CARE Residential Sales | X12: =VLOOKUP(Summary!$D$3,'SAR and RAR'!$F$58:$G$63,2,FALSE) -> 18361053.62 | Y12: =X12 -> 18361053.62
B13: MCAM | C13: =INDEX('Incremental Rev Req'!$S$9:$X$22,MATCH(B13,'Incremental Rev Req'!$S$9:$S$22,0),MATCH(Summary!$D$3,'Incremental Rev Req'!$S$9:$X$9,0)) -> 4709.193664 | D13: =INDEX('Incremental Rev Req'!$S$68:$X$81,MATCH(B13,'Incremental Rev Req'!$S$68:$S$81,0),MATCH(Summary!$D$3,'Incremental Rev Req'!$S$68:$X$68,0)) -> 4709.193664 | F13: Residential | G13: =G6*G14 -> 2395539.879 | H13: =H6*H14 -> 5394760.256 | I13: =I6*I14 -> -309.1056571 | J13: =J6*J14 -> 434434.5727 | K13: =K6*K14 -> 127428.119 | L13: 264371.8034 | M13: 623521.8274 | N13: -1560.631983 | O13: -530254.0509 | P13: 108129.6856 | Q13: =Q6*Q14 -> 21376.08554 | R13: =R6*R14 -> 80900.84041 | S13: =SUM(G13:R13) -> 8918339.28 | T13: =-Y11+Y14 -> -786142.6478 | W13: Total Sales (excl. CARE&SL) | X13: =VLOOKUP(Summary!$D$3,'SAR and RAR'!$F$64:$G$69,2,FALSE) -> 70344975.44 | Y13: =X13 -> 70344975.44
B14: DWR | C14: =INDEX('Incremental Rev Req'!$S$9:$X$22,MATCH(B14,'Incremental Rev Req'!$S$9:$S$22,0),MATCH(Summary!$D$3,'Incremental Rev Req'!$S$9:$X$9,0)) -> 416803 | D14: =INDEX('Incremental Rev Req'!$S$68:$X$81,MATCH(B14,'Incremental Rev Req'!$S$68:$S$81,0),MATCH(Summary!$D$3,'Incremental Rev Req'!$S$68:$X$68,0)) -> 416803 | F14: Total System | G14: =D4 -> 5526900.275 | H14: =D5 -> 11005829.27 | I14: =D6 -> -915.4516419 | J14: =D7 -> 992554.8866 | K14: =D8 -> 282858.6909 | L14: =D9 -> 603154.6967 | M14: =D10 -> 1344347 | N14: =D11 -> -2752.745 | O14: =D12 -> -641623.9439 | P14: =D14 -> 416803 | Q14: =D15 -> 63307.71418 | R14: =D16 -> 220144.28 | S14: =SUM(G14:R14) -> 19810607.67 | T14: 0 | W14: Res CARE Surcharge | X14: =X11*X12/X13 -> 250696.4084 | Y14: =Y11*Y12/Y13 -> 277670.6106
B15: PUCRF | C15: =INDEX('Incremental Rev Req'!$S$9:$X$22,MATCH(B15,'Incremental Rev Req'!$S$9:$S$22,0),MATCH(Summary!$D$3,'Incremental Rev Req'!$S$9:$X$9,0)) -> 63307.71418 | D15: =INDEX('Incremental Rev Req'!$S$68:$X$81,MATCH(B15,'Incremental Rev Req'!$S$68:$S$81,0),MATCH(Summary!$D$3,'Incremental Rev Req'!$S$68:$X$68,0)) -> 63307.71418 | W15: RES CARE Discount Specific Split | X15: 0.7685341009 | Y15: =X15 -> 0.7685341009
B16: SECURITIZATION | C16: =INDEX('Incremental Rev Req'!$S$9:$X$22,MATCH(B16,'Incremental Rev Req'!$S$9:$S$22,0),MATCH(Summary!$D$3,'Incremental Rev Req'!$S$9:$X$9,0)) -> 106244.28 | D16: =INDEX('Incremental Rev Req'!$S$68:$X$81,MATCH(B16,'Incremental Rev Req'!$S$68:$S$81,0),MATCH(Summary!$D$3,'Incremental Rev Req'!$S$68:$X$68,0)) -> 220144.28 | S16: Authorized | T16: w/Pending | W16: CARE Surcharge Allocator | X16: 0.6109825268 | Y16: =X16 -> 0.6109825268
B17: Total | C17: =SUM(C4:C16) -> 17694688.98 | D17: =SUM(D4:D16) -> 19815316.87 | G17: Revenue Split - Bundled | S17: Bundled Revenue | W17: System CARE Discount | X17: =SUM(-X11*X15)+SUM(X11*X16) -> -151323.4876 | Y17: =SUM(-Y11*Y15)+SUM(Y11*Y16) -> -167605.4534
G18: Generation | H18: Distribution | I18: NDC | J18: PPPC | K18: DCPP | L18: NSGC | M18: Transmission | N18: TOTCA | O18: GHG Rev | P18: DWRBC | Q18: PUCRF | R18: SECURITIZATION | S18: Total | T18: Total
F19: Residential | G19: =VLOOKUP(Summary!$D$3,'SAR and RAR'!$F$44:$R$49,'SAR and RAR'!G$35,FALSE) -> 1.053496072 | H19: =VLOOKUP(Summary!$D$3,'SAR and RAR'!$F$44:$R$49,'SAR and RAR'!H$35,FALSE) -> 0.6825473013 | I19: =VLOOKUP(Summary!$D$3,'SAR and RAR'!$F$44:$R$49,'SAR and RAR'!I$35,FALSE) -> 0.7011923278 | J19: =VLOOKUP(Summary!$D$3,'SAR and RAR'!$F$44:$R$49,'SAR and RAR'!J$35,FALSE) -> 0.7011923321 | K19: =VLOOKUP(Summary!$D$3,'SAR and RAR'!$F$44:$R$49,'SAR and RAR'!K$35,FALSE) -> 0.7011923321 | L19: =VLOOKUP(Summary!$D$3,'SAR and RAR'!$F$44:$R$49,'SAR and RAR'!L$35,FALSE) -> 0.7011923321 | M19: =VLOOKUP(Summary!$D$3,'SAR and RAR'!$F$44:$R$49,'SAR and RAR'!M$35,FALSE) -> 0.7011923321 | N19: =VLOOKUP(Summary!$D$3,'SAR and RAR'!$F$44:$R$49,'SAR and RAR'!N$35,FALSE) -> 0.7011923304 | O19: =VLOOKUP(Summary!$D$3,'SAR and RAR'!$F$44:$R$49,'SAR and RAR'!O$35,FALSE) -> 0.7065757 | P19: =VLOOKUP(Summary!$D$3,'SAR and RAR'!$F$44:$R$49,'SAR and RAR'!P$35,FALSE) -> 0.6708887653 | Q19: =VLOOKUP(Summary!$D$3,'SAR and RAR'!$F$44:$R$49,'SAR and RAR'!Q$35,FALSE) -> 0.7011923321 | R19: =VLOOKUP(Summary!$D$3,'SAR and RAR'!$F$44:$R$49,'SAR and RAR'!R$35,FALSE) -> 0.6708887652 | S19: =SUMPRODUCT(G10:R10,G19:R19)+T10*X15 -> 5718383.775 | T19: =SUMPRODUCT(G13:R13,G19:R19)+T13*Y15 -> 6384083.021
F20: Total System | G20: =VLOOKUP(Summary!$D$3,'SAR and RAR'!$F$50:$R$55,'SAR and RAR'!G$35,FALSE) -> 1.048411398 | H20: =VLOOKUP(Summary!$D$3,'SAR and RAR'!$F$50:$R$55,'SAR and RAR'!H$35,FALSE) -> 0.6497133295 | I20: =VLOOKUP(Summary!$D$3,'SAR and RAR'!$F$50:$R$55,'SAR and RAR'!I$35,FALSE) -> 0.6283028798 | J20: =VLOOKUP(Summary!$D$3,'SAR and RAR'!$F$50:$R$55,'SAR and RAR'!J$35,FALSE) -> 0.6429155899 | K20: =VLOOKUP(Summary!$D$3,'SAR and RAR'!$F$50:$R$55,'SAR and RAR'!K$35,FALSE) -> 0.6409526177 | L20: =VLOOKUP(Summary!$D$3,'SAR and RAR'!$F$50:$R$55,'SAR and RAR'!L$35,FALSE) -> 0.6386900347 | M20: =VLOOKUP(Summary!$D$3,'SAR and RAR'!$F$50:$R$55,'SAR and RAR'!M$35,FALSE) -> 0.6641776383 | N20: =VLOOKUP(Summary!$D$3,'SAR and RAR'!$F$50:$R$55,'SAR and RAR'!N$35,FALSE) -> 0.6532230564 | O20: =VLOOKUP(Summary!$D$3,'SAR and RAR'!$F$50:$R$55,'SAR and RAR'!O$35,FALSE) -> 0.6916053708 | P20: =VLOOKUP(Summary!$D$3,'SAR and RAR'!$F$50:$R$55,'SAR and RAR'!P$35,FALSE) -> 0.6118326262 | Q20: =VLOOKUP(Summary!$D$3,'SAR and RAR'!$F$50:$R$55,'SAR and RAR'!Q$35,FALSE) -> 0.6283028839 | R20: =VLOOKUP(Summary!$D$3,'SAR and RAR'!$F$50:$R$55,'SAR and RAR'!R$35,FALSE) -> 0.6226235037 | S20: =SUMPRODUCT(G11:R11,G20:R20)+X17 -> 13420465.54 | T20: =SUMPRODUCT(G14:R14,G20:R20)+Y17 -> 14860769.1
Q22: Res GHG | S22: =O10*O19 -> -374664.6272 | T22: =O13*O19 -> -374664.6272
Q23: Res GHG System | S23: =O11*O20 -> -443750.5656 | T23: =O14*O20 -> -443750.5656
F26: Bundled | N26: System (Bundled and Unbundled)
F27: =Summary!N4&" Sales" -> 2025 Sales | G27: ='SAR and AR (GS1)'!$G$27 -> 6/1/2025 Avg Rates | H27: Proposed Avg Rates (Authorized) | I27: Proposed Avg Rates (w/Pending) | J27: % Change (Authorized) | K27: % Change (w/Pending) | N27: =Summary!N4&" Sales" -> 2025 Sales | O27: =G27 -> 6/1/2025 Avg Rates | P27: Proposed Avg Rates (Authorized) | Q27: Proposed Avg Rates (w/Pending) | R27: % Change (Authorized) | S27: % Change (w/Pending) | W27: 1/1/25 Bundled w/Credit | X27: 1/1/25 Bundled w/out Credit | Z27: 1/1/25 System w/Credit | AA27: 1/1/25 System w/out Credit
E28: Residential | F28: =VLOOKUP(Summary!$D$3,'SAR and RAR'!$J$58:$K$63,2,FALSE) -> 18735934.09 | G28: =IF(Summary!$J$3="Y",W32,X32) -> 31.17865091 | H28: =IF(Summary!$J$3="Y",S19/$F$28*100,SUM(S19-'SAR and RAR'!S22)/$F$28*100) -> 32.52065455 | I28: =IF(Summary!$J$3="Y",T19/$F$28*100,SUM(T19-'SAR and RAR'!T22)/$F$28*100) -> 36.07371597 | J28: =H28/G28-1 -> 0.04304238982 | K28: =I28/G28-1 -> 0.1570005412 | M28: Residential | N28: =VLOOKUP(Summary!$D$3,'SAR and RAR'!$N$58:$O$63,2,FALSE) -> 26720106.92 | O28: =IF(Summary!$J$3="Y",Z32,AA32) -> 27.86095985 | P28: =IF(Summary!$J$3="Y",SUM(S10:T10)/N28*100,SUM(S10,T10,-O10)/N28*100) -> 28.91184451 | Q28: =IF(Summary!$J$3="Y",SUM(S13:T13)/N28*100,SUM(S13,T13,-O13)/N28*100) -> 32.41922163 | R28: =P28/O28-1 -> 0.03771889644 | S28: =Q28/O28-1 -> 0.1636074924 | V28: Residential | W28: 29.63216556 | X28: 31.62973815 | Y28: Residential System | Z28: 26.37809199 | AA28: 28.36130718
E29: Total Bundled | F29: =VLOOKUP(Summary!$D$3,'SAR and RAR'!$J$64:$K$69,2,FALSE) -> 49720524.25 | G29: =IF(Summary!$J$3="Y",W33,X33) -> 26.64700642 | H29: =IF(Summary!$J$3="Y",S20/$F$29*100,SUM(S20-S23)/$F$29*100) -> 27.88429187 | I29: =IF(Summary!$J$3="Y",T20/$F$29*100,SUM(T20-T23)/$F$29*100) -> 30.7810907 | J29: =H29/G29-1 -> 0.04643243719 | K29: =I29/G29-1 -> 0.1551425408 | M29: Total System | N29: =VLOOKUP(Summary!$D$3,'SAR and RAR'!$N$64:$O$69,2,FALSE) -> 79134642.73 | O29: =IF(Summary!$J$3="Y",Z33,AA33) -> 22.25245758 | P29: =IF(Summary!$J$3="Y",SUM(S11:T11)/N29*100,SUM(S11,T11,-O11)/N29*100) -> 23.16508055 | Q29: =IF(Summary!$J$3="Y",SUM(S14:T14)/N29*100,SUM(S14,T14,-O14)/N29*100) -> 25.84485241 | R29: =P29/O29-1 -> 0.04101223281 | S29: =Q29/O29-1 -> 0.1614381161 | V29: Bundled | W29: 26.41450186 | X29: 27.30660685 | Y29: Total System | Z29: 22.10831567 | AA29: 22.91911704
E30: =M29 -> Total System | F30: =N29 -> 79134642.73
W31: 6/1/25 Bundled w/Credit | X31: 6/1/25 Bundled w/out Credit | Z31: 6/1/25 System w/Credit | AA31: 6/1/25 System w/out Credit
V32: Residential | W32: 29.17287662 | X32: 31.17865091 | Y32: Residential System | Z32: 25.87046746 | AA32: 27.86095985
V33: Bundled | W33: 25.75181082 | X33: 26.64700642 | Y33: Total System | Z33: 21.43919904 | AA33: 22.25245758
G35: 2 | H35: =G35+1 -> 3 | I35: =H35+1 -> 4 | J35: 5 | K35: 6 | L35: 7 | M35: 8 | N35: 9 | O35: 10 | P35: 11 | Q35: 12 | R35: 13
F36: Residential Allocator | G36: Generation | H36: Distribution | I36: NDC | J36: PPPC | K36: DCPP | L36: NSGC | M36: Transmission | N36: TOTCA | O36: GHG Rev | P36: DWRBC | Q36: PUCRF | R36: SECURITIZATION
F37: 2025 | G37: 0.4334328031 | H37: 0.4901729914 | I37: 0.3376537252 | J37: 0.4376932486 | K37: 0.4505009853 | L37: 0.438315087 | M37: 0.4638101825 | N37: 0.5669366334 | O37: 0.8264249736 | P37: 0.2594263611 | Q37: 0.3376537254 | R37: 0.3674900861
F38: 2026 | G38: 0.4386034166 | H38: 0.4940306582 | I38: 0.3398582127 | J38: 0.440934602 | K38: 0.4533620698 | L38: 0.4412454822 | M38: 0.4709175474 | N38: 0.3549577209 | O38: 0.8087197621 | P38: 0.2543504775 | Q38: 0.3398582131 | R38: 0.362195607
F39: 2027 | G39: 0.4381287024 | H39: 0.5094551268 | I39: 0.3501930394 | J39: 0.454532782 | K39: 0.4673279061 | L39: 0.454803935 | M39: 0.4857520085 | N39: 0.3657698593 | O39: 0.8342916256 | P39: 0.2618731176 | Q39: 0.3501930397 | R39: 0.373028564
F40: 2028 | G40: 0.4402523965 | H40: 0.505047153 | I40: 0.395821832 | J40: 0.4510603401 | K40: 0.4635324167 | L40: 0.4407330779 | M40: 0.4816957629 | N40: 0.3631039805 | O40: 0.8217097772 | P40: 0.2603334081 | Q40: 0.3476929436 | R40: 0.3708104099
F41: 2029 | G41: =G40 -> 0.4402523965 | H41: =H40 -> 0.505047153 | I41: 0.395821832 | J41: 0.4510603401 | K41: 0.4635324167 | L41: 0.4407330779 | M41: 0.4816957629 | N41: 0.3631039805 | O41: 0.8217097772 | P41: 0.2603334081 | Q41: 0.3476929436 | R41: 0.3708104099
F43: Revenue Split - Bundled
E44: Residential | F44: 2025 | G44: 1.053496072 | H44: 0.6825473013 | I44: 0.7011923278 | J44: 0.7011923321 | K44: 0.7011923321 | L44: 0.7011923321 | M44: 0.7011923321 | N44: 0.7011923304 | O44: 0.7065757 | P44: 0.6708887653 | Q44: 0.7011923321 | R44: 0.6708887652 | U44: =G44 -> 1.053496072
E45: Residential | F45: 2026 | G45: 1.052743733 | H45: 0.7019840025 | I45: 0.7154315839 | J45: 0.7154315841 | K45: 0.7154315841 | L45: 0.7154315841 | M45: 0.7154315841 | N45: 0.715431584 | O45: 0.7043649742 | P45: 0.6931292262 | Q45: 0.7154315842 | R45: 0.6931292261 | T45: =K59/K58-1 -> 0.04397781381 | U45: =G45 -> 1.052743733
E46: Residential | F46: 2027 | G46: 1.051885977 | H46: 0.7052333516 | I46: 0.7185930874 | J46: 0.7185930877 | K46: 0.7185930877 | L46: 0.7185930877 | M46: 0.7185930877 | N46: 0.7185930876 | O46: 0.7075991762 | P46: 0.6964333708 | Q46: 0.7185930878 | R46: 0.6964333707 | T46: =K60/K59-1 -> 0.04617692768 | U46: 1.051885977
E47: Residential | F47: 2028 | G47: 1.051659145 | H47: 0.7060985665 | I47: 0.7194346889 | J47: 0.7194346891 | K47: 0.7194346891 | L47: 0.7194346891 | M47: 0.7194346891 | N47: 0.719434689 | O47: 0.7084603176 | P47: 0.6973133296 | Q47: 0.7194346892 | R47: 0.6973133295 | T47: 0.02226113612 | U47: 1.051659145
E48: Residential | F48: 2029 | G48: =G47 -> 1.051659145 | H48: =H47 -> 0.7060985665 | I48: 0.7194346889 | J48: 0.7194346891 | K48: 0.7194346891 | L48: 0.7194346891 | M48: 0.7194346891 | N48: 0.719434689 | O48: 0.7084603176 | P48: 0.6973133296 | Q48: 0.7194346892 | R48: 0.6973133295 | T48: 0 | U48: 1.051659145
E49: Residential | T49: -1 | U49: 0
E50: Total System | F50: 2025 | G50: 1.048411398 | H50: 0.6497133295 | I50: 0.6283028798 | J50: 0.6429155899 | K50: 0.6409526177 | L50: 0.6386900347 | M50: 0.6641776383 | N50: 0.6532230564 | O50: 0.6916053708 | P50: 0.6118326262 | Q50: 0.6283028839 | R50: 0.6226235037 | U50: 1.048411398
E51: Total System | F51: 2026 | G51: 1.048911533 | H51: 0.6592929074 | I51: 0.6388478166 | J51: 0.6529089711 | K51: 0.6517847762 | L51: 0.6492572883 | M51: 0.6742723722 | N51: 0.6405194042 | O51: 0.6841793971 | P51: 0.6232553568 | Q51: 0.6388478175 | R51: 0.6341621376 | T51: =K65/K64-1 -> 0.03362369559 | U51: 1.048911533
E52: Total System | F52: 2027 | G52: 1.048064364 | H52: 0.6603819419 | I52: 0.5896210369 | J52: 0.6539836176 | K52: 0.6530372504 | L52: 0.6586178472 | M52: 0.675436885 | N52: 0.6415577188 | O52: 0.6874004682 | P52: 0.6238492509 | Q52: 0.6398436554 | R52: 0.63471617 | T52: =K66/K65-1 -> 0.04617692768 | U52: 1.048064364
E53: Total System | F53: 2028 | G53: 1.048098118 | H53: 0.660057117 | I53: 0.5904506491 | J53: 0.6538815691 | K53: 0.6530164509 | L53: 0.6584095896 | M53: 0.6753821455 | N53: 0.6414373936 | O53: 0.6882773304 | P53: 0.6235275451 | Q53: 0.6397040368 | R53: 0.6343836857 | T53: 0.02226113612 | U53: 1.048098118
E54: Total System | F54: 2029 | G54: =G53 -> 1.048098118 | H54: =H53 -> 0.660057117 | I54: 0.5904506491 | J54: 0.6538815691 | K54: 0.6530164509 | L54: 0.6584095896 | M54: 0.6753821455 | N54: 0.6414373936 | O54: 0.6882773304 | P54: 0.6235275451 | Q54: 0.6397040368 | R54: 0.6343836857 | T54: 0 | U54: 1.048098118
E55: Total System | T55: -1 | U55: 0
F57: System Sales | J57: Bundled Sales | L57: % of Bdl | N57: System Sales | Q57: CARE%
E58: Non-CARE Residential | F58: =$F$37 -> 2025 | G58: 18361053.62 | I58: Residential | J58: =$F$37 -> 2025 | K58: 18735934.09 | L58: =K58/O58 -> 0.7011923321 | M58: Residential | N58: =$F$37 -> 2025 | O58: 26720106.92 | Q58: =1-G58/O58 -> 0.3128375693
E59: Non-CARE Residential | F59: =$F$38 -> 2026 | G59: 18114893.21 | I59: Residential | J59: =$F$38 -> 2026 | K59: 19559899.51 | L59: 0.7154315841 | M59: Residential | N59: =$F$38 -> 2026 | O59: 27340000 | Q59: 0.337421609
E60: Non-CARE Residential | F60: =$F$39 -> 2027 | G60: 19184891.08 | I60: Residential | J60: =$F$39 -> 2027 | K60: 20463115.57 | L60: 0.7185930877 | M60: Residential | N60: =$F$39 -> 2027 | O60: 28476638.48 | Q60: 0.3262936884
E61: Non-CARE Residential | F61: =$F$40 -> 2028 | G61: 19420132.18 | I61: Residential | J61: =$F$40 -> 2028 | K61: 20918647.78 | L61: 0.7194346891 | M61: Residential | N61: =$F$40 -> 2028 | O61: 29076507 | Q61: =1-G61/O61 -> 0.3321022991
E62: Non-CARE Residential | F62: =$F$41 -> 2029 | G62: =G61 -> 19420132.18 | I62: Residential | J62: =$F$41 -> 2029 | K62: =K61 -> 20918647.78 | L62: =K62/O62 -> 0.7194346891 | M62: Residential | N62: =$F$41 -> 2029 | O62: =O61 -> 29076507 | Q62: =1-G62/O62 -> 0.3321022991
E63: Non-CARE Residential
E64: Non-Exempt Sales | F64: =$F$37 -> 2025 | G64: 70344975.44 | I64: Total System | J64: 2025 | K64: 49720524.25 | L64: 0.628302884 | M64: Total System | N64: 2025 | O64: 79134642.73
E65: Non-Exempt Sales | F65: =$F$38 -> 2026 | G65: 70795908.28 | I65: Total System | J65: =$F$38 -> 2026 | K65: 51392312.02 | L65: 0.6388478176 | M65: Total System | N65: =$F$38 -> 2026 | O65: 80445312.02 | P65: =O65/O64-1 -> 0.01656252239
E66: Non-Exempt Sales | F66: =$F$39 -> 2027 | G66: 73970645.71 | I66: Total System | J66: =$F$39 -> 2027 | K66: 53765451.1 | L66: 0.6424349163 | M66: Total System | N66: =$F$39 -> 2027 | O66: 83690113.56 | P66: 0.04033549568
E67: Non-Exempt Sales | F67: =$F$40 -> 2028 | G67: 75325448.63 | I67: Total System | J67: =$F$40 -> 2028 | K67: 54962331.12 | L67: 0.6433912525 | M67: Total System | N67: =$F$40 -> 2028 | O67: 85425984.44 | P67: 0.02074164806
E68: Non-Exempt Sales | F68: =$F$41 -> 2029 | G68: =G67 -> 75325448.63 | I68: Total System | J68: =$F$41 -> 2029 | K68: =K67 -> 54962331.12 | L68: =K68/O68 -> 0.6433912525 | M68: Total System | N68: =$F$41 -> 2029 | O68: =O67 -> 85425984.44 | P68: =O68/O67-1 -> 0
J71: =Summary!D3 -> 2025 | K71: =VLOOKUP(Summary!D3,'SAR and RAR'!J58:K63,2,FALSE) -> 18735934.09 | N71: =Summary!D3 -> 2025 | O71: =VLOOKUP(Summary!D3,'SAR and RAR'!N58:O63,2,FALSE) -> 26720106.92
J72: % of Resl Sales (Bdl) | N72: % of Resl Sales (Sys)
J73: =$F$37 -> 2025 | K73: =K58/K64 -> 0.3768249505 | N73: =$F$37 -> 2025 | O73: =O58/O64 -> 0.3376537254
J74: =$F$38 -> 2026 | K74: 0.3805997189 | N74: =$F$38 -> 2026 | O74: 0.3398582131
J75: =$F$39 -> 2027 | K75: 0.3805997189 | N75: =$F$39 -> 2027 | O75: 0.340262873
J76: =$F$40 -> 2028 | K76: 0.3805997189 | N76: =$F$40 -> 2028 | O76: 0.3403707571
J77: =$F$41 -> 2029 | K77: 0.3805997189 | N77: =$F$41 -> 2029 | O77: 0.3403707571

Sheet Res Bill Impact (hidden)
A1: CONFIDENTIAL The Attachment(s) Are Marked Confidential In Accordance With D. 16-08-024 and D. 17-09-023. Basis for Confidentiality In Accompanying Confidentiality Declaration.
E3: Schedule D | O3: Schedule D-CARE
E4: =Summary!N4 -> 2025 | F4: =Summary!N3 -> 2025-06-01 | G4: Proposed | H4: Proposed | I4: Proposed | J4: Proposed | O4: =Summary!N4 -> 2025 | P4: =Summary!N3 -> 2025-06-01 | Q4: Proposed | R4: Proposed | S4: Proposed | T4: Proposed
E5: Sales Forecast | F5: Rates | G5: Authorized Rates | H5: Authorized Revenue | I5: w/Pending Rates | J5: w/Pending Revenue | O5: Sales Forecast | P5: Rates | Q5: Authorized Rates | R5: Authorized Revenue | S5: w/Pending Rates | T5: w/Pending Revenue
D7: Baseline - Summer | E7: =HLOOKUP(E$4,$F$95:$K$105,$A97,FALSE) -> 3085.670937 | F7: 0.32381 | G7: =(W8-SUM(R14:R15,H14:H15))/SUM(SUM(E7:E8),F9/F7*SUM(E9:E10),F11/F7*SUM(E11:E12),SUM(O7:O8)*(1+(P7/F7-1)),SUM(O9:O10)*(1+(P9/F9-1))*F9/F7,SUM(O11:O12)*(1+(P11/F11-1))*F11/F7) -> 0.3344394007 | H7: =E7*G7 -> 1031.969939 | I7: =(W9-SUM(T14:T15,J14:J15))/SUM(SUM(E7:E8),F9/F7*SUM(E9:E10),F11/F7*SUM(E11:E12),SUM(O7:O8)*(1+(P7/F7-1)),SUM(O9:O10)*(1+(P9/F9-1))*F9/F7,SUM(O11:O12)*(1+(P11/F11-1))*F11/F7) -> 0.3711644597 | J7: =E7*I7 -> 1145.291386 | N7: Baseline - Summer | O7: =HLOOKUP(O$4,$M$95:$R$105,$A97,FALSE) -> 1783.360129 | P7: 0.20347 | Q7: =G7*(1+(P7/F7-1)) -> 0.2101491148 | R7: =O7*Q7 -> 374.7715524 | S7: =I7*(1+(P7/F7-1)) -> 0.2332257577 | T7: =O7*S7 -> 415.9255174 | V7: Bundled Residential Rev Req
D8: - Winter | E8: 4290.291273 | F8: 0.32381 | G8: =G7 -> 0.3344394007 | H8: 1434.842442 | I8: =I7 -> 0.3711644597 | J8: 1592.403642 | N8: - Winter | O8: 2747.277654 | P8: 0.20347 | Q8: =G8*(1+(P8/F8-1)) -> 0.2101491148 | R8: 577.337967 | S8: 0.2332257577 | T8: 640.7359126 | V8: Proposed (Authorized) | W8: ='SAR and RAR'!S19/1000-'SAR and RAR'!S22/1000+$W$6 -> 6093.048402
D9: 101% - 400% of Baseline - Summer | E9: 1911.92882 | F9: 0.41631 | G9: =F9/F$7*G$7 -> 0.4299758095 | H9: 822.0831423 | I9: =F9/F$7*I$7 -> 0.4771917983 | J9: 912.356752 | N9: 101% - 400% of Baseline - Summer | O9: 745.4907551 | P9: 0.26591 | Q9: 0.2746387728 | R9: 204.7406661 | S9: 0.3047970769 | T9: 227.223403 | V9: Proposed (w/Pending) | W9: ='SAR and RAR'!T19/1000-'SAR and RAR'!T22/1000+$W$6 -> 6758.747648
D10: - Winter | E10: 2615.804258 | F10: 0.41631 | G10: =G9 -> 0.4299758095 | H10: 1124.732553 | I10: =I9 -> 0.4771917983 | J10: 1248.240338 | N10: - Winter | O10: 1112.023766 | P10: 0.26591 | Q10: 0.2746387728 | R10: 305.4048425 | S10: 0.3047970769 | T10: 338.9415934
D11: 401% of Baseline - Summer | E11: 151.6325582 | F11: 0.41631 | G11: =F11/F$7*G$7 -> 0.4299758095 | H11: 65.19833197 | I11: =F11/F$7*I$7 -> 0.4771917983 | J11: 72.35781313 | N11: 401% of Baseline - Summer | O11: 8.477005966 | P11: 0.26591 | Q11: 0.2746387728 | R11: 2.328114516 | S11: 0.3047970769 | T11: 2.583766639
D12: - Winter | E12: 262.8967474 | F12: 0.41631 | G12: =G11 -> 0.4299758095 | H12: 113.0392418 | I12: =I11 -> 0.4771917983 | J12: 125.4521717 | N12: - Winter | O12: 21.08018443 | P12: 0.26591 | Q12: 0.2746387728 | R12: 5.789435984 | S12: 0.3047970769 | T12: 6.425178596
D14: Basic Charge - Single-Family Residence | E14: =HLOOKUP(E$4,$F$95:$K$106,$A104,FALSE) -> 18879671.95 | F14: 0.031 | G14: =F14 -> 0.031 | H14: =G14*E14*365/12/10^6 -> 17.80195734 | I14: =G14 -> 0.031 | J14: =I14*E14*365/12/10^6 -> 17.80195734 | N14: Basic Charge - Single-Family Residence | O14: =HLOOKUP(O$4,$M$95:$R$105,$A104,FALSE) -> 6433922.126 | P14: 0.021 | Q14: =P14 -> 0.021 | R14: =Q14*O14*365/12/10^6 -> 4.109667758 | S14: =Q14 -> 0.021 | T14: =S14*O14*365/12/10^6 -> 4.109667758
D15: Basic Charge - Multi-Family Residence | E15: =HLOOKUP(E$4,$F$95:$K$106,$A105,FALSE) -> 8588406.524 | F15: 0.024 | G15: =F15 -> 0.024 | H15: =G15*E15*365/12/10^6 -> 6.269536763 | I15: =G15 -> 0.024 | J15: =I15*E15*365/12/10^6 -> 6.269536763 | N15: Basic Charge - Multi-Family Residence | O15: =HLOOKUP(O$4,$M$95:$R$105,$A105,FALSE) -> 5402078.398 | P15: 0.016 | Q15: =P15 -> 0.016 | R15: =Q15*O15*365/12/10^6 -> 2.629011487 | S15: =Q15 -> 0.016 | T15: =S15*O15*365/12/10^6 -> 2.629011487
O19: 2024 Recorded Data - Average Monthly Usage - kWh (Bundled / Basic Service Only) | W19: 2024 Recorded Data - Average Monthly Usage - kWh (Bundled / All Electric Only)
B20: SCHEDULE D RATES ($/kWh) | E20: Proposed | F20: Proposed | H20: MONTHLY BASELINE QUANTITIES | I20: BASIC | K20: ALL-ELECTRIC | O20: Climate Zone | P20: Summer | Q20: Winter | R20: Summer | S20: Winter | T20: Sample Population Weight | W20: Climate Zone | X20: Summer | Y20: Winter | Z20: Summer | AA20: Winter | AB20: Sample Population Weight
B21: Rates | C21: Jan 2025 | D21: =Summary!N3 -> 2025-06-01 | E21: Authorized | F21: w/Pending | H21: Climate Zone | I21: Summer | J21: Winter | K21: Summer | L21: Winter | P21: Non-CARE | R21: CARE | T21: Non-CARE | U21: CARE | X21: Non-CARE | Z21: CARE | AB21: Non-CARE | AC21: CARE
B22: Tier 1 | C22: 0.33308 | D22: =F7 -> 0.32381 | E22: =G7 -> 0.3344394007 | F22: =I7 -> 0.3711644597 | H22: 5 warm | I22: =17*$O$32 -> 517.089 | J22: =18.4*$O$32 -> 559.6728 | K22: =16.8*$O$32 -> 511.0056 | L22: =27*$O$32 -> 821.259 | O22: 5 warm | P22: 395.5552996 | Q22: 410.4255495 | R22: 370.5382517 | S22: 352.8129705 | T22: 0.000391559287 | U22: 5.780756421e-05 | W22: 5 warm | X22: 395.0513658 | Y22: 472.3532524 | Z22: 354.0301735 | AA22: 430.0455986 | AB22: 0.0003215327132 | AC22: 0.0001643349365
B23: Tier 2 | C23: 0.42821 | D23: =F9 -> 0.41631 | E23: =G9 -> 0.4299758095 | F23: =I9 -> 0.4771917983 | H23: 6 cool | I23: =11.4*$O$32 -> 346.7538 | J23: =11*$O$32 -> 334.587 | K23: =8.7*$O$32 -> 264.6279 | L23: =12.6*$O$32 -> 383.2542 | O23: 6 cool | P23: 441.3631683 | Q23: 378.5967426 | R23: 403.4336933 | S23: 346.7408462 | T23: 0.175728545 | U23: 0.06241911603 | W23: 6 cool | X23: 333.6664732 | Y23: 330.2803509 | Z23: 364.4793275 | AA23: 373.6317841 | AB23: 0.2756588649 | AC23: 0.1336590817
B24: Tier 2 | C24: 0.42821 | D24: =F11 -> 0.41631 | E24: =G11 -> 0.4299758095 | F24: =I11 -> 0.4771917983 | H24: 8 cool | I24: =12.8*$O$32 -> 389.3376 | J24: =10.3*$O$32 -> 313.2951 | K24: =9.9*$O$32 -> 301.1283 | L24: =12.3*$O$32 -> 374.1291 | O24: 8 cool | P24: 568.4975767 | Q24: 397.6071315 | R24: 503.0842528 | S24: 372.8283632 | T24: 0.2213136597 | U24: 0.1553419784 | W24: 8 cool | X24: 395.5847708 | Y24: 347.0862508 | Z24: 414.4144944 | AA24: 370.2534605 | AB24: 0.2319803089 | AC24: 0.1999079724
H25: 9 warm | I25: =16.9*$O$32 -> 514.0473 | J25: =12*$O$32 -> 365.004 | K25: =12.5*$O$32 -> 380.2125 | L25: =13.9*$O$32 -> 422.7963 | O25: 9 warm | P25: 736.1896342 | Q25: 454.0542708 | R25: 685.496621 | S25: 424.2446352 | T25: 0.1275808923 | U25: 0.0946365769 | W25: 9 warm | X25: 530.8275233 | Y25: 380.1763947 | Z25: 510.0101939 | AA25: 375.6663006 | AB25: 0.08053285732 | AC25: 0.08292340896
B26: SCHEDULE D-CARE RATES ($/kWh) | E26: Proposed | F26: Proposed | H26: 10 hot (Sec 745) | I26: =19.3*$O$32 -> 587.0481 | J26: =12.1*$O$32 -> 368.0457 | K26: =15.9*$O$32 -> 483.6303 | L26: =16.4*$O$32 -> 498.8388 | O26: 10 hot (Sec 745) | P26: 857.9526651 | Q26: 482.0306437 | R26: 918.4083871 | S26: 499.6563415 | T26: 0.3013940598 | U26: 0.4075638401 | W26: 10 hot (Sec 745) | X26: 627.4953074 | Y26: 427.1016506 | Z26: 660.3259927 | AA26: 426.1138274 | AB26: 0.2614116395 | AC26: 0.3672447605
B27: Rates | C27: =C21 -> Jan 2025 | D27: =D21 -> 2025-06-01 | E27: Authorized | F27: w/Pending | H27: 13 hot | I27: =22.2*$O$32 -> 675.2574 | J27: =12.2*$O$32 -> 371.0874 | K27: =24.2*$O$32 -> 736.0914 | L27: =23*$O$32 -> 699.591 | O27: 13 hot | P27: 995.7412826 | Q27: 488.3574385 | R27: 1027.53491 | S27: 485.942318 | T27: 0.04959424669 | U27: 0.1129503862 | W27: 13 hot | X27: 965.9846505 | Y27: 574.7150255 | Z27: 962.9031858 | AA27: 549.7168372 | AB27: 0.03106116883 | AC27: 0.06378386669
B28: Tier 1 | C28: 0.20878 | D28: =P7 -> 0.20347 | E28: =Q7 -> 0.2101491148 | F28: =S7 -> 0.2332257577 | H28: 14 hot | I28: =19.2*$O$32 -> 584.0064 | J28: =11.9*$O$32 -> 361.9623 | K28: =18.5*$O$32 -> 562.7145 | L28: =21.1*$O$32 -> 641.7987 | O28: 14 hot | P28: 835.9220396 | Q28: 473.45593 | R28: 933.1504328 | S28: 527.5764602 | T28: 0.06232862483 | U28: 0.1067631121 | W28: 14 hot | X28: 756.0211147 | Y28: 556.7004427 | Z28: 880.8399974 | AA28: 657.7029793 | AB28: 0.04437151442 | AC28: 0.07098173691
B29: Tier 2 | C29: 0.27299 | D29: =P9 -> 0.26591 | E29: =Q9 -> 0.2746387728 | F29: =S9 -> 0.3047970769 | H29: 15 hot | I29: =45*$O$32 -> 1368.765 | J29: =9.7*$O$32 -> 295.0449 | K29: =24*$O$32 -> 730.008 | L29: =17.4*$O$32 -> 529.2558 | O29: 15 hot | P29: 1219.397003 | Q29: 540.766029 | R29: 1360.59217 | S29: 535.5743293 | T29: 0.03219052405 | U29: 0.03515632284 | W29: 15 hot | X29: 924.9686507 | Y29: 451.6365116 | Z29: 1114.196822 | AA29: 520.3020094 | AB29: 0.03508032774 | AC29: 0.05084522936
B30: Tier 2 | C30: 0.27299 | D30: =P11 -> 0.26591 | E30: =Q12 -> 0.2746387728 | F30: =S12 -> 0.3047970769 | H30: 16 cool | I30: =14.7*$O$32 -> 447.1299 | J30: =12.4*$O$32 -> 377.1708 | K30: =13.5*$O$32 -> 410.6295 | L30: =23.2*$O$32 -> 705.6744 | O30: 16 cool | P30: 565.1396542 | Q30: 416.659723 | R30: 776.7883471 | S30: 493.603768 | T30: 0.02947788832 | U30: 0.02511085999 | W30: 16 cool | X30: 449.8471198 | Y30: 538.6630052 | Z30: 698.918731 | AA30: 570.1108274 | AB30: 0.03958178573 | AC30: 0.03048960855
N32: Daily to Monthly Conversion Factor | O32: 30.417
C34: NON-CARE | M34: Essential Use (Basic) - Non-CARE | W34: Essential Use (Basic) - CARE
C35: =C27 -> Jan 2025 | E35: =D27 -> 2025-06-01 | G35: =E21 -> Authorized | I35: =F21 -> w/Pending | M35: =C35 -> Jan 2025 | O35: =E35 -> 2025-06-01 | Q35: =G35 -> Authorized | S35: =I35 -> w/Pending | W35: =M35 -> Jan 2025 | Y35: =O35 -> 2025-06-01 | AA35: =Q35 -> Authorized | AC35: =S35 -> w/Pending
C36: Summer | D36: Winter | E36: Summer | F36: Winter | G36: Summer | H36: Winter | I36: Summer | J36: Winter | M36: Summer | N36: Winter | O36: Summer | P36: Winter | Q36: Summer | R36: Winter | S36: Summer | T36: Winter | W36: Summer | X36: Winter | Y36: Summer | Z36: Winter | AA36: Summer | AB36: Winter | AC36: Summer | AD36: Winter
B37: 5 warm | C37: =C$22*MIN(I22,P22)+IF(P22-I22>0,C$23*(P22-I22))+ROUND($F$14*365/12,2)+(Summary!N19/12)*2 -> 123.3582259 | D37: =C$22*MIN(J22,Q22)+IF(Q22-J22>0,C$23*(Q22-J22))+ROUND($F$14*365/12,2)+(Summary!N19/12)*2 -> 128.3112087 | E37: =D$22*MIN(I22,P22)+IF(P22-I22>0,D$23*(P22-I22))+ROUND($F$14*365/12,2)+(Summary!N19/12)*2 -> 119.6914282 | F37: =D$22*MIN(J22,Q22)+IF(Q22-J22>0,D$23*(Q22-J22))+ROUND($F$14*365/12,2)+(Summary!N19/12)*2 -> 124.5065638 | G37: =E$22*MIN(I22,P22)+IF(P22-I22>0,E$23*(P22-I22))+ROUND($F$14*365/12,2)+(Summary!N19/12)*2 -> 123.895944 | H37: =E$22*MIN(J22,Q22)+IF(Q22-J22>0,E$23*(Q22-J22))+ROUND($F$14*365/12,2)+(Summary!N19/12)*2 -> 128.8691414 | I37: =F$22*MIN(I22,P22)+IF(P22-I22>0,F$23*(P22-I22))+ROUND($F$14*365/12,2)+(Summary!N19/12)*2 -> 138.4227357 | J37: =F$22*MIN(J22,Q22)+IF(Q22-J22>0,F$23*(Q22-J22))+ROUND($F$14*365/12,2)+(Summary!N19/12)*2 -> 143.942044 | L37: 5 warm | M37: =C$22*I22+ROUND($F$14*365/12,2)+(Summary!N19/12)*2 -> 163.8386708 | N37: =C$22*J22+ROUND($F$14*365/12,2)+(Summary!N19/12)*2 -> 178.0224829 | O37: =D$22*I22+ROUND($F$14*365/12,2)+(Summary!N19/12)*2 -> 159.0452558 | P37: =D$22*J22+ROUND($F$14*365/12,2)+(Summary!N19/12)*2 -> 172.834316 | Q37: =E$22*I22+ROUND($F$14*365/12,2)+(Summary!N19/12)*2 -> 164.5416019 | R37: =E$22*J22+ROUND($F$14*365/12,2)+(Summary!N19/12)*2 -> 178.7833025 | S37: =F$22*I22+ROUND($F$14*365/12,2)+(Summary!N19/12)*2 -> 183.531726 | T37: =F$22*J22+ROUND($F$14*365/12,2)+(Summary!N19/12)*2 -> 199.3373191 | V37: 5 warm | W37: =C$28*I22+ROUND($P$14*365/12,2)+(Summary!N19/12)*2 -> 99.26450809 | X37: =C$28*J22+ROUND($P$14*365/12,2)+(Summary!N19/12)*2 -> 108.1551539 | Y37: =D$28*I22+ROUND($P$14*365/12,2)+(Summary!N19/12)*2 -> 96.5187655 | Z37: =D$28*J22+ROUND($P$14*365/12,2)+(Summary!N19/12)*2 -> 105.1832913 | AA37: =E$28*I22+ROUND($P$14*365/12,2)+(Summary!N19/12)*2 -> 99.97246227 | AB37: =E$28*J22+ROUND($P$14*365/12,2)+(Summary!N19/12)*2 -> 108.9214101 | AC37: =F$28*I22+ROUND($P$14*365/12,2)+(Summary!N19/12)*2 -> 111.9051405 | AD37: =F$28*J22+ROUND($P$14*365/12,2)+(Summary!N19/12)*2 -> 121.8367795
B38: 6 cool | C38: =C$22*MIN(I23,P23)+IF(P23-I23>0,C$23*(P23-I23))+ROUND($F$14*365/12,2)+(Summary!N19/12)*2 -> 147.6161 | D38: =C$22*MIN(J23,Q23)+IF(Q23-J23>0,C$23*(Q23-J23))+ROUND($F$14*365/12,2)+(Summary!N19/12)*2 -> 121.8963165 | E38: =D$22*MIN(I23,P23)+IF(P23-I23>0,D$23*(P23-I23))+ROUND($F$14*365/12,2)+(Summary!N19/12)*2 -> 143.2758408 | F38: =D$22*MIN(J23,Q23)+IF(Q23-J23>0,D$23*(Q23-J23))+ROUND($F$14*365/12,2)+(Summary!N19/12)*2 -> 118.2709791 | G38: =E$22*MIN(I23,P23)+IF(P23-I23>0,E$23*(P23-I23))+ROUND($F$14*365/12,2)+(Summary!N19/12)*2 -> 148.2545394 | H38: =E$22*MIN(J23,Q23)+IF(Q23-J23>0,E$23*(Q23-J23))+ROUND($F$14*365/12,2)+(Summary!N19/12)*2 -> 122.4288671 | I38: =F$22*MIN(I23,P23)+IF(P23-I23>0,F$23*(P23-I23))+ROUND($F$14*365/12,2)+(Summary!N19/12)*2 -> 165.4561681 | J38: =F$22*MIN(J23,Q23)+IF(Q23-J23>0,F$23*(Q23-J23))+ROUND($F$14*365/12,2)+(Summary!N19/12)*2 -> 136.7945579 | L38: 6 cool | M38: =C$22*I23+ROUND($F$14*365/12,2)+(Summary!N19/12)*2 -> 107.1034224 | N38: =C$22*J23+ROUND($F$14*365/12,2)+(Summary!N19/12)*2 -> 103.0509046 | O38: =D$22*I23+ROUND($F$14*365/12,2)+(Summary!N19/12)*2 -> 103.8890146 | P38: =D$22*J23+ROUND($F$14*365/12,2)+(Summary!N19/12)*2 -> 99.94928314 | Q38: =E$22*I23+ROUND($F$14*365/12,2)+(Summary!N19/12)*2 -> 107.5747997 | R38: =E$22*J23+ROUND($F$14*365/12,2)+(Summary!N19/12)*2 -> 103.5057424 | S38: =F$22*I23+ROUND($F$14*365/12,2)+(Summary!N19/12)*2 -> 120.3093535 | T38: =F$22*J23+ROUND($F$14*365/12,2)+(Summary!N19/12)*2 -> 115.7934697 | V38: 6 cool | W38: =C$28*I23+ROUND($P$14*365/12,2)+(Summary!N19/12)*2 -> 63.70192503 | X38: =C$28*J23+ROUND($P$14*365/12,2)+(Summary!N19/12)*2 -> 61.16174053 | Y38: =D$28*I23+ROUND($P$14*365/12,2)+(Summary!N19/12)*2 -> 61.86066235 | Z38: =D$28*J23+ROUND($P$14*365/12,2)+(Summary!N19/12)*2 -> 59.38508356 | AA38: =E$28*I23+ROUND($P$14*365/12,2)+(Summary!N19/12)*2 -> 64.17667078 | AB38: =E$28*J23+ROUND($P$14*365/12,2)+(Summary!N19/12)*2 -> 61.61982853 | AC38: =F$28*I23+ROUND($P$14*365/12,2)+(Summary!N19/12)*2 -> 72.17858442 | AD38: =F$28*J23+ROUND($P$14*365/12,2)+(Summary!N19/12)*2 -> 69.34097327
B39: 8 cool | C39: =C$22*MIN(I24,P24)+IF(P24-I24>0,C$23*(P24-I24))+ROUND($F$14*365/12,2)+(Summary!N19/12)*2 -> 198.0053281 | D39: =C$22*MIN(J24,Q24)+IF(Q24-J24>0,C$23*(Q24-J24))+ROUND($F$14*365/12,2)+(Summary!N19/12)*2 -> 132.0622536 | E39: =D$22*MIN(I24,P24)+IF(P24-I24>0,D$23*(P24-I24))+ROUND($F$14*365/12,2)+(Summary!N19/12)*2 -> 192.2641648 | F39: =D$22*MIN(J24,Q24)+IF(Q24-J24>0,D$23*(Q24-J24))+ROUND($F$14*365/12,2)+(Summary!N19/12)*2 -> 128.1546948 | G39: =E$22*MIN(I24,P24)+IF(P24-I24>0,E$23*(P24-I24))+ROUND($F$14*365/12,2)+(Summary!N19/12)*2 -> 198.8509563 | H39: =E$22*MIN(J24,Q24)+IF(Q24-J24>0,E$23*(Q24-J24))+ROUND($F$14*365/12,2)+(Summary!N19/12)*2 -> 132.6370261 | I39: =F$22*MIN(I24,P24)+IF(P24-I24>0,F$23*(P24-I24))+ROUND($F$14*365/12,2)+(Summary!N19/12)*2 -> 221.608618 | J39: =F$22*MIN(J24,Q24)+IF(Q24-J24>0,F$23*(Q24-J24))+ROUND($F$14*365/12,2)+(Summary!N19/12)*2 -> 148.1236831 | L39: 8 cool | M39: =C$22*I24+ROUND($F$14*365/12,2)+(Summary!N19/12)*2 -> 121.2872345 | N39: =C$22*J24+ROUND($F$14*365/12,2)+(Summary!N19/12)*2 -> 95.95899857 | O39: =D$22*I24+ROUND($F$14*365/12,2)+(Summary!N19/12)*2 -> 117.6780749 | P39: =D$22*J24+ROUND($F$14*365/12,2)+(Summary!N19/12)*2 -> 93.054753 | Q39: =E$22*I24+ROUND($F$14*365/12,2)+(Summary!N19/12)*2 -> 121.8165003 | R39: =E$22*J24+ROUND($F$14*365/12,2)+(Summary!N19/12)*2 -> 96.38489214 | S39: =F$22*I24+ROUND($F$14*365/12,2)+(Summary!N19/12)*2 -> 136.1149466 | T39: =F$22*J24+ROUND($F$14*365/12,2)+(Summary!N19/12)*2 -> 107.8906732 | V39: 8 cool | W39: =C$28*I24+ROUND($P$14*365/12,2)+(Summary!N19/12)*2 -> 72.59257079 | X39: =C$28*J24+ROUND($P$14*365/12,2)+(Summary!N19/12)*2 -> 56.71641764 | Y39: =D$28*I24+ROUND($P$14*365/12,2)+(Summary!N19/12)*2 -> 70.52518814 | Z39: =D$28*J24+ROUND($P$14*365/12,2)+(Summary!N19/12)*2 -> 55.05282066 | AA39: =E$28*I24+ROUND($P$14*365/12,2)+(Summary!N19/12)*2 -> 73.12561865 | AB39: =E$28*J24+ROUND($P$14*365/12,2)+(Summary!N19/12)*2 -> 57.14535459 | AC39: =F$28*I24+ROUND($P$14*365/12,2)+(Summary!N19/12)*2 -> 82.11022344 | AD39: =F$28*J24+ROUND($P$14*365/12,2)+(Summary!N19/12)*2 -> 64.37515376
B40: 9 warm | C40: =C$22*MIN(I25,P25)+IF(P25-I25>0,C$23*(P25-I25))+ROUND($F$14*365/12,2)+(Summary!N19/12)*2 -> 257.9491103 | D40: =C$22*MIN(J25,Q25)+IF(Q25-J25>0,C$23*(Q25-J25))+ROUND($F$14*365/12,2)+(Summary!N19/12)*2 -> 151.3144154 | E40: =D$22*MIN(I25,P25)+IF(P25-I25>0,D$23*(P25-I25))+ROUND($F$14*365/12,2)+(Summary!N19/12)*2 -> 250.540398 | F40: =D$22*MIN(J25,Q25)+IF(Q25-J25>0,D$23*(Q25-J25))+ROUND($F$14*365/12,2)+(Summary!N19/12)*2 -> 146.8711301 | G40: =E$22*MIN(I25,P25)+IF(P25-I25>0,E$23*(P25-I25))+ROUND($F$14*365/12,2)+(Summary!N19/12)*2 -> 259.0401675 | H40: =E$22*MIN(J25,Q25)+IF(Q25-J25>0,E$23*(Q25-J25))+ROUND($F$14*365/12,2)+(Summary!N19/12)*2 -> 151.9678479 | I40: =F$22*MIN(I25,P25)+IF(P25-I25>0,F$23*(P25-I25))+ROUND($F$14*365/12,2)+(Summary!N19/12)*2 -> 288.4072549 | J40: =F$22*MIN(J25,Q25)+IF(Q25-J25>0,F$23*(Q25-J25))+ROUND($F$14*365/12,2)+(Summary!N19/12)*2 -> 169.577238 | L40: 9 warm | M40: =C$22*I25+ROUND($F$14*365/12,2)+(Summary!N19/12)*2 -> 162.8255414 | N40: =C$22*J25+ROUND($F$14*365/12,2)+(Summary!N19/12)*2 -> 113.182199 | O40: =D$22*I25+ROUND($F$14*365/12,2)+(Summary!N19/12)*2 -> 158.0603229 | P40: =D$22*J25+ROUND($F$14*365/12,2)+(Summary!N19/12)*2 -> 109.7986119 | Q40: =E$22*I25+ROUND($F$14*365/12,2)+(Summary!N19/12)*2 -> 163.5243376 | R40: =E$22*J25+ROUND($F$14*365/12,2)+(Summary!N19/12)*2 -> 113.6783857 | S40: =F$22*I25+ROUND($F$14*365/12,2)+(Summary!N19/12)*2 -> 182.402755 | T40: =F$22*J25+ROUND($F$14*365/12,2)+(Summary!N19/12)*2 -> 127.0831791 | V40: 9 warm | W40: =C$28*I25+ROUND($P$14*365/12,2)+(Summary!N19/12)*2 -> 98.62946196 | X40: =C$28*J25+ROUND($P$14*365/12,2)+(Summary!N19/12)*2 -> 67.51220179 | Y40: =D$28*I25+ROUND($P$14*365/12,2)+(Summary!N19/12)*2 -> 95.8998708 | Z40: =D$28*J25+ROUND($P$14*365/12,2)+(Summary!N19/12)*2 -> 65.57403055 | AA40: =E$28*I25+ROUND($P$14*365/12,2)+(Summary!N19/12)*2 -> 99.33325171 | AB40: =E$28*J25+ROUND($P$14*365/12,2)+(Summary!N19/12)*2 -> 68.01193415 | AC40: =F$28*I25+ROUND($P$14*365/12,2)+(Summary!N19/12)*2 -> 111.1957377 | AD40: =F$28*J25+ROUND($P$14*365/12,2)+(Summary!N19/12)*2 -> 76.43500114
B41: 10 hot (Sec 745) | C41: =C$22*MIN(I26,P26)+IF(P26-I26>0,C$23*(P26-I26))+ROUND($F$14*365/12,2)+(Summary!N19/12)*2 -> 303.1446916 | D41: =C$22*MIN(J26,Q26)+IF(Q26-J26>0,C$23*(Q26-J26))+ROUND($F$14*365/12,2)+(Summary!N19/12)*2 -> 163.0048212 | E41: =D$22*MIN(I26,P26)+IF(P26-I26>0,D$23*(P26-I26))+ROUND($F$14*365/12,2)+(Summary!N19/12)*2 -> 294.4789914 | F41: =D$22*MIN(J26,Q26)+IF(Q26-J26>0,D$23*(Q26-J26))+ROUND($F$14*365/12,2)+(Summary!N19/12)*2 -> 158.2366167 | G41: =E$22*MIN(I26,P26)+IF(P26-I26>0,E$23*(P26-I26))+ROUND($F$14*365/12,2)+(Summary!N19/12)*2 -> 304.4210911 | H41: =E$22*MIN(J26,Q26)+IF(Q26-J26>0,E$23*(Q26-J26))+ROUND($F$14*365/12,2)+(Summary!N19/12)*2 -> 163.7064184 | I41: =F$22*MIN(I26,P26)+IF(P26-I26>0,F$23*(P26-I26))+ROUND($F$14*365/12,2)+(Summary!N19/12)*2 -> 338.7714941 | J41: =F$22*MIN(J26,Q26)+IF(Q26-J26>0,F$23*(Q26-J26))+ROUND($F$14*365/12,2)+(Summary!N19/12)*2 -> 182.6048303 | L41: 10 hot (Sec 745) | M41: =C$22*I26+ROUND($F$14*365/12,2)+(Summary!N19/12)*2 -> 187.1406478 | N41: =C$22*J26+ROUND($F$14*365/12,2)+(Summary!N19/12)*2 -> 114.1953284 | O41: =D$22*I26+ROUND($F$14*365/12,2)+(Summary!N19/12)*2 -> 181.6987119 | P41: =D$22*J26+ROUND($F$14*365/12,2)+(Summary!N19/12)*2 -> 110.7835448 | Q41: =E$22*I26+ROUND($F$14*365/12,2)+(Summary!N19/12)*2 -> 187.9386814 | R41: =E$22*J26+ROUND($F$14*365/12,2)+(Summary!N19/12)*2 -> 114.69565 | S41: =F$22*I26+ROUND($F$14*365/12,2)+(Summary!N19/12)*2 -> 209.4980575 | T41: =F$22*J26+ROUND($F$14*365/12,2)+(Summary!N19/12)*2 -> 128.21215 | V41: 10 hot (Sec 745) | W41: =C$28*I26+ROUND($P$14*365/12,2)+(Summary!N19/12)*2 -> 113.870569 | X41: =C$28*J26+ROUND($P$14*365/12,2)+(Summary!N19/12)*2 -> 68.14724791 | Y41: =D$28*I26+ROUND($P$14*365/12,2)+(Summary!N19/12)*2 -> 110.7533436 | Z41: =D$28*J26+ROUND($P$14*365/12,2)+(Summary!N19/12)*2 -> 66.19292525 | AA41: =E$28*I26+ROUND($P$14*365/12,2)+(Summary!N19/12)*2 -> 114.6743052 | AB41: =E$28*J26+ROUND($P$14*365/12,2)+(Summary!N19/12)*2 -> 68.65114471 | AC41: =F$28*I26+ROUND($P$14*365/12,2)+(Summary!N19/12)*2 -> 128.2214046 | AD41: =F$28*J26+ROUND($P$14*365/12,2)+(Summary!N19/12)*2 -> 77.14440393
B42: 13 hot | C42: =C$22*MIN(I27,P27)+IF(P27-I27>0,C$23*(P27-I27))+ROUND($F$14*365/12,2)+(Summary!N19/12)*2 -> 353.7558048 | D42: =C$22*MIN(J27,Q27)+IF(Q27-J27>0,C$23*(Q27-J27))+ROUND($F$14*365/12,2)+(Summary!N19/12)*2 -> 165.4246611 | E42: =D$22*MIN(I27,P27)+IF(P27-I27>0,D$23*(P27-I27))+ROUND($F$14*365/12,2)+(Summary!N19/12)*2 -> 343.6824105 | F42: =D$22*MIN(J27,Q27)+IF(Q27-J27>0,D$23*(Q27-J27))+ROUND($F$14*365/12,2)+(Summary!N19/12)*2 -> 160.5891674 | G42: =E$22*MIN(I27,P27)+IF(P27-I27>0,E$23*(P27-I27))+ROUND($F$14*365/12,2)+(Summary!N19/12)*2 -> 355.2396637 | H42: =E$22*MIN(J27,Q27)+IF(Q27-J27>0,E$23*(Q27-J27))+ROUND($F$14*365/12,2)+(Summary!N19/12)*2 -> 166.1361941 | I42: =F$22*MIN(I27,P27)+IF(P27-I27>0,F$23*(P27-I27))+ROUND($F$14*365/12,2)+(Summary!N19/12)*2 -> 395.170495 | J42: =F$22*MIN(J27,Q27)+IF(Q27-J27>0,F$23*(Q27-J27))+ROUND($F$14*365/12,2)+(Summary!N19/12)*2 -> 185.3014216 | L42: 13 hot | M42: =C$22*I27+ROUND($F$14*365/12,2)+(Summary!N19/12)*2 -> 216.5214015 | N42: =C$22*J27+ROUND($F$14*365/12,2)+(Summary!N19/12)*2 -> 115.2084579 | O42: =D$22*I27+ROUND($F$14*365/12,2)+(Summary!N19/12)*2 -> 210.2617654 | P42: =D$22*J27+ROUND($F$14*365/12,2)+(Summary!N19/12)*2 -> 111.7684777 | Q42: =E$22*I27+ROUND($F$14*365/12,2)+(Summary!N19/12)*2 -> 217.4393468 | R42: =E$22*J27+ROUND($F$14*365/12,2)+(Summary!N19/12)*2 -> 115.7129143 | S42: =F$22*I27+ROUND($F$14*365/12,2)+(Summary!N19/12)*2 -> 242.2382147 | T42: =F$22*J27+ROUND($F$14*365/12,2)+(Summary!N19/12)*2 -> 129.341121 | V42: 13 hot | W42: =C$28*I27+ROUND($P$14*365/12,2)+(Summary!N19/12)*2 -> 132.2869066 | X42: =C$28*J27+ROUND($P$14*365/12,2)+(Summary!N19/12)*2 -> 68.78229404 | Y42: =D$28*I27+ROUND($P$14*365/12,2)+(Summary!N19/12)*2 -> 128.7012898 | Z42: =D$28*J27+ROUND($P$14*365/12,2)+(Summary!N19/12)*2 -> 66.81181994 | AA42: =E$28*I27+ROUND($P$14*365/12,2)+(Summary!N19/12)*2 -> 133.2114115 | AB42: =E$28*J27+ROUND($P$14*365/12,2)+(Summary!N19/12)*2 -> 69.29035528 | AC42: =F$28*I27+ROUND($P$14*365/12,2)+(Summary!N19/12)*2 -> 148.7940854 | AD42: =F$28*J27+ROUND($P$14*365/12,2)+(Summary!N19/12)*2 -> 77.85380671
B43: 14 hot | C43: =C$22*MIN(I28,P28)+IF(P28-I28>0,C$23*(P28-I28))+ROUND($F$14*365/12,2)+(Summary!N19/12)*2 -> 294.0003144 | D43: =C$22*MIN(J28,Q28)+IF(Q28-J28>0,C$23*(Q28-J28))+ROUND($F$14*365/12,2)+(Summary!N19/12)*2 -> 159.9117568 | E43: =D$22*MIN(I28,P28)+IF(P28-I28>0,D$23*(P28-I28))+ROUND($F$14*365/12,2)+(Summary!N19/12)*2 -> 285.588779 | F43: =D$22*MIN(J28,Q28)+IF(Q28-J28>0,D$23*(Q28-J28))+ROUND($F$14*365/12,2)+(Summary!N19/12)*2 -> 155.2295921 | G43: =E$22*MIN(I28,P28)+IF(P28-I28>0,E$23*(P28-I28))+ROUND($F$14*365/12,2)+(Summary!N19/12)*2 -> 295.2390481 | H43: =E$22*MIN(J28,Q28)+IF(Q28-J28>0,E$23*(Q28-J28))+ROUND($F$14*365/12,2)+(Summary!N19/12)*2 -> 160.6006851 | I43: =F$22*MIN(I28,P28)+IF(P28-I28>0,F$23*(P28-I28))+ROUND($F$14*365/12,2)+(Summary!N19/12)*2 -> 328.5811637 | J43: =F$22*MIN(J28,Q28)+IF(Q28-J28>0,F$23*(Q28-J28))+ROUND($F$14*365/12,2)+(Summary!N19/12)*2 -> 179.158054 | L43: 14 hot | M43: =C$22*I28+ROUND($F$14*365/12,2)+(Summary!N19/12)*2 -> 186.1275184 | N43: =C$22*J28+ROUND($F$14*365/12,2)+(Summary!N19/12)*2 -> 112.1690696 | O43: =D$22*I28+ROUND($F$14*365/12,2)+(Summary!N19/12)*2 -> 180.7137791 | P43: =D$22*J28+ROUND($F$14*365/12,2)+(Summary!N19/12)*2 -> 108.813679 | Q43: =E$22*I28+ROUND($F$14*365/12,2)+(Summary!N19/12)*2 -> 186.9214171 | R43: =E$22*J28+ROUND($F$14*365/12,2)+(Summary!N19/12)*2 -> 112.6611213 | S43: =F$22*I28+ROUND($F$14*365/12,2)+(Summary!N19/12)*2 -> 208.3690866 | T43: =F$22*J28+ROUND($F$14*365/12,2)+(Summary!N19/12)*2 -> 125.9542082 | V43: 14 hot | W43: =C$28*I28+ROUND($P$14*365/12,2)+(Summary!N19/12)*2 -> 113.2355229 | X43: =C$28*J28+ROUND($P$14*365/12,2)+(Summary!N19/12)*2 -> 66.87715566 | Y43: =D$28*I28+ROUND($P$14*365/12,2)+(Summary!N19/12)*2 -> 110.1344489 | Z43: =D$28*J28+ROUND($P$14*365/12,2)+(Summary!N19/12)*2 -> 64.95513585 | AA43: =E$28*I28+ROUND($P$14*365/12,2)+(Summary!N19/12)*2 -> 114.0350946 | AB43: =E$28*J28+ROUND($P$14*365/12,2)+(Summary!N19/12)*2 -> 67.37272359 | AC43: =F$28*I28+ROUND($P$14*365/12,2)+(Summary!N19/12)*2 -> 127.5120018 | AD43: =F$28*J28+ROUND($P$14*365/12,2)+(Summary!N19/12)*2 -> 75.72559835
B44: 15 hot | C44: =C$22*MIN(I29,P29)+IF(P29-I29>0,C$23*(P29-I29))+ROUND($F$14*365/12,2)+(Summary!N19/12)*2 -> 397.7634205 | D44: =C$22*MIN(J29,Q29)+IF(Q29-J29>0,C$23*(Q29-J29))+ROUND($F$14*365/12,2)+(Summary!N19/12)*2 -> 195.1004666 | E44: =D$22*MIN(I29,P29)+IF(P29-I29>0,D$23*(P29-I29))+ROUND($F$14*365/12,2)+(Summary!N19/12)*2 -> 386.4596103 | F44: =D$22*MIN(J29,Q29)+IF(Q29-J29>0,D$23*(Q29-J29))+ROUND($F$14*365/12,2)+(Summary!N19/12)*2 -> 189.4413189 | G44: =E$22*MIN(I29,P29)+IF(P29-I29>0,E$23*(P29-I29))+ROUND($F$14*365/12,2)+(Summary!N19/12)*2 -> 399.4210696 | H44: =E$22*MIN(J29,Q29)+IF(Q29-J29>0,E$23*(Q29-J29))+ROUND($F$14*365/12,2)+(Summary!N19/12)*2 -> 195.9354475 | I44: =F$22*MIN(I29,P29)+IF(P29-I29>0,F$23*(P29-I29))+ROUND($F$14*365/12,2)+(Summary!N19/12)*2 -> 444.2034965 | J44: =F$22*MIN(J29,Q29)+IF(Q29-J29>0,F$23*(Q29-J29))+ROUND($F$14*365/12,2)+(Summary!N19/12)*2 -> 218.372955 | L44: 15 hot | M44: =C$22*I29+ROUND($F$14*365/12,2)+(Summary!N19/12)*2 -> 447.5149129 | N44: =C$22*J29+ROUND($F$14*365/12,2)+(Summary!N19/12)*2 -> 89.88022196 | O44: =D$22*I29+ROUND($F$14*365/12,2)+(Summary!N19/12)*2 -> 434.8264613 | P44: =D$22*J29+ROUND($F$14*365/12,2)+(Summary!N19/12)*2 -> 87.14515574 | Q44: =E$22*I29+ROUND($F$14*365/12,2)+(Summary!N19/12)*2 -> 449.3756129 | R44: =E$22*J29+ROUND($F$14*365/12,2)+(Summary!N19/12)*2 -> 90.28130619 | S44: =F$22*I29+ROUND($F$14*365/12,2)+(Summary!N19/12)*2 -> 499.6435883 | T44: =F$22*J29+ROUND($F$14*365/12,2)+(Summary!N19/12)*2 -> 101.1168476 | V44: 15 hot | W44: =C$28*I29+ROUND($P$14*365/12,2)+(Summary!N19/12)*2 -> 277.0774234 | X44: =C$28*J29+ROUND($P$14*365/12,2)+(Summary!N19/12)*2 -> 52.90614089 | Y44: =D$28*I29+ROUND($P$14*365/12,2)+(Summary!N19/12)*2 -> 269.8092812 | Z44: =D$28*J29+ROUND($P$14*365/12,2)+(Summary!N19/12)*2 -> 51.33945247 | AA44: =E$28*I29+ROUND($P$14*365/12,2)+(Summary!N19/12)*2 -> 278.9514197 | AB44: =E$28*J29+ROUND($P$14*365/12,2)+(Summary!N19/12)*2 -> 53.31009122 | AC44: =F$28*I29+ROUND($P$14*365/12,2)+(Summary!N19/12)*2 -> 310.5379209 | AD44: =F$28*J29+ROUND($P$14*365/12,2)+(Summary!N19/12)*2 -> 60.11873703
B45: 16 cool | C45: =C$22*MIN(I30,P30)+IF(P30-I30>0,C$23*(P30-I30))+ROUND($F$14*365/12,2)+(Summary!N19/12)*2 -> 191.0696506 | D45: =C$22*MIN(J30,Q30)+IF(Q30-J30>0,C$23*(Q30-J30))+ROUND($F$14*365/12,2)+(Summary!N19/12)*2 -> 134.1442685 | E45: =D$22*MIN(I30,P30)+IF(P30-I30>0,D$23*(P30-I30))+ROUND($F$14*365/12,2)+(Summary!N19/12)*2 -> 185.5204404 | F45: =D$22*MIN(J30,Q30)+IF(Q30-J30>0,D$23*(Q30-J30))+ROUND($F$14*365/12,2)+(Summary!N19/12)*2 -> 130.177977 | G45: =E$22*MIN(I30,P30)+IF(P30-I30>0,E$23*(P30-I30))+ROUND($F$14*365/12,2)+(Summary!N19/12)*2 -> 191.885862 | H45: =E$22*MIN(J30,Q30)+IF(Q30-J30>0,E$23*(Q30-J30))+ROUND($F$14*365/12,2)+(Summary!N19/12)*2 -> 134.7267246 | I45: =F$22*MIN(I30,P30)+IF(P30-I30>0,F$23*(P30-I30))+ROUND($F$14*365/12,2)+(Summary!N19/12)*2 -> 213.8786812 | J45: =F$22*MIN(J30,Q30)+IF(Q30-J30>0,F$23*(Q30-J30))+ROUND($F$14*365/12,2)+(Summary!N19/12)*2 -> 150.4428531 | L45: 16 cool | M45: =C$22*I30+ROUND($F$14*365/12,2)+(Summary!N19/12)*2 -> 140.5366938 | N45: =C$22*J30+ROUND($F$14*365/12,2)+(Summary!N19/12)*2 -> 117.2347167 | O45: =D$22*I30+ROUND($F$14*365/12,2)+(Summary!N19/12)*2 -> 136.3917996 | P45: =D$22*J30+ROUND($F$14*365/12,2)+(Summary!N19/12)*2 -> 113.7383434 | Q45: =E$22*I30+ROUND($F$14*365/12,2)+(Summary!N19/12)*2 -> 141.1445224 | R45: =E$22*J30+ROUND($F$14*365/12,2)+(Summary!N19/12)*2 -> 117.747443 | S45: =F$22*I30+ROUND($F$14*365/12,2)+(Summary!N19/12)*2 -> 157.5653944 | T45: =F$22*J30+ROUND($F$14*365/12,2)+(Summary!N19/12)*2 -> 131.5990629 | V45: 16 cool | W45: =C$28*I30+ROUND($P$14*365/12,2)+(Summary!N19/12)*2 -> 84.65844719 | X45: =C$28*J30+ROUND($P$14*365/12,2)+(Summary!N19/12)*2 -> 70.05238629 | Y45: =D$28*I30+ROUND($P$14*365/12,2)+(Summary!N19/12)*2 -> 82.28418742 | Z45: =D$28*J30+ROUND($P$14*365/12,2)+(Summary!N19/12)*2 -> 68.04960934 | AA45: =E$28*I30+ROUND($P$14*365/12,2)+(Summary!N19/12)*2 -> 85.27061933 | AB45: =E$28*J30+ROUND($P$14*365/12,2)+(Summary!N19/12)*2 -> 70.5687764 | AC45: =F$28*I30+ROUND($P$14*365/12,2)+(Summary!N19/12)*2 -> 95.5888764 | AD45: =F$28*J30+ROUND($P$14*365/12,2)+(Summary!N19/12)*2 -> 79.27261229
B46: ALL | C46: =SUMPRODUCT(C37:C45,$T$22:$T$30) -> 248.390766 | D46: 147.5374648 | E46: 241.2477079 | F46: 143.1993824 | G46: 249.4424352 | H46: 148.1755713 | I46: 277.7555879 | J46: 165.3685284 | L46: ALL | M46: =SUMPRODUCT(M37:M45,$T$22:$T$30) -> 163.7920629 | N46: 107.3275525 | O46: 158.999945 | P46: 104.106907 | Q46: 164.4948038 | R46: 107.7998446 | S46: 183.4797889 | T46: 120.5591107 | V46: ALL | W46: =SUMPRODUCT(W37:W45,$U$22:$U$30) -> 109.9002144 | X46: =SUMPRODUCT(X37:X45,$U$22:$U$30) -> 65.32589318 | Y46: 106.8839689 | Z46: 63.44332736 | AA46: 110.6779143 | AB46: 65.81128841 | AC46: 123.7861668 | AD46: 73.99270073
C49: CARE | M49: Essential Use (All-Electric) - Non-CARE | W49: Essential Use (All-Electric) - CARE
C50: =C27 -> Jan 2025 | E50: =D27 -> 2025-06-01 | G50: =E27 -> Authorized | I50: =F27 -> w/Pending | M50: =C50 -> Jan 2025 | O50: =E50 -> 2025-06-01 | Q50: =G50 -> Authorized | S50: =I50 -> w/Pending | W50: =M50 -> Jan 2025 | Y50: =O50 -> 2025-06-01 | AA50: =Q50 -> Authorized | AC50: =S50 -> w/Pending
C51: Summer | D51: Winter | E51: Summer | F51: Winter | G51: Summer | H51: Winter | I51: Summer | J51: Winter | M51: Summer | N51: Winter | O51: Summer | P51: Winter | Q51: Summer | R51: Winter | S51: Summer | T51: Winter | W51: Summer | X51: Winter | Y51: Summer | Z51: Winter | AA51: Summer | AB51: Winter | AC51: Summer | AD51: Winter
B52: 5 warm | C52: =C$28*MIN(I22,R22)+IF(R22-I22>0,C$29*(R22-I22))+ROUND($P$14*365/12,2)+(Summary!N19/12)*2 -> 68.66764285 | D52: =C$28*MIN(J22,S22)+IF(S22-J22>0,C$29*(S22-J22))+ROUND($P$14*365/12,2)+(Summary!N19/12)*2 -> 64.96695865 | E52: =D$28*MIN(I22,R22)+IF(R22-I22>0,D$29*(R22-I22))+ROUND($P$14*365/12,2)+(Summary!N19/12)*2 -> 66.70008474 | F52: =D$28*MIN(J22,S22)+IF(S22-J22>0,D$29*(S22-J22))+ROUND($P$14*365/12,2)+(Summary!N19/12)*2 -> 63.09352177 | G52: =E$28*MIN(I22,R22)+IF(R22-I22>0,E$29*(R22-I22))+ROUND($P$14*365/12,2)+(Summary!N19/12)*2 -> 69.17495224 | H52: =E$28*MIN(J22,S22)+IF(S22-J22>0,E$29*(S22-J22))+ROUND($P$14*365/12,2)+(Summary!N19/12)*2 -> 65.45000009 | I52: =F$28*MIN(I22,R22)+IF(R22-I22>0,F$29*(R22-I22))+ROUND($P$14*365/12,2)+(Summary!N19/12)*2 -> 77.72573118 | J52: =F$28*MIN(J22,S22)+IF(S22-J22>0,F$29*(S22-J22))+ROUND($P$14*365/12,2)+(Summary!N19/12)*2 -> 73.59173905 | L52: 5 warm | M52: =C$22*K22+ROUND($F$14*365/12,2)+(Summary!N19/12)*2 -> 161.8124119 | N52: =C$22*L22+ROUND($F$14*365/12,2)+(Summary!N19/12)*2 -> 265.1516144 | O52: =D$22*K22+ROUND($F$14*365/12,2)+(Summary!N19/12)*2 -> 157.07539 | P52: =D$22*L22+ROUND($F$14*365/12,2)+(Summary!N19/12)*2 -> 257.5385435 | Q52: =E$22*K22+ROUND($F$14*365/12,2)+(Summary!N19/12)*2 -> 162.5070733 | R52: =E$22*L22+ROUND($F$14*365/12,2)+(Summary!N19/12)*2 -> 266.2680344 | S52: =F$22*K22+ROUND($F$14*365/12,2)+(Summary!N19/12)*2 -> 181.2737841 | T52: =F$22*L22+ROUND($F$14*365/12,2)+(Summary!N19/12)*2 -> 296.4288197 | V52: 5 warm | W52: =C$28*K22+ROUND($P$14*365/12,2)+(Summary!N19/12)*2 -> 97.99441583 | X52: =C$28*L22+ROUND($P$14*365/12,2)+(Summary!N19/12)*2 -> 162.7691207 | Y52: =D$28*K22+ROUND($P$14*365/12,2)+(Summary!N19/12)*2 -> 95.2809761 | Z52: =D$28*L22+ROUND($P$14*365/12,2)+(Summary!N19/12)*2 -> 158.4082354 | AA52: =E$28*K22+ROUND($P$14*365/12,2)+(Summary!N19/12)*2 -> 98.69404114 | AB52: =E$28*L22+ROUND($P$14*365/12,2)+(Summary!N19/12)*2 -> 163.8935185 | AC52: =F$28*K22+ROUND($P$14*365/12,2)+(Summary!N19/12)*2 -> 110.4863349 | AD52: =F$28*L22+ROUND($P$14*365/12,2)+(Summary!N19/12)*2 -> 182.8454192
B53: 6 cool | C53: =C$28*MIN(I23,R23)+IF(R23-I23>0,C$29*(R23-I23))+ROUND($P$14*365/12,2)+(Summary!N19/12)*2 -> 79.17496909 | D53: =C$28*MIN(J23,S23)+IF(S23-J23>0,C$29*(S23-J23))+ROUND($P$14*365/12,2)+(Summary!N19/12)*2 -> 64.47961901 | E53: =D$28*MIN(I23,R23)+IF(R23-I23>0,D$29*(R23-I23))+ROUND($P$14*365/12,2)+(Summary!N19/12)*2 -> 76.93241277 | F53: =D$28*MIN(J23,S23)+IF(S23-J23>0,D$29*(S23-J23))+ROUND($P$14*365/12,2)+(Summary!N19/12)*2 -> 62.61691281 | G53: =E$28*MIN(I23,R23)+IF(R23-I23>0,E$29*(R23-I23))+ROUND($P$14*365/12,2)+(Summary!N19/12)*2 -> 79.7431671 | H53: =E$28*MIN(J23,S23)+IF(S23-J23>0,E$29*(S23-J23))+ROUND($P$14*365/12,2)+(Summary!N19/12)*2 -> 64.95774594 | I53: =F$28*MIN(I23,R23)+IF(R23-I23>0,F$29*(R23-I23))+ROUND($P$14*365/12,2)+(Summary!N19/12)*2 -> 89.4544502 | J53: =F$28*MIN(J23,S23)+IF(S23-J23>0,F$29*(S23-J23))+ROUND($P$14*365/12,2)+(Summary!N19/12)*2 -> 73.04543007 | L53: 6 cool | M53: =C$22*K23+ROUND($F$14*365/12,2)+(Summary!N19/12)*2 -> 79.7489276 | N53: =C$22*L23+ROUND($F$14*365/12,2)+(Summary!N19/12)*2 -> 119.2609756 | O53: =D$22*K23+ROUND($F$14*365/12,2)+(Summary!N19/12)*2 -> 77.29582697 | P53: =D$22*L23+ROUND($F$14*365/12,2)+(Summary!N19/12)*2 -> 115.7082092 | Q53: =E$22*K23+ROUND($F$14*365/12,2)+(Summary!N19/12)*2 -> 80.10866294 | R53: =E$22*L23+ROUND($F$14*365/12,2)+(Summary!N19/12)*2 -> 119.7819716 | S53: =F$22*K23+ROUND($F$14*365/12,2)+(Summary!N19/12)*2 -> 89.82713818 | T53: =F$22*L23+ROUND($F$14*365/12,2)+(Summary!N19/12)*2 -> 133.8570047 | V53: 6 cool | W53: =C$28*K23+ROUND($P$14*365/12,2)+(Summary!N19/12)*2 -> 46.55567963 | X53: =C$28*L23+ROUND($P$14*365/12,2)+(Summary!N19/12)*2 -> 71.32247854 | Y53: =D$28*K23+ROUND($P$14*365/12,2)+(Summary!N19/12)*2 -> 45.15050548 | Z53: =D$28*L23+ROUND($P$14*365/12,2)+(Summary!N19/12)*2 -> 69.28739874 | AA53: =E$28*K23+ROUND($P$14*365/12,2)+(Summary!N19/12)*2 -> 46.91798559 | AB53: =E$28*L23+ROUND($P$14*365/12,2)+(Summary!N19/12)*2 -> 71.84719752 | AC53: =F$28*K23+ROUND($P$14*365/12,2)+(Summary!N19/12)*2 -> 53.02470916 | AD53: =F$28*L23+ROUND($P$14*365/12,2)+(Summary!N19/12)*2 -> 80.69141786
B54: 8 cool | C54: =C$28*MIN(I24,R24)+IF(R24-I24>0,C$29*(R24-I24))+ROUND($P$14*365/12,2)+(Summary!N19/12)*2 -> 103.6442695 | D54: =C$28*MIN(J24,S24)+IF(S24-J24>0,C$29*(S24-J24))+ROUND($P$14*365/12,2)+(Summary!N19/12)*2 -> 72.96840317 | E54: =D$28*MIN(I24,R24)+IF(R24-I24>0,D$29*(R24-I24))+ROUND($P$14*365/12,2)+(Summary!N19/12)*2 -> 100.7715606 | F54: =D$28*MIN(J24,S24)+IF(S24-J24>0,D$29*(S24-J24))+ROUND($P$14*365/12,2)+(Summary!N19/12)*2 -> 70.88331069 | G54: =E$28*MIN(I24,R24)+IF(R24-I24>0,E$29*(R24-I24))+ROUND($P$14*365/12,2)+(Summary!N19/12)*2 -> 104.3648598 | H54: =E$28*MIN(J24,S24)+IF(S24-J24>0,E$29*(S24-J24))+ROUND($P$14*365/12,2)+(Summary!N19/12)*2 -> 73.49549695 | I54: =F$28*MIN(I24,R24)+IF(R24-I24>0,F$29*(R24-I24))+ROUND($P$14*365/12,2)+(Summary!N19/12)*2 -> 116.7798707 | J54: =F$28*MIN(J24,S24)+IF(S24-J24>0,F$29*(S24-J24))+ROUND($P$14*365/12,2)+(Summary!N19/12)*2 -> 82.52071837 | L54: 8 cool | M54: =C$22*K24+ROUND($F$14*365/12,2)+(Summary!N19/12)*2 -> 91.90648083 | N54: =C$22*L24+ROUND($F$14*365/12,2)+(Summary!N19/12)*2 -> 116.2215873 | O54: =D$22*K24+ROUND($F$14*365/12,2)+(Summary!N19/12)*2 -> 89.11502149 | P54: =D$22*L24+ROUND($F$14*365/12,2)+(Summary!N19/12)*2 -> 112.7534105 | Q54: =E$22*K24+ROUND($F$14*365/12,2)+(Summary!N19/12)*2 -> 92.31583484 | R54: =E$22*L24+ROUND($F$14*365/12,2)+(Summary!N19/12)*2 -> 116.7301786 | S54: =F$22*K24+ROUND($F$14*365/12,2)+(Summary!N19/12)*2 -> 103.3747894 | T54: =F$22*L24+ROUND($F$14*365/12,2)+(Summary!N19/12)*2 -> 130.4700919 | V54: 8 cool | W54: =C$28*K24+ROUND($P$14*365/12,2)+(Summary!N19/12)*2 -> 54.17623314 | X54: =C$28*L24+ROUND($P$14*365/12,2)+(Summary!N19/12)*2 -> 69.41734016 | Y54: =D$28*K24+ROUND($P$14*365/12,2)+(Summary!N19/12)*2 -> 52.57724187 | Z54: =D$28*L24+ROUND($P$14*365/12,2)+(Summary!N19/12)*2 -> 67.43071464 | AA54: =E$28*K24+ROUND($P$14*365/12,2)+(Summary!N19/12)*2 -> 54.58851234 | AB54: =E$28*L24+ROUND($P$14*365/12,2)+(Summary!N19/12)*2 -> 69.92956584 | AC54: =F$28*K24+ROUND($P$14*365/12,2)+(Summary!N19/12)*2 -> 61.53754261 | AD54: =F$28*L24+ROUND($P$14*365/12,2)+(Summary!N19/12)*2 -> 78.5632095
B55: 9 warm | C55: =C$28*MIN(I25,R25)+IF(R25-I25>0,C$29*(R25-I25))+ROUND($P$14*365/12,2)+(Summary!N19/12)*2 -> 145.4334121 | D55: =C$28*MIN(J25,S25)+IF(S25-J25>0,C$29*(S25-J25))+ROUND($P$14*365/12,2)+(Summary!N19/12)*2 -> 83.68430279 | E55: =D$28*MIN(I25,R25)+IF(R25-I25>0,D$29*(R25-I25))+ROUND($P$14*365/12,2)+(Summary!N19/12)*2 -> 141.4899597 | F55: =D$28*MIN(J25,S25)+IF(S25-J25>0,D$29*(S25-J25))+ROUND($P$14*365/12,2)+(Summary!N19/12)*2 -> 81.32670786 | G55: =E$28*MIN(I25,R25)+IF(R25-I25>0,E$29*(R25-I25))+ROUND($P$14*365/12,2)+(Summary!N19/12)*2 -> 146.4198828 | H55: =E$28*MIN(J25,S25)+IF(S25-J25>0,E$29*(S25-J25))+ROUND($P$14*365/12,2)+(Summary!N19/12)*2 -> 84.28170951 | I55: =F$28*MIN(I25,R25)+IF(R25-I25>0,F$29*(R25-I25))+ROUND($P$14*365/12,2)+(Summary!N19/12)*2 -> 163.4529896 | J55: =F$28*MIN(J25,S25)+IF(S25-J25>0,F$29*(S25-J25))+ROUND($P$14*365/12,2)+(Summary!N19/12)*2 -> 94.49137359 | L55: 9 warm | M55: =C$22*K25+ROUND($F$14*365/12,2)+(Summary!N19/12)*2 -> 118.2478462 | N55: =C$22*L25+ROUND($F$14*365/12,2)+(Summary!N19/12)*2 -> 132.4316583 | O55: =D$22*K25+ROUND($F$14*365/12,2)+(Summary!N19/12)*2 -> 114.7232763 | P55: =D$22*L25+ROUND($F$14*365/12,2)+(Summary!N19/12)*2 -> 128.5123366 | Q55: =E$22*K25+ROUND($F$14*365/12,2)+(Summary!N19/12)*2 -> 118.7647073 | R55: =E$22*L25+ROUND($F$14*365/12,2)+(Summary!N19/12)*2 -> 133.0064078 | S55: =F$22*K25+ROUND($F$14*365/12,2)+(Summary!N19/12)*2 -> 132.7280338 | T55: =F$22*L25+ROUND($F$14*365/12,2)+(Summary!N19/12)*2 -> 148.5336269 | V55: 9 warm | W55: =C$28*K25+ROUND($P$14*365/12,2)+(Summary!N19/12)*2 -> 70.68743242 | X55: =C$28*L25+ROUND($P$14*365/12,2)+(Summary!N19/12)*2 -> 79.57807818 | Y55: =D$28*K25+ROUND($P$14*365/12,2)+(Summary!N19/12)*2 -> 68.66850404 | Z55: =D$28*L25+ROUND($P$14*365/12,2)+(Summary!N19/12)*2 -> 77.33302983 | AA55: =E$28*K25+ROUND($P$14*365/12,2)+(Summary!N19/12)*2 -> 71.20798696 | AB55: =E$28*L25+ROUND($P$14*365/12,2)+(Summary!N19/12)*2 -> 80.15693484 | AC55: =F$28*K25+ROUND($P$14*365/12,2)+(Summary!N19/12)*2 -> 79.98201508 | AD55: =F$28*L25+ROUND($P$14*365/12,2)+(Summary!N19/12)*2 -> 89.9136541
B56: 10 hot (Sec 745) | C56: =C$28*MIN(I26,R26)+IF(R26-I26>0,C$29*(R26-I26))+ROUND($P$14*365/12,2)+(Summary!N19/12)*2 -> 204.3286138 | D56: =C$28*MIN(J26,S26)+IF(S26-J26>0,C$29*(S26-J26))+ROUND($P$14*365/12,2)+(Summary!N19/12)*2 -> 104.0756369 | E56: =D$28*MIN(I26,R26)+IF(R26-I26>0,D$29*(R26-I26))+ROUND($P$14*365/12,2)+(Summary!N19/12)*2 -> 198.8653575 | F56: =D$28*MIN(J26,S26)+IF(S26-J26>0,D$29*(S26-J26))+ROUND($P$14*365/12,2)+(Summary!N19/12)*2 -> 101.1895109 | G56: =E$28*MIN(I26,R26)+IF(R26-I26>0,E$29*(R26-I26))+ROUND($P$14*365/12,2)+(Summary!N19/12)*2 -> 205.6786878 | H56: =E$28*MIN(J26,S26)+IF(S26-J26>0,E$29*(S26-J26))+ROUND($P$14*365/12,2)+(Summary!N19/12)*2 -> 104.7965298 | I56: =F$28*MIN(I26,R26)+IF(R26-I26>0,F$29*(R26-I26))+ROUND($P$14*365/12,2)+(Summary!N19/12)*2 -> 229.2190515 | J56: =F$28*MIN(J26,S26)+IF(S26-J26>0,F$29*(S26-J26))+ROUND($P$14*365/12,2)+(Summary!N19/12)*2 -> 117.2589427 | L56: 10 hot (Sec 745) | M56: =C$22*K26+ROUND($F$14*365/12,2)+(Summary!N19/12)*2 -> 152.694247 | N56: =C$22*L26+ROUND($F$14*365/12,2)+(Summary!N19/12)*2 -> 157.7598942 | O56: =D$22*K26+ROUND($F$14*365/12,2)+(Summary!N19/12)*2 -> 148.2109941 | P56: =D$22*L26+ROUND($F$14*365/12,2)+(Summary!N19/12)*2 -> 153.1356585 | Q56: =E$22*K26+ROUND($F$14*365/12,2)+(Summary!N19/12)*2 -> 153.3516943 | R56: =E$22*L26+ROUND($F$14*365/12,2)+(Summary!N19/12)*2 -> 158.438016 | S56: =F$22*K26+ROUND($F$14*365/12,2)+(Summary!N19/12)*2 -> 171.1130456 | T56: =F$22*L26+ROUND($F$14*365/12,2)+(Summary!N19/12)*2 -> 176.7579003 | V56: 10 hot (Sec 745) | W56: =C$28*K26+ROUND($P$14*365/12,2)+(Summary!N19/12)*2 -> 92.2790007 | X56: =C$28*L26+ROUND($P$14*365/12,2)+(Summary!N19/12)*2 -> 95.45423133 | Y56: =D$28*K26+ROUND($P$14*365/12,2)+(Summary!N19/12)*2 -> 89.71092381 | Z56: =D$28*L26+ROUND($P$14*365/12,2)+(Summary!N19/12)*2 -> 92.8053973 | AA56: =E$28*K26+ROUND($P$14*365/12,2)+(Summary!N19/12)*2 -> 92.94114608 | AB56: =E$28*L26+ROUND($P$14*365/12,2)+(Summary!N19/12)*2 -> 96.13719889 | AC56: =F$28*K26+ROUND($P$14*365/12,2)+(Summary!N19/12)*2 -> 104.1017098 | AD56: =F$28*L26+ROUND($P$14*365/12,2)+(Summary!N19/12)*2 -> 107.6487238
B57: 13 hot | C57: =C$28*MIN(I27,R27)+IF(R27-I27>0,C$29*(R27-I27))+ROUND($P$14*365/12,2)+(Summary!N19/12)*2 -> 228.4551441 | D57: =C$28*MIN(J27,S27)+IF(S27-J27>0,C$29*(S27-J27))+ROUND($P$14*365/12,2)+(Summary!N19/12)*2 -> 100.1365381 | E57: =D$28*MIN(I27,R27)+IF(R27-I27>0,D$29*(R27-I27))+ROUND($P$14*365/12,2)+(Summary!N19/12)*2 -> 222.3754025 | F57: =D$28*MIN(J27,S27)+IF(S27-J27>0,D$29*(S27-J27))+ROUND($P$14*365/12,2)+(Summary!N19/12)*2 -> 97.35289118 | G57: =E$28*MIN(I27,R27)+IF(R27-I27>0,E$29*(R27-I27))+ROUND($P$14*365/12,2)+(Summary!N19/12)*2 -> 229.9604745 | H57: =E$28*MIN(J27,S27)+IF(S27-J27>0,E$29*(S27-J27))+ROUND($P$14*365/12,2)+(Summary!N19/12)*2 -> 100.833969 | I57: =F$28*MIN(I27,R27)+IF(R27-I27>0,F$29*(R27-I27))+ROUND($P$14*365/12,2)+(Summary!N19/12)*2 -> 256.1672407 | J57: =F$28*MIN(J27,S27)+IF(S27-J27>0,F$29*(S27-J27))+ROUND($P$14*365/12,2)+(Summary!N19/12)*2 -> 112.86125 | L57: 13 hot | M57: =C$22*K27+ROUND($F$14*365/12,2)+(Summary!N19/12)*2 -> 236.7839902 | N57: =C$22*L27+ROUND($F$14*365/12,2)+(Summary!N19/12)*2 -> 224.6264369 | O57: =D$22*K27+ROUND($F$14*365/12,2)+(Summary!N19/12)*2 -> 229.9604229 | P57: =D$22*L27+ROUND($F$14*365/12,2)+(Summary!N19/12)*2 -> 218.1412284 | Q57: =E$22*K27+ROUND($F$14*365/12,2)+(Summary!N19/12)*2 -> 237.7846333 | R57: =E$22*L27+ROUND($F$14*365/12,2)+(Summary!N19/12)*2 -> 225.5774614 | S57: =F$22*K27+ROUND($F$14*365/12,2)+(Summary!N19/12)*2 -> 264.8176334 | T57: =F$22*L27+ROUND($F$14*365/12,2)+(Summary!N19/12)*2 -> 251.2699822 | V57: 13 hot | W57: =C$28*K27+ROUND($P$14*365/12,2)+(Summary!N19/12)*2 -> 144.9878292 | X57: =C$28*L27+ROUND($P$14*365/12,2)+(Summary!N19/12)*2 -> 137.3672756 | Y57: =D$28*K27+ROUND($P$14*365/12,2)+(Summary!N19/12)*2 -> 141.0791838 | Z57: =D$28*L27+ROUND($P$14*365/12,2)+(Summary!N19/12)*2 -> 133.6524474 | AA57: =E$28*K27+ROUND($P$14*365/12,2)+(Summary!N19/12)*2 -> 145.9956228 | AB57: =E$28*L27+ROUND($P$14*365/12,2)+(Summary!N19/12)*2 -> 138.325096 | AC57: =F$28*K27+ROUND($P$14*365/12,2)+(Summary!N19/12)*2 -> 162.9821412 | AD57: =F$28*L27+ROUND($P$14*365/12,2)+(Summary!N19/12)*2 -> 154.4693077
B58: 14 hot | C58: =C$28*MIN(I28,R28)+IF(R28-I28>0,C$29*(R28-I28))+ROUND($P$14*365/12,2)+(Summary!N19/12)*2 -> 208.5483524 | D58: =C$28*MIN(J28,S28)+IF(S28-J28>0,C$29*(S28-J28))+ROUND($P$14*365/12,2)+(Summary!N19/12)*2 -> 112.0881652 | E58: =D$28*MIN(I28,R28)+IF(R28-I28>0,D$29*(R28-I28))+ROUND($P$14*365/12,2)+(Summary!N19/12)*2 -> 202.9753386 | F58: =D$28*MIN(J28,S28)+IF(S28-J28>0,D$29*(S28-J28))+ROUND($P$14*365/12,2)+(Summary!N19/12)*2 -> 108.9935972 | G58: =E$28*MIN(I28,R28)+IF(R28-I28>0,E$29*(R28-I28))+ROUND($P$14*365/12,2)+(Summary!N19/12)*2 -> 209.9235834 | H58: =E$28*MIN(J28,S28)+IF(S28-J28>0,E$29*(S28-J28))+ROUND($P$14*365/12,2)+(Summary!N19/12)*2 -> 112.8567933 | I58: =F$28*MIN(I28,R28)+IF(R28-I28>0,F$29*(R28-I28))+ROUND($P$14*365/12,2)+(Summary!N19/12)*2 -> 233.9300825 | J58: =F$28*MIN(J28,S28)+IF(S28-J28>0,F$29*(S28-J28))+ROUND($P$14*365/12,2)+(Summary!N19/12)*2 -> 126.2043103 | L58: 14 hot | M58: =C$22*K28+ROUND($F$14*365/12,2)+(Summary!N19/12)*2 -> 179.0356123 | N58: =C$22*L28+ROUND($F$14*365/12,2)+(Summary!N19/12)*2 -> 205.3769777 | O58: =D$22*K28+ROUND($F$14*365/12,2)+(Summary!N19/12)*2 -> 173.8192489 | P58: =D$22*L28+ROUND($F$14*365/12,2)+(Summary!N19/12)*2 -> 199.4275037 | Q58: =E$22*K28+ROUND($F$14*365/12,2)+(Summary!N19/12)*2 -> 179.8005668 | R58: =E$22*L28+ROUND($F$14*365/12,2)+(Summary!N19/12)*2 -> 206.2494392 | S58: =F$22*K28+ROUND($F$14*365/12,2)+(Summary!N19/12)*2 -> 200.46629 | T58: =F$22*L28+ROUND($F$14*365/12,2)+(Summary!N19/12)*2 -> 229.8195344 | V58: 14 hot | W58: =C$28*K28+ROUND($P$14*365/12,2)+(Summary!N19/12)*2 -> 108.7902 | X58: =C$28*L28+ROUND($P$14*365/12,2)+(Summary!N19/12)*2 -> 125.3013993 | Y58: =D$28*K28+ROUND($P$14*365/12,2)+(Summary!N19/12)*2 -> 105.802186 | Z58: =D$28*L28+ROUND($P$14*365/12,2)+(Summary!N19/12)*2 -> 121.8934482 | AA58: =E$28*K28+ROUND($P$14*365/12,2)+(Summary!N19/12)*2 -> 109.5606207 | AB58: =E$28*L28+ROUND($P$14*365/12,2)+(Summary!N19/12)*2 -> 126.1800953 | AC58: =F$28*K28+ROUND($P$14*365/12,2)+(Summary!N19/12)*2 -> 122.5461823 | AD58: =F$28*L28+ROUND($P$14*365/12,2)+(Summary!N19/12)*2 -> 140.9906548
B59: 15 hot | C59: =C$28*MIN(I29,R29)+IF(R29-I29>0,C$29*(R29-I29))+ROUND($P$14*365/12,2)+(Summary!N19/12)*2 -> 275.3710999 | D59: =C$28*MIN(J29,S29)+IF(S29-J29>0,C$29*(S29-J29))+ROUND($P$14*365/12,2)+(Summary!N19/12)*2 -> 118.5682698 | E59: =D$28*MIN(I29,R29)+IF(R29-I29>0,D$29*(R29-I29))+ROUND($P$14*365/12,2)+(Summary!N19/12)*2 -> 268.1463555 | F59: =D$28*MIN(J29,S29)+IF(S29-J29>0,D$29*(S29-J29))+ROUND($P$14*365/12,2)+(Summary!N19/12)*2 -> 115.298633 | G59: =E$28*MIN(I29,R29)+IF(R29-I29>0,E$29*(R29-I29))+ROUND($P$14*365/12,2)+(Summary!N19/12)*2 -> 277.2339068 | H59: =E$28*MIN(J29,S29)+IF(S29-J29>0,E$29*(S29-J29))+ROUND($P$14*365/12,2)+(Summary!N19/12)*2 -> 119.3687985 | I59: =F$28*MIN(I29,R29)+IF(R29-I29>0,F$29*(R29-I29))+ROUND($P$14*365/12,2)+(Summary!N19/12)*2 -> 308.6318065 | J59: =F$28*MIN(J29,S29)+IF(S29-J29>0,F$29*(S29-J29))+ROUND($P$14*365/12,2)+(Summary!N19/12)*2 -> 133.431404 | L59: 15 hot | M59: =C$22*K29+ROUND($F$14*365/12,2)+(Summary!N19/12)*2 -> 234.7577313 | N59: =C$22*L29+ROUND($F$14*365/12,2)+(Summary!N19/12)*2 -> 167.8911885 | O59: =D$22*K29+ROUND($F$14*365/12,2)+(Summary!N19/12)*2 -> 227.9905571 | P59: =D$22*L29+ROUND($F$14*365/12,2)+(Summary!N19/12)*2 -> 162.9849873 | Q59: =E$22*K29+ROUND($F$14*365/12,2)+(Summary!N19/12)*2 -> 235.7501047 | R59: =E$22*L29+ROUND($F$14*365/12,2)+(Summary!N19/12)*2 -> 168.6106592 | S59: =F$22*K29+ROUND($F$14*365/12,2)+(Summary!N19/12)*2 -> 262.5596915 | T59: =F$22*L29+ROUND($F$14*365/12,2)+(Summary!N19/12)*2 -> 188.0476097 | V59: 15 hot | W59: =C$28*K29+ROUND($P$14*365/12,2)+(Summary!N19/12)*2 -> 143.7177369 | X59: =C$28*L29+ROUND($P$14*365/12,2)+(Summary!N19/12)*2 -> 101.8046926 | Y59: =D$28*K29+ROUND($P$14*365/12,2)+(Summary!N19/12)*2 -> 139.8413944 | Z59: =D$28*L29+ROUND($P$14*365/12,2)+(Summary!N19/12)*2 -> 98.99434429 | AA59: =E$28*K29+ROUND($P$14*365/12,2)+(Summary!N19/12)*2 -> 144.7172016 | AB59: =E$28*L29+ROUND($P$14*365/12,2)+(Summary!N19/12)*2 -> 102.5293045 | AC59: =F$28*K29+ROUND($P$14*365/12,2)+(Summary!N19/12)*2 -> 161.5633356 | AD59: =F$28*L29+ROUND($P$14*365/12,2)+(Summary!N19/12)*2 -> 114.7427517
B60: 16 cool | C60: =C$28*MIN(I30,R30)+IF(R30-I30>0,C$29*(R30-I30))+ROUND($P$14*365/12,2)+(Summary!N19/12)*2 -> 174.6519067 | D60: =C$28*MIN(J30,S30)+IF(S30-J30>0,C$29*(S30-J30))+ROUND($P$14*365/12,2)+(Summary!N19/12)*2 -> 101.8374222 | E60: =D$28*MIN(I30,R30)+IF(R30-I30>0,D$29*(R30-I30))+ROUND($P$14*365/12,2)+(Summary!N19/12)*2 -> 169.9436651 | F60: =D$28*MIN(J30,S30)+IF(S30-J30>0,D$29*(S30-J30))+ROUND($P$14*365/12,2)+(Summary!N19/12)*2 -> 99.01029986 | G60: =E$28*MIN(I30,R30)+IF(R30-I30>0,E$29*(R30-I30))+ROUND($P$14*365/12,2)+(Summary!N19/12)*2 -> 175.8076107 | H60: =E$28*MIN(J30,S30)+IF(S30-J30>0,E$29*(S30-J30))+ROUND($P$14*365/12,2)+(Summary!N19/12)*2 -> 102.5457838 | I60: =F$28*MIN(I30,R30)+IF(R30-I30>0,F$29*(R30-I30))+ROUND($P$14*365/12,2)+(Summary!N19/12)*2 -> 196.0678074 | J60: =F$28*MIN(J30,S30)+IF(S30-J30>0,F$29*(S30-J30))+ROUND($P$14*365/12,2)+(Summary!N19/12)*2 -> 114.7610406 | L60: 16 cool | M60: =C$22*K30+ROUND($F$14*365/12,2)+(Summary!N19/12)*2 -> 128.3791405 | N60: =C$22*L30+ROUND($F$14*365/12,2)+(Summary!N19/12)*2 -> 226.6526958 | O60: =D$22*K30+ROUND($F$14*365/12,2)+(Summary!N19/12)*2 -> 124.5726051 | P60: =D$22*L30+ROUND($F$14*365/12,2)+(Summary!N19/12)*2 -> 220.1110941 | Q60: =E$22*K30+ROUND($F$14*365/12,2)+(Summary!N19/12)*2 -> 128.9373505 | R60: =E$22*L30+ROUND($F$14*365/12,2)+(Summary!N19/12)*2 -> 227.6119901 | S60: =F$22*K30+ROUND($F$14*365/12,2)+(Summary!N19/12)*2 -> 144.0177432 | T60: =F$22*L30+ROUND($F$14*365/12,2)+(Summary!N19/12)*2 -> 253.527924 | V60: 16 cool | W60: =C$28*K30+ROUND($P$14*365/12,2)+(Summary!N19/12)*2 -> 77.03789368 | X60: =C$28*L30+ROUND($P$14*365/12,2)+(Summary!N19/12)*2 -> 138.6373679 | Y60: =D$28*K30+ROUND($P$14*365/12,2)+(Summary!N19/12)*2 -> 74.85745103 | Z60: =D$28*L30+ROUND($P$14*365/12,2)+(Summary!N19/12)*2 -> 134.8902368 | AA60: =E$28*K30+ROUND($P$14*365/12,2)+(Summary!N19/12)*2 -> 77.60009259 | AB60: =E$28*L30+ROUND($P$14*365/12,2)+(Summary!N19/12)*2 -> 139.6035171 | AC60: =F$28*K30+ROUND($P$14*365/12,2)+(Summary!N19/12)*2 -> 87.07604295 | AD60: =F$28*L30+ROUND($P$14*365/12,2)+(Summary!N19/12)*2 -> 155.8881133
B61: ALL | C61: =SUMPRODUCT(C52:C60,$U$22:$U$30) -> 180.2226444 | D61: 95.70362633 | E61: 175.3825546 | F61: 93.03321226 | G61: 181.4250374 | H61: 96.37249211 | I61: 202.3020883 | J61: 107.9098547 | L61: ALL | M61: =SUMPRODUCT(M52:M60,$T$22:$T$30) -> 129.768474 | N61: =SUMPRODUCT(N52:N60,$T$22:$T$30) -> 147.2532409 | O61: 125.9232718 | P61: 142.9214175 | Q61: 130.3323543 | R61: 147.8884819 | S61: 145.5659334 | T61: 165.0499135 | V61: ALL | W61: =SUMPRODUCT(W52:W60,$U$22:$U$30) -> 90.60495947 | X61: =SUMPRODUCT(X52:X60,$U$22:$U$30) -> 97.63304863 | Y61: 88.07945925 | Z61: 94.92879971 | AA61: 91.256127 | AB61: 98.3303042 | AC61: 102.2316575 | AD61: 110.0826557
C64: All-Electric - Non-CARE | L64: =Summary!J4 -> 500 | M64: =L64&" kWh Monthly - Non-CARE" -> 500 kWh Monthly - Non-CARE | W64: =L64&" kWh Monthly - CARE" -> 500 kWh Monthly - CARE
C65: =C35 -> Jan 2025 | E65: 2025-06-01 | G65: Authorized | I65: w/Pending | M65: =M50 -> Jan 2025 | O65: =O50 -> 2025-06-01 | Q65: =Q50 -> Authorized | S65: =S50 -> w/Pending | W65: =M65 -> Jan 2025 | Y65: =O65 -> 2025-06-01 | AA65: =Q65 -> Authorized | AC65: =S65 -> w/Pending
C66: Summer | D66: Winter | E66: Summer | F66: Winter | G66: Summer | H66: Winter | I66: Summer | J66: Winter | M66: Summer | N66: Winter | O66: Summer | P66: Winter | Q66: Summer | R66: Winter | S66: Summer | T66: Winter | W66: Summer | X66: Winter | Y66: Summer | Z66: Winter | AA66: Summer | AB66: Winter | AC66: Summer | AD66: Winter
B67: =B37 -> 5 warm | C67: =C$22*MIN(K22,X22)+IF(X22-K22>0,C$23*(X22-K22))+ROUND($F$14*365/12,2)+(Summary!N19/12)*2 -> 123.1903756 | D67: =C$22*MIN(L22,Y22)+IF(Y22-L22>0,C$23*(Y22-L22))+ROUND($F$14*365/12,2)+(Summary!N19/12)*2 -> 148.938088 | E67: =D$22*MIN(K22,X22)+IF(X22-K22>0,D$23*(X22-K22))+ROUND($F$14*365/12,2)+(Summary!N19/12)*2 -> 119.5282494 | F67: =D$22*MIN(L22,Y22)+IF(Y22-L22>0,D$23*(Y22-L22))+ROUND($F$14*365/12,2)+(Summary!N19/12)*2 -> 144.5593733 | G67: =E$22*MIN(K22,X22)+IF(X22-K22>0,E$23*(X22-K22))+ROUND($F$14*365/12,2)+(Summary!N19/12)*2 -> 123.7274087 | H67: =E$22*MIN(L22,Y22)+IF(Y22-L22>0,E$23*(Y22-L22))+ROUND($F$14*365/12,2)+(Summary!N19/12)*2 -> 149.5802053 | I67: =F$22*MIN(K22,X22)+IF(X22-K22>0,F$23*(X22-K22))+ROUND($F$14*365/12,2)+(Summary!N19/12)*2 -> 138.2356934 | J67: =F$22*MIN(L22,Y22)+IF(Y22-L22>0,F$23*(Y22-L22))+ROUND($F$14*365/12,2)+(Summary!N19/12)*2 -> 166.9274064 | L67: 5 warm | M67: =C$22*MIN(I22,$L$64)+IF($L$64-I22>0,C$23*($L$64-I22))+ROUND($F$14*365/12,2)+(Summary!N19/12)*2 -> 158.1466667 | N67: =C$22*MIN(J22,$L$64)+IF($L$64-J22>0,C$23*($L$64-J22))+ROUND($F$14*365/12,2)+(Summary!N19/12)*2 -> 158.1466667 | O67: =D$22*MIN(I22,$L$64)+IF($L$64-I22>0,D$23*($L$64-I22))+ROUND($F$14*365/12,2)+(Summary!N19/12)*2 -> 153.5116667 | P67: =D$22*MIN(J22,$L$64)+IF($L$64-J22>0,D$23*($L$64-J22))+ROUND($F$14*365/12,2)+(Summary!N19/12)*2 -> 153.5116667 | Q67: =E$22*MIN(I22,$L$64)+IF($L$64-I22>0,E$23*($L$64-I22))+ROUND($F$14*365/12,2)+(Summary!N19/12)*2 -> 158.826367 | R67: =E$22*MIN(J22,$L$64)+IF($L$64-J22>0,E$23*($L$64-J22))+ROUND($F$14*365/12,2)+(Summary!N19/12)*2 -> 158.826367 | S67: =F$22*MIN(I22,$L$64)+IF($L$64-I22>0,F$23*($L$64-I22))+ROUND($F$14*365/12,2)+(Summary!N19/12)*2 -> 177.1888965 | T67: =F$22*MIN(J22,$L$64)+IF($L$64-J22>0,F$23*($L$64-J22))+ROUND($F$14*365/12,2)+(Summary!N19/12)*2 -> 177.1888965 | V67: 5 warm | W67: =C$28*MIN(I22,$L$64)+IF($L$64-I22>0,C$29*($L$64-I22))+ROUND($P$14*365/12,2)+(Summary!N19/12)*2 -> 95.69666667 | X67: =C$28*MIN(J22,$L$64)+IF($L$64-J22>0,C$29*($L$64-J22))+ROUND($P$14*365/12,2)+(Summary!N19/12)*2 -> 95.69666667 | Y67: =D$28*MIN(I22,$L$64)+IF($L$64-I22>0,D$29*($L$64-I22))+ROUND($P$14*365/12,2)+(Summary!N19/12)*2 -> 93.04166667 | Z67: =D$28*MIN(J22,$L$64)+IF($L$64-J22>0,D$29*($L$64-J22))+ROUND($P$14*365/12,2)+(Summary!N19/12)*2 -> 93.04166667 | AA67: =E$28*MIN(I22,$L$64)+IF($L$64-I22>0,E$29*($L$64-I22))+ROUND($P$14*365/12,2)+(Summary!N19/12)*2 -> 96.38122405 | AB67: =E$28*MIN(J22,$L$64)+IF($L$64-J22>0,E$29*($L$64-J22))+ROUND($P$14*365/12,2)+(Summary!N19/12)*2 -> 96.38122405 | AC67: =F$28*MIN(I22,$L$64)+IF($L$64-I22>0,F$29*($L$64-I22))+ROUND($P$14*365/12,2)+(Summary!N19/12)*2 -> 107.9195455 | AD67: =F$28*MIN(J22,$L$64)+IF($L$64-J22>0,F$29*($L$64-J22))+ROUND($P$14*365/12,2)+(Summary!N19/12)*2 -> 107.9195455
B68: 6 cool | C68: =C$22*MIN(K23,X23)+IF(X23-K23>0,C$23*(X23-K23))+ROUND($F$14*365/12,2)+(Summary!N19/12)*2 -> 109.311935 | D68: =C$22*MIN(L23,Y23)+IF(Y23-L23>0,C$23*(Y23-L23))+ROUND($F$14*365/12,2)+(Summary!N19/12)*2 -> 101.616446 | E68: =D$22*MIN(K23,X23)+IF(X23-K23>0,D$23*(X23-K23))+ROUND($F$14*365/12,2)+(Summary!N19/12)*2 -> 106.0372754 | F68: =D$22*MIN(L23,Y23)+IF(Y23-L23>0,D$23*(Y23-L23))+ROUND($F$14*365/12,2)+(Summary!N19/12)*2 -> 98.5547471 | G68: =E$22*MIN(K23,X23)+IF(X23-K23>0,E$23*(X23-K23))+ROUND($F$14*365/12,2)+(Summary!N19/12)*2 -> 109.7935794 | H68: =E$22*MIN(L23,Y23)+IF(Y23-L23>0,E$23*(Y23-L23))+ROUND($F$14*365/12,2)+(Summary!N19/12)*2 -> 102.0654293 | I68: =F$22*MIN(K23,X23)+IF(X23-K23>0,F$23*(X23-K23))+ROUND($F$14*365/12,2)+(Summary!N19/12)*2 -> 122.7717791 | J68: =F$22*MIN(L23,Y23)+IF(Y23-L23>0,F$23*(Y23-L23))+ROUND($F$14*365/12,2)+(Summary!N19/12)*2 -> 114.1949947 | L68: 6 cool | M68: =C$22*MIN(I23,$L$64)+IF($L$64-I23>0,C$23*($L$64-I23))+ROUND($F$14*365/12,2)+(Summary!N19/12)*2 -> 172.7249777 | N68: =C$22*MIN(J23,$L$64)+IF($L$64-J23>0,C$23*($L$64-J23))+ROUND($F$14*365/12,2)+(Summary!N19/12)*2 -> 173.8824054 | O68: =D$22*MIN(I23,$L$64)+IF($L$64-I23>0,D$23*($L$64-I23))+ROUND($F$14*365/12,2)+(Summary!N19/12)*2 -> 167.6869402 | P68: =D$22*MIN(J23,$L$64)+IF($L$64-J23>0,D$23*($L$64-J23))+ROUND($F$14*365/12,2)+(Summary!N19/12)*2 -> 168.8123692 | Q68: =E$22*MIN(I23,$L$64)+IF($L$64-I23>0,E$23*($L$64-I23))+ROUND($F$14*365/12,2)+(Summary!N19/12)*2 -> 173.4669586 | R68: =E$22*MIN(J23,$L$64)+IF($L$64-J23>0,E$23*($L$64-J23))+ROUND($F$14*365/12,2)+(Summary!N19/12)*2 -> 174.629331 | S68: =F$22*MIN(I23,$L$64)+IF($L$64-I23>0,F$23*($L$64-I23))+ROUND($F$14*365/12,2)+(Summary!N19/12)*2 -> 193.4371832 | T68: =F$22*MIN(J23,$L$64)+IF($L$64-J23>0,F$23*($L$64-J23))+ROUND($F$14*365/12,2)+(Summary!N19/12)*2 -> 194.7271967 | V68: 6 cool | W68: =C$28*MIN(I23,$L$64)+IF($L$64-I23>0,C$29*($L$64-I23))+ROUND($P$14*365/12,2)+(Summary!N19/12)*2 -> 105.5366052 | X68: =C$28*MIN(J23,$L$64)+IF($L$64-J23>0,C$29*($L$64-J23))+ROUND($P$14*365/12,2)+(Summary!N19/12)*2 -> 106.3178354 | Y68: =D$28*MIN(I23,$L$64)+IF($L$64-I23>0,D$29*($L$64-I23))+ROUND($P$14*365/12,2)+(Summary!N19/12)*2 -> 102.6103594 | Z68: =D$28*MIN(J23,$L$64)+IF($L$64-J23>0,D$29*($L$64-J23))+ROUND($P$14*365/12,2)+(Summary!N19/12)*2 -> 103.3700544 | AA68: =E$28*MIN(I23,$L$64)+IF($L$64-I23>0,E$29*($L$64-I23))+ROUND($P$14*365/12,2)+(Summary!N19/12)*2 -> 106.2640191 | AB68: =E$28*MIN(J23,$L$64)+IF($L$64-J23>0,E$29*($L$64-J23))+ROUND($P$14*365/12,2)+(Summary!N19/12)*2 -> 107.0486519 | AC68: =F$28*MIN(I23,$L$64)+IF($L$64-I23>0,F$29*($L$64-I23))+ROUND($P$14*365/12,2)+(Summary!N19/12)*2 -> 118.8875782 | AD68: =F$28*MIN(J23,$L$64)+IF($L$64-J23>0,F$29*($L$64-J23))+ROUND($P$14*365/12,2)+(Summary!N19/12)*2 -> 119.7583721
B69: 8 cool | C69: =C$22*MIN(K24,X24)+IF(X24-K24>0,C$23*(X24-K24))+ROUND($F$14*365/12,2)+(Summary!N19/12)*2 -> 132.3536862 | D69: =C$22*MIN(L24,Y24)+IF(Y24-L24>0,C$23*(Y24-L24))+ROUND($F$14*365/12,2)+(Summary!N19/12)*2 -> 107.2141551 | E69: =D$22*MIN(K24,X24)+IF(X24-K24>0,D$23*(X24-K24))+ROUND($F$14*365/12,2)+(Summary!N19/12)*2 -> 128.4381949 | F69: =D$22*MIN(L24,Y24)+IF(Y24-L24>0,D$23*(Y24-L24))+ROUND($F$14*365/12,2)+(Summary!N19/12)*2 -> 103.9966656 | G69: =E$22*MIN(K24,X24)+IF(X24-K24>0,E$23*(X24-K24))+ROUND($F$14*365/12,2)+(Summary!N19/12)*2 -> 132.9298323 | H69: =E$22*MIN(L24,Y24)+IF(Y24-L24>0,E$23*(Y24-L24))+ROUND($F$14*365/12,2)+(Summary!N19/12)*2 -> 107.6859844 | I69: =F$22*MIN(K24,X24)+IF(X24-K24>0,F$23*(X24-K24))+ROUND($F$14*365/12,2)+(Summary!N19/12)*2 -> 148.4486426 | J69: =F$22*MIN(L24,Y24)+IF(Y24-L24>0,F$23*(Y24-L24))+ROUND($F$14*365/12,2)+(Summary!N19/12)*2 -> 120.4327474 | L69: 8 cool | M69: =C$22*MIN(I24,$L$64)+IF($L$64-I24>0,C$23*($L$64-I24))+ROUND($F$14*365/12,2)+(Summary!N19/12)*2 -> 168.6739808 | N69: =C$22*MIN(J24,$L$64)+IF($L$64-J24>0,C$23*($L$64-J24))+ROUND($F$14*365/12,2)+(Summary!N19/12)*2 -> 175.9079038 | O69: =D$22*MIN(I24,$L$64)+IF($L$64-I24>0,D$23*($L$64-I24))+ROUND($F$14*365/12,2)+(Summary!N19/12)*2 -> 163.7479387 | P69: =D$22*MIN(J24,$L$64)+IF($L$64-J24>0,D$23*($L$64-J24))+ROUND($F$14*365/12,2)+(Summary!N19/12)*2 -> 170.7818699 | Q69: =E$22*MIN(I24,$L$64)+IF($L$64-I24>0,E$23*($L$64-I24))+ROUND($F$14*365/12,2)+(Summary!N19/12)*2 -> 169.3986553 | R69: =E$22*MIN(J24,$L$64)+IF($L$64-J24>0,E$23*($L$64-J24))+ROUND($F$14*365/12,2)+(Summary!N19/12)*2 -> 176.6634827 | S69: =F$22*MIN(I24,$L$64)+IF($L$64-I24>0,F$23*($L$64-I24))+ROUND($F$14*365/12,2)+(Summary!N19/12)*2 -> 188.9221363 | T69: =F$22*MIN(J24,$L$64)+IF($L$64-J24>0,F$23*($L$64-J24))+ROUND($F$14*365/12,2)+(Summary!N19/12)*2 -> 196.9847202 | V69: 8 cool | W69: =C$28*MIN(I24,$L$64)+IF($L$64-I24>0,C$29*($L$64-I24))+ROUND($P$14*365/12,2)+(Summary!N19/12)*2 -> 102.8022994 | X69: =C$28*MIN(J24,$L$64)+IF($L$64-J24>0,C$29*($L$64-J24))+ROUND($P$14*365/12,2)+(Summary!N19/12)*2 -> 107.6849883 | Y69: =D$28*MIN(I24,$L$64)+IF($L$64-I24>0,D$29*($L$64-I24))+ROUND($P$14*365/12,2)+(Summary!N19/12)*2 -> 99.95142692 | Z69: =D$28*MIN(J24,$L$64)+IF($L$64-J24>0,D$29*($L$64-J24))+ROUND($P$14*365/12,2)+(Summary!N19/12)*2 -> 104.6995206 | AA69: =E$28*MIN(I24,$L$64)+IF($L$64-I24>0,E$29*($L$64-I24))+ROUND($P$14*365/12,2)+(Summary!N19/12)*2 -> 103.5178044 | AB69: =E$28*MIN(J24,$L$64)+IF($L$64-J24>0,E$29*($L$64-J24))+ROUND($P$14*365/12,2)+(Summary!N19/12)*2 -> 108.4217592 | AC69: =F$28*MIN(I24,$L$64)+IF($L$64-I24>0,F$29*($L$64-I24))+ROUND($P$14*365/12,2)+(Summary!N19/12)*2 -> 115.8397995 | AD69: =F$28*MIN(J24,$L$64)+IF($L$64-J24>0,F$29*($L$64-J24))+ROUND($P$14*365/12,2)+(Summary!N19/12)*2 -> 121.2822615
B70: 9 warm | C70: =C$22*MIN(K25,X25)+IF(X25-K25>0,C$23*(X25-K25))+ROUND($F$14*365/12,2)+(Summary!N19/12)*2 -> 182.7427053 | D70: =C$22*MIN(L25,Y25)+IF(Y25-L25>0,C$23*(Y25-L25))+ROUND($F$14*365/12,2)+(Summary!N19/12)*2 -> 118.2358202 | E70: =D$22*MIN(K25,X25)+IF(X25-K25>0,D$23*(X25-K25))+ROUND($F$14*365/12,2)+(Summary!N19/12)*2 -> 177.4258166 | F70: =D$22*MIN(L25,Y25)+IF(Y25-L25>0,D$23*(Y25-L25))+ROUND($F$14*365/12,2)+(Summary!N19/12)*2 -> 114.711585 | G70: =E$22*MIN(K25,X25)+IF(X25-K25>0,E$23*(X25-K25))+ROUND($F$14*365/12,2)+(Summary!N19/12)*2 -> 183.5255238 | H70: =E$22*MIN(L25,Y25)+IF(Y25-L25>0,E$23*(Y25-L25))+ROUND($F$14*365/12,2)+(Summary!N19/12)*2 -> 118.7526323 | I70: =F$22*MIN(K25,X25)+IF(X25-K25>0,F$23*(X25-K25))+ROUND($F$14*365/12,2)+(Summary!N19/12)*2 -> 204.6002876 | J70: =F$22*MIN(L25,Y25)+IF(Y25-L25>0,F$23*(Y25-L25))+ROUND($F$14*365/12,2)+(Summary!N19/12)*2 -> 132.7146328 | L70: 9 warm | M70: =C$22*MIN(I25,$L$64)+IF($L$64-I25>0,C$23*($L$64-I25))+ROUND($F$14*365/12,2)+(Summary!N19/12)*2 -> 158.1466667 | N70: =C$22*MIN(J25,$L$64)+IF($L$64-J25>0,C$23*($L$64-J25))+ROUND($F$14*365/12,2)+(Summary!N19/12)*2 -> 170.9888361 | O70: =D$22*MIN(I25,$L$64)+IF($L$64-I25>0,D$23*($L$64-I25))+ROUND($F$14*365/12,2)+(Summary!N19/12)*2 -> 153.5116667 | P70: =D$22*MIN(J25,$L$64)+IF($L$64-J25>0,D$23*($L$64-J25))+ROUND($F$14*365/12,2)+(Summary!N19/12)*2 -> 165.9987967 | Q70: =E$22*MIN(I25,$L$64)+IF($L$64-I25>0,E$23*($L$64-I25))+ROUND($F$14*365/12,2)+(Summary!N19/12)*2 -> 158.826367 | R70: =E$22*MIN(J25,$L$64)+IF($L$64-J25>0,E$23*($L$64-J25))+ROUND($F$14*365/12,2)+(Summary!N19/12)*2 -> 171.7234 | S70: =F$22*MIN(I25,$L$64)+IF($L$64-I25>0,F$23*($L$64-I25))+ROUND($F$14*365/12,2)+(Summary!N19/12)*2 -> 177.1888965 | T70: =F$22*MIN(J25,$L$64)+IF($L$64-J25>0,F$23*($L$64-J25))+ROUND($F$14*365/12,2)+(Summary!N19/12)*2 -> 191.5021631 | V70: 9 warm | W70: =C$28*MIN(I25,$L$64)+IF($L$64-I25>0,C$29*($L$64-I25))+ROUND($P$14*365/12,2)+(Summary!N19/12)*2 -> 95.69666667 | X70: =C$28*MIN(J25,$L$64)+IF($L$64-J25>0,C$29*($L$64-J25))+ROUND($P$14*365/12,2)+(Summary!N19/12)*2 -> 104.3647598 | Y70: =D$28*MIN(I25,$L$64)+IF($L$64-I25>0,D$29*($L$64-I25))+ROUND($P$14*365/12,2)+(Summary!N19/12)*2 -> 93.04166667 | Z70: =D$28*MIN(J25,$L$64)+IF($L$64-J25>0,D$29*($L$64-J25))+ROUND($P$14*365/12,2)+(Summary!N19/12)*2 -> 101.4708169 | AA70: =E$28*MIN(I25,$L$64)+IF($L$64-I25>0,E$29*($L$64-I25))+ROUND($P$14*365/12,2)+(Summary!N19/12)*2 -> 96.38122405 | AB70: =E$28*MIN(J25,$L$64)+IF($L$64-J25>0,E$29*($L$64-J25))+ROUND($P$14*365/12,2)+(Summary!N19/12)*2 -> 105.0870699 | AC70: =F$28*MIN(I25,$L$64)+IF($L$64-I25>0,F$29*($L$64-I25))+ROUND($P$14*365/12,2)+(Summary!N19/12)*2 -> 107.9195455 | AD70: =F$28*MIN(J25,$L$64)+IF($L$64-J25>0,F$29*($L$64-J25))+ROUND($P$14*365/12,2)+(Summary!N19/12)*2 -> 117.5813873
B71: 10 hot (Sec 745) | C71: =C$22*MIN(K26,X26)+IF(X26-K26>0,C$23*(X26-K26))+ROUND($F$14*365/12,2)+(Summary!N19/12)*2 -> 214.2986818 | D71: =C$22*MIN(L26,Y26)+IF(Y26-L26>0,C$23*(Y26-L26))+ROUND($F$14*365/12,2)+(Summary!N19/12)*2 -> 133.8656844 | E71: =D$22*MIN(K26,X26)+IF(X26-K26>0,D$23*(X26-K26))+ROUND($F$14*365/12,2)+(Summary!N19/12)*2 -> 208.1034353 | F71: =D$22*MIN(L26,Y26)+IF(Y26-L26>0,D$23*(Y26-L26))+ROUND($F$14*365/12,2)+(Summary!N19/12)*2 -> 129.9064521 | G71: =E$22*MIN(K26,X26)+IF(X26-K26>0,E$23*(X26-K26))+ROUND($F$14*365/12,2)+(Summary!N19/12)*2 -> 215.2101673 | H71: =E$22*MIN(L26,Y26)+IF(Y26-L26>0,E$23*(Y26-L26))+ROUND($F$14*365/12,2)+(Summary!N19/12)*2 -> 134.4462867 | I71: =F$22*MIN(K26,X26)+IF(X26-K26>0,F$23*(X26-K26))+ROUND($F$14*365/12,2)+(Summary!N19/12)*2 -> 239.7642472 | J71: =F$22*MIN(L26,Y26)+IF(Y26-L26>0,F$23*(Y26-L26))+ROUND($F$14*365/12,2)+(Summary!N19/12)*2 -> 150.13162 | L71: 10 hot (Sec 745) | M71: =C$22*MIN(I26,$L$64)+IF($L$64-I26>0,C$23*($L$64-I26))+ROUND($F$14*365/12,2)+(Summary!N19/12)*2 -> 158.1466667 | N71: =C$22*MIN(J26,$L$64)+IF($L$64-J26>0,C$23*($L$64-J26))+ROUND($F$14*365/12,2)+(Summary!N19/12)*2 -> 170.6994792 | O71: =D$22*MIN(I26,$L$64)+IF($L$64-I26>0,D$23*($L$64-I26))+ROUND($F$14*365/12,2)+(Summary!N19/12)*2 -> 153.5116667 | P71: =D$22*MIN(J26,$L$64)+IF($L$64-J26>0,D$23*($L$64-J26))+ROUND($F$14*365/12,2)+(Summary!N19/12)*2 -> 165.7174394 | Q71: =E$22*MIN(I26,$L$64)+IF($L$64-I26>0,E$23*($L$64-I26))+ROUND($F$14*365/12,2)+(Summary!N19/12)*2 -> 158.826367 | R71: =E$22*MIN(J26,$L$64)+IF($L$64-J26>0,E$23*($L$64-J26))+ROUND($F$14*365/12,2)+(Summary!N19/12)*2 -> 171.432807 | S71: =F$22*MIN(I26,$L$64)+IF($L$64-I26>0,F$23*($L$64-I26))+ROUND($F$14*365/12,2)+(Summary!N19/12)*2 -> 177.1888965 | T71: =F$22*MIN(J26,$L$64)+IF($L$64-J26>0,F$23*($L$64-J26))+ROUND($F$14*365/12,2)+(Summary!N19/12)*2 -> 191.1796598 | V71: 10 hot (Sec 745) | W71: =C$28*MIN(I26,$L$64)+IF($L$64-I26>0,C$29*($L$64-I26))+ROUND($P$14*365/12,2)+(Summary!N19/12)*2 -> 95.69666667 | X71: =C$28*MIN(J26,$L$64)+IF($L$64-J26>0,C$29*($L$64-J26))+ROUND($P$14*365/12,2)+(Summary!N19/12)*2 -> 104.1694523 | Y71: =D$28*MIN(I26,$L$64)+IF($L$64-I26>0,D$29*($L$64-I26))+ROUND($P$14*365/12,2)+(Summary!N19/12)*2 -> 93.04166667 | Z71: =D$28*MIN(J26,$L$64)+IF($L$64-J26>0,D$29*($L$64-J26))+ROUND($P$14*365/12,2)+(Summary!N19/12)*2 -> 101.2808932 | AA71: =E$28*MIN(I26,$L$64)+IF($L$64-I26>0,E$29*($L$64-I26))+ROUND($P$14*365/12,2)+(Summary!N19/12)*2 -> 96.38122405 | AB71: =E$28*MIN(J26,$L$64)+IF($L$64-J26>0,E$29*($L$64-J26))+ROUND($P$14*365/12,2)+(Summary!N19/12)*2 -> 104.8909117 | AC71: =F$28*MIN(I26,$L$64)+IF($L$64-I26>0,F$29*($L$64-I26))+ROUND($P$14*365/12,2)+(Summary!N19/12)*2 -> 107.9195455 | AD71: =F$28*MIN(J26,$L$64)+IF($L$64-J26>0,F$29*($L$64-J26))+ROUND($P$14*365/12,2)+(Summary!N19/12)*2 -> 117.3636889
B72: 13 hot | C72: =C$22*MIN(K27,X27)+IF(X27-K27>0,C$23*(X27-K27))+ROUND($F$14*365/12,2)+(Summary!N19/12)*2 -> 335.226579 | D72: =C$22*MIN(L27,Y27)+IF(Y27-L27>0,C$23*(Y27-L27))+ROUND($F$14*365/12,2)+(Summary!N19/12)*2 -> 183.0327474 | E72: =D$22*MIN(K27,X27)+IF(X27-K27>0,D$23*(X27-K27))+ROUND($F$14*365/12,2)+(Summary!N19/12)*2 -> 325.667282 | F72: =D$22*MIN(L27,Y27)+IF(Y27-L27>0,D$23*(Y27-L27))+ROUND($F$14*365/12,2)+(Summary!N19/12)*2 -> 177.7051391 | G72: =E$22*MIN(K27,X27)+IF(X27-K27>0,E$23*(X27-K27))+ROUND($F$14*365/12,2)+(Summary!N19/12)*2 -> 336.6331698 | H72: =E$22*MIN(L27,Y27)+IF(Y27-L27>0,E$23*(Y27-L27))+ROUND($F$14*365/12,2)+(Summary!N19/12)*2 -> 183.8140154 | I72: =F$22*MIN(K27,X27)+IF(X27-K27>0,F$23*(X27-K27))+ROUND($F$14*365/12,2)+(Summary!N19/12)*2 -> 374.520807 | J72: =F$22*MIN(L27,Y27)+IF(Y27-L27>0,F$23*(Y27-L27))+ROUND($F$14*365/12,2)+(Summary!N19/12)*2 -> 204.9204586 | L72: 13 hot | M72: =C$22*MIN(I27,$L$64)+IF($L$64-I27>0,C$23*($L$64-I27))+ROUND($F$14*365/12,2)+(Summary!N19/12)*2 -> 158.1466667 | N72: =C$22*MIN(J27,$L$64)+IF($L$64-J27>0,C$23*($L$64-J27))+ROUND($F$14*365/12,2)+(Summary!N19/12)*2 -> 170.4101223 | O72: =D$22*MIN(I27,$L$64)+IF($L$64-I27>0,D$23*($L$64-I27))+ROUND($F$14*365/12,2)+(Summary!N19/12)*2 -> 153.5116667 | P72: =D$22*MIN(J27,$L$64)+IF($L$64-J27>0,D$23*($L$64-J27))+ROUND($F$14*365/12,2)+(Summary!N19/12)*2 -> 165.4360822 | Q72: =E$22*MIN(I27,$L$64)+IF($L$64-I27>0,E$23*($L$64-I27))+ROUND($F$14*365/12,2)+(Summary!N19/12)*2 -> 158.826367 | R72: =E$22*MIN(J27,$L$64)+IF($L$64-J27>0,E$23*($L$64-J27))+ROUND($F$14*365/12,2)+(Summary!N19/12)*2 -> 171.1422139 | S72: =F$22*MIN(I27,$L$64)+IF($L$64-I27>0,F$23*($L$64-I27))+ROUND($F$14*365/12,2)+(Summary!N19/12)*2 -> 177.1888965 | T72: =F$22*MIN(J27,$L$64)+IF($L$64-J27>0,F$23*($L$64-J27))+ROUND($F$14*365/12,2)+(Summary!N19/12)*2 -> 190.8571564 | V72: 13 hot | W72: =C$28*MIN(I27,$L$64)+IF($L$64-I27>0,C$29*($L$64-I27))+ROUND($P$14*365/12,2)+(Summary!N19/12)*2 -> 95.69666667 | X72: =C$28*MIN(J27,$L$64)+IF($L$64-J27>0,C$29*($L$64-J27))+ROUND($P$14*365/12,2)+(Summary!N19/12)*2 -> 103.9741447 | Y72: =D$28*MIN(I27,$L$64)+IF($L$64-I27>0,D$29*($L$64-I27))+ROUND($P$14*365/12,2)+(Summary!N19/12)*2 -> 93.04166667 | Z72: =D$28*MIN(J27,$L$64)+IF($L$64-J27>0,D$29*($L$64-J27))+ROUND($P$14*365/12,2)+(Summary!N19/12)*2 -> 101.0909694 | AA72: =E$28*MIN(I27,$L$64)+IF($L$64-I27>0,E$29*($L$64-I27))+ROUND($P$14*365/12,2)+(Summary!N19/12)*2 -> 96.38122405 | AB72: =E$28*MIN(J27,$L$64)+IF($L$64-J27>0,E$29*($L$64-J27))+ROUND($P$14*365/12,2)+(Summary!N19/12)*2 -> 104.6947535 | AC72: =F$28*MIN(I27,$L$64)+IF($L$64-I27>0,F$29*($L$64-I27))+ROUND($P$14*365/12,2)+(Summary!N19/12)*2 -> 107.9195455 | AD72: =F$28*MIN(J27,$L$64)+IF($L$64-J27>0,F$29*($L$64-J27))+ROUND($P$14*365/12,2)+(Summary!N19/12)*2 -> 117.1459904
B73: 14 hot | C73: =C$22*MIN(K28,X28)+IF(X28-K28>0,C$23*(X28-K28))+ROUND($F$14*365/12,2)+(Summary!N19/12)*2 -> 261.8114378 | D73: =C$22*MIN(L28,Y28)+IF(Y28-L28>0,C$23*(Y28-L28))+ROUND($F$14*365/12,2)+(Summary!N19/12)*2 -> 177.0324501 | E73: =D$22*MIN(K28,X28)+IF(X28-K28>0,D$23*(X28-K28))+ROUND($F$14*365/12,2)+(Summary!N19/12)*2 -> 254.2947257 | F73: =D$22*MIN(L28,Y28)+IF(Y28-L28>0,D$23*(Y28-L28))+ROUND($F$14*365/12,2)+(Summary!N19/12)*2 -> 171.871837 | G73: =E$22*MIN(K28,X28)+IF(X28-K28>0,E$23*(X28-K28))+ROUND($F$14*365/12,2)+(Summary!N19/12)*2 -> 262.9177349 | H73: =E$22*MIN(L28,Y28)+IF(Y28-L28>0,E$23*(Y28-L28))+ROUND($F$14*365/12,2)+(Summary!N19/12)*2 -> 177.7892291 | I73: =F$22*MIN(K28,X28)+IF(X28-K28>0,F$23*(X28-K28))+ROUND($F$14*365/12,2)+(Summary!N19/12)*2 -> 292.7106211 | J73: =F$22*MIN(L28,Y28)+IF(Y28-L28>0,F$23*(Y28-L28))+ROUND($F$14*365/12,2)+(Summary!N19/12)*2 -> 198.2340857 | L73: 14 hot | M73: =C$22*MIN(I28,$L$64)+IF($L$64-I28>0,C$23*($L$64-I28))+ROUND($F$14*365/12,2)+(Summary!N19/12)*2 -> 158.1466667 | N73: =C$22*MIN(J28,$L$64)+IF($L$64-J28>0,C$23*($L$64-J28))+ROUND($F$14*365/12,2)+(Summary!N19/12)*2 -> 171.2781931 | O73: =D$22*MIN(I28,$L$64)+IF($L$64-I28>0,D$23*($L$64-I28))+ROUND($F$14*365/12,2)+(Summary!N19/12)*2 -> 153.5116667 | P73: =D$22*MIN(J28,$L$64)+IF($L$64-J28>0,D$23*($L$64-J28))+ROUND($F$14*365/12,2)+(Summary!N19/12)*2 -> 166.2801539 | Q73: =E$22*MIN(I28,$L$64)+IF($L$64-I28>0,E$23*($L$64-I28))+ROUND($F$14*365/12,2)+(Summary!N19/12)*2 -> 158.826367 | R73: =E$22*MIN(J28,$L$64)+IF($L$64-J28>0,E$23*($L$64-J28))+ROUND($F$14*365/12,2)+(Summary!N19/12)*2 -> 172.0139931 | S73: =F$22*MIN(I28,$L$64)+IF($L$64-I28>0,F$23*($L$64-I28))+ROUND($F$14*365/12,2)+(Summary!N19/12)*2 -> 177.1888965 | T73: =F$22*MIN(J28,$L$64)+IF($L$64-J28>0,F$23*($L$64-J28))+ROUND($F$14*365/12,2)+(Summary!N19/12)*2 -> 191.8246665 | V73: 14 hot | W73: =C$28*MIN(I28,$L$64)+IF($L$64-I28>0,C$29*($L$64-I28))+ROUND($P$14*365/12,2)+(Summary!N19/12)*2 -> 95.69666667 | X73: =C$28*MIN(J28,$L$64)+IF($L$64-J28>0,C$29*($L$64-J28))+ROUND($P$14*365/12,2)+(Summary!N19/12)*2 -> 104.5600674 | Y73: =D$28*MIN(I28,$L$64)+IF($L$64-I28>0,D$29*($L$64-I28))+ROUND($P$14*365/12,2)+(Summary!N19/12)*2 -> 93.04166667 | Z73: =D$28*MIN(J28,$L$64)+IF($L$64-J28>0,D$29*($L$64-J28))+ROUND($P$14*365/12,2)+(Summary!N19/12)*2 -> 101.6607407 | AA73: =E$28*MIN(I28,$L$64)+IF($L$64-I28>0,E$29*($L$64-I28))+ROUND($P$14*365/12,2)+(Summary!N19/12)*2 -> 96.38122405 | AB73: =E$28*MIN(J28,$L$64)+IF($L$64-J28>0,E$29*($L$64-J28))+ROUND($P$14*365/12,2)+(Summary!N19/12)*2 -> 105.2832281 | AC73: =F$28*MIN(I28,$L$64)+IF($L$64-I28>0,F$29*($L$64-I28))+ROUND($P$14*365/12,2)+(Summary!N19/12)*2 -> 107.9195455 | AD73: =F$28*MIN(J28,$L$64)+IF($L$64-J28>0,F$29*($L$64-J28))+ROUND($P$14*365/12,2)+(Summary!N19/12)*2 -> 117.7990858
B74: 15 hot | C74: =C$22*MIN(K29,X29)+IF(X29-K29>0,C$23*(X29-K29))+ROUND($F$14*365/12,2)+(Summary!N19/12)*2 -> 318.2418316 | D74: =C$22*MIN(L29,Y29)+IF(Y29-L29>0,C$23*(Y29-L29))+ROUND($F$14*365/12,2)+(Summary!N19/12)*2 -> 142.037756 | E74: =D$22*MIN(K29,X29)+IF(X29-K29>0,D$23*(X29-K29))+ROUND($F$14*365/12,2)+(Summary!N19/12)*2 -> 309.1546257 | F74: =D$22*MIN(L29,Y29)+IF(Y29-L29>0,D$23*(Y29-L29))+ROUND($F$14*365/12,2)+(Summary!N19/12)*2 -> 137.8510855 | G74: =E$22*MIN(K29,X29)+IF(X29-K29>0,E$23*(X29-K29))+ROUND($F$14*365/12,2)+(Summary!N19/12)*2 -> 319.5784683 | H74: =E$22*MIN(L29,Y29)+IF(Y29-L29>0,E$23*(Y29-L29))+ROUND($F$14*365/12,2)+(Summary!N19/12)*2 -> 142.6517109 | I74: =F$22*MIN(K29,X29)+IF(X29-K29>0,F$23*(X29-K29))+ROUND($F$14*365/12,2)+(Summary!N19/12)*2 -> 355.5933151 | J74: =F$22*MIN(L29,Y29)+IF(Y29-L29>0,F$23*(Y29-L29))+ROUND($F$14*365/12,2)+(Summary!N19/12)*2 -> 159.2380885 | L74: 15 hot | M74: =C$22*MIN(I29,$L$64)+IF($L$64-I29>0,C$23*($L$64-I29))+ROUND($F$14*365/12,2)+(Summary!N19/12)*2 -> 158.1466667 | N74: =C$22*MIN(J29,$L$64)+IF($L$64-J29>0,C$23*($L$64-J29))+ROUND($F$14*365/12,2)+(Summary!N19/12)*2 -> 177.6440453 | O74: =D$22*MIN(I29,$L$64)+IF($L$64-I29>0,D$23*($L$64-I29))+ROUND($F$14*365/12,2)+(Summary!N19/12)*2 -> 153.5116667 | P74: =D$22*MIN(J29,$L$64)+IF($L$64-J29>0,D$23*($L$64-J29))+ROUND($F$14*365/12,2)+(Summary!N19/12)*2 -> 172.4700134 | Q74: =E$22*MIN(I29,$L$64)+IF($L$64-I29>0,E$23*($L$64-I29))+ROUND($F$14*365/12,2)+(Summary!N19/12)*2 -> 158.826367 | R74: =E$22*MIN(J29,$L$64)+IF($L$64-J29>0,E$23*($L$64-J29))+ROUND($F$14*365/12,2)+(Summary!N19/12)*2 -> 178.4070412 | S74: =F$22*MIN(I29,$L$64)+IF($L$64-I29>0,F$23*($L$64-I29))+ROUND($F$14*365/12,2)+(Summary!N19/12)*2 -> 177.1888965 | T74: =F$22*MIN(J29,$L$64)+IF($L$64-J29>0,F$23*($L$64-J29))+ROUND($F$14*365/12,2)+(Summary!N19/12)*2 -> 198.9197403 | V74: 15 hot | W74: =C$28*MIN(I29,$L$64)+IF($L$64-I29>0,C$29*($L$64-I29))+ROUND($P$14*365/12,2)+(Summary!N19/12)*2 -> 95.69666667 | X74: =C$28*MIN(J29,$L$64)+IF($L$64-J29>0,C$29*($L$64-J29))+ROUND($P$14*365/12,2)+(Summary!N19/12)*2 -> 108.8568336 | Y74: =D$28*MIN(I29,$L$64)+IF($L$64-I29>0,D$29*($L$64-I29))+ROUND($P$14*365/12,2)+(Summary!N19/12)*2 -> 93.04166667 | Z74: =D$28*MIN(J29,$L$64)+IF($L$64-J29>0,D$29*($L$64-J29))+ROUND($P$14*365/12,2)+(Summary!N19/12)*2 -> 105.8390631 | AA74: =E$28*MIN(I29,$L$64)+IF($L$64-I29>0,E$29*($L$64-I29))+ROUND($P$14*365/12,2)+(Summary!N19/12)*2 -> 96.38122405 | AB74: =E$28*MIN(J29,$L$64)+IF($L$64-J29>0,E$29*($L$64-J29))+ROUND($P$14*365/12,2)+(Summary!N19/12)*2 -> 109.5987084 | AC74: =F$28*MIN(I29,$L$64)+IF($L$64-I29>0,F$29*($L$64-I29))+ROUND($P$14*365/12,2)+(Summary!N19/12)*2 -> 107.9195455 | AD74: =F$28*MIN(J29,$L$64)+IF($L$64-J29>0,F$29*($L$64-J29))+ROUND($P$14*365/12,2)+(Summary!N19/12)*2 -> 122.5884524
B75: 16 cool | C75: =C$22*MIN(K30,X30)+IF(X30-K30>0,C$23*(X30-K30))+ROUND($F$14*365/12,2)+(Summary!N19/12)*2 -> 145.1725175 | D75: =C$22*MIN(L30,Y30)+IF(Y30-L30>0,C$23*(Y30-L30))+ROUND($F$14*365/12,2)+(Summary!N19/12)*2 -> 171.0245404 | E75: =D$22*MIN(K30,X30)+IF(X30-K30>0,D$23*(X30-K30))+ROUND($F$14*365/12,2)+(Summary!N19/12)*2 -> 140.8992923 | F75: =D$22*MIN(L30,Y30)+IF(Y30-L30>0,D$23*(Y30-L30))+ROUND($F$14*365/12,2)+(Summary!N19/12)*2 -> 166.0311344 | G75: =E$22*MIN(K30,X30)+IF(X30-K30>0,E$23*(X30-K30))+ROUND($F$14*365/12,2)+(Summary!N19/12)*2 -> 145.7999783 | H75: =E$22*MIN(L30,Y30)+IF(Y30-L30>0,E$23*(Y30-L30))+ROUND($F$14*365/12,2)+(Summary!N19/12)*2 -> 171.7567993 | I75: =F$22*MIN(K30,X30)+IF(X30-K30>0,F$23*(X30-K30))+ROUND($F$14*365/12,2)+(Summary!N19/12)*2 -> 162.7320697 | J75: =F$22*MIN(L30,Y30)+IF(Y30-L30>0,F$23*(Y30-L30))+ROUND($F$14*365/12,2)+(Summary!N19/12)*2 -> 191.5392299 | L75: 16 cool | M75: =C$22*MIN(I30,$L$64)+IF($L$64-I30>0,C$23*($L$64-I30))+ROUND($F$14*365/12,2)+(Summary!N19/12)*2 -> 163.1761993 | N75: =C$22*MIN(J30,$L$64)+IF($L$64-J30>0,C$23*($L$64-J30))+ROUND($F$14*365/12,2)+(Summary!N19/12)*2 -> 169.8314085 | O75: =D$22*MIN(I30,$L$64)+IF($L$64-I30>0,D$23*($L$64-I30))+ROUND($F$14*365/12,2)+(Summary!N19/12)*2 -> 158.4021509 | P75: =D$22*MIN(J30,$L$64)+IF($L$64-J30>0,D$23*($L$64-J30))+ROUND($F$14*365/12,2)+(Summary!N19/12)*2 -> 164.8733677 | Q75: =E$22*MIN(I30,$L$64)+IF($L$64-I30>0,E$23*($L$64-I30))+ROUND($F$14*365/12,2)+(Summary!N19/12)*2 -> 163.8773865 | R75: =E$22*MIN(J30,$L$64)+IF($L$64-J30>0,E$23*($L$64-J30))+ROUND($F$14*365/12,2)+(Summary!N19/12)*2 -> 170.5610277 | S75: =F$22*MIN(I30,$L$64)+IF($L$64-I30>0,F$23*($L$64-I30))+ROUND($F$14*365/12,2)+(Summary!N19/12)*2 -> 182.7945725 | T75: =F$22*MIN(J30,$L$64)+IF($L$64-J30>0,F$23*($L$64-J30))+ROUND($F$14*365/12,2)+(Summary!N19/12)*2 -> 190.2121497 | V75: 16 cool | W75: =C$28*MIN(I30,$L$64)+IF($L$64-I30>0,C$29*($L$64-I30))+ROUND($P$14*365/12,2)+(Summary!N19/12)*2 -> 99.09145579 | X75: =C$28*MIN(J30,$L$64)+IF($L$64-J30>0,C$29*($L$64-J30))+ROUND($P$14*365/12,2)+(Summary!N19/12)*2 -> 103.5835296 | Y75: =D$28*MIN(I30,$L$64)+IF($L$64-I30>0,D$29*($L$64-I30))+ROUND($P$14*365/12,2)+(Summary!N19/12)*2 -> 96.34287571 | Z75: =D$28*MIN(J30,$L$64)+IF($L$64-J30>0,D$29*($L$64-J30))+ROUND($P$14*365/12,2)+(Summary!N19/12)*2 -> 100.7111219 | AA75: =E$28*MIN(I30,$L$64)+IF($L$64-I30>0,E$29*($L$64-I30))+ROUND($P$14*365/12,2)+(Summary!N19/12)*2 -> 99.79079872 | AB75: =E$28*MIN(J30,$L$64)+IF($L$64-J30>0,E$29*($L$64-J30))+ROUND($P$14*365/12,2)+(Summary!N19/12)*2 -> 104.3024372 | AC75: =F$28*MIN(I30,$L$64)+IF($L$64-I30>0,F$29*($L$64-I30))+ROUND($P$14*365/12,2)+(Summary!N19/12)*2 -> 111.7035283 | AD75: =F$28*MIN(J30,$L$64)+IF($L$64-J30>0,F$29*($L$64-J30))+ROUND($P$14*365/12,2)+(Summary!N19/12)*2 -> 116.7105934
B76: ALL | C76: =SUMPRODUCT(C67:C75,$AB$22:$AB$30) -> 170.5525392 | D76: =SUMPRODUCT(D67:D75,$AB$22:$AB$30) -> 122.7394486 | E76: =SUMPRODUCT(E67:E75,$AB$22:$AB$30) -> 165.5742872 | F76: 119.0898723 | G76: =SUMPRODUCT(G67:G75,$AB$22:$AB$30) -> 171.2849556 | H76: 123.2746413 | I76: =SUMPRODUCT(I67:I75,$AB$22:$AB$30) -> 191.0155728 | J76: 137.7332073 | L76: ALL | M76: =SUMPRODUCT(M67:M75,$T$22:$T$30) -> 163.1865905 | N76: 172.6631873 | O76: 158.4122548 | P76: 167.6268581 | Q76: 163.8878221 | R76: 173.4049042 | S76: 182.806154 | T76: 193.3683146 | V76: ALL | W76: =SUMPRODUCT(W67:W75,$U$22:$U$30) -> 97.49991605 | X76: =SUMPRODUCT(X67:X75,$U$22:$U$30) -> 105.0373775 | Y76: 94.79520803 | Z76: 102.1248933 | AA76: 98.19232724 | AB76: 105.7626171 | AC76: 109.9295274 | AD76: 118.3311169
C79: All-Electric - CARE
C80: =C50 -> Jan 2025 | E80: 2025-06-01 | G80: Authorized | I80: w/Pending
C81: Summer | D81: Winter | E81: Summer | F81: Winter | G81: Summer | H81: Winter | I81: Summer | J81: Winter
B82: =B52 -> 5 warm | C82: =C$28*MIN(K22,Z22)+IF(Z22-K22>0,C$29*(Z22-K22))+ROUND($P$14*365/12,2)+(Summary!N19/12)*2 -> 65.22108628 | D82: =C$28*MIN(L22,AA22)+IF(AA22-L22>0,C$29*(AA22-L22))+ROUND($P$14*365/12,2)+(Summary!N19/12)*2 -> 81.09158675 | E82: =D$28*MIN(K22,Z22)+IF(Z22-K22>0,D$29*(Z22-K22))+ROUND($P$14*365/12,2)+(Summary!N19/12)*2 -> 63.34118606 | F82: =D$28*MIN(L22,AA22)+IF(AA22-L22>0,D$29*(AA22-L22))+ROUND($P$14*365/12,2)+(Summary!N19/12)*2 -> 78.80804462 | G82: =E$28*MIN(K22,Z22)+IF(Z22-K22>0,E$29*(Z22-K22))+ROUND($P$14*365/12,2)+(Summary!N19/12)*2 -> 65.70579422 | H82: =E$28*MIN(L22,AA22)+IF(AA22-L22>0,E$29*(AA22-L22))+ROUND($P$14*365/12,2)+(Summary!N19/12)*2 -> 81.68036853 | I82: =F$28*MIN(K22,Z22)+IF(Z22-K22>0,F$29*(Z22-K22))+ROUND($P$14*365/12,2)+(Summary!N19/12)*2 -> 73.87562213 | J82: =F$28*MIN(L22,AA22)+IF(AA22-L22>0,F$29*(AA22-L22))+ROUND($P$14*365/12,2)+(Summary!N19/12)*2 -> 91.60437727
B83: 6 cool | C83: =C$28*MIN(K23,Z23)+IF(Z23-K23>0,C$29*(Z23-K23))+ROUND($P$14*365/12,2)+(Summary!N19/12)*2 -> 73.81412083 | D83: =C$28*MIN(L23,AA23)+IF(AA23-L23>0,C$29*(AA23-L23))+ROUND($P$14*365/12,2)+(Summary!N19/12)*2 -> 69.31351055 | E83: =D$28*MIN(K23,Z23)+IF(Z23-K23>0,D$29*(Z23-K23))+ROUND($P$14*365/12,2)+(Summary!N19/12)*2 -> 71.70199857 | F83: =D$28*MIN(L23,AA23)+IF(AA23-L23>0,D$29*(AA23-L23))+ROUND($P$14*365/12,2)+(Summary!N19/12)*2 -> 67.32952578 | G83: =E$28*MIN(K23,Z23)+IF(Z23-K23>0,E$29*(Z23-K23))+ROUND($P$14*365/12,2)+(Summary!N19/12)*2 -> 74.34105911 | H83: =E$28*MIN(L23,AA23)+IF(AA23-L23>0,E$29*(AA23-L23))+ROUND($P$14*365/12,2)+(Summary!N19/12)*2 -> 69.82505534 | I83: =F$28*MIN(K23,Z23)+IF(Z23-K23>0,F$29*(Z23-K23))+ROUND($P$14*365/12,2)+(Summary!N19/12)*2 -> 83.4591324 | J83: =F$28*MIN(L23,AA23)+IF(AA23-L23>0,F$29*(AA23-L23))+ROUND($P$14*365/12,2)+(Summary!N19/12)*2 -> 78.44722263
B84: 8 cool | C84: =C$28*MIN(K24,Z24)+IF(Z24-K24>0,C$29*(Z24-K24))+ROUND($P$14*365/12,2)+(Summary!N19/12)*2 -> 85.10223134 | D84: =C$28*MIN(L24,AA24)+IF(AA24-L24>0,C$29*(AA24-L24))+ROUND($P$14*365/12,2)+(Summary!N19/12)*2 -> 68.60818415 | E84: =D$28*MIN(K24,Z24)+IF(Z24-K24>0,D$29*(Z24-K24))+ROUND($P$14*365/12,2)+(Summary!N19/12)*2 -> 82.70117381 | F84: =D$28*MIN(L24,AA24)+IF(AA24-L24>0,D$29*(AA24-L24))+ROUND($P$14*365/12,2)+(Summary!N19/12)*2 -> 66.64213827 | G84: =E$28*MIN(K24,Z24)+IF(Z24-K24>0,E$29*(Z24-K24))+ROUND($P$14*365/12,2)+(Summary!N19/12)*2 -> 85.70129374 | H84: =E$28*MIN(L24,AA24)+IF(AA24-L24>0,E$29*(AA24-L24))+ROUND($P$14*365/12,2)+(Summary!N19/12)*2 -> 69.11510363 | I84: =F$28*MIN(K24,Z24)+IF(Z24-K24>0,F$29*(Z24-K24))+ROUND($P$14*365/12,2)+(Summary!N19/12)*2 -> 96.0668435 | J84: =F$28*MIN(L24,AA24)+IF(AA24-L24>0,F$29*(AA24-L24))+ROUND($P$14*365/12,2)+(Summary!N19/12)*2 -> 77.65931054
B85: 9 warm | C85: =C$28*MIN(K25,Z25)+IF(Z25-K25>0,C$29*(Z25-K25))+ROUND($P$14*365/12,2)+(Summary!N19/12)*2 -> 106.1209049 | D85: =C$28*MIN(L25,AA25)+IF(AA25-L25>0,C$29*(AA25-L25))+ROUND($P$14*365/12,2)+(Summary!N19/12)*2 -> 69.73827691 | E85: =D$28*MIN(K25,Z25)+IF(Z25-K25>0,D$29*(Z25-K25))+ROUND($P$14*365/12,2)+(Summary!N19/12)*2 -> 103.1830088 | F85: =D$28*MIN(L25,AA25)+IF(AA25-L25>0,D$29*(AA25-L25))+ROUND($P$14*365/12,2)+(Summary!N19/12)*2 -> 67.74348886 | G85: =E$28*MIN(K25,Z25)+IF(Z25-K25>0,E$29*(Z25-K25))+ROUND($P$14*365/12,2)+(Summary!N19/12)*2 -> 106.8554663 | H85: =E$28*MIN(L25,AA25)+IF(AA25-L25>0,E$29*(AA25-L25))+ROUND($P$14*365/12,2)+(Summary!N19/12)*2 -> 70.25260719 | I85: =F$28*MIN(K25,Z25)+IF(Z25-K25>0,F$29*(Z25-K25))+ROUND($P$14*365/12,2)+(Summary!N19/12)*2 -> 119.5439728 | J85: =F$28*MIN(L25,AA25)+IF(AA25-L25>0,F$29*(AA25-L25))+ROUND($P$14*365/12,2)+(Summary!N19/12)*2 -> 78.92172428
B86: 10 hot (Sec 745) | C86: =C$28*MIN(K26,Z26)+IF(Z26-K26>0,C$29*(Z26-K26))+ROUND($P$14*365/12,2)+(Summary!N19/12)*2 -> 140.5151579 | D86: =C$28*MIN(L26,AA26)+IF(AA26-L26>0,C$29*(AA26-L26))+ROUND($P$14*365/12,2)+(Summary!N19/12)*2 -> 80.27071156 | E86: =D$28*MIN(K26,Z26)+IF(Z26-K26>0,D$29*(Z26-K26))+ROUND($P$14*365/12,2)+(Summary!N19/12)*2 -> 136.6960755 | F86: =D$28*MIN(L26,AA26)+IF(AA26-L26>0,D$29*(AA26-L26))+ROUND($P$14*365/12,2)+(Summary!N19/12)*2 -> 78.00804713 | G86: =E$28*MIN(K26,Z26)+IF(Z26-K26>0,E$29*(Z26-K26))+ROUND($P$14*365/12,2)+(Summary!N19/12)*2 -> 141.4686343 | H86: =E$28*MIN(L26,AA26)+IF(AA26-L26>0,E$29*(AA26-L26))+ROUND($P$14*365/12,2)+(Summary!N19/12)*2 -> 80.85411029 | I86: =F$28*MIN(K26,Z26)+IF(Z26-K26>0,F$29*(Z26-K26))+ROUND($P$14*365/12,2)+(Summary!N19/12)*2 -> 157.9580405 | J86: =F$28*MIN(L26,AA26)+IF(AA26-L26>0,F$29*(AA26-L26))+ROUND($P$14*365/12,2)+(Summary!N19/12)*2 -> 90.68738695
B87: 13 hot | C87: =C$28*MIN(K27,Z27)+IF(Z27-K27>0,C$29*(Z27-K27))+ROUND($P$14*365/12,2)+(Summary!N19/12)*2 -> 206.9051786 | D87: =C$28*MIN(L27,AA27)+IF(AA27-L27>0,C$29*(AA27-L27))+ROUND($P$14*365/12,2)+(Summary!N19/12)*2 -> 106.0765479 | E87: =D$28*MIN(K27,Z27)+IF(Z27-K27>0,D$29*(Z27-K27))+ROUND($P$14*365/12,2)+(Summary!N19/12)*2 -> 201.3907058 | F87: =D$28*MIN(L27,AA27)+IF(AA27-L27>0,D$29*(AA27-L27))+ROUND($P$14*365/12,2)+(Summary!N19/12)*2 -> 103.1575515 | G87: =E$28*MIN(K27,Z27)+IF(Z27-K27>0,E$29*(Z27-K27))+ROUND($P$14*365/12,2)+(Summary!N19/12)*2 -> 208.2869333 | H87: =E$28*MIN(L27,AA27)+IF(AA27-L27>0,E$29*(AA27-L27))+ROUND($P$14*365/12,2)+(Summary!N19/12)*2 -> 106.8291734 | I87: =F$28*MIN(K27,Z27)+IF(Z27-K27>0,F$29*(Z27-K27))+ROUND($P$14*365/12,2)+(Summary!N19/12)*2 -> 232.1137105 | J87: =F$28*MIN(L27,AA27)+IF(AA27-L27>0,F$29*(AA27-L27))+ROUND($P$14*365/12,2)+(Summary!N19/12)*2 -> 119.5147926
B88: 14 hot | C88: =C$28*MIN(K28,Z28)+IF(Z28-K28>0,C$29*(Z28-K28))+ROUND($P$14*365/12,2)+(Summary!N19/12)*2 -> 195.6352795 | D88: =C$28*MIN(L28,AA28)+IF(AA28-L28>0,C$29*(AA28-L28))+ROUND($P$14*365/12,2)+(Summary!N19/12)*2 -> 129.6431085 | E88: =D$28*MIN(K28,Z28)+IF(Z28-K28>0,D$29*(Z28-K28))+ROUND($P$14*365/12,2)+(Summary!N19/12)*2 -> 190.394937 | F88: =D$28*MIN(L28,AA28)+IF(AA28-L28>0,D$29*(AA28-L28))+ROUND($P$14*365/12,2)+(Summary!N19/12)*2 -> 126.1225551 | G88: =E$28*MIN(K28,Z28)+IF(Z28-K28>0,E$29*(Z28-K28))+ROUND($P$14*365/12,2)+(Summary!N19/12)*2 -> 196.9302169 | H88: =E$28*MIN(L28,AA28)+IF(AA28-L28>0,E$29*(AA28-L28))+ROUND($P$14*365/12,2)+(Summary!N19/12)*2 -> 130.5480271 | I88: =F$28*MIN(K28,Z28)+IF(Z28-K28>0,F$29*(Z28-K28))+ROUND($P$14*365/12,2)+(Summary!N19/12)*2 -> 219.509904 | J88: =F$28*MIN(L28,AA28)+IF(AA28-L28>0,F$29*(AA28-L28))+ROUND($P$14*365/12,2)+(Summary!N19/12)*2 -> 145.8382326
B89: 15 hot | C89: =C$28*MIN(K29,Z29)+IF(Z29-K29>0,C$29*(Z29-K29))+ROUND($P$14*365/12,2)+(Summary!N19/12)*2 -> 248.5974433 | D89: =C$28*MIN(L29,AA29)+IF(AA29-L29>0,C$29*(AA29-L29))+ROUND($P$14*365/12,2)+(Summary!N19/12)*2 -> 99.9353202 | E89: =D$28*MIN(K29,Z29)+IF(Z29-K29>0,D$29*(Z29-K29))+ROUND($P$14*365/12,2)+(Summary!N19/12)*2 -> 242.001044 | F89: =D$28*MIN(L29,AA29)+IF(AA29-L29>0,D$29*(AA29-L29))+ROUND($P$14*365/12,2)+(Summary!N19/12)*2 -> 97.17251653 | G89: =E$28*MIN(K29,Z29)+IF(Z29-K29>0,E$29*(Z29-K29))+ROUND($P$14*365/12,2)+(Summary!N19/12)*2 -> 250.2303482 | H89: =E$28*MIN(L29,AA29)+IF(AA29-L29>0,E$29*(AA29-L29))+ROUND($P$14*365/12,2)+(Summary!N19/12)*2 -> 100.6476734 | I89: =F$28*MIN(K29,Z29)+IF(Z29-K29>0,F$29*(Z29-K29))+ROUND($P$14*365/12,2)+(Summary!N19/12)*2 -> 278.6629654 | J89: =F$28*MIN(L29,AA29)+IF(AA29-L29>0,F$29*(AA29-L29))+ROUND($P$14*365/12,2)+(Summary!N19/12)*2 -> 112.6544971
B90: 16 cool | C90: =C$28*MIN(K30,Z30)+IF(Z30-K30>0,C$29*(Z30-K30))+ROUND($P$14*365/12,2)+(Summary!N19/12)*2 -> 155.7379709 | D90: =C$28*MIN(L30,AA30)+IF(AA30-L30>0,C$29*(AA30-L30))+ROUND($P$14*365/12,2)+(Summary!N19/12)*2 -> 110.3344052 | E90: =D$28*MIN(K30,Z30)+IF(Z30-K30>0,D$29*(Z30-K30))+ROUND($P$14*365/12,2)+(Summary!N19/12)*2 -> 151.5164405 | F90: =D$28*MIN(L30,AA30)+IF(AA30-L30>0,D$29*(AA30-L30))+ROUND($P$14*365/12,2)+(Summary!N19/12)*2 -> 107.3071167 | G90: =E$28*MIN(K30,Z30)+IF(Z30-K30>0,E$29*(Z30-K30))+ROUND($P$14*365/12,2)+(Summary!N19/12)*2 -> 156.7754932 | H90: =E$28*MIN(L30,AA30)+IF(AA30-L30>0,E$29*(AA30-L30))+ROUND($P$14*365/12,2)+(Summary!N19/12)*2 -> 111.1149524 | I90: =F$28*MIN(K30,Z30)+IF(Z30-K30>0,F$29*(Z30-K30))+ROUND($P$14*365/12,2)+(Summary!N19/12)*2 -> 174.9457579 | J90: =F$28*MIN(L30,AA30)+IF(AA30-L30>0,F$29*(AA30-L30))+ROUND($P$14*365/12,2)+(Summary!N19/12)*2 -> 124.2711964
B91: ALL | C91: =SUMPRODUCT(C82:C90,$AC$22:$AC$30) -> 131.764751 | D91: =SUMPRODUCT(D82:D90,$AC$22:$AC$30) -> 82.66851574 | E91: 128.1681776 | F91: 80.34471227 | G91: 132.6607993 | H91: 83.26747889 | I91: 148.18301 | J91: =SUMPRODUCT(J82:J90,$AC$22:$AC$30) -> 93.36576949
F95: 2025 | G95: 2026 | H95: 2027 | I95: 2028 | J95: 2029 | M95: =F95 -> 2025 | N95: =G95 -> 2026 | O95: 2027 | P95: 2028 | Q95: 2029
F96: Non-CARE | G96: Non-CARE | H96: Non-CARE | I96: Non-CARE | J96: Non-CARE | M96: CARE | N96: CARE | O96: CARE | P96: CARE | Q96: CARE
A97: 3 | D97: Baseline - Summer | F97: 3085.670937 | G97: 3212.955678 | H97: =H$107*(G97/SUM(G$97:G$102)) -> 3361.3201 | I97: =I$107*(H97/SUM(H$97:H$102)) -> 3436.146904 | J97: =I97 -> 3436.146904 | M97: 1783.360129 | N97: 1958.821051 | O97: =O$107*(N97/SUM(N$97:N$102)) -> 2049.273389 | P97: =P$107*(O97/SUM(O$97:O$102)) -> 2094.892543 | Q97: =P97 -> 2094.892543
A98: =A97+1 -> 4 | D98: - Winter | F98: 4290.291273 | G98: 4322.223791 | H98: =H$107*(G98/SUM(G$97:G$102)) -> 4521.810807 | I98: 4622.471452 | J98: =I98 -> 4622.471452 | M98: 2747.277654 | N98: 2998.647213 | O98: =O$107*(N98/SUM(N$97:N$102)) -> 3137.115528 | P98: 3206.951284 | Q98: =P98 -> 3206.951284
A99: =A98+1 -> 5 | D99: 101% - 400% of Baseline - Summer | F99: 1911.92882 | G99: 1978.159448 | H99: =H$107*(G99/SUM(G$97:G$102)) -> 2069.504773 | I99: 2115.574301 | J99: 2115.574301 | M99: 745.4907551 | N99: 810.8851861 | O99: =O$107*(N99/SUM(N$97:N$102)) -> 848.3293727 | P99: 867.2141484 | Q99: 867.2141484
A100: 6 | D100: - Winter | F100: 2615.804258 | G100: 2623.419373 | H100: =H$107*(G100/SUM(G$97:G$102)) -> 2744.56082 | I100: 2805.657861 | J100: 2805.657861 | M100: 1112.023766 | N100: 1203.876214 | O100: =O$107*(N100/SUM(N$97:N$102)) -> 1259.467519 | P100: 1287.504697 | Q100: 1287.504697
A101: 7 | D101: 401% of Baseline - Summer | F101: 151.6325582 | G101: 156.8173859 | H101: =H$107*(G101/SUM(G$97:G$102)) -> 164.058731 | I101: 167.7108647 | J101: 167.7108647 | M101: 8.477005966 | N101: 9.198530109 | O101: =O$107*(N101/SUM(N$97:N$102)) -> 9.623289969 | P101: 9.837515337 | Q101: 9.837515337
A102: 8 | D102: - Winter | F102: 262.8967474 | G102: 262.3862375 | H102: =H$107*(G102/SUM(G$97:G$102)) -> 274.5024278 | I102: 280.6131637 | J102: 280.6131637 | M102: 21.08018443 | N102: 22.5094031 | O102: =O$107*(N102/SUM(N$97:N$102)) -> 23.54881817 | P102: 24.07304162 | Q102: 24.07304162
A103: 9
A104: 10 | D104: Basic Charge - Single-Family Residence | F104: 18879671.95 | G104: 18148534.57 | H104: =$F107/SUM($F$107:$F$108)*H$108 -> 18276398.03 | I104: =$F107/SUM($F$107:$F$108)*I$108 -> 18404148.57 | J104: 18404148.57 | M104: 6433922.126 | N104: 7169673.093 | O104: =$M107/SUM($M$107:$M$108)*O$108 -> 7220186.22 | P104: 7270654.734 | Q104: 7270654.734
A105: 11 | D105: Basic Charge - Multi-Family Residence | F105: 8588406.524 | G105: 8255810.434 | H105: =$F108/SUM($F$107:$F$108)*H$108 -> 8313975.82 | I105: 8372089.834 | J105: 8372089.834 | M105: 5402078.398 | N105: 6019832.907 | O105: 6062244.964 | P105: 6104619.564 | Q105: 6104619.564
F107: =1-F108 -> 0.6873313679 | G107: =SUM(G97:G102) -> 12555.96191 | H107: =G107/'SAR and RAR'!$K$59*'SAR and RAR'!$K$60 -> 13135.75766 | I107: =H107/'SAR and RAR'!$K$60*'SAR and RAR'!$K$61 -> 13428.17455 | J107: =I107 -> 13428.17455 | M107: =1-M108 -> 0.5435892059 | N107: =SUM(N97:N102) -> 7003.937598 | O107: =N107/'SAR and RAR'!$K$59*'SAR and RAR'!$K$60 -> 7327.357917 | P107: =O107/'SAR and RAR'!$K$60*'SAR and RAR'!$K$61 -> 7490.473229 | Q107: =P107 -> 7490.473229
E108: Customers | F108: 0.3126686321 | G108: =SUM(G104:G105) -> 26404345 | H108: 26590373.85 | I108: 26776238.4 | J108: =I108 -> 26776238.4 | M108: 0.4564107941 | N108: =SUM(N104:N105) -> 13189506 | O108: 13282431.18 | P108: 13375274.3 | Q108: =P108 -> 13375274.3

Sheet Simple Bill Insert Calc (2)
B2: Inputs: | K2: Assumptions:
K3: Current Effective Rates | M3: =Summary!N3 -> 2025-06-01
C4: Baseline Region - (Residential bill) | D4: 9 warm | K4: Sales Forecast | M4: 2025
C5: Typical residential average usage kWh/month | D5: 500 | K5: Residential bill calculated using | M5: Schedule D, Basic, Single Family
C6: Include CA Climate Credit in Rates | D6: N | K6: Non-CARE bill impact calculated with average summer usage of | O6: =IF($D$4="All",SUMPRODUCT('Res Bill Impact (2)'!P$22:P$30,'Res Bill Impact (2)'!$T$22:$T$30),VLOOKUP(D$4,'Res Bill Impact (2)'!$O$22:$S$30,2,FALSE)) -> 736.1896342 | P6: kWh per month
D7: Revenue Change | K7: Non-CARE bill impact calculated with average winter usage of | O7: =IF($D$4="All",SUMPRODUCT('Res Bill Impact (2)'!Q$22:Q$30,'Res Bill Impact (2)'!$T$22:$T$30),VLOOKUP(D$4,'Res Bill Impact (2)'!$O$22:$S$30,3,FALSE)) -> 454.0542708 | P7: kWh per month
C8: Generation | K8: CARE bill impact calculated with average summer usage of | O8: =IF($D$4="All",SUMPRODUCT('Res Bill Impact (2)'!R$22:R$30,'Res Bill Impact (2)'!$U$22:$U$30),VLOOKUP(D$4,'Res Bill Impact (2)'!$O$22:$S$30,4,FALSE)) -> 685.496621 | P8: kWh per month
C9: Distribution | K9: CARE bill impact calculated with average winter usage of | O9: =IF($D$4="All",SUMPRODUCT('Res Bill Impact (2)'!S$22:S$30,'Res Bill Impact (2)'!$U$22:$U$30),VLOOKUP(D$4,'Res Bill Impact (2)'!$O$22:$S$30,5,FALSE)) -> 424.2446352 | P9: kWh per month
C10: Nuclear | K10: Essential Use (Basic) bill impact calculated with average summer usage of | O10: =IF($D$4="All",SUMPRODUCT('Res Bill Impact (2)'!I$22:I$30,'Res Bill Impact (2)'!$T$22:$T$30),VLOOKUP($D$4,'Res Bill Impact (2)'!$H$22:$L$30,2,FALSE)) -> 514.0473 | P10: kWh per month
C11: Public Purpose | K11: Essential Use (Basic) bill impact calculated with average winter usage of | O11: =IF($D$4="All",SUMPRODUCT('Res Bill Impact (2)'!J$22:J$30,'Res Bill Impact (2)'!$T$22:$T$30),VLOOKUP($D$4,'Res Bill Impact (2)'!$H$22:$L$30,3,FALSE)) -> 365.004 | P11: kWh per month
C12: DCPP | K12: Essential Use (All-Electric) bill impact calculated with average summer usage of | O12: =IF($D$4="All",SUMPRODUCT('Res Bill Impact (2)'!K$22:K$30,'Res Bill Impact (2)'!$T$22:$T$30),VLOOKUP($D$4,'Res Bill Impact (2)'!$H$22:$L$30,4,FALSE)) -> 380.2125 | P12: kWh per month
C13: New System Gen | K13: Essential Use (All-Electric) bill impact calculated with average winter usage of | O13: =IF($D$4="All",SUMPRODUCT('Res Bill Impact (2)'!L$22:L$30,'Res Bill Impact (2)'!$T$22:$T$30),VLOOKUP($D$4,'Res Bill Impact (2)'!$H$22:$L$30,5,FALSE)) -> 422.7963 | P13: kWh per month
C14: FERC | K14: Average monthly usage is for all customers (Non-CARE and CARE) based on seasonal usage in | Q14: 2024
C15: TOTCA | K15: Summer season | M15: 4 | N15: months
C16: GHG Revenue | K16: Winter Season | M16: 8 | N16: months
C17: DWR | K17: Residential Bi-Annual Climate Credit | M17: =Summary!N19 -> -56
C18: PUCRF
C19: SECURITIZATION
C20: Total | D20: =SUM(D8:D19) -> 0
B21: Outputs:
D22: (A) | E22: (B) | F22: (C) | G22: (C)/(A) | H22: (C)/(B) | L22: (A) | M22: (B) | N22: (C) | O22: (C)/(A) | P22: (C)/(B)
B23: Bundled Average Rates - ¢/kWh | J23: Total System (Bundled and Unbundled) Average Rates - ¢/kWh
B24: Customer Group | D24: =Summary!D32 -> 2025-01-01 | E24: =M3 -> 2025-06-01 | F24: Proposed | G24: % Change over 1/1/2025 | H24: % Change over Current | J24: Customer Group | L24: =$D$24 -> 2025-01-01 | M24: =$E$24 -> 2025-06-01 | N24: Proposed | O24: =$G$24 -> % Change over 1/1/2025 | P24: % Change over Current
B25: Residential | D25: =IF(D6="Y",'SAR and RAR'!W28,'SAR and RAR'!X28) -> 31.62973815 | E25: ='SAR and RAR (2)'!F24 -> 31.17865091 | F25: ='SAR and RAR (2)'!G24 -> 31.17865091 | G25: =$F25/D25-1 -> -0.0142614915 | H25: 0 | J25: Total Residential (RAR) | L25: =IF(D6="Y",'SAR and RAR'!Z28,'SAR and RAR'!AA28) -> 28.36130718 | M25: ='SAR and RAR (2)'!N24 -> 27.86095985 | N25: ='SAR and RAR (2)'!O24 -> 27.86095985 | O25: =$N25/L25-1 -> -0.01764189933 | P25: 0
C26: Small Commercial | D26: =IF(D6="Y",'SAR and AR (GS1)'!W28,'SAR and AR (GS1)'!X28) -> 29.17406766 | E26: ='SAR and AR (GS1) (2)'!G24 -> 28.4109163 | F26: ='SAR and AR (GS1) (2)'!H24 -> 28.4109163 | G26: -0.02615855181 | H26: 0 | K26: Small Commercial (AR) | L26: =IF(D6="Y",'SAR and AR (GS1)'!Z28,'SAR and AR (GS1)'!AA28) -> 25.77950096 | M26: ='SAR and AR (GS1) (2)'!O24 -> 25.01610122 | N26: ='SAR and AR (GS1) (2)'!P24 -> 25.01610122 | O26: -0.0296126659 | P26: 0
B27: System | D27: =IF(D6="Y",'SAR and RAR'!W29,'SAR and RAR'!X29) -> 27.30660685 | E27: ='SAR and RAR (2)'!F25 -> 26.64700642 | F27: ='SAR and RAR (2)'!G25 -> 26.64700642 | G27: -0.02415534197 | H27: 0 | J27: Total System (SAR) | L27: =IF(D6="Y",'SAR and RAR'!Z29,'SAR and RAR'!AA29) -> 22.91911704 | M27: ='SAR and RAR (2)'!N25 -> 22.25245758 | N27: ='SAR and RAR (2)'!O25 -> 22.25245758 | O27: -0.0290874846 | P27: 0
B30: Bundled Residential Monthly Average Bills
D31: =$D$24 -> 2025-01-01 | E31: =$E$24 -> 2025-06-01 | F31: Proposed | G31: =$G$24 -> % Change over 1/1/2025 | H31: % Change over Current
B32: Non-CARE | D32: =((D39*4)+(D45*8))/12 -> 186.8593137 | E32: 181.4275528 | F32: 181.4275528 | G32: =$F32/D32-1 -> -0.02906871936 | H32: 0
B33: CARE | D33: 104.2673392 | E33: 101.3811251 | F33: 101.3811251 | G33: -0.02768090275 | H33: 0
B34: Total | D34: 157.9521226 | E34: 153.4113031 | F34: 153.4113031 | G34: -0.02874807549 | H34: 0
B36: Seasonality:
B37: Bundled Residential Monthly Average Bills - Summer
D38: =$D$24 -> 2025-01-01 | E38: =$E$24 -> 2025-06-01 | F38: Proposed | G38: =$G$24 -> % Change over 1/1/2025 | H38: % Change over Current
B39: Non-CARE | D39: =VLOOKUP($D$4,'Res Bill Impact (2)'!$B$37:$H$46,2,FALSE) -> 257.9491103 | E39: =VLOOKUP($D$4,'Res Bill Impact (2)'!$B$37:$H$46,4,FALSE) -> 250.540398 | F39: =VLOOKUP($D$4,'Res Bill Impact (2)'!$B$37:$H$46,6,FALSE) -> 250.540398 | G39: =$F39/D39-1 -> -0.0287216042 | H39: 0
B40: CARE | D40: =VLOOKUP($D$4,'Res Bill Impact (2)'!$B$52:$H$61,2,FALSE) -> 145.4334121 | E40: =VLOOKUP($D$4,'Res Bill Impact (2)'!$B$52:$H$61,4,FALSE) -> 141.4899597 | F40: =VLOOKUP($D$4,'Res Bill Impact (2)'!$B$52:$H$61,6,FALSE) -> 141.4899597 | G40: -0.02711517456 | H40: 0
B41: Total | D41: =D39*0.65+D40*0.35 -> 218.5686159 | E41: =E39*0.65+E40*0.35 -> 212.3727446 | F41: =F39*0.65+F40*0.35 -> 212.3727446 | G41: -0.02834748831 | H41: 0
B43: Bundled Residential Monthly Average Bills - Winter
D44: =$D$24 -> 2025-01-01 | E44: =$E$24 -> 2025-06-01 | F44: Proposed | G44: =$G$24 -> % Change over 1/1/2025 | H44: % Change over Current
B45: Non-CARE | D45: =VLOOKUP($D$4,'Res Bill Impact (2)'!$B$37:$H$46,3,FALSE) -> 151.3144154 | E45: =VLOOKUP($D$4,'Res Bill Impact (2)'!$B$37:$H$46,5,FALSE) -> 146.8711301 | F45: =VLOOKUP($D$4,'Res Bill Impact (2)'!$B$37:$H$46,7,FALSE) -> 146.8711301 | G45: =$F45/D45-1 -> -0.02936458691 | H45: 0
B46: CARE | D46: =VLOOKUP($D$4,'Res Bill Impact (2)'!$B$52:$H$61,3,FALSE) -> 83.68430279 | E46: =VLOOKUP($D$4,'Res Bill Impact (2)'!$B$52:$H$61,5,FALSE) -> 81.32670786 | F46: =VLOOKUP($D$4,'Res Bill Impact (2)'!$B$52:$H$61,7,FALSE) -> 81.32670786 | G46: -0.02817248706 | H46: 0
B47: Total | D47: =D45*0.65+D46*0.35 -> 127.643876 | E47: =E45*0.65+E46*0.35 -> 123.9305823 | F47: =F45*0.65+F46*0.35 -> 123.9305823 | G47: -0.02909104448 | H47: 0
B50: Bundled Residential Monthly Average Bills
D51: =$D$24 -> 2025-01-01 | E51: =$E$24 -> 2025-06-01 | F51: =$F$24 -> Proposed | G51: =$G$24 -> % Change over 1/1/2025 | H51: % Change over Current
B52: Essential Use (Basic) - Non-CARE | D52: =((D59*4)+(D66*8))/12 -> 129.7299798 | E52: 125.8858489 | F52: 125.8858489 | G52: =$F52/D52-1 -> -0.02963178506 | H52: 0
B53: Essential Use (Basic) - CARE | D53: 77.88462184 | E53: 75.68264396 | F53: 75.68264396 | G53: -0.02827230625 | H53: 0
B54: Essential Use (All-Electric) - Non-CARE | D54: 127.7037209 | E54: 123.9159831 | F54: 123.9159831 | G54: -0.02966035549 | H54: 0
B55: Essential Use (All-Electric) - CARE | D55: =((D62*4)+(D69*8))/12 -> 76.61452959 | E55: =((E62*4)+(E69*8))/12 -> 74.44485457 | F55: =((F62*4)+(F69*8))/12 -> 74.44485457 | G55: -0.0283193676 | H55: 0
B57: Bundled Residential Monthly Average Bills - Summer
D58: =$D$24 -> 2025-01-01 | E58: =$E$24 -> 2025-06-01 | F58: =$F$24 -> Proposed | G58: =$G$24 -> % Change over 1/1/2025 | H58: % Change over Current
B59: Essential Use (Basic) - Non-CARE | D59: =VLOOKUP($D$4,'Res Bill Impact (2)'!$J$37:$P$46,2,FALSE) -> 162.8255414 | E59: =VLOOKUP($D$4,'Res Bill Impact (2)'!$J$37:$P$46,4,FALSE) -> 158.0603229 | F59: =VLOOKUP($D$4,'Res Bill Impact (2)'!$J$37:$P$46,6,FALSE) -> 158.0603229 | G59: =$F59/D59-1 -> -0.02926579228 | H59: 0
B60: Essential Use (Basic) - CARE | D60: =VLOOKUP($D$4,'Res Bill Impact (2)'!$R$37:$X$46,2,FALSE) -> 98.62946196 | E60: =VLOOKUP($D$4,'Res Bill Impact (2)'!$R$37:$X$46,4,FALSE) -> 95.8998708 | F60: =VLOOKUP($D$4,'Res Bill Impact (2)'!$R$37:$X$46,6,FALSE) -> 95.8998708 | G60: -0.02767521092 | H60: 0
B61: Essential Use (All-Electric) - Non-CARE | D61: =VLOOKUP($D$4,'Res Bill Impact (2)'!$J$52:$P$61,2,FALSE) -> 118.2478462 | E61: =VLOOKUP($D$4,'Res Bill Impact (2)'!$J$52:$P$61,4,FALSE) -> 114.7232763 | F61: =VLOOKUP($D$4,'Res Bill Impact (2)'!$J$52:$P$61,6,FALSE) -> 114.7232763 | G61: -0.02980663064 | H61: 0
B62: Essential Use (All-Electric) - CARE | D62: =VLOOKUP($D$4,'Res Bill Impact (2)'!$R$52:$X$61,2,FALSE) -> 70.68743242 | E62: =VLOOKUP($D$4,'Res Bill Impact (2)'!$R$52:$X$61,4,FALSE) -> 68.66850404 | F62: =VLOOKUP($D$4,'Res Bill Impact (2)'!$R$52:$X$61,6,FALSE) -> 68.66850404 | G62: -0.02856134826 | H62: 0
B64: Bundled Residential Monthly Average Bills - Winter
D65: =$D$24 -> 2025-01-01 | E65: =$E$24 -> 2025-06-01 | F65: =$F$24 -> Proposed | G65: =$G$24 -> % Change over 1/1/2025 | H65: % Change over Current
B66: Essential Use (Basic) - Non-CARE | D66: =VLOOKUP($D$4,'Res Bill Impact (2)'!$J$37:$P$46,3,FALSE) -> 113.182199 | E66: =VLOOKUP($D$4,'Res Bill Impact (2)'!$J$37:$P$46,5,FALSE) -> 109.7986119 | F66: =VLOOKUP($D$4,'Res Bill Impact (2)'!$J$37:$P$46,7,FALSE) -> 109.7986119 | G66: =$F66/D66-1 -> -0.02989504631 | H66: 0
B67: Essential Use (Basic) - CARE | D67: =VLOOKUP($D$4,'Res Bill Impact (2)'!$R$37:$X$46,3,FALSE) -> 67.51220179 | E67: =VLOOKUP($D$4,'Res Bill Impact (2)'!$R$37:$X$46,5,FALSE) -> 65.57403055 | F67: =VLOOKUP($D$4,'Res Bill Impact (2)'!$R$37:$X$46,7,FALSE) -> 65.57403055 | G67: -0.02870845845 | H67: 0
B68: Essential Use (All-Electric) - Non-CARE | D68: =VLOOKUP($D$4,'Res Bill Impact (2)'!$J$52:$P$61,3,FALSE) -> 132.4316583 | E68: =VLOOKUP($D$4,'Res Bill Impact (2)'!$J$52:$P$61,5,FALSE) -> 128.5123366 | F68: =VLOOKUP($D$4,'Res Bill Impact (2)'!$J$52:$P$61,7,FALSE) -> 128.5123366 | G68: -0.02959505115 | H68: 0
B69: Essential Use (All-Electric) - CARE | D69: =VLOOKUP($D$4,'Res Bill Impact (2)'!$R$52:$X$61,3,FALSE) -> 79.57807818 | E69: =VLOOKUP($D$4,'Res Bill Impact (2)'!$R$52:$X$61,5,FALSE) -> 77.33302983 | F69: =VLOOKUP($D$4,'Res Bill Impact (2)'!$R$52:$X$61,7,FALSE) -> 77.33302983 | G69: -0.02821189459 | H69: 0
B72: Bundled Residential Monthly Average Bills
D73: =$D$24 -> 2025-01-01 | E73: =$E$24 -> 2025-06-01 | F73: =$F$24 -> Proposed | G73: =$G$24 -> % Change over 1/1/2025 | H73: % Change over Current
B74: =D5&"kWh Monthly Usage - Non-CARE" -> 500kWh Monthly Usage - Non-CARE | D74: =((D79*4)+(D84*8))/12 -> 166.708113 | E74: 161.83642 | F74: 161.83642 | G74: =$F74/D74-1 -> -0.02922289083 | H74: 0
B75: =D5&"kWh Monthly Usage - CARE" -> 500kWh Monthly Usage - CARE | D75: 101.4753954 | E75: 98.66110016 | F75: 98.66110016 | G75: -0.02773377002 | H75: 0
B77: Bundled Residential Monthly Average Bills - Summer
D78: =$D$24 -> 2025-01-01 | E78: =$E$24 -> 2025-06-01 | F78: =$F$24 -> Proposed | G78: =$G$24 -> % Change over 1/1/2025 | H78: % Change over Current
B79: =D5&"kWh Monthly Usage - Non-CARE" -> 500kWh Monthly Usage - Non-CARE | D79: =VLOOKUP($D$4,'Res Bill Impact (2)'!$J$67:$P$76,2,FALSE) -> 158.1466667 | E79: =VLOOKUP($D$4,'Res Bill Impact (2)'!$J$67:$P$76,4,FALSE) -> 153.5116667 | F79: =VLOOKUP($D$4,'Res Bill Impact (2)'!$J$67:$P$76,6,FALSE) -> 153.5116667 | G79: =$F79/D79-1 -> -0.02930823708 | H79: 0
B80: =D5&"kWh Monthly Usage - CARE" -> 500kWh Monthly Usage - CARE | D80: =VLOOKUP($D$4,'Res Bill Impact (2)'!$R$67:$X$76,2,FALSE) -> 95.69666667 | E80: =VLOOKUP($D$4,'Res Bill Impact (2)'!$R$67:$X$76,4,FALSE) -> 93.04166667 | F80: =VLOOKUP($D$4,'Res Bill Impact (2)'!$R$67:$X$76,6,FALSE) -> 93.04166667 | G80: -0.02774391306 | H80: 0
B82: Bundled Residential Monthly Average Bills - Winter
D83: =$D$24 -> 2025-01-01 | E83: =$E$24 -> 2025-06-01 | F83: =$F$24 -> Proposed | G83: =$G$24 -> % Change over 1/1/2025 | H83: % Change over Current
B84: =D5&"kWh Monthly Usage - Non-CARE" -> 500kWh Monthly Usage - Non-CARE | D84: =VLOOKUP($D$4,'Res Bill Impact (2)'!$J$67:$P$76,3,FALSE) -> 170.9888361 | E84: =VLOOKUP($D$4,'Res Bill Impact (2)'!$J$67:$P$76,5,FALSE) -> 165.9987967 | F84: =VLOOKUP($D$4,'Res Bill Impact (2)'!$J$67:$P$76,7,FALSE) -> 165.9987967 | G84: =$F84/D84-1 -> -0.02918342269 | H84: 0
B85: =D5&"kWh Monthly Usage - CARE" -> 500kWh Monthly Usage - CARE | D85: =VLOOKUP($D$4,'Res Bill Impact (2)'!$R$67:$X$76,3,FALSE) -> 104.3647598 | E85: =VLOOKUP($D$4,'Res Bill Impact (2)'!$R$67:$X$76,5,FALSE) -> 101.4708169 | F85: =VLOOKUP($D$4,'Res Bill Impact (2)'!$R$67:$X$76,7,FALSE) -> 101.4708169 | G85: -0.02772911972 | H85: 0
B88: Bundled Residential Monthly Average Bills
D89: =$D$24 -> 2025-01-01 | E89: =$E$24 -> 2025-06-01 | F89: Proposed | G89: =$G$24 -> % Change over 1/1/2025 | H89: % Change over Current
B90: All-Electric - Non-CARE | D90: =((D96*4)+(D102*8))/12 -> 139.7381152 | E90: 135.6163289 | F90: 135.6163289 | G90: =$F90/D90-1 -> -0.0294965073 | H90: 0
B91: All-Electric - CARE | D91: 81.86581957 | E91: 79.55666218 | F91: 79.55666218 | G91: -0.02820661173 | H91: 0
B92: All-Electric - Total | D92: 119.4828118 | E92: 115.9954456 | F92: 115.9954456 | G92: -0.02918717892 | H92: 0
B94: Bundled Residential Monthly Average Bills - Summer
D95: =$D$24 -> 2025-01-01 | E95: =$E$24 -> 2025-06-01 | F95: Proposed | G95: =$G$24 -> % Change over 1/1/2025 | H95: % Change over Current
B96: All-Electric - Non-CARE | D96: =VLOOKUP($D$4,'Res Bill Impact (2)'!$B$67:$H$76,2,FALSE) -> 182.7427053 | E96: =VLOOKUP($D$4,'Res Bill Impact (2)'!$B$67:$H$76,4,FALSE) -> 177.4258166 | F96: =VLOOKUP($D$4,'Res Bill Impact (2)'!$B$67:$H$76,6,FALSE) -> 177.4258166 | G96: =$F96/D96-1 -> -0.02909494332 | H96: 0
B97: All-Electric - CARE | D97: =VLOOKUP($D$4,'Res Bill Impact (2)'!$B$82:$H$91,2,FALSE) -> 106.1209049 | E97: =VLOOKUP($D$4,'Res Bill Impact (2)'!$B$82:$H$91,4,FALSE) -> 103.1830088 | F97: =VLOOKUP($D$4,'Res Bill Impact (2)'!$B$82:$H$91,6,FALSE) -> 103.1830088 | G97: -0.02768442326 | H97: 0
B98: All-Electric - Total | D98: =D96*0.65+D97*0.35 -> 155.9250751 | E98: =E96*0.65+E97*0.35 -> 151.4408339 | F98: =F96*0.65+F97*0.35 -> 151.4408339 | G98: -0.02875894872 | H98: 0
B100: Bundled Residential Monthly Average Bills - Winter
D101: =$D$24 -> 2025-01-01 | E101: =$E$24 -> 2025-06-01 | F101: Proposed | G101: =$G$24 -> % Change over 1/1/2025 | H101: % Change over Current
B102: All-Electric - Non-CARE | D102: =VLOOKUP($D$4,'Res Bill Impact (2)'!$B$67:$H$76,3,FALSE) -> 118.2358202 | E102: =VLOOKUP($D$4,'Res Bill Impact (2)'!$B$67:$H$76,5,FALSE) -> 114.711585 | F102: =VLOOKUP($D$4,'Res Bill Impact (2)'!$B$67:$H$76,7,FALSE) -> 114.711585 | G102: =$F102/D102-1 -> -0.02980683157 | H102: 0
B103: All-Electric - CARE | D103: =VLOOKUP($D$4,'Res Bill Impact (2)'!$B$82:$H$91,3,FALSE) -> 69.73827691 | E103: =VLOOKUP($D$4,'Res Bill Impact (2)'!$B$82:$H$91,5,FALSE) -> 67.74348886 | F103: =VLOOKUP($D$4,'Res Bill Impact (2)'!$B$82:$H$91,7,FALSE) -> 67.74348886 | G103: -0.02860391946 | H103: 0
B104: All-Electric - Total | D104: =D102*0.65+D103*0.35 -> 101.2616801 | E104: =E102*0.65+E103*0.35 -> 98.27275138 | F104: =F102*0.65+F103*0.35 -> 98.27275138 | G104: -0.02951687829 | H104: 0
B106: Small Commercial Monthly Average Bills
D107: =$D$24 -> 2025-01-01 | E107: =$E$24 -> 2025-06-01 | F107: Proposed | G107: =$G$24 -> % Change over 1/1/2025 | H107: % Change over Current
B108: NAICS 531 | D108: =((D114*4)+(D120*8))/12 -> 200.0192632 | E108: 194.8698628 | F108: 194.8698628 | G108: =$F108/D108-1 -> -0.02574452224 | H108: =$F108/E108-1 -> 0
B109: NAICS 621 | D109: 276.15071 | E109: 268.8677976 | F109: 268.8677976 | G109: -0.02637296271 | H109: 0
B110: NAICS 722 | D110: 798.5610323 | E110: 777.0703134 | F110: 777.0703134 | G110: -0.0269118052 | H110: 0
B112: Small Commercial Monthly Average Bills - Summer
D113: =$D$24 -> 2025-01-01 | E113: =$E$24 -> 2025-06-01 | F113: Proposed | G113: =$G$24 -> % Change over 1/1/2025 | H113: % Change over Current
B114: NAICS 531 | D114: ='Bill Impact (GS1) (2)'!C37 -> 221.6737636 | E114: ='Bill Impact (GS1) (2)'!E37 -> 216.2914337 | F114: ='Bill Impact (GS1) (2)'!G37 -> 216.2914337 | G114: =$F114/D114-1 -> -0.02428041025 | H114: =$F114/E114-1 -> 0
B115: NAICS 621 | D115: ='Bill Impact (GS1) (2)'!C38 -> 369.469769 | E115: ='Bill Impact (GS1) (2)'!E38 -> 360.411944 | F115: ='Bill Impact (GS1) (2)'!G38 -> 360.411944 | G115: -0.02451574068 | H115: 0
B116: NAICS 722 | D116: ='Bill Impact (GS1) (2)'!C39 -> 1048.787661 | E116: ='Bill Impact (GS1) (2)'!E39 -> 1022.656419 | F116: ='Bill Impact (GS1) (2)'!G39 -> 1022.656419 | G116: -0.02491566527 | H116: 0
B118: Small Commercial Monthly Average Bills - Winter
D119: =$D$24 -> 2025-01-01 | E119: =$E$24 -> 2025-06-01 | F119: Proposed | G119: =$G$24 -> % Change over 1/1/2025 | H119: % Change over Current
B120: NAICS 531 | D120: ='Bill Impact (GS1) (2)'!D37 -> 189.192013 | E120: ='Bill Impact (GS1) (2)'!F37 -> 184.1590774 | F120: ='Bill Impact (GS1) (2)'!H37 -> 184.1590774 | G120: =$F120/D120-1 -> -0.02660226251 | H120: =$F120/E120-1 -> 0
B121: NAICS 621 | D121: ='Bill Impact (GS1) (2)'!D38 -> 229.4911805 | E121: ='Bill Impact (GS1) (2)'!F38 -> 223.0957245 | F121: ='Bill Impact (GS1) (2)'!H38 -> 223.0957245 | G121: -0.0278679818 | H121: 0
B122: NAICS 722 | D122: ='Bill Impact (GS1) (2)'!D39 -> 673.4477179 | E122: ='Bill Impact (GS1) (2)'!F39 -> 654.2772607 | F122: ='Bill Impact (GS1) (2)'!H39 -> 654.2772607 | G122: -0.02846614037 | H122: 0

Sheet SAR and RAR (2) (hidden)
B1: CONFIDENTIAL This Excel Sheet Is Marked Confidential In Accordance With Applicable Law and Regulation. Basis for Confidentiality In Accompanying Confidentiality Declaration. Public Disclosure Restricted.
C2: Revenue Change ($000)
B4: Generation | C4: ='Simple Bill Insert Calc (2)'!D8 -> 0 | F4: Allocation
B5: Distribution | C5: ='Simple Bill Insert Calc (2)'!D9 -> 0 | F5: Generation | G5: Distribution | H5: NDC | I5: PPPC | J5: DCPP | K5: NSGC | L5: Transmission | M5: TOTCA | N5: GHG Rev | O5: DWRBC | P5: PUCRF | Q5: SECURITIZATION
B6: Nuclear | C6: ='Simple Bill Insert Calc (2)'!D10 -> 0 | E6: Residential | F6: ='SAR and RAR'!G37 -> 0.4334328031 | G6: 0.4941200348 | H6: ='SAR and RAR'!I37 -> 0.3376537252 | I6: 0.4504171944 | J6: ='SAR and RAR'!K37 -> 0.4505009853 | K6: ='SAR and RAR'!L37 -> 0.438315087 | L6: ='SAR and RAR'!M37 -> 0.4638101825 | M6: ='SAR and RAR'!N37 -> 0.5669366334 | N6: ='SAR and RAR'!O37 -> 0.8264249736 | O6: ='SAR and RAR'!P37 -> 0.2594263611 | P6: ='SAR and RAR'!Q37 -> 0.3376537254 | Q6: ='SAR and RAR'!R37 -> 0.3674900861
B7: Public Purpose | C7: ='Simple Bill Insert Calc (2)'!D11 -> 0
B8: DCPP | C8: ='Simple Bill Insert Calc (2)'!D12 -> 0 | F8: Revenue Change ($000) - System
B9: New System Gen | C9: ='Simple Bill Insert Calc (2)'!D13 -> 0 | F9: Generation | G9: Distribution | H9: NDC | I9: PPPC | J9: DCPP | K9: NSGC | L9: Transmission | M9: TOTCA | N9: GHG Rev | O9: DWRBC | P9: PUCRF | Q9: SECURITIZATION | R9: Total | S9: CARE Adj. | V9: % of CARE Sales (Bundled) | W9: ='SAR and RAR'!Q58 -> 0.3128375693
B10: FERC | C10: ='Simple Bill Insert Calc (2)'!D14 -> 0 | E10: Residential | F10: =F6*F11 -> 0 | G10: 0 | H10: 0 | I10: 0 | J10: 0 | K10: 0 | L10: 0 | M10: 0 | N10: 0 | O10: 0 | P10: 0 | Q10: =Q6*Q11 -> 0 | R10: =SUM(F10:Q10) -> 0 | S10: =(-W11+W14) -> 0 | V10: CARE Effective Discount | W10: ='SAR and RAR'!X10 -> 0.325
B11: TOTCA | C11: ='Simple Bill Insert Calc (2)'!D15 -> 0 | E11: Total System | F11: =C4 -> 0 | G11: =C5 -> 0 | H11: =C6 -> 0 | I11: =C7 -> 0 | J11: =C8 -> 0 | K11: =C9 -> 0 | L11: =C10 -> 0 | M11: =C11 -> 0 | N11: =C12 -> 0 | O11: =C13 -> 0 | P11: =C14 -> 0 | Q11: =C15 -> 0 | R11: =SUM(F11:Q11) -> 0 | S11: 0 | V11: CARE Discounst | W11: =SUM(F10*F16/'SAR and RAR'!K58*'SAR and RAR'!O58,G10:M10,P10)*W9*W10 -> 0
B12: GHG Revenue | C12: ='Simple Bill Insert Calc (2)'!D16 -> 0 | V12: non-CARE Sales | W12: ='SAR and RAR'!G58 -> 18361053.62
B13: DWR | C13: ='Simple Bill Insert Calc (2)'!D17 -> 0 | V13: Total Sales (excl. CARE&SL) | W13: ='SAR and RAR'!G64 -> 70344975.44
B14: PUCRF | C14: ='Simple Bill Insert Calc (2)'!D18 -> 0 | F14: Revenue Split - Bundled | R14: Bundled Revenue Change | V14: Res CARE Surcharge | W14: =W11*W12/W13 -> 0
B15: SECURITIZATION | C15: ='Simple Bill Insert Calc (2)'!D19 -> 0 | F15: Generation | G15: Distribution | H15: NDC | I15: PPPC | J15: DCPP | K15: NSGC | L15: Transmission | M15: TOTCA | N15: GHG Rev | O15: DWRBC | P15: PUCRF | Q15: SECURITIZATION | R15: Total
B16: Total | C16: =SUM(C4:C15) -> 0 | E16: Residential | F16: ='SAR and RAR'!G44 -> 1.053496072 | G16: ='SAR and RAR'!H44 -> 0.6825473013 | H16: ='SAR and RAR'!I44 -> 0.7011923278 | I16: ='SAR and RAR'!J44 -> 0.7011923321 | J16: ='SAR and RAR'!K44 -> 0.7011923321 | K16: ='SAR and RAR'!L44 -> 0.7011923321 | L16: ='SAR and RAR'!M44 -> 0.7011923321 | M16: ='SAR and RAR'!N44 -> 0.7011923304 | N16: ='SAR and RAR'!O44 -> 0.7065757 | O16: ='SAR and RAR'!P44 -> 0.6708887653 | P16: ='SAR and RAR'!Q44 -> 0.7011923321 | Q16: ='SAR and RAR'!R44 -> 0.6708887652 | R16: =SUMPRODUCT(F10:Q10,F16:Q16)+S10*'SAR and RAR'!X15 -> 0
E17: Total System | F17: ='SAR and RAR'!G50 -> 1.048411398 | G17: ='SAR and RAR'!H50 -> 0.6497133295 | H17: ='SAR and RAR'!I50 -> 0.6283028798 | I17: ='SAR and RAR'!J50 -> 0.6429155899 | J17: ='SAR and RAR'!K50 -> 0.6409526177 | K17: ='SAR and RAR'!L50 -> 0.6386900347 | L17: ='SAR and RAR'!M50 -> 0.6641776383 | M17: ='SAR and RAR'!N50 -> 0.6532230564 | N17: ='SAR and RAR'!O50 -> 0.6916053708 | O17: ='SAR and RAR'!P50 -> 0.6118326262 | P17: ='SAR and RAR'!Q50 -> 0.6283028839 | Q17: ='SAR and RAR'!R50 -> 0.6226235037 | R17: =SUMPRODUCT(F11:Q11,F17:Q17) -> 0
R19: =N10*N16 -> 0
E22: Bundled | M22: System (Bundled and Unbundled)
E23: ='Simple Bill Insert Calc (2)'!M4&" Sales" -> 2025 Sales | F23: ='SAR and RAR'!G27 -> 6/1/2025 Avg Rates | G23: Proposed Avg Rates | H23: % Change | M23: ='Simple Bill Insert Calc (2)'!M4&" Sales" -> 2025 Sales | N23: ='SAR and RAR'!O27 -> 6/1/2025 Avg Rates | O23: Proposed Avg Rates | P23: % Change
D24: Residential | E24: ='SAR and RAR'!K58 -> 18735934.09 | F24: =IF('Simple Bill Insert Calc (2)'!$D$6="Y",'SAR and RAR'!W32,'SAR and RAR'!X32) -> 31.17865091 | G24: =R16/E24*100+F24 -> 31.17865091 | H24: =G24/F24-1 -> 0 | L24: Residential | M24: ='SAR and RAR'!O58 -> 26720106.92 | N24: =IF('Simple Bill Insert Calc (2)'!$D$6="Y",'SAR and RAR'!Z32,'SAR and RAR'!AA32) -> 27.86095985 | O24: =SUM(R10:S10)/M24*100+N24 -> 27.86095985 | P24: =O24/N24-1 -> 0
D25: Total System | E25: ='SAR and RAR'!K64 -> 49720524.25 | F25: =IF('Simple Bill Insert Calc (2)'!$D$6="Y",'SAR and RAR'!W33,'SAR and RAR'!X33) -> 26.64700642 | G25: =R17/E25*100+F25 -> 26.64700642 | H25: =G25/F25-1 -> 0 | L25: Total System | M25: ='SAR and RAR'!O64 -> 79134642.73 | N25: =IF('Simple Bill Insert Calc (2)'!$D$6="Y",'SAR and RAR'!Z33,'SAR and RAR'!AA33) -> 22.25245758 | O25: =SUM(R11:S11)/M25*100+N25 -> 22.25245758 | P25: =O25/N25-1 -> 0

Sheet Res Bill Impact (2) (hidden)
B1: CONFIDENTIAL This Excel Sheet Is Marked Confidential In Accordance With Applicable Law and Regulation. Basis for Confidentiality In Accompanying Confidentiality Declaration. Public Disclosure Restricted.
E3: Schedule D | O3: Schedule D-CARE
E4: ='Simple Bill Insert Calc (2)'!M4 -> 2025 | F4: ='Simple Bill Insert Calc (2)'!M3 -> 2025-06-01 | G4: Proposed | H4: Proposed | O4: ='Simple Bill Insert Calc (2)'!M4 -> 2025 | P4: ='Simple Bill Insert Calc (2)'!M3 -> 2025-06-01 | Q4: Proposed | R4: Proposed
E5: Sales Forecast | F5: Rates | G5: Rates | H5: Revenue | O5: Sales Forecast | P5: Rates | Q5: Rates | R5: Revenue
D7: Baseline - Summer | E7: ='Res Bill Impact'!F97 -> 3085.670937 | F7: ='Res Bill Impact'!F7 -> 0.32381 | G7: =(V10-SUM(R14:R15,H14:H15))/SUM(SUM(E7:E8),F9/F7*SUM(E9:E10),F11/F7*SUM(E11:E12),SUM(O7:O8)*(1+(P7/F7-1)),SUM(O9:O10)*(1+(P9/F9-1))*F9/F7,SUM(O11:O12)*(1+(P11/F11-1))*F11/F7) -> 0.32381 | H7: =E7*G7 -> 999.1711061 | N7: Baseline - Summer | O7: ='Res Bill Impact'!M97 -> 1783.360129 | P7: ='Res Bill Impact'!P7 -> 0.20347 | Q7: =G7*(1+(P7/F7-1)) -> 0.20347 | R7: =O7*Q7 -> 362.8602854 | U7: Bundled Residential Rev Req
D8: - Winter | E8: ='Res Bill Impact'!F98 -> 4290.291273 | F8: ='Res Bill Impact'!F8 -> 0.32381 | G8: =G7 -> 0.32381 | H8: 1389.239217 | N8: - Winter | O8: ='Res Bill Impact'!M98 -> 2747.277654 | P8: ='Res Bill Impact'!P8 -> 0.20347 | Q8: 0.20347 | R8: 558.9885843 | U8: Current | V8: =SUMPRODUCT(E7:E12,F7:F12)+SUMPRODUCT(O7:O12,P7:P12)+(E14*F14*365/12/10^6)+(E15*F15*365/12/10^6)+(O14*P14*365/12/10^6)+(O15*P15*365/12/10^6) -> 5900.373858
D9: 101% - 400% of Baseline - Summer | E9: ='Res Bill Impact'!F99 -> 1911.92882 | F9: ='Res Bill Impact'!F9 -> 0.41631 | G9: =F9/F$7*G$7 -> 0.41631 | H9: 795.9550872 | N9: 101% - 400% of Baseline - Summer | O9: ='Res Bill Impact'!M99 -> 745.4907551 | P9: ='Res Bill Impact'!P9 -> 0.26591 | Q9: 0.26591 | R9: 198.2334467 | U9: Change | V9: ='SAR and RAR (2)'!R16/1000-'SAR and RAR (2)'!R19/1000 -> 0
D10: - Winter | E10: ='Res Bill Impact'!F100 -> 2615.804258 | F10: ='Res Bill Impact'!F10 -> 0.41631 | G10: =G9 -> 0.41631 | H10: 1088.985471 | N10: - Winter | O10: ='Res Bill Impact'!M100 -> 1112.023766 | P10: ='Res Bill Impact'!P10 -> 0.26591 | Q10: 0.26591 | R10: 295.6982397 | U10: Proposed Change | V10: =SUM(V8:V9) -> 5900.373858
D11: 401% of Baseline - Summer | E11: ='Res Bill Impact'!F101 -> 151.6325582 | F11: ='Res Bill Impact'!F11 -> 0.41631 | G11: =F11/F$7*G$7 -> 0.41631 | H11: 63.12615031 | N11: 401% of Baseline - Summer | O11: ='Res Bill Impact'!M101 -> 8.477005966 | P11: ='Res Bill Impact'!P11 -> 0.26591 | Q11: 0.26591 | R11: 2.254120656 | V11: =V10-SUM(H7:H15,R7:R15) -> 0
D12: - Winter | E12: ='Res Bill Impact'!F102 -> 262.8967474 | F12: ='Res Bill Impact'!F12 -> 0.41631 | G12: =G11 -> 0.41631 | H12: 109.4465449 | N12: - Winter | O12: ='Res Bill Impact'!M102 -> 21.08018443 | P12: ='Res Bill Impact'!P12 -> 0.26591 | Q12: 0.26591 | R12: 5.605431843
D14: Basic Charge - Single-Family Residence | E14: ='Res Bill Impact'!F104 -> 18879671.95 | F14: ='Res Bill Impact'!F14 -> 0.031 | G14: =F14 -> 0.031 | H14: =G14*E14*365/12/10^6 -> 17.80195734 | N14: Basic Charge - Single-Family Residence | O14: ='Res Bill Impact'!M104 -> 6433922.126 | P14: ='Res Bill Impact'!P14 -> 0.021 | Q14: =P14 -> 0.021 | R14: =Q14*O14*365/12/10^6 -> 4.109667758
D15: Basic Charge - Multi-Family Residence | E15: ='Res Bill Impact'!F105 -> 8588406.524 | F15: ='Res Bill Impact'!F15 -> 0.024 | G15: =F15 -> 0.024 | H15: =G15*E15*365/12/10^6 -> 6.269536763 | N15: Basic Charge - Multi-Family Residence | O15: ='Res Bill Impact'!M105 -> 5402078.398 | P15: ='Res Bill Impact'!P15 -> 0.016 | Q15: =P15 -> 0.016 | R15: =Q15*O15*365/12/10^6 -> 2.629011487
O19: ='Res Bill Impact'!O19 -> 2024 Recorded Data - Average Monthly Usage - kWh (Bundled / Basic Service Only) | W19: ='Res Bill Impact'!W19 -> 2024 Recorded Data - Average Monthly Usage - kWh (Bundled / All Electric Only)
B20: SCHEDULE D RATES ($/kWh) | H20: MONTHLY BASELINE QUANTITIES | I20: BASIC | K20: ALL-ELECTRIC | O20: Climate Zone | P20: Summer | Q20: Winter | R20: Summer | S20: Winter | T20: Sample Population Weight | W20: Climate Zone | X20: Summer | Y20: Winter | Z20: Summer | AA20: Winter | AB20: Sample Population Weight
B21: Rates | C21: ='Res Bill Impact'!C21 -> Jan 2025 | D21: ='Simple Bill Insert Calc (2)'!M3 -> 2025-06-01 | E21: Proposed | H21: Climate Zone | I21: Summer | J21: Winter | K21: Summer | L21: Winter | P21: Non-CARE | R21: CARE | T21: Non-CARE | U21: CARE | X21: Non-CARE | Z21: CARE | AB21: Non-CARE | AC21: CARE
B22: Tier 1 | C22: ='Res Bill Impact'!C22 -> 0.33308 | D22: =F7 -> 0.32381 | E22: =G7 -> 0.32381 | H22: 5 warm | I22: 517.089 | J22: 559.6728 | K22: 511.0056 | L22: 821.259 | O22: 5 warm | P22: ='Res Bill Impact'!P22 -> 395.5552996 | Q22: ='Res Bill Impact'!Q22 -> 410.4255495 | R22: ='Res Bill Impact'!R22 -> 370.5382517 | S22: ='Res Bill Impact'!S22 -> 352.8129705 | T22: ='Res Bill Impact'!T22 -> 0.000391559287 | U22: ='Res Bill Impact'!U22 -> 5.780756421e-05 | W22: 5 warm | X22: ='Res Bill Impact'!X22 -> 395.0513658 | Y22: ='Res Bill Impact'!Y22 -> 472.3532524 | Z22: ='Res Bill Impact'!Z22 -> 354.0301735 | AA22: ='Res Bill Impact'!AA22 -> 430.0455986 | AB22: ='Res Bill Impact'!AB22 -> 0.0003215327132 | AC22: ='Res Bill Impact'!AC22 -> 0.0001643349365
B23: Tier 2 | C23: ='Res Bill Impact'!C23 -> 0.42821 | D23: =F9 -> 0.41631 | E23: =G9 -> 0.41631 | H23: 6 cool | I23: 346.7538 | J23: 334.587 | K23: 264.6279 | L23: 383.2542 | O23: 6 cool | P23: ='Res Bill Impact'!P23 -> 441.3631683 | Q23: ='Res Bill Impact'!Q23 -> 378.5967426 | R23: ='Res Bill Impact'!R23 -> 403.4336933 | S23: ='Res Bill Impact'!S23 -> 346.7408462 | T23: ='Res Bill Impact'!T23 -> 0.175728545 | U23: ='Res Bill Impact'!U23 -> 0.06241911603 | W23: 6 cool | X23: ='Res Bill Impact'!X23 -> 333.6664732 | Y23: ='Res Bill Impact'!Y23 -> 330.2803509 | Z23: ='Res Bill Impact'!Z23 -> 364.4793275 | AA23: ='Res Bill Impact'!AA23 -> 373.6317841 | AB23: ='Res Bill Impact'!AB23 -> 0.2756588649 | AC23: ='Res Bill Impact'!AC23 -> 0.1336590817
B24: HUC | C24: ='Res Bill Impact'!C24 -> 0.42821 | D24: =F11 -> 0.41631 | E24: =G11 -> 0.41631 | H24: 8 cool | I24: 389.3376 | J24: 313.2951 | K24: 301.1283 | L24: 374.1291 | O24: 8 cool | P24: ='Res Bill Impact'!P24 -> 568.4975767 | Q24: ='Res Bill Impact'!Q24 -> 397.6071315 | R24: ='Res Bill Impact'!R24 -> 503.0842528 | S24: ='Res Bill Impact'!S24 -> 372.8283632 | T24: ='Res Bill Impact'!T24 -> 0.2213136597 | U24: ='Res Bill Impact'!U24 -> 0.1553419784 | W24: 8 cool | X24: ='Res Bill Impact'!X24 -> 395.5847708 | Y24: ='Res Bill Impact'!Y24 -> 347.0862508 | Z24: ='Res Bill Impact'!Z24 -> 414.4144944 | AA24: ='Res Bill Impact'!AA24 -> 370.2534605 | AB24: ='Res Bill Impact'!AB24 -> 0.2319803089 | AC24: ='Res Bill Impact'!AC24 -> 0.1999079724
H25: 9 warm | I25: 514.0473 | J25: 365.004 | K25: 380.2125 | L25: 422.7963 | O25: 9 warm | P25: ='Res Bill Impact'!P25 -> 736.1896342 | Q25: ='Res Bill Impact'!Q25 -> 454.0542708 | R25: ='Res Bill Impact'!R25 -> 685.496621 | S25: ='Res Bill Impact'!S25 -> 424.2446352 | T25: ='Res Bill Impact'!T25 -> 0.1275808923 | U25: ='Res Bill Impact'!U25 -> 0.0946365769 | W25: 9 warm | X25: ='Res Bill Impact'!X25 -> 530.8275233 | Y25: ='Res Bill Impact'!Y25 -> 380.1763947 | Z25: ='Res Bill Impact'!Z25 -> 510.0101939 | AA25: ='Res Bill Impact'!AA25 -> 375.6663006 | AB25: ='Res Bill Impact'!AB25 -> 0.08053285732 | AC25: ='Res Bill Impact'!AC25 -> 0.08292340896
B26: SCHEDULE D-CARE RATES ($/kWh) | H26: 10 hot (Sec 745) | I26: 587.0481 | J26: 368.0457 | K26: 483.6303 | L26: 498.8388 | O26: 10 hot (Sec 745) | P26: ='Res Bill Impact'!P26 -> 857.9526651 | Q26: ='Res Bill Impact'!Q26 -> 482.0306437 | R26: ='Res Bill Impact'!R26 -> 918.4083871 | S26: ='Res Bill Impact'!S26 -> 499.6563415 | T26: ='Res Bill Impact'!T26 -> 0.3013940598 | U26: ='Res Bill Impact'!U26 -> 0.4075638401 | W26: 10 hot (Sec 745) | X26: ='Res Bill Impact'!X26 -> 627.4953074 | Y26: ='Res Bill Impact'!Y26 -> 427.1016506 | Z26: ='Res Bill Impact'!Z26 -> 660.3259927 | AA26: ='Res Bill Impact'!AA26 -> 426.1138274 | AB26: ='Res Bill Impact'!AB26 -> 0.2614116395 | AC26: ='Res Bill Impact'!AC26 -> 0.3672447605
B27: Rates | C27: =C21 -> Jan 2025 | D27: =D21 -> 2025-06-01 | E27: Proposed | H27: 13 hot | I27: 675.2574 | J27: 371.0874 | K27: 736.0914 | L27: 699.591 | O27: 13 hot | P27: ='Res Bill Impact'!P27 -> 995.7412826 | Q27: ='Res Bill Impact'!Q27 -> 488.3574385 | R27: ='Res Bill Impact'!R27 -> 1027.53491 | S27: ='Res Bill Impact'!S27 -> 485.942318 | T27: ='Res Bill Impact'!T27 -> 0.04959424669 | U27: ='Res Bill Impact'!U27 -> 0.1129503862 | W27: 13 hot | X27: ='Res Bill Impact'!X27 -> 965.9846505 | Y27: ='Res Bill Impact'!Y27 -> 574.7150255 | Z27: ='Res Bill Impact'!Z27 -> 962.9031858 | AA27: ='Res Bill Impact'!AA27 -> 549.7168372 | AB27: ='Res Bill Impact'!AB27 -> 0.03106116883 | AC27: ='Res Bill Impact'!AC27 -> 0.06378386669
B28: Tier 1 | C28: ='Res Bill Impact'!C28 -> 0.20878 | D28: =P7 -> 0.20347 | E28: =Q7 -> 0.20347 | H28: 14 hot | I28: 584.0064 | J28: 361.9623 | K28: 562.7145 | L28: 641.7987 | O28: 14 hot | P28: ='Res Bill Impact'!P28 -> 835.9220396 | Q28: ='Res Bill Impact'!Q28 -> 473.45593 | R28: ='Res Bill Impact'!R28 -> 933.1504328 | S28: ='Res Bill Impact'!S28 -> 527.5764602 | T28: ='Res Bill Impact'!T28 -> 0.06232862483 | U28: ='Res Bill Impact'!U28 -> 0.1067631121 | W28: 14 hot | X28: ='Res Bill Impact'!X28 -> 756.0211147 | Y28: ='Res Bill Impact'!Y28 -> 556.7004427 | Z28: ='Res Bill Impact'!Z28 -> 880.8399974 | AA28: ='Res Bill Impact'!AA28 -> 657.7029793 | AB28: ='Res Bill Impact'!AB28 -> 0.04437151442 | AC28: ='Res Bill Impact'!AC28 -> 0.07098173691
B29: Tier 2 | C29: ='Res Bill Impact'!C29 -> 0.27299 | D29: =P9 -> 0.26591 | E29: =Q9 -> 0.26591 | H29: 15 hot | I29: 1368.765 | J29: 295.0449 | K29: 730.008 | L29: 529.2558 | O29: 15 hot | P29: ='Res Bill Impact'!P29 -> 1219.397003 | Q29: ='Res Bill Impact'!Q29 -> 540.766029 | R29: ='Res Bill Impact'!R29 -> 1360.59217 | S29: ='Res Bill Impact'!S29 -> 535.5743293 | T29: ='Res Bill Impact'!T29 -> 0.03219052405 | U29: ='Res Bill Impact'!U29 -> 0.03515632284 | W29: 15 hot | X29: ='Res Bill Impact'!X29 -> 924.9686507 | Y29: ='Res Bill Impact'!Y29 -> 451.6365116 | Z29: ='Res Bill Impact'!Z29 -> 1114.196822 | AA29: ='Res Bill Impact'!AA29 -> 520.3020094 | AB29: ='Res Bill Impact'!AB29 -> 0.03508032774 | AC29: ='Res Bill Impact'!AC29 -> 0.05084522936
B30: HUC | C30: ='Res Bill Impact'!C30 -> 0.27299 | D30: =P11 -> 0.26591 | E30: =Q12 -> 0.26591 | H30: 16 cool | I30: 447.1299 | J30: 377.1708 | K30: 410.6295 | L30: 705.6744 | O30: 16 cool | P30: ='Res Bill Impact'!P30 -> 565.1396542 | Q30: ='Res Bill Impact'!Q30 -> 416.659723 | R30: ='Res Bill Impact'!R30 -> 776.7883471 | S30: ='Res Bill Impact'!S30 -> 493.603768 | T30: ='Res Bill Impact'!T30 -> 0.02947788832 | U30: ='Res Bill Impact'!U30 -> 0.02511085999 | W30: 16 cool | X30: ='Res Bill Impact'!X30 -> 449.8471198 | Y30: ='Res Bill Impact'!Y30 -> 538.6630052 | Z30: ='Res Bill Impact'!Z30 -> 698.918731 | AA30: ='Res Bill Impact'!AA30 -> 570.1108274 | AB30: ='Res Bill Impact'!AB30 -> 0.03958178573 | AC30: ='Res Bill Impact'!AC30 -> 0.03048960855
N32: Daily to Monthly Conversion Factor | O32: 30.417
C34: NON-CARE | K34: Essential Use (Basic) - Non-CARE | S34: Essential Use (Basic) - CARE
C35: =C27 -> Jan 2025 | E35: =D27 -> 2025-06-01 | G35: =E21 -> Proposed | K35: =C35 -> Jan 2025 | M35: =E35 -> 2025-06-01 | O35: =G35 -> Proposed | S35: =K35 -> Jan 2025 | U35: =M35 -> 2025-06-01 | W35: =O35 -> Proposed
C36: Summer | D36: Winter | E36: Summer | F36: Winter | G36: Summer | H36: Winter | K36: Summer | L36: Winter | M36: Summer | N36: Winter | O36: Summer | P36: Winter | S36: Summer | T36: Winter | U36: Summer | V36: Winter | W36: Summer | X36: Winter
B37: 5 warm | C37: =C$22*MIN(I22,P22)+IF(P22-I22>0,C$23*(P22-I22))+ROUND($F$14*365/12,2)+('Simple Bill Insert Calc (2)'!M17*2)/12 -> 123.3582259 | D37: =C$22*MIN(J22,Q22)+IF(Q22-J22>0,C$23*(Q22-J22))+ROUND($F$14*365/12,2)+('Simple Bill Insert Calc (2)'!M17*2)/12 -> 128.3112087 | E37: =D$22*MIN(I22,P22)+IF(P22-I22>0,D$23*(P22-I22))+ROUND($F$14*365/12,2)+('Simple Bill Insert Calc (2)'!M17*2)/12 -> 119.6914282 | F37: =D$22*MIN(J22,Q22)+IF(Q22-J22>0,D$23*(Q22-J22))+ROUND($F$14*365/12,2)+('Simple Bill Insert Calc (2)'!M17*2)/12 -> 124.5065638 | G37: =E$22*MIN(I22,P22)+IF(P22-I22>0,E$23*(P22-I22))+ROUND($F$14*365/12,2)+('Simple Bill Insert Calc (2)'!M17*2)/12 -> 119.6914282 | H37: =E$22*MIN(J22,Q22)+IF(Q22-J22>0,E$23*(Q22-J22))+ROUND($F$14*365/12,2)+('Simple Bill Insert Calc (2)'!M17*2)/12 -> 124.5065638 | J37: 5 warm | K37: =C$22*I22+ROUND($F$14*365/12,2)+('Simple Bill Insert Calc (2)'!M17*2)/12 -> 163.8386708 | L37: =C$22*J22+ROUND($F$14*365/12,2)+('Simple Bill Insert Calc (2)'!M17*2)/12 -> 178.0224829 | M37: =D$22*I22+ROUND($F$14*365/12,2)+('Simple Bill Insert Calc (2)'!M17*2)/12 -> 159.0452558 | N37: =D$22*J22+ROUND($F$14*365/12,2)+('Simple Bill Insert Calc (2)'!M17*2)/12 -> 172.834316 | O37: =E$22*I22+ROUND($F$14*365/12,2)+('Simple Bill Insert Calc (2)'!M17*2)/12 -> 159.0452558 | P37: =E$22*J22+ROUND($F$14*365/12,2)+('Simple Bill Insert Calc (2)'!M17*2)/12 -> 172.834316 | R37: 5 warm | S37: =C$28*I22+ROUND($P$14*365/12,2)+('Simple Bill Insert Calc (2)'!M17*2)/12 -> 99.26450809 | T37: =C$28*J22+ROUND($P$14*365/12,2)+('Simple Bill Insert Calc (2)'!M17*2)/12 -> 108.1551539 | U37: =D$28*I22+ROUND($P$14*365/12,2)+('Simple Bill Insert Calc (2)'!M17*2)/12 -> 96.5187655 | V37: =D$28*J22+ROUND($P$14*365/12,2)+('Simple Bill Insert Calc (2)'!M17*2)/12 -> 105.1832913 | W37: =E$28*I22+ROUND($P$14*365/12,2)+('Simple Bill Insert Calc (2)'!M17*2)/12 -> 96.5187655 | X37: =E$28*J22+ROUND($P$14*365/12,2)+('Simple Bill Insert Calc (2)'!M17*2)/12 -> 105.1832913
B38: 6 cool | C38: =C$22*MIN(I23,P23)+IF(P23-I23>0,C$23*(P23-I23))+ROUND($F$14*365/12,2)+('Simple Bill Insert Calc (2)'!M17*2)/12 -> 147.6161 | D38: =C$22*MIN(J23,Q23)+IF(Q23-J23>0,C$23*(Q23-J23))+ROUND($F$14*365/12,2)+('Simple Bill Insert Calc (2)'!M17*2)/12 -> 121.8963165 | E38: =D$22*MIN(I23,P23)+IF(P23-I23>0,D$23*(P23-I23))+ROUND($F$14*365/12,2)+('Simple Bill Insert Calc (2)'!M17*2)/12 -> 143.2758408 | F38: =D$22*MIN(J23,Q23)+IF(Q23-J23>0,D$23*(Q23-J23))+ROUND($F$14*365/12,2)+('Simple Bill Insert Calc (2)'!M17*2)/12 -> 118.2709791 | G38: =E$22*MIN(I23,P23)+IF(P23-I23>0,E$23*(P23-I23))+ROUND($F$14*365/12,2)+('Simple Bill Insert Calc (2)'!M17*2)/12 -> 143.2758408 | H38: =E$22*MIN(J23,Q23)+IF(Q23-J23>0,E$23*(Q23-J23))+ROUND($F$14*365/12,2)+('Simple Bill Insert Calc (2)'!M17*2)/12 -> 118.2709791 | J38: 6 cool | K38: =C$22*I23+ROUND($F$14*365/12,2)+('Simple Bill Insert Calc (2)'!M17*2)/12 -> 107.1034224 | L38: =C$22*J23+ROUND($F$14*365/12,2)+('Simple Bill Insert Calc (2)'!M17*2)/12 -> 103.0509046 | M38: =D$22*I23+ROUND($F$14*365/12,2)+('Simple Bill Insert Calc (2)'!M17*2)/12 -> 103.8890146 | N38: =D$22*J23+ROUND($F$14*365/12,2)+('Simple Bill Insert Calc (2)'!M17*2)/12 -> 99.94928314 | O38: =E$22*I23+ROUND($F$14*365/12,2)+('Simple Bill Insert Calc (2)'!M17*2)/12 -> 103.8890146 | P38: =E$22*J23+ROUND($F$14*365/12,2)+('Simple Bill Insert Calc (2)'!M17*2)/12 -> 99.94928314 | R38: 6 cool | S38: =C$28*I23+ROUND($P$14*365/12,2)+('Simple Bill Insert Calc (2)'!M17*2)/12 -> 63.70192503 | T38: =C$28*J23+ROUND($P$14*365/12,2)+('Simple Bill Insert Calc (2)'!M17*2)/12 -> 61.16174053 | U38: =D$28*I23+ROUND($P$14*365/12,2)+('Simple Bill Insert Calc (2)'!M17*2)/12 -> 61.86066235 | V38: =D$28*J23+ROUND($P$14*365/12,2)+('Simple Bill Insert Calc (2)'!M17*2)/12 -> 59.38508356 | W38: =E$28*I23+ROUND($P$14*365/12,2)+('Simple Bill Insert Calc (2)'!M17*2)/12 -> 61.86066235 | X38: =E$28*J23+ROUND($P$14*365/12,2)+('Simple Bill Insert Calc (2)'!M17*2)/12 -> 59.38508356
B39: 8 cool | C39: =C$22*MIN(I24,P24)+IF(P24-I24>0,C$23*(P24-I24))+ROUND($F$14*365/12,2)+('Simple Bill Insert Calc (2)'!M17*2)/12 -> 198.0053281 | D39: =C$22*MIN(J24,Q24)+IF(Q24-J24>0,C$23*(Q24-J24))+ROUND($F$14*365/12,2)+('Simple Bill Insert Calc (2)'!M17*2)/12 -> 132.0622536 | E39: =D$22*MIN(I24,P24)+IF(P24-I24>0,D$23*(P24-I24))+ROUND($F$14*365/12,2)+('Simple Bill Insert Calc (2)'!M17*2)/12 -> 192.2641648 | F39: =D$22*MIN(J24,Q24)+IF(Q24-J24>0,D$23*(Q24-J24))+ROUND($F$14*365/12,2)+('Simple Bill Insert Calc (2)'!M17*2)/12 -> 128.1546948 | G39: =E$22*MIN(I24,P24)+IF(P24-I24>0,E$23*(P24-I24))+ROUND($F$14*365/12,2)+('Simple Bill Insert Calc (2)'!M17*2)/12 -> 192.2641648 | H39: =E$22*MIN(J24,Q24)+IF(Q24-J24>0,E$23*(Q24-J24))+ROUND($F$14*365/12,2)+('Simple Bill Insert Calc (2)'!M17*2)/12 -> 128.1546948 | J39: 8 cool | K39: =C$22*I24+ROUND($F$14*365/12,2)+('Simple Bill Insert Calc (2)'!M17*2)/12 -> 121.2872345 | L39: =C$22*J24+ROUND($F$14*365/12,2)+('Simple Bill Insert Calc (2)'!M17*2)/12 -> 95.95899857 | M39: =D$22*I24+ROUND($F$14*365/12,2)+('Simple Bill Insert Calc (2)'!M17*2)/12 -> 117.6780749 | N39: =D$22*J24+ROUND($F$14*365/12,2)+('Simple Bill Insert Calc (2)'!M17*2)/12 -> 93.054753 | O39: =E$22*I24+ROUND($F$14*365/12,2)+('Simple Bill Insert Calc (2)'!M17*2)/12 -> 117.6780749 | P39: =E$22*J24+ROUND($F$14*365/12,2)+('Simple Bill Insert Calc (2)'!M17*2)/12 -> 93.054753 | R39: 8 cool | S39: =C$28*I24+ROUND($P$14*365/12,2)+('Simple Bill Insert Calc (2)'!M17*2)/12 -> 72.59257079 | T39: =C$28*J24+ROUND($P$14*365/12,2)+('Simple Bill Insert Calc (2)'!M17*2)/12 -> 56.71641764 | U39: =D$28*I24+ROUND($P$14*365/12,2)+('Simple Bill Insert Calc (2)'!M17*2)/12 -> 70.52518814 | V39: =D$28*J24+ROUND($P$14*365/12,2)+('Simple Bill Insert Calc (2)'!M17*2)/12 -> 55.05282066 | W39: =E$28*I24+ROUND($P$14*365/12,2)+('Simple Bill Insert Calc (2)'!M17*2)/12 -> 70.52518814 | X39: =E$28*J24+ROUND($P$14*365/12,2)+('Simple Bill Insert Calc (2)'!M17*2)/12 -> 55.05282066
B40: 9 warm | C40: =C$22*MIN(I25,P25)+IF(P25-I25>0,C$23*(P25-I25))+ROUND($F$14*365/12,2)+('Simple Bill Insert Calc (2)'!M17*2)/12 -> 257.9491103 | D40: =C$22*MIN(J25,Q25)+IF(Q25-J25>0,C$23*(Q25-J25))+ROUND($F$14*365/12,2)+('Simple Bill Insert Calc (2)'!M17*2)/12 -> 151.3144154 | E40: =D$22*MIN(I25,P25)+IF(P25-I25>0,D$23*(P25-I25))+ROUND($F$14*365/12,2)+('Simple Bill Insert Calc (2)'!M17*2)/12 -> 250.540398 | F40: =D$22*MIN(J25,Q25)+IF(Q25-J25>0,D$23*(Q25-J25))+ROUND($F$14*365/12,2)+('Simple Bill Insert Calc (2)'!M17*2)/12 -> 146.8711301 | G40: =E$22*MIN(I25,P25)+IF(P25-I25>0,E$23*(P25-I25))+ROUND($F$14*365/12,2)+('Simple Bill Insert Calc (2)'!M17*2)/12 -> 250.540398 | H40: =E$22*MIN(J25,Q25)+IF(Q25-J25>0,E$23*(Q25-J25))+ROUND($F$14*365/12,2)+('Simple Bill Insert Calc (2)'!M17*2)/12 -> 146.8711301 | J40: 9 warm | K40: =C$22*I25+ROUND($F$14*365/12,2)+('Simple Bill Insert Calc (2)'!M17*2)/12 -> 162.8255414 | L40: =C$22*J25+ROUND($F$14*365/12,2)+('Simple Bill Insert Calc (2)'!M17*2)/12 -> 113.182199 | M40: =D$22*I25+ROUND($F$14*365/12,2)+('Simple Bill Insert Calc (2)'!M17*2)/12 -> 158.0603229 | N40: =D$22*J25+ROUND($F$14*365/12,2)+('Simple Bill Insert Calc (2)'!M17*2)/12 -> 109.7986119 | O40: =E$22*I25+ROUND($F$14*365/12,2)+('Simple Bill Insert Calc (2)'!M17*2)/12 -> 158.0603229 | P40: =E$22*J25+ROUND($F$14*365/12,2)+('Simple Bill Insert Calc (2)'!M17*2)/12 -> 109.7986119 | R40: 9 warm | S40: =C$28*I25+ROUND($P$14*365/12,2)+('Simple Bill Insert Calc (2)'!M17*2)/12 -> 98.62946196 | T40: =C$28*J25+ROUND($P$14*365/12,2)+('Simple Bill Insert Calc (2)'!M17*2)/12 -> 67.51220179 | U40: =D$28*I25+ROUND($P$14*365/12,2)+('Simple Bill Insert Calc (2)'!M17*2)/12 -> 95.8998708 | V40: =D$28*J25+ROUND($P$14*365/12,2)+('Simple Bill Insert Calc (2)'!M17*2)/12 -> 65.57403055 | W40: =E$28*I25+ROUND($P$14*365/12,2)+('Simple Bill Insert Calc (2)'!M17*2)/12 -> 95.8998708 | X40: =E$28*J25+ROUND($P$14*365/12,2)+('Simple Bill Insert Calc (2)'!M17*2)/12 -> 65.57403055
B41: 10 hot (Sec 745) | C41: =C$22*MIN(I26,P26)+IF(P26-I26>0,C$23*(P26-I26))+ROUND($F$14*365/12,2)+('Simple Bill Insert Calc (2)'!M17*2)/12 -> 303.1446916 | D41: =C$22*MIN(J26,Q26)+IF(Q26-J26>0,C$23*(Q26-J26))+ROUND($F$14*365/12,2)+('Simple Bill Insert Calc (2)'!M17*2)/12 -> 163.0048212 | E41: =D$22*MIN(I26,P26)+IF(P26-I26>0,D$23*(P26-I26))+ROUND($F$14*365/12,2)+('Simple Bill Insert Calc (2)'!M17*2)/12 -> 294.4789914 | F41: =D$22*MIN(J26,Q26)+IF(Q26-J26>0,D$23*(Q26-J26))+ROUND($F$14*365/12,2)+('Simple Bill Insert Calc (2)'!M17*2)/12 -> 158.2366167 | G41: =E$22*MIN(I26,P26)+IF(P26-I26>0,E$23*(P26-I26))+ROUND($F$14*365/12,2)+('Simple Bill Insert Calc (2)'!M17*2)/12 -> 294.4789914 | H41: =E$22*MIN(J26,Q26)+IF(Q26-J26>0,E$23*(Q26-J26))+ROUND($F$14*365/12,2)+('Simple Bill Insert Calc (2)'!M17*2)/12 -> 158.2366167 | J41: 10 hot (Sec 745) | K41: =C$22*I26+ROUND($F$14*365/12,2)+('Simple Bill Insert Calc (2)'!M17*2)/12 -> 187.1406478 | L41: =C$22*J26+ROUND($F$14*365/12,2)+('Simple Bill Insert Calc (2)'!M17*2)/12 -> 114.1953284 | M41: =D$22*I26+ROUND($F$14*365/12,2)+('Simple Bill Insert Calc (2)'!M17*2)/12 -> 181.6987119 | N41: =D$22*J26+ROUND($F$14*365/12,2)+('Simple Bill Insert Calc (2)'!M17*2)/12 -> 110.7835448 | O41: =E$22*I26+ROUND($F$14*365/12,2)+('Simple Bill Insert Calc (2)'!M17*2)/12 -> 181.6987119 | P41: =E$22*J26+ROUND($F$14*365/12,2)+('Simple Bill Insert Calc (2)'!M17*2)/12 -> 110.7835448 | R41: 10 hot (Sec 745) | S41: =C$28*I26+ROUND($P$14*365/12,2)+('Simple Bill Insert Calc (2)'!M17*2)/12 -> 113.870569 | T41: =C$28*J26+ROUND($P$14*365/12,2)+('Simple Bill Insert Calc (2)'!M17*2)/12 -> 68.14724791 | U41: =D$28*I26+ROUND($P$14*365/12,2)+('Simple Bill Insert Calc (2)'!M17*2)/12 -> 110.7533436 | V41: =D$28*J26+ROUND($P$14*365/12,2)+('Simple Bill Insert Calc (2)'!M17*2)/12 -> 66.19292525 | W41: =E$28*I26+ROUND($P$14*365/12,2)+('Simple Bill Insert Calc (2)'!M17*2)/12 -> 110.7533436 | X41: =E$28*J26+ROUND($P$14*365/12,2)+('Simple Bill Insert Calc (2)'!M17*2)/12 -> 66.19292525
B42: 13 hot | C42: =C$22*MIN(I27,P27)+IF(P27-I27>0,C$23*(P27-I27))+ROUND($F$14*365/12,2)+('Simple Bill Insert Calc (2)'!M17*2)/12 -> 353.7558048 | D42: =C$22*MIN(J27,Q27)+IF(Q27-J27>0,C$23*(Q27-J27))+ROUND($F$14*365/12,2)+('Simple Bill Insert Calc (2)'!M17*2)/12 -> 165.4246611 | E42: =D$22*MIN(I27,P27)+IF(P27-I27>0,D$23*(P27-I27))+ROUND($F$14*365/12,2)+('Simple Bill Insert Calc (2)'!M17*2)/12 -> 343.6824105 | F42: =D$22*MIN(J27,Q27)+IF(Q27-J27>0,D$23*(Q27-J27))+ROUND($F$14*365/12,2)+('Simple Bill Insert Calc (2)'!M17*2)/12 -> 160.5891674 | G42: =E$22*MIN(I27,P27)+IF(P27-I27>0,E$23*(P27-I27))+ROUND($F$14*365/12,2)+('Simple Bill Insert Calc (2)'!M17*2)/12 -> 343.6824105 | H42: =E$22*MIN(J27,Q27)+IF(Q27-J27>0,E$23*(Q27-J27))+ROUND($F$14*365/12,2)+('Simple Bill Insert Calc (2)'!M17*2)/12 -> 160.5891674 | J42: 13 hot | K42: =C$22*I27+ROUND($F$14*365/12,2)+('Simple Bill Insert Calc (2)'!M17*2)/12 -> 216.5214015 | L42: =C$22*J27+ROUND($F$14*365/12,2)+('Simple Bill Insert Calc (2)'!M17*2)/12 -> 115.2084579 | M42: =D$22*I27+ROUND($F$14*365/12,2)+('Simple Bill Insert Calc (2)'!M17*2)/12 -> 210.2617654 | N42: =D$22*J27+ROUND($F$14*365/12,2)+('Simple Bill Insert Calc (2)'!M17*2)/12 -> 111.7684777 | O42: =E$22*I27+ROUND($F$14*365/12,2)+('Simple Bill Insert Calc (2)'!M17*2)/12 -> 210.2617654 | P42: =E$22*J27+ROUND($F$14*365/12,2)+('Simple Bill Insert Calc (2)'!M17*2)/12 -> 111.7684777 | R42: 13 hot | S42: =C$28*I27+ROUND($P$14*365/12,2)+('Simple Bill Insert Calc (2)'!M17*2)/12 -> 132.2869066 | T42: =C$28*J27+ROUND($P$14*365/12,2)+('Simple Bill Insert Calc (2)'!M17*2)/12 -> 68.78229404 | U42: =D$28*I27+ROUND($P$14*365/12,2)+('Simple Bill Insert Calc (2)'!M17*2)/12 -> 128.7012898 | V42: =D$28*J27+ROUND($P$14*365/12,2)+('Simple Bill Insert Calc (2)'!M17*2)/12 -> 66.81181994 | W42: =E$28*I27+ROUND($P$14*365/12,2)+('Simple Bill Insert Calc (2)'!M17*2)/12 -> 128.7012898 | X42: =E$28*J27+ROUND($P$14*365/12,2)+('Simple Bill Insert Calc (2)'!M17*2)/12 -> 66.81181994
B43: 14 hot | C43: =C$22*MIN(I28,P28)+IF(P28-I28>0,C$23*(P28-I28))+ROUND($F$14*365/12,2)+('Simple Bill Insert Calc (2)'!M17*2)/12 -> 294.0003144 | D43: =C$22*MIN(J28,Q28)+IF(Q28-J28>0,C$23*(Q28-J28))+ROUND($F$14*365/12,2)+('Simple Bill Insert Calc (2)'!M17*2)/12 -> 159.9117568 | E43: =D$22*MIN(I28,P28)+IF(P28-I28>0,D$23*(P28-I28))+ROUND($F$14*365/12,2)+('Simple Bill Insert Calc (2)'!M17*2)/12 -> 285.588779 | F43: =D$22*MIN(J28,Q28)+IF(Q28-J28>0,D$23*(Q28-J28))+ROUND($F$14*365/12,2)+('Simple Bill Insert Calc (2)'!M17*2)/12 -> 155.2295921 | G43: =E$22*MIN(I28,P28)+IF(P28-I28>0,E$23*(P28-I28))+ROUND($F$14*365/12,2)+('Simple Bill Insert Calc (2)'!M17*2)/12 -> 285.588779 | H43: =E$22*MIN(J28,Q28)+IF(Q28-J28>0,E$23*(Q28-J28))+ROUND($F$14*365/12,2)+('Simple Bill Insert Calc (2)'!M17*2)/12 -> 155.2295921 | J43: 14 hot | K43: =C$22*I28+ROUND($F$14*365/12,2)+('Simple Bill Insert Calc (2)'!M17*2)/12 -> 186.1275184 | L43: =C$22*J28+ROUND($F$14*365/12,2)+('Simple Bill Insert Calc (2)'!M17*2)/12 -> 112.1690696 | M43: =D$22*I28+ROUND($F$14*365/12,2)+('Simple Bill Insert Calc (2)'!M17*2)/12 -> 180.7137791 | N43: =D$22*J28+ROUND($F$14*365/12,2)+('Simple Bill Insert Calc (2)'!M17*2)/12 -> 108.813679 | O43: =E$22*I28+ROUND($F$14*365/12,2)+('Simple Bill Insert Calc (2)'!M17*2)/12 -> 180.7137791 | P43: =E$22*J28+ROUND($F$14*365/12,2)+('Simple Bill Insert Calc (2)'!M17*2)/12 -> 108.813679 | R43: 14 hot | S43: =C$28*I28+ROUND($P$14*365/12,2)+('Simple Bill Insert Calc (2)'!M17*2)/12 -> 113.2355229 | T43: =C$28*J28+ROUND($P$14*365/12,2)+('Simple Bill Insert Calc (2)'!M17*2)/12 -> 66.87715566 | U43: =D$28*I28+ROUND($P$14*365/12,2)+('Simple Bill Insert Calc (2)'!M17*2)/12 -> 110.1344489 | V43: =D$28*J28+ROUND($P$14*365/12,2)+('Simple Bill Insert Calc (2)'!M17*2)/12 -> 64.95513585 | W43: =E$28*I28+ROUND($P$14*365/12,2)+('Simple Bill Insert Calc (2)'!M17*2)/12 -> 110.1344489 | X43: =E$28*J28+ROUND($P$14*365/12,2)+('Simple Bill Insert Calc (2)'!M17*2)/12 -> 64.95513585
B44: 15 hot | C44: =C$22*MIN(I29,P29)+IF(P29-I29>0,C$23*(P29-I29))+ROUND($F$14*365/12,2)+('Simple Bill Insert Calc (2)'!M17*2)/12 -> 397.7634205 | D44: =C$22*MIN(J29,Q29)+IF(Q29-J29>0,C$23*(Q29-J29))+ROUND($F$14*365/12,2)+('Simple Bill Insert Calc (2)'!M17*2)/12 -> 195.1004666 | E44: =D$22*MIN(I29,P29)+IF(P29-I29>0,D$23*(P29-I29))+ROUND($F$14*365/12,2)+('Simple Bill Insert Calc (2)'!M17*2)/12 -> 386.4596103 | F44: =D$22*MIN(J29,Q29)+IF(Q29-J29>0,D$23*(Q29-J29))+ROUND($F$14*365/12,2)+('Simple Bill Insert Calc (2)'!M17*2)/12 -> 189.4413189 | G44: =E$22*MIN(I29,P29)+IF(P29-I29>0,E$23*(P29-I29))+ROUND($F$14*365/12,2)+('Simple Bill Insert Calc (2)'!M17*2)/12 -> 386.4596103 | H44: =E$22*MIN(J29,Q29)+IF(Q29-J29>0,E$23*(Q29-J29))+ROUND($F$14*365/12,2)+('Simple Bill Insert Calc (2)'!M17*2)/12 -> 189.4413189 | J44: 15 hot | K44: =C$22*I29+ROUND($F$14*365/12,2)+('Simple Bill Insert Calc (2)'!M17*2)/12 -> 447.5149129 | L44: =C$22*J29+ROUND($F$14*365/12,2)+('Simple Bill Insert Calc (2)'!M17*2)/12 -> 89.88022196 | M44: =D$22*I29+ROUND($F$14*365/12,2)+('Simple Bill Insert Calc (2)'!M17*2)/12 -> 434.8264613 | N44: =D$22*J29+ROUND($F$14*365/12,2)+('Simple Bill Insert Calc (2)'!M17*2)/12 -> 87.14515574 | O44: =E$22*I29+ROUND($F$14*365/12,2)+('Simple Bill Insert Calc (2)'!M17*2)/12 -> 434.8264613 | P44: =E$22*J29+ROUND($F$14*365/12,2)+('Simple Bill Insert Calc (2)'!M17*2)/12 -> 87.14515574 | R44: 15 hot | S44: =C$28*I29+ROUND($P$14*365/12,2)+('Simple Bill Insert Calc (2)'!M17*2)/12 -> 277.0774234 | T44: =C$28*J29+ROUND($P$14*365/12,2)+('Simple Bill Insert Calc (2)'!M17*2)/12 -> 52.90614089 | U44: =D$28*I29+ROUND($P$14*365/12,2)+('Simple Bill Insert Calc (2)'!M17*2)/12 -> 269.8092812 | V44: =D$28*J29+ROUND($P$14*365/12,2)+('Simple Bill Insert Calc (2)'!M17*2)/12 -> 51.33945247 | W44: =E$28*I29+ROUND($P$14*365/12,2)+('Simple Bill Insert Calc (2)'!M17*2)/12 -> 269.8092812 | X44: =E$28*J29+ROUND($P$14*365/12,2)+('Simple Bill Insert Calc (2)'!M17*2)/12 -> 51.33945247
B45: 16 cool | C45: =C$22*MIN(I30,P30)+IF(P30-I30>0,C$23*(P30-I30))+ROUND($F$14*365/12,2)+('Simple Bill Insert Calc (2)'!M17*2)/12 -> 191.0696506 | D45: =C$22*MIN(J30,Q30)+IF(Q30-J30>0,C$23*(Q30-J30))+ROUND($F$14*365/12,2)+('Simple Bill Insert Calc (2)'!M17*2)/12 -> 134.1442685 | E45: =D$22*MIN(I30,P30)+IF(P30-I30>0,D$23*(P30-I30))+ROUND($F$14*365/12,2)+('Simple Bill Insert Calc (2)'!M17*2)/12 -> 185.5204404 | F45: =D$22*MIN(J30,Q30)+IF(Q30-J30>0,D$23*(Q30-J30))+ROUND($F$14*365/12,2)+('Simple Bill Insert Calc (2)'!M17*2)/12 -> 130.177977 | G45: =E$22*MIN(I30,P30)+IF(P30-I30>0,E$23*(P30-I30))+ROUND($F$14*365/12,2)+('Simple Bill Insert Calc (2)'!M17*2)/12 -> 185.5204404 | H45: =E$22*MIN(J30,Q30)+IF(Q30-J30>0,E$23*(Q30-J30))+ROUND($F$14*365/12,2)+('Simple Bill Insert Calc (2)'!M17*2)/12 -> 130.177977 | J45: 16 cool | K45: =C$22*I30+ROUND($F$14*365/12,2)+('Simple Bill Insert Calc (2)'!M17*2)/12 -> 140.5366938 | L45: =C$22*J30+ROUND($F$14*365/12,2)+('Simple Bill Insert Calc (2)'!M17*2)/12 -> 117.2347167 | M45: =D$22*I30+ROUND($F$14*365/12,2)+('Simple Bill Insert Calc (2)'!M17*2)/12 -> 136.3917996 | N45: =D$22*J30+ROUND($F$14*365/12,2)+('Simple Bill Insert Calc (2)'!M17*2)/12 -> 113.7383434 | O45: =E$22*I30+ROUND($F$14*365/12,2)+('Simple Bill Insert Calc (2)'!M17*2)/12 -> 136.3917996 | P45: =E$22*J30+ROUND($F$14*365/12,2)+('Simple Bill Insert Calc (2)'!M17*2)/12 -> 113.7383434 | R45: 16 cool | S45: =C$28*I30+ROUND($P$14*365/12,2)+('Simple Bill Insert Calc (2)'!M17*2)/12 -> 84.65844719 | T45: =C$28*J30+ROUND($P$14*365/12,2)+('Simple Bill Insert Calc (2)'!M17*2)/12 -> 70.05238629 | U45: =D$28*I30+ROUND($P$14*365/12,2)+('Simple Bill Insert Calc (2)'!M17*2)/12 -> 82.28418742 | V45: =D$28*J30+ROUND($P$14*365/12,2)+('Simple Bill Insert Calc (2)'!M17*2)/12 -> 68.04960934 | W45: =E$28*I30+ROUND($P$14*365/12,2)+('Simple Bill Insert Calc (2)'!M17*2)/12 -> 82.28418742 | X45: =E$28*J30+ROUND($P$14*365/12,2)+('Simple Bill Insert Calc (2)'!M17*2)/12 -> 68.04960934
B46: ALL | C46: =SUMPRODUCT(C37:C45,$T$22:$T$30) -> 248.390766 | D46: 147.5374648 | E46: 241.2477079 | F46: 143.1993824 | G46: 241.2477079 | H46: 143.1993824 | J46: ALL | K46: =SUMPRODUCT(K37:K45,$T$22:$T$30) -> 163.7920629 | L46: 107.3275525 | M46: 158.999945 | N46: 104.106907 | O46: 158.999945 | P46: 104.106907 | R46: ALL | S46: =SUMPRODUCT(S37:S45,$U$22:$U$30) -> 109.9002144 | T46: =SUMPRODUCT(T37:T45,$U$22:$U$30) -> 65.32589318 | U46: 106.8839689 | V46: 63.44332736 | W46: 106.8839689 | X46: 63.44332736
C49: CARE | K49: Essential Use (All-Electric) - Non-CARE | S49: Essential Use (All-Electric) - CARE
C50: =C27 -> Jan 2025 | E50: =D27 -> 2025-06-01 | G50: =E27 -> Proposed | K50: =C50 -> Jan 2025 | M50: =E50 -> 2025-06-01 | O50: =G50 -> Proposed | S50: =K50 -> Jan 2025 | U50: =M50 -> 2025-06-01 | W50: =O50 -> Proposed
C51: Summer | D51: Winter | E51: Summer | F51: Winter | G51: Summer | H51: Winter | K51: Summer | L51: Winter | M51: Summer | N51: Winter | O51: Summer | P51: Winter | S51: Summer | T51: Winter | U51: Summer | V51: Winter | W51: Summer | X51: Winter
B52: 5 warm | C52: =C$28*MIN(I22,R22)+IF(R22-I22>0,C$29*(R22-I22))+ROUND($P$14*365/12,2)+('Simple Bill Insert Calc (2)'!M17*2)/12 -> 68.66764285 | D52: =C$28*MIN(J22,S22)+IF(S22-J22>0,C$29*(S22-J22))+ROUND($P$14*365/12,2)+('Simple Bill Insert Calc (2)'!M17*2)/12 -> 64.96695865 | E52: =D$28*MIN(I22,R22)+IF(R22-I22>0,D$29*(R22-I22))+ROUND($P$14*365/12,2)+('Simple Bill Insert Calc (2)'!M17*2)/12 -> 66.70008474 | F52: =D$28*MIN(J22,S22)+IF(S22-J22>0,D$29*(S22-J22))+ROUND($P$14*365/12,2)+('Simple Bill Insert Calc (2)'!M17*2)/12 -> 63.09352177 | G52: =E$28*MIN(I22,R22)+IF(R22-I22>0,E$29*(R22-I22))+ROUND($P$14*365/12,2)+('Simple Bill Insert Calc (2)'!M17*2)/12 -> 66.70008474 | H52: =E$28*MIN(J22,S22)+IF(S22-J22>0,E$29*(S22-J22))+ROUND($P$14*365/12,2)+('Simple Bill Insert Calc (2)'!M17*2)/12 -> 63.09352177 | J52: 5 warm | K52: =C$22*K22+ROUND($F$14*365/12,2)+('Simple Bill Insert Calc (2)'!M17*2)/12 -> 161.8124119 | L52: =C$22*L22+ROUND($F$14*365/12,2)+('Simple Bill Insert Calc (2)'!M17*2)/12 -> 265.1516144 | M52: =D$22*K22+ROUND($F$14*365/12,2)+('Simple Bill Insert Calc (2)'!M17*2)/12 -> 157.07539 | N52: =D$22*L22+ROUND($F$14*365/12,2)+('Simple Bill Insert Calc (2)'!M17*2)/12 -> 257.5385435 | O52: =E$22*K22+ROUND($F$14*365/12,2)+('Simple Bill Insert Calc (2)'!M17*2)/12 -> 157.07539 | P52: =E$22*L22+ROUND($F$14*365/12,2)+('Simple Bill Insert Calc (2)'!M17*2)/12 -> 257.5385435 | R52: 5 warm | S52: =C$28*K22+ROUND($P$14*365/12,2)+('Simple Bill Insert Calc (2)'!M17*2)/12 -> 97.99441583 | T52: =C$28*L22+ROUND($P$14*365/12,2)+('Simple Bill Insert Calc (2)'!M17*2)/12 -> 162.7691207 | U52: =D$28*K22+ROUND($P$14*365/12,2)+('Simple Bill Insert Calc (2)'!M17*2)/12 -> 95.2809761 | V52: =D$28*L22+ROUND($P$14*365/12,2)+('Simple Bill Insert Calc (2)'!M17*2)/12 -> 158.4082354 | W52: =E$28*K22+ROUND($P$14*365/12,2)+('Simple Bill Insert Calc (2)'!M17*2)/12 -> 95.2809761 | X52: =E$28*L22+ROUND($P$14*365/12,2)+('Simple Bill Insert Calc (2)'!M17*2)/12 -> 158.4082354
B53: 6 cool | C53: =C$28*MIN(I23,R23)+IF(R23-I23>0,C$29*(R23-I23))+ROUND($P$14*365/12,2)+('Simple Bill Insert Calc (2)'!M17*2)/12 -> 79.17496909 | D53: =C$28*MIN(J23,S23)+IF(S23-J23>0,C$29*(S23-J23))+ROUND($P$14*365/12,2)+('Simple Bill Insert Calc (2)'!M17*2)/12 -> 64.47961901 | E53: =D$28*MIN(I23,R23)+IF(R23-I23>0,D$29*(R23-I23))+ROUND($P$14*365/12,2)+('Simple Bill Insert Calc (2)'!M17*2)/12 -> 76.93241277 | F53: =D$28*MIN(J23,S23)+IF(S23-J23>0,D$29*(S23-J23))+ROUND($P$14*365/12,2)+('Simple Bill Insert Calc (2)'!M17*2)/12 -> 62.61691281 | G53: =E$28*MIN(I23,R23)+IF(R23-I23>0,E$29*(R23-I23))+ROUND($P$14*365/12,2)+('Simple Bill Insert Calc (2)'!M17*2)/12 -> 76.93241277 | H53: =E$28*MIN(J23,S23)+IF(S23-J23>0,E$29*(S23-J23))+ROUND($P$14*365/12,2)+('Simple Bill Insert Calc (2)'!M17*2)/12 -> 62.61691281 | J53: 6 cool | K53: =C$22*K23+ROUND($F$14*365/12,2)+('Simple Bill Insert Calc (2)'!M17*2)/12 -> 79.7489276 | L53: =C$22*L23+ROUND($F$14*365/12,2)+('Simple Bill Insert Calc (2)'!M17*2)/12 -> 119.2609756 | M53: =D$22*K23+ROUND($F$14*365/12,2)+('Simple Bill Insert Calc (2)'!M17*2)/12 -> 77.29582697 | N53: =D$22*L23+ROUND($F$14*365/12,2)+('Simple Bill Insert Calc (2)'!M17*2)/12 -> 115.7082092 | O53: =E$22*K23+ROUND($F$14*365/12,2)+('Simple Bill Insert Calc (2)'!M17*2)/12 -> 77.29582697 | P53: =E$22*L23+ROUND($F$14*365/12,2)+('Simple Bill Insert Calc (2)'!M17*2)/12 -> 115.7082092 | R53: 6 cool | S53: =C$28*K23+ROUND($P$14*365/12,2)+('Simple Bill Insert Calc (2)'!M17*2)/12 -> 46.55567963 | T53: =C$28*L23+ROUND($P$14*365/12,2)+('Simple Bill Insert Calc (2)'!M17*2)/12 -> 71.32247854 | U53: =D$28*K23+ROUND($P$14*365/12,2)+('Simple Bill Insert Calc (2)'!M17*2)/12 -> 45.15050548 | V53: =D$28*L23+ROUND($P$14*365/12,2)+('Simple Bill Insert Calc (2)'!M17*2)/12 -> 69.28739874 | W53: =E$28*K23+ROUND($P$14*365/12,2)+('Simple Bill Insert Calc (2)'!M17*2)/12 -> 45.15050548 | X53: =E$28*L23+ROUND($P$14*365/12,2)+('Simple Bill Insert Calc (2)'!M17*2)/12 -> 69.28739874
B54: 8 cool | C54: =C$28*MIN(I24,R24)+IF(R24-I24>0,C$29*(R24-I24))+ROUND($P$14*365/12,2)+('Simple Bill Insert Calc (2)'!M17*2)/12 -> 103.6442695 | D54: =C$28*MIN(J24,S24)+IF(S24-J24>0,C$29*(S24-J24))+ROUND($P$14*365/12,2)+('Simple Bill Insert Calc (2)'!M17*2)/12 -> 72.96840317 | E54: =D$28*MIN(I24,R24)+IF(R24-I24>0,D$29*(R24-I24))+ROUND($P$14*365/12,2)+('Simple Bill Insert Calc (2)'!M17*2)/12 -> 100.7715606 | F54: =D$28*MIN(J24,S24)+IF(S24-J24>0,D$29*(S24-J24))+ROUND($P$14*365/12,2)+('Simple Bill Insert Calc (2)'!M17*2)/12 -> 70.88331069 | G54: =E$28*MIN(I24,R24)+IF(R24-I24>0,E$29*(R24-I24))+ROUND($P$14*365/12,2)+('Simple Bill Insert Calc (2)'!M17*2)/12 -> 100.7715606 | H54: =E$28*MIN(J24,S24)+IF(S24-J24>0,E$29*(S24-J24))+ROUND($P$14*365/12,2)+('Simple Bill Insert Calc (2)'!M17*2)/12 -> 70.88331069 | J54: 8 cool | K54: =C$22*K24+ROUND($F$14*365/12,2)+('Simple Bill Insert Calc (2)'!M17*2)/12 -> 91.90648083 | L54: =C$22*L24+ROUND($F$14*365/12,2)+('Simple Bill Insert Calc (2)'!M17*2)/12 -> 116.2215873 | M54: =D$22*K24+ROUND($F$14*365/12,2)+('Simple Bill Insert Calc (2)'!M17*2)/12 -> 89.11502149 | N54: =D$22*L24+ROUND($F$14*365/12,2)+('Simple Bill Insert Calc (2)'!M17*2)/12 -> 112.7534105 | O54: =E$22*K24+ROUND($F$14*365/12,2)+('Simple Bill Insert Calc (2)'!M17*2)/12 -> 89.11502149 | P54: =E$22*L24+ROUND($F$14*365/12,2)+('Simple Bill Insert Calc (2)'!M17*2)/12 -> 112.7534105 | R54: 8 cool | S54: =C$28*K24+ROUND($P$14*365/12,2)+('Simple Bill Insert Calc (2)'!M17*2)/12 -> 54.17623314 | T54: =C$28*L24+ROUND($P$14*365/12,2)+('Simple Bill Insert Calc (2)'!M17*2)/12 -> 69.41734016 | U54: =D$28*K24+ROUND($P$14*365/12,2)+('Simple Bill Insert Calc (2)'!M17*2)/12 -> 52.57724187 | V54: =D$28*L24+ROUND($P$14*365/12,2)+('Simple Bill Insert Calc (2)'!M17*2)/12 -> 67.43071464 | W54: =E$28*K24+ROUND($P$14*365/12,2)+('Simple Bill Insert Calc (2)'!M17*2)/12 -> 52.57724187 | X54: =E$28*L24+ROUND($P$14*365/12,2)+('Simple Bill Insert Calc (2)'!M17*2)/12 -> 67.43071464
B55: 9 warm | C55: =C$28*MIN(I25,R25)+IF(R25-I25>0,C$29*(R25-I25))+ROUND($P$14*365/12,2)+('Simple Bill Insert Calc (2)'!M17*2)/12 -> 145.4334121 | D55: =C$28*MIN(J25,S25)+IF(S25-J25>0,C$29*(S25-J25))+ROUND($P$14*365/12,2)+('Simple Bill Insert Calc (2)'!M17*2)/12 -> 83.68430279 | E55: =D$28*MIN(I25,R25)+IF(R25-I25>0,D$29*(R25-I25))+ROUND($P$14*365/12,2)+('Simple Bill Insert Calc (2)'!M17*2)/12 -> 141.4899597 | F55: =D$28*MIN(J25,S25)+IF(S25-J25>0,D$29*(S25-J25))+ROUND($P$14*365/12,2)+('Simple Bill Insert Calc (2)'!M17*2)/12 -> 81.32670786 | G55: =E$28*MIN(I25,R25)+IF(R25-I25>0,E$29*(R25-I25))+ROUND($P$14*365/12,2)+('Simple Bill Insert Calc (2)'!M17*2)/12 -> 141.4899597 | H55: =E$28*MIN(J25,S25)+IF(S25-J25>0,E$29*(S25-J25))+ROUND($P$14*365/12,2)+('Simple Bill Insert Calc (2)'!M17*2)/12 -> 81.32670786 | J55: 9 warm | K55: =C$22*K25+ROUND($F$14*365/12,2)+('Simple Bill Insert Calc (2)'!M17*2)/12 -> 118.2478462 | L55: =C$22*L25+ROUND($F$14*365/12,2)+('Simple Bill Insert Calc (2)'!M17*2)/12 -> 132.4316583 | M55: =D$22*K25+ROUND($F$14*365/12,2)+('Simple Bill Insert Calc (2)'!M17*2)/12 -> 114.7232763 | N55: =D$22*L25+ROUND($F$14*365/12,2)+('Simple Bill Insert Calc (2)'!M17*2)/12 -> 128.5123366 | O55: =E$22*K25+ROUND($F$14*365/12,2)+('Simple Bill Insert Calc (2)'!M17*2)/12 -> 114.7232763 | P55: =E$22*L25+ROUND($F$14*365/12,2)+('Simple Bill Insert Calc (2)'!M17*2)/12 -> 128.5123366 | R55: 9 warm | S55: =C$28*K25+ROUND($P$14*365/12,2)+('Simple Bill Insert Calc (2)'!M17*2)/12 -> 70.68743242 | T55: =C$28*L25+ROUND($P$14*365/12,2)+('Simple Bill Insert Calc (2)'!M17*2)/12 -> 79.57807818 | U55: =D$28*K25+ROUND($P$14*365/12,2)+('Simple Bill Insert Calc (2)'!M17*2)/12 -> 68.66850404 | V55: =D$28*L25+ROUND($P$14*365/12,2)+('Simple Bill Insert Calc (2)'!M17*2)/12 -> 77.33302983 | W55: =E$28*K25+ROUND($P$14*365/12,2)+('Simple Bill Insert Calc (2)'!M17*2)/12 -> 68.66850404 | X55: =E$28*L25+ROUND($P$14*365/12,2)+('Simple Bill Insert Calc (2)'!M17*2)/12 -> 77.33302983
